{"text_format":"1","workbook":"xlsx","n_sheets":4,"sheets":["Action Verbs","Approved Acronyms and Abbrev","Synonyms","JP&21-101_acronyms"],"not_rendered":{"charts":0,"images":0,"macros":0,"external_links":0,"defined_names":1,"comments":0,"pivot_tables":0},"unopened":[],"bounds":{"document_bytes":16777216,"sheet_cells":100000,"rows_first":2000,"rows_last":500,"rows_between":2000,"halvings":0,"cell_chars":16384,"cell_head_chars":4096},"cells_cut":0,"cells_raw":0,"read":"whole","date_system":"1900"}

{"sheet":"Action Verbs","index":0,"n_rows":54,"n_cols":17,"rows_kept":54,"cut":false,"hidden":false,"merged":[[0,0,0,3]]}
["How many characters do you need to fill?",null,null,null,3]
[]
["Abated","Aroused","Cared For","Composed","Decentralized","Diverted","Estimated","Furnished","Induced","Listed","Nominated","Presented","Reconstructed","Retooled","Smoothed","Tabulated","Unveiled"]
["Abbreviated","Arranged","Carried","Compounded","Decided","Divested","Evaluated","Furthered","Influenced","Listened","Normalized","Preserved","Recorded","Retrieved","Sold","Tackled","Updated"]
["Abolished","Articulated","Carved","Computed","Decoded","Divided","Examined","Gained","Informed","Litigated","Notified","Presided","Recovered","Returned","Solicited","Tailed","Upgraded"]
["Abridged","Ascertained","Cataloged","Conceived","Decreased","Documented","Exceeded","Garnered","Infused","Loaded","Nursed","Pressed","Recreated","Revamped","Solidified","Talked","Upheld"]
["Absolved","Aspired","Catalogue","Concentrated","Dedicated","Dominated","EXCELLED","Gathered","Initiated","Lobbied","Nurtured","Prevailed","Recruited","Revealed","Solved","Tallied","Urged"]
["Absorbed","Assembled","Catalogued","Conceptualized","Deduced","Doubled","Exchanged","Gauged","Innovated","Localized","Observed","Prevented","Rectified","Reversed","Sorted","Tamed","Used"]
["Accelerated","Asserted","Categorized","Conciliated","Defended","Drafted","Executed","Gave","Inquired","Located","Obtained","Printed","Redeemed","Reviewed","Sought","Targeted","Utilized"]
["Accentuated","Assessed","Catered","Concluded","Deferred","Dramatized","Exercised","Generated","Inspected","Logged","Offered","Prioritized","Redesigned","Revised","Sourced","Tasted","Validated"]
["Accommodated","Assigned","Caught","Condensed","Defined","Drew","Exhibited","Governed","Inspired","Made","Officiated","Probed","Redirected","Revitalized","Sparked","Taught","Valued"]
["Accomplished","Assimilated","Caused","Conducted","Deflected","Drew Up","Expanded","Graded","Installed","Maintained","Offset","Processed","Reduced","Revived","Speaked","Teamed","Vaulted"]
["Accounted For","Assisted","Cautioned","Conferred","Delegated","Drove","Expedited","Graduated","Instigated","Managed","Opened","Procured","Reenergized","Revolutionized","Spearheaded","Tempered","Verbalized"]
["Accrued","Assumed","Cemented","Configured","Delineated","Earned","Experienced","Granted","Instilled","Mandated","Operated","Produced","Re-Engineered","Rewarded","Specialized","Tended","Verified"]
["Accumulated","Assured","Centralized","Confirmed","Delivered","Eased","Experimented","Grappled","Instituted","Maneuvered","Optimized","Profiled","Referred","Rewrote","Specified","Terminated","Vetted"]
["Achieved","Attained","Certified","Confronted","Delved","Economized","Explained","Grasped","Instructed","Manipulated","Orchestrated","Programmed","Refined","Risked","Speculated","Tested","Viewed"]
["Acquired","Attended","Chaired","Connected","Demolished","Edited","Explored","Greased","Insured","Manufactured","Ordered","Progressed","Refocused","Rotated","Spent","Testified","Visited"]
["Acted","Attracted","Challenged","Conquered","Demonstrated","Educated","Expressed","Greeted","Integrated","Mapped","Organized","Projected","Registered","Routed","Spoke","Theorized","Visualized"]
["Activated","Audited","Championed","Conserved","Depicted","Effected","Extended","Grew","Intensified","Marked","Orientated","Promoted","Regulated","Safeguarded","Sponsored","Thwarted","Vitalized"]
["Adapted","Augmented","Changed","Considered","Deployed","Elaborated","Extracted","Grouped","Interacted","Marketed","Oriented","Proofread","Rehabilitated","Salvaged","Spurred","Tied","Voiced"]
["Added","Authored","Channeled","Consolidated","Depreciated","Elected","Extrapolated","Guaranteed","Interceded","Mastered","Originated","Propelled","Reinforced","Sampled","Staffed","Tightened","Volunteered"]
["Addressed","Authorized","Charged","Constructed","Derived","Elevated","Fabricated","Guided","Interfaced","Masterminded","Outdistanced","Proposed","Reiterated","Saved","Staged","Timed","Weathered"]
["Adjusted","Automated","Charted","Consulted","Described","Elicited","Facilitated","Halted","Interpreted","Maximized","Outlined","Protected","Rejected","Scanned","Standardized","Took","Weighed"]
["Administered","Averaged","Check In","Consummated","Designated","Eliminated","Factored","Halved","Intervened","Measured","Outperformed","Proved","Related","Scheduled","Started","Topped","Widened"]
["Adopted","Averted","Check Out","Contacted","Designed","Embraced","Familiarized","Handled","Interviewed","Mechanized","Outshined","Provided","Released","Screened","Steered","Totaled","Withdrew"]
["Advanced","Avoided","Checked","Continued","Detailed","Emphasized","Fashioned","Handpicked","Introduced","Mediated","Overcame","Pruned","Relied","Scripted","Stimulated","Toured","Withstood"]
["Advertised","Awarded","Chose","Contracted","Detected","Employed","Fielded","Headed","Invented","Memorized","Overhauled","Publicized","Relieved","Scrutinized","Stood-up","Traced","Witnessed"]
["Advised","Balanced","Chronicled","Contributed","Determined","Empowered","Filed","Heightened","Inventoried","Mentored","Oversaw","Published","Remained","Sculptured","Straightened","Tracked","Won"]
["Advocated","Bargained","Circulated","Controlled","Developed","Emulated","Filled","Held","Invested","Mentored ","Owned","Purchased","Remitted","Searched","Strategized","Traded","Worked"]
["Affirmed","Battled","Circumvented","Convened","Devised","Enabled","Filtered","Helped","Investigated","Merged","Paced","Pursued","Remodeled","Secured","Streamlined","Trained","Wove"]
["Afforded","Began","Cited","Converted","Devoted","Encouraged","Finalized","Highlighted","Invigorated","Merited","Packaged","Quadrupled","Rendered","Segmented","Strengthened","Transcribed","Wrote"]
["Aided","Benchmarked","Clarified","Conveyed","Diagnosed","Endeavored","Financed","Hired","Invited","Met","Packed","Qualified","Renegotiated","Seized","Stretched","Transferred","Xeroxed"]
["Alerted","Benefited","Classified","Convinced","Diagramed","Ended","Fine Tuned","Honed","Involved","Methodized","Pared","Quantified","Renewed","Selected","Structured","Transformed","Yielded"]
["Aligned","Bid","Cleaned","Convoked","Differentiated","Endured","Fine-tuned","Honored","Isolated","Minimized","Participated","Queried","Reorganized","Sent","Studied","Transitioned","Zapped"]
["Allayed","Billed","Cleared","Cooperated","Diffused","Energized","Finished","Hosted","Issued","Mobilized","Partnered","Questioned","Repaired","Separated","Styled","Translated","Zeroed In"]
["Alleviated","Blended","Closed","Co-operated","Directed","Enforced","Fixed","Hypnotized","Itemized","Modeled","Passed","Quoted","Replaced","Sequenced","Submitted","Transmitted","Zipped"]
["Allocated","Blocked","Coached","Coordinated","Disbursed","Engaged","Focused","Hypothesized","Joined","Modelled","Penetrated","Raised","Replicated","Served","Substantiated","Transported","Zoned Off"]
["Allotted","Bolstered","Coded","Copied","Discharged","Engineered","Followed","Identified","Judged","Moderated","Perceived","Rallied","Replied","Serviced","Substituted","Transposed","Zoomed In"]
["Altered","Bombarded","Collaborated","Corrected","Disclosed","Enhanced","Forecasted","Ignited","Justified","Modernized","Perfected","Ran","Reported","Set goals","Succeeded","Traveled","Zoomed Out"]
["Amassed","Boosted","Collated","Correlated","Discovered","Enlarged","Forged","Illustrated","Labelled","Modified","Performed","Ranked","Represented","Set Up","Suggested","Treated"]
["Amended","Bought","Collected","Corresponded","Discriminated","Enlightened","Formalized","Imparted","Launched","Molded","Persuaded","Rated","Reproduced","Settled","Summarized","Trimmed"]
["Analyzed","Branded","Combined","Counseled","Discussed","Enlisted","Formed","Implemented","Learned","Monitored","Photographed","Reached","Requested","Shaped","Supervised","Tripled"]
["Anchored","Bridged","Comforted","Counselled","Dispatched","Enriched","Formulated","Imported","Lectured","Monopolized","Piloted","Read","Required","Shared","Supplied","Troubleshot"]
["Annotated","Briefed","Commanded","Crafted","Dispensed","Enrolled","Fortified","Imposed","Led","Motivated","Pinpointed","Realigned","Rescued","Sharpened","Supported","Turned"]
["Answered","Broadened","Commenced","Created","Dispersed","Ensured","Forwarded","Improved","Legitimized","Mounted","Pioneered","Realized","Researched","Shipped","Surged","Tutored"]
["Anticipated","Brought","Commended","Critiqued","Displayed","Entered","Fostered","Improvised","Lessened","Moved","Placed","Rearranged","Reserved","Shortened","Surpassed","Typed"]
["Appeased","Budgeted","Commissioned","Cultivated","Disposed","Entertained","Fought","Incited","Leveraged","Multiplied","Planned","Reasoned","Reshaped","Showcased","Surveyed","Uncovered"]
["Applied","Built","Committed","Customized","Disproved","Enticed","Found","Included","Liberated","Named","Played","Rebuilt","Resolved","Showed","Sustained","Underlined"]
["Appointed","Calculated","Communicated","Cut","Dissected","Enumerate","Founded","Incorporated","Licensed","Narrated","Practiced","Recalled","Respond","Signed","Swayed","Underscored"]
["Appraised","Calibrated","Compared","Dazzled","Disseminated","Envisioned","Framed","Increased","Lifted","Navigated","Praised","Received","Responded","Simplified","Swept","Undertook"]
["Approached","Canvassed","Competed","Dealt","Dissolved","Equipped","Freed","Indexed","Lightened","Negotiated","Precluded","Recognized","Restored","Simulated","Symbolized","Underwrote"]
["Appropriated","Capitalized","Compiled","Dealt With","Distinguished","Eradicated","Fulfilled","Indicated","Limited","Netted","Predicted","Recommend","Restricted","Sketched","Synthesized","Unearthed"]
["Approved","Captivated","Complemented","Debated","Distributed","Escalated","Functioned As","Individualized","Linked","Networked","Prepared","Recommended","Restructured","Skyrocketed","Systematized","Unified"]
["Arbitrated","Captured","Completed","Debugged","Diversified","Established","Funded","Indoctrinated","Liquidated","Neutralized","Prescribed","Reconciled","Retained","Slashed","Systemized","United"]

{"sheet":"Approved Acronyms and Abbrev","index":1,"n_rows":247,"n_cols":2,"rows_kept":247,"cut":false,"hidden":true,"merged":[]}
["& ",{"$f":"LEFT(A1,FIND(\" \",A1,1))","v":"& "}]
["acft ",{"$f":"LEFT(A2,FIND(\" \",A2,1))","v":"acft "}]
["admin ","admin "]
["asgmt ","asgmt "]
["asst ","asst "]
["assoc ","assoc "]
["attn ","attn "]
["avg ","avg "]
["awd ","awd "]
["bldg ","bldg "]
["blk ","blk "]
["brd ","brd "]
["cert ","cert "]
["civ ","civ "]
["cmd ","cmd "]
["cmdr ","cmdr "]
["cmte ","cmte "]
["conf ","conf "]
["config ","config "]
["ctr ","ctr "]
["coml ","coml "]
["comm ","comm "]
["compl ","compl "]
["cont ","cont "]
["coord ","coord "]
["crs ","crs "]
["crses ","crses "]
["crit ","crit "]
["c/w ","c/w "]
["demo ","demo "]
["dep ","dep "]
["dept ","dept "]
["det ","det "]
["dev ","dev "]
["dir ","dir "]
["distro ","distro "]
["$ ","$ "]
["educ ","educ "]
["eng ","eng "]
["equip ","equip "]
["est ","est "]
["eval ","eval "]
["enviro ","enviro "]
["evac ","evac "]
["exec ","exec "]
["ex ","ex "]
["fld ","fld "]
["flt ","flt "]
["ft ","ft "]
["fwd ","fwd "]
["govt ","govt "]
["grad ","grad "]
["gp ","gp "]
["rdy ","rdy "]
["ref ","ref "]
["recon ","recon "]
["reorg ","reorg "]
["rep ","rep "]
["req ","req "]
["reqmt ","reqmt "]
["res ","res "]
["rm ","rm "]
["Sen ","Sen "]
["sim ","sim "]
["spkr ","spkr "]
["spt ",{"$f":"LEFT(A66,FIND(\" \",A66,1))","v":"spt "}]
["sptd ","sptd "]
["sq ","sq "]
["sr ","sr "]
["supt ","supt "]
["std ","std "]
["stan/eval ","stan/eval "]
["supvr ","supvr "]
["svc ","svc "]
["sys ","sys "]
["tech ","tech "]
["temp ","temp "]
["tm ","tm "]
["trnr ","trnr "]
["trn ","trn "]
["trans ","trans "]
["trnd ","trnd "]
["trng ","trng "]
["univ ","univ "]
["vs ","vs "]
["vis ","vis "]
["vol ","vol "]
["w/ ","w/ "]
["w/o ","w/o "]
["wk ","wk "]
["wkly ","wkly "]
["Wi-Fi ","Wi-Fi "]
["wg ","wg "]
["wpn ","wpn "]
["x ","x "]
["yr ","yr "]
["yrly ","yrly "]
["A1C","A1C"]
["SrA","SrA"]
["SSgt","SSgt"]
["Amn","Amn"]
["TSgt","TSgt"]
["MSgt","MSgt"]
["SMSgt","SMSgt"]
["CMSgt","CMSgt"]
["2Lt","2Lt"]
["1Lt","1Lt"]
["Capt","Capt"]
["Maj","Maj"]
["Lt Col","Lt Col"]
["Col","Col"]
["hq ","hq "]
["hosp ","hosp "]
["hr ","hr "]
["ID’d ","ID’d "]
["incl ","incl "]
["incr ","incr "]
["info ","info "]
["insp ","insp "]
["instr ","instr "]
["intel ","intel "]
["intl ","intl "]
["jnt ","jnt "]
["ldr ","ldr "]
["ldrsp ","ldrsp "]
["lg ","lg "]
["lgst ","lgst "]
["log ","log "]
["lvl ","lvl "]
["mat ",{"$f":"LEFT(A130,FIND(\" \",A130,1))","v":"mat "}]
["mbr ","mbr "]
["mbrsp ","mbrsp "]
["med ","med "]
["mgr ","mgr "]
["mgmt ","mgmt "]
["mil ","mil "]
["min ","min "]
["msn ","msn "]
["mod ","mod "]
["mo ","mo "]
["muns ","muns "]
["mx ","mx "]
["natl ","natl "]
["ofcr ","ofcr "]
["Op ","Op "]
["op ","op "]
["org ","org "]
["orgnd ","orgnd "]
["pax ","pax "]
["pers ","pers "]
["pkg ","pkg "]
["posn ","posn "]
["prep ","prep "]
["pres ","pres "]
["prof ","prof "]
["prgm ","prgm "]
["proj ","proj "]
["pt ","pt "]
["pub ","pub "]
["qual ","qual "]
["qtr ","qtr "]
["qtrly ","qtrly "]
["rcvd ","rcvd "]
["ADC ","ADC "]
["AFAM ","AFAM "]
["AFCM ","AFCM "]
["AFIC ","AFIC "]
["AFOUA ","AFOUA "]
["AFRES ","AFRES "]
["AFSA ","AFSA "]
["AFSO21","AFSO21"]
["AFSPACECOM ","AFSPACECOM "]
["ALC ","ALC "]
["ALS ","ALS "]
["AMC ","AMC "]
["AMU ","AMU "]
["AOC ","AOC "]
["AOR ","AOR "]
["BTZ ","BTZ "]
["CAIB ","CAIB "]
["CC ","CC "]
["CCAF ","CCAF "]
["CDC ","CDC "]
["CENTCOM ","CENTCOM "]
["CFC ","CFC "]
["CFETP ","CFETP "]
["CGO ","CGO "]
["CGOC ","CGOC "]
["CME ","CME "]
["CONEX ","CONEX "]
["DoD ","DoD "]
["DUI ","DUI "]
["EEOC ",{"$f":"LEFT(A193,FIND(\" \",A193,1))","v":"EEOC "}]
["EET ","EET "]
["EOY ","EOY "]
["ESOHCAMP ","ESOHCAMP "]
["FTAC ","FTAC "]
["GSU ","GSU "]
["GTC ","GTC "]
["HAWC ","HAWC "]
["IAW ","IAW "]
["IG ","IG "]
["ICAF ","ICAF "]
["IDE ","IDE "]
["IFE ","IFE "]
["IM ","IM "]
["LOC ","LOC "]
["LOR ","LOR "]
["LSET ","LSET "]
["MARE ","MARE "]
["MSET ","MSET "]
["MSM ","MSM "]
["NCOA ","NCOA "]
["ONW ","ONW "]
["ORE ","ORE "]
["ORI ","ORI "]
["OSW ","OSW "]
["PDE ","PDE "]
["PHA ","PHA "]
["PTL ","PTL "]
["SAV ","SAV "]
["SKT ","SKT "]
["SOS ","SOS "]
["SNCO ","SNCO "]
["SDE ","SDE "]
["TAP ","TAP "]
["TSEV ","TSEV "]
["UCA ","UCA "]
["UIF ","UIF "]
["UDM ","UDM "]
["UFPM ","UFPM "]
["USACOM ","USACOM "]
["USSPACECOM ","USSPACECOM "]
["USTRANSCOM ","USTRANSCOM "]
["beddown ","beddown "]
["Stop-Loss","Stop-Loss"]
["warfighter","warfighter"]
["3-D","3-D"]
["Airmen ","Airmen "]
["Airmen-in-training ","Airmen-in-training "]
["Sheppard ","Sheppard "]
["triservice","triservice"]
["SECSTATE","SECSTATE"]
["SecDEF","SecDEF"]
["SECAF","SECAF"]
["CJCS","CJCS"]
["CSAF","CSAF"]

{"sheet":"Synonyms","index":2,"n_rows":869,"n_cols":6,"rows_kept":869,"cut":false,"hidden":false,"merged":[[0,5,4,8]]}
["Abated","syn.","decline, decrease, lessen","Enter your word here ----> ","adapted",{"$f":"_xlfn.IFNA(VLOOKUP(E1,A1:C869,3,FALSE),\"enter correctly spelled word\")","v":"accommodate, conform, tailor"}]
["Abbreviated","syn.","concise, condensed, summarized"]
["Abolished","syn.","ended, eradicated, terminated"]
["Abridged","syn.","compressed, condensed, compact"]
["Absolved","syn.","cleared, excused, exonerated"]
["Absorbed","syn.","consumed, engrossed, fascinated"]
["Accelerated","syn.","fast, rapid, swift"]
["Accentuated","syn.","heightened, highlight, stress"]
["Accommodated","syn.","adapt, aid, support"]
["Accomplished","syn.","achieve, attain, realize"]
["Accounted For","syn.","available, at hand, near"]
["Accrued","syn.","accumulate, amass, build up"]
["Accumulated","syn.","accrued, amass, collect"]
["Achieved","syn.","accomplished, concluded, done"]
["Acquired","syn.","attained, earned, received"]
["Acted","syn.","mock, pretended, simulate"]
["Activated","del"]
["Adapted","syn.","accommodate, conform, tailor"]
["Added","syn.","augment, summated, supplement"]
["Addressed","syn.","discourse, lecture, remark"]
["Adjusted","syn.","altered, diversified, revised"]
["Administered","syn.","execute, manage, oversee"]
["Adopted","syn.","accept, endorse, foster"]
["Advanced","syn.","continue, further, promote"]
["Advertised","syn.","amplify, notify, publicize"]
["Advised","syn.","apprise, enlighten, inform"]
["Advocated","syn.","advance, bolster, encourage"]
["Affirmed","syn.","approved, assured, confirmed"]
["Afforded","syn."]
["Aided","syn.","alleviate, benefit, subsidize"]
["Alerted","syn.","caution, notify, signaled"]
["Aligned","syn.","commensurate, level, parallel"]
["Allayed","syn.","abate, assuage, relieve"]
["Alleviated","syn.","ease, improve, mitigate"]
["Allocated","syn.","allot, budget, designate"]
["Allotted","syn.","appoint, budget, mete"]
["Altered","syn.","adjust, convert, revised"]
["Amassed","syn.","compile, collect, gather"]
["Amended","syn.","enhance, improve, modify"]
["Analyzed","syn.","consider, examine, interpret"]
["Anchored","del"]
["Annotated","del"]
["Answered","syn.","comment, reply, remark"]
["Anticipated","syn.","assume, expect, deduce"]
["Appeased","syn.","conciliate, contend, subdue"]
["Applied","syn.","correlated, exercised, related"]
["Appointed","syn.","assign, delegate, determine"]
["Appraised","syn.","assess, evaluate, inspect"]
["Approached","syn.","advance, offer, propose"]
["Appropriated","syn.","appoint, devote, disperse"]
["Approved","syn.","commend, praise, sanction"]
["Arbitrated","syn.","mediate, negotiate, settle"]
["Aroused","syn.","animate, enliven, provoke"]
["Arranged","syn.","classify, methodize, organize"]
["Articulated","syn.","express, state, told"]
["Ascertained","syn.","confirm, determine, verify"]
["Aspired","syn.","aim, strive, yearn"]
["Assembled","syn.","accumulate, convene, unite"]
["Asserted","del"]
["Assessed","syn.","estimate, evaluate, judge"]
["Assigned","syn.","apportion, delegate, designate"]
["Assimilated","syn.","accommodate, incorporate, standardize"]
["Assisted","syn.","abet, collaborate, facilitate"]
["Assumed","del"]
["Assured","syn.","ensured, insured, guaranteed"]
["Attained","syn.","acquire, obtain, procure"]
["Attended","syn.","appear, frequent, visit"]
["Attracted","del"]
["Audited","syn.","examine, review, verify"]
["Augmented","syn.","amplify, compound, supplement"]
["Authored","syn.","created, penned, wrote"]
["Authorized","syn.","accredit, enable, entitle"]
["Automated","syn.","computerized, mechanized, programmed"]
["Averaged","del"]
["Averted","syn.","advance, broach, propose"]
["Avoided","syn.","abstain, desist, evade"]
["Awarded","syn.","bestow, confer, grant"]
["Balanced","syn.","collate, offset, stabilize"]
["Bargained","del"]
["Battled","del"]
["Began","syn.","activate, commence, initiate"]
["Benchmarked","syn.","commence, leveled, targeted"]
["Benefited","syn.","advance, further, promote"]
["Bid","syn.","propose, tender, venture"]
["Billed","syn.","debit, invoice, reckon"]
["Blended","syn.","combine, compound, integrate"]
["Blocked","syn.","intercept, prevent, stonewall"]
["Bolstered","syn.","maintain, reinforce, support"]
["Bombarded","del"]
["Boosted","syn.","amplify, augment, elevate"]
["Bought","syn.","acquire, purchase, procure"]
["Branded","syn.","establish, identify, designate"]
["Bridged","syn.","bind, link, unite"]
["Briefed","del"]
["Broadened","syn.","link, increase, supplement"]
["Brought","syn.","effectuate, convey, import"]
["Budgeted","syn.","allocate, calculated, computed"]
["Built","syn.","calculated, construct, engineer"]
["Calculated","syn.","appraise, consider, enumerate"]
["Calibrated","syn.","adjust, attune, regulate"]
["Canvassed","del"]
["Capitalized","syn.","attune, use, utilize"]
["Captivated","del"]
["Captured","syn.","caught, contained, detained"]
["Cared For","syn.","aid, provide for, support"]
["Carried","syn.","channel, convey, sustain"]
["Carved","syn.","form, hew, shape"]
["Cataloged","del"]
["Catalogue","del"]
["Catalogued","syn.","arrange, class, index"]
["Categorized","syn.","hew, group, sort"]
["Catered","del"]
["Caught","syn.","apprehend, capture, seize"]
["Caused","del"]
["Cautioned","syn.","advise, alert, forewarn"]
["Cemented","syn.","combine, merge, seal"]
["Centralized","del"]
["Certified","syn.","approved, authenticate, authorize"]
["Chaired","syn.","judge, mediate, preside"]
["Challenged","syn.","dispute, investigate, question"]
["Championed","syn.","investigate, defend, uphold"]
["Changed","syn.","adjust, modify, transform"]
["Channeled","del"]
["Charged","syn.","impugn, indict, reproach"]
["Charted","syn.","arrange, graph, plot"]
["Check In","del"]
["Check Out","del"]
["Checked","syn.","compare, inspect, verify"]
["Chose","syn.","accept, elect, select"]
["Chronicled","syn.","enter, narrate, report"]
["Circulated","syn.","broadcast, distribute, issue"]
["Circumvented","syn.","avoid, elude, prevent"]
["Cited","syn.","indicate, quote, reference"]
["Clarified","syn.","define, illuminate, simplify"]
["Classified","syn.","categorize, sort, group"]
["Cleaned","syn.","clarify, expunge, sanitize"]
["Cleared","syn.","absolve, clarify, cleanse"]
["Closed","syn.","end, seal, shut"]
["Coached","syn.","advise, encourage, support"]
["Coded","syn.","arrange, classify, organize"]
["Collaborated","syn.","corporate, concur, conspire"]
["Collated","syn.",", , "]
["Collected","syn.","arrange, find, gather"]
["Combined","syn.","add, mix, integrate"]
["Comforted","del"]
["Commanded","syn.",", , "]
["Commenced","syn.","Exault, Innate, Start"]
["Commended","syn.","Acclaim, Exalt, Praise"]
["Commissioned","syn.","Appoint, Command, Enlist"]
["Committed","del"]
["Communicated","syn.","Talk, Speak, Verbalize"]
["Compared","syn.","Analyze, Contrast, Consider"]
["Competed","del"]
["Compiled","syn.","Assemble, Amass, Gather"]
["Complemented","syn.","Acclaim, Laud, Recommend"]
["Completed","syn.","End, Finish, Stop"]
["Composed","syn.","Author, Create, Design"]
["Compounded","syn.","Blend, Combine, Mix"]
["Computed","syn.","Estimate, Sum, Tally"]
["Conceived","syn.","Accept, Believe, Understand"]
["Concentrated","syn.","Consider, Muse, Ponder"]
["Conceptualized","syn.","Conceive, Imagine, Invasion"]
["Conciliated","del"]
["Concluded","del"]
["Condensed","syn.","Abridge, Compress, Reduce"]
["Conducted","syn.","Compress, Direct, Oversee"]
["Conferred","syn.","Consult, Discuss, Parley"]
["Configured","syn.","Arrange, Assemble, Group"]
["Confirmed","syn.","Affirm, Endorse, Verify"]
["Confronted","syn.","Encounter, Resist, Withstand"]
["Connected","syn.","Affix, Equate, Relate"]
["Conquered","del"]
["Conserved","syn.","Hoard, Save, Stash"]
["Considered","syn.","Contemplate, Muse, Ponder"]
["Consolidated","syn.","Amass, Combine, Join"]
["Constructed","syn.","Build, Create, Make"]
["Consulted","syn.","Ask, Confer, Discuss"]
["Consummated","syn.","Achieve, Complete, Finish"]
["Contacted","syn.","Approach, Communicate, Relate"]
["Continued","syn.","Extend, Maintain, Persevere"]
["Contracted","syn.","Abate, Confine, Edit"]
["Contributed","syn.","Advance, Assist, Fortify"]
["Controlled","syn.","Manage, Oversee, Supervise"]
["Convened","del"]
["Converted","syn.","Adjust, Change, Modify"]
["Conveyed","syn.","Bring, Carry, Transport"]
["Convinced","syn.","Assure, Establish, Persuade"]
["Convoked","del"]
["Cooperated","syn.","Aid, Contribute, Further"]
["Co-operated","del"]
["Coordinated","syn.","Group, Manage, Organize"]
["Copied","syn.","Duplicate, Transcribe, Xerox"]
["Corrected","syn.","Alter, Better, Fix"]
["Correlated","del"]
["Corresponded","syn.","Accord, Coincide, Match"]
["Counseled","syn.","Advise, Caution, Warn"]
["Counselled","del"]
["Crafted","del"]
["Created","syn.","Author, Design, Make"]
["Critiqued","syn.","Assess, Examine, Rate"]
["Cultivated","syn.","Breed, Develop, Harvest"]
["Customized","syn.","Alter, Convert, Modify"]
["Cut","syn.","Bisect, Curtail, Prune"]
["Dazzled","del"]
["Dealt","syn.","Traded, Marketed, Sold"]
["Dealt With","del"]
["Debated","syn.","Argued, Discussed, Disputed"]
["Debugged","syn.","Corrected, Fixed, Cured"]
["Decentralized","del"]
["Decided","syn.","Determined, Resolved, Settled"]
["Decoded","syn.","Decipher, Fathom, Solve"]
["Decreased","syn.","Abate, Decline, Ebb"]
["Dedicated","syn.","Apply, Assign, Commit"]
["Deduced","del"]
["Defended","del"]
["Deferred","del"]
["Defined","syn.","Decide, Explain, Specify"]
["Deflected","del"]
["Delegated","syn.","Charge, Elect, Invest"]
["Delineated","syn.","border, define, edge"]
["Delivered","syn.","distribute, remit, transfer"]
["Delved","del"]
["Demolished","del"]
["Demonstrated","syn.","determine, Establish, indicate"]
["Depicted","del"]
["Deployed","syn.","Arrange, display, position"]
["Depreciated","del"]
["Derived","syn.","conclude, deduct, judge"]
["Described","syn.","communicate, explain, Specify"]
["Designated","syn.","entitle, label, name"]
["Designed","syn.","construct, devise, invent"]
["Detailed","syn.","allocate, commission, designate"]
["Detected","syn.","discover, encounter, uncover"]
["Determined","syn.","decide, regulate, terminate"]
["Developed","syn.","advance, promote, thrive"]
["Devised","syn.","Arrange, construct, improvise"]
["Devoted","del"]
["Diagnosed","syn.","determine, interpret, identify"]
["Diagramed","del"]
["Differentiated","syn.","contrast, demarcate, separate"]
["Diffused","syn.","disburse, mitigate, temper"]
["Directed","syn.","govern, lead, manage"]
["Disbursed","syn.","distribute, expend, outlay"]
["Discharged","del"]
["Disclosed","del"]
["Discovered","syn.","detect, identify, reveal"]
["Discriminated","del"]
["Discussed","syn.","confer, converse, review"]
["Dispatched","syn.","forward, remit, transmit"]
["Dispensed","syn.","allot, distribute, portion"]
["Dispersed","del"]
["Displayed","syn.","Arrange, demonstrate, showcase"]
["Disposed","syn.","actuate, induce, regulate"]
["Disproved","syn.","belie, confute, rebut"]
["Dissected","syn.","dismember, part, sever"]
["Disseminated","syn.","circulate, disperse, publish"]
["Dissolved","syn.","decline, disband, terminate"]
["Distinguished","syn.","collate, label, judge"]
["Distributed","syn.","administer, bestow, prorate"]
["Diversified","syn.","alter, expand, variegate"]
["Diverted","syn.","deflect, modify, veer"]
["Divested","syn.","deprive, remove, seize"]
["Divided","syn.","detach, segment, unbind"]
["Documented","syn.","certify, record, script"]
["Dominated","del"]
["Doubled","syn.","binary, dual, paired"]
["Drafted","syn.","compose, devise, formulate"]
["Dramatized","syn.","amplify, exaggerate, overdo"]
["Drew","del"]
["Drew Up","syn.","compose, indite, prepare"]
["Drove","syn.","compel, induce, urge"]
["Earned","syn.","acquire, collect, obtain"]
["Eased","syn.","assist, expedite, mollify"]
["Economized","syn.","conserve, manage, save"]
["Edited","syn.","alter, compile, prepare"]
["Educated","syn.","coach, Develop, teach"]
["Effected","syn.","cause, Complete, enforce"]
["Elaborated","syn.","devise, Develop, enhance"]
["Elected","syn.","Appoint, cull, select"]
["Elevated","syn.","dredge, erect, hoist"]
["Elicited","syn.","cause, evoke, obtain"]
["Eliminated","syn.","cancel, discharge, eradicate"]
["Embraced","syn.","clasp, enfold, seize"]
["Emphasized","syn.","assert, headline, prioritize"]
["Employed","del"]
["Empowered","syn.","accredit, enable, vest"]
["Emulated","del"]
["Enabled","syn.","approve, commission, permit"]
["Encouraged","syn.","buoy, fortify, incite"]
["Endeavored","del"]
["Ended","syn.","cease, dissolve, terminate"]
["Endured","del"]
["Energized","del"]
["Enforced","syn.","compel, dictate, evoke"]
["Engaged","syn.","Appoint, enlist, retain"]
["Engineered","syn.","Arrange, devise, manage"]
["Enhanced","syn.","amplify, embellish, upgrade"]
["Enlarged","del"]
["Enlightened","del"]
["Enlisted","syn.","draft, enroll, hire"]
["Enriched","syn.","cultivate, endow, supplement"]
["Enrolled","syn.","accept, engage, register"]
["Ensured","syn.","certify, Establish, warrant"]
["Entered","syn.","access, arrive, probe"]
["Entertained","syn.","captivate, inspire, regale"]
["Enticed","syn.","beguile, lure, tempt"]
["Enumerate","del"]
["Envisioned","del"]
["Equipped","syn.","endow, prepare, supply"]
["Eradicated","del"]
["Escalated","del"]
["Established","syn.","create, decree, enact"]
["Estimated","syn.","assess, budget, gauge"]
["Evaluated","syn.","appraise, classify, value"]
["Examined","syn.","audit, consider, research"]
["Exceeded","syn.","eclipse, excel, surpass"]
["EXCELLED","del"]
["Exchanged","del"]
["Executed","syn.","achieve, enact, render"]
["Exercised","syn.","apply, employ, utilize"]
["Exhibited","syn.","display, feature, proclaim"]
["Expanded","syn.","amplify, broaden, increase"]
["Expedited","syn.","facilitate, promote, urge"]
["Experienced","syn.","confront, encounter, endure"]
["Experimented","syn.","examine, explore, speculate"]
["Explained","syn.","clarify, decipher, interpret"]
["Explored","syn.","examine, probe, survey"]
["Expressed","syn.","exert, state, testify"]
["Extended","syn.","amplify, increase, widen"]
["Extracted","syn.","derive, glean, wrest"]
["Extrapolated","del"]
["Fabricated","syn.","Assemble, compose, create"]
["Facilitated","syn.","aid, further, promote"]
["Factored","syn.","allow for, consider, "]
["Familiarized","syn.","condition, enlighten, inform"]
["Fashioned","syn.","create, devise, mold"]
["Fielded","syn.","deflect, handle, return"]
["Filed","syn.","finish, level, refine"]
["Filled","syn.","furnish, inflate, pervade"]
["Filtered","del"]
["Finalized","syn.","complete, conclude, decide"]
["Financed","syn.","capitalize, endow, promote"]
["Fine Tuned","syn.","adapt, conform, hone"]
["Fine-tuned","del"]
["Finished","syn.","alter, modify, complete"]
["Fixed","syn.","imbed, implant, stabilize"]
["Focused","syn.","convene, rivet, spotlight"]
["Followed","syn.","ensue, displace, pursue"]
["Forecasted","syn.","anticipate, conclude, infer"]
["Forged","syn.","duplicate, invent, produce"]
["Formalized","syn.","invent, denote, entitle"]
["Formed","syn.","Arrange, compose, develop"]
["Formulated","syn.","compose, contrive, invent"]
["Fortified","syn.","brace, consolidate, reinforce"]
["Forwarded","syn.","advance, expedite, promote"]
["Fostered","syn.","cultivate, further, support"]
["Fought","syn.","challenge, dispute, strive"]
["Found","syn.","detect, observe, pinpoint"]
["Founded","syn.","begin, induce, start"]
["Framed","syn.","assemble, forge, produce"]
["Freed","del"]
["Fulfilled","syn.","achieve, complete, perfect"]
["Functioned As","syn.","act, operate, perform"]
["Funded","syn.","endow, finance, support"]
["Furnished","syn.","Appoint, equip, purvey"]
["Furthered","syn.","assist, Contribute, patronize"]
["Gained","syn.","acquire, consummate, procure"]
["Garnered","syn.","accumulate, collect, reap"]
["Gathered","syn.","amass, group, unite"]
["Gauged","syn.","appraise, count, quantify"]
["Gave","syn.","cede, endow, supply"]
["Generated","syn.","cause, develop, produce"]
["Governed","syn.","command, execute, regulate"]
["Graded","del"]
["Graduated","syn.","complete, earn, finish"]
["Granted","del"]
["Grappled","del"]
["Grasped","syn.","accept, comprehend, understand"]
["Greased","del"]
["Greeted","syn.","herald, receive, welcome"]
["Grew","syn.","advance, evolve, increase"]
["Grouped","syn.","arrange, class, order"]
["Guaranteed","syn.","affirm, pledge, verify"]
["Guided","syn.","advise, govern, teach"]
["Halted","syn.","cease, curb, stop"]
["Halved","syn.","bisect, divide, split"]
["Handled","syn.","advise, operate, Supervise"]
["Handpicked","del"]
["Headed","syn.","chair, manage, supervise"]
["Heightened","syn.","enhance, increase, magnify"]
["Held","syn.","confine, detain, retain"]
["Helped","syn.","aid, assist, support"]
["Highlighted","del"]
["Hired","syn.","employ, engage, retain"]
["Honed","syn.","instruct, teach, practice"]
["Honored","del"]
["Hosted","syn.","accommodate, entertain, receive"]
["Hypnotized","syn.","charm, entrance, mesmerize"]
["Hypothesized","syn.","consider, deem, judge"]
["Identified","syn.","analyze, classify, select"]
["Ignited","syn.","enflame, kindle, start"]
["Illustrated","syn.","clarify, depict, typify"]
["Imparted","del"]
["Implemented","syn.","complete, enable, start"]
["Imported","syn.","attend, conduct, usher"]
["Imposed","del"]
["Improved","syn.","develop, progress, revise"]
["Improvised","syn.","contrive, comprise, invent"]
["Incited","syn.","induce, persuade, stimulate"]
["Included","syn.","accommodate, add, introduce"]
["Incorporated","syn.","blend, combine, include"]
["Increased","syn.","advance, build, supplement"]
["Indexed","del"]
["Indicated","syn.","attest, make, reveal"]
["Individualized","syn.","brand, define, portray"]
["Indoctrinated","syn.","convince, instill, program"]
["Induced","syn.","cause, incite, urge"]
["Influenced","syn.","alter, impel, shape"]
["Informed","syn.","caution, edify, teach"]
["Infused","syn.","animate, impart, pervade"]
["Initiated","syn.","begin, start, trigger"]
["Innovated","syn.","admit, induct, unveil"]
["Inquired","del"]
["Inspected","syn.","audit, review, study"]
["Inspired","syn.","cause, elate, infuse"]
["Installed","syn.","build, Establish, station"]
["Instigated","del"]
["Instilled","syn.","diffuse, impart, program"]
["Instituted","syn.","launch, organize, pioneer"]
["Instructed","syn.","appraise, drill, notify"]
["Insured","syn.","cinch, hedge, warrant"]
["Integrated","syn.","Arrange, blend, join"]
["Intensified","syn.","accent, enhance, rouse"]
["Interacted","syn.","combine, join, merge"]
["Interceded","syn.","interpose, negotiate, reconcile"]
["Interfaced","del"]
["Interpreted","syn.","clarify, decipher, translate"]
["Intervened","syn.","divide, involve, settle"]
["Interviewed","syn.","consult, question, quiz"]
["Introduced","del"]
["Invented","syn.","build, create, make"]
["Inventoried","syn.","add, compute, specify"]
["Invested","syn.","endow, infuse, stake"]
["Investigated","syn.","check, examine, scout"]
["Invigorated","syn.","enliven, rally, trigger"]
["Invited","syn.","allure, issue, summon"]
["Involved","syn.","bind, commit, link"]
["Isolated","syn.","detach, part, seclude"]
["Issued","syn.","emit, stem, vent"]
["Itemized","syn.","cite, quote, record"]
["Joined","syn.","adhere, combine, interlace"]
["Judged","syn.","arbitrate, decree, determine"]
["Justified","syn.","assert, condone, legitimize"]
["Labelled","del"]
["Launched","syn.","catapult, discharge, propel"]
["Learned","syn.","attain, grasp, study"]
["Lectured","syn.","express, recite, teach"]
["Led","syn.","convey, guide, usher"]
["Legitimized","del"]
["Lessened","syn.","abate, decrease, reduce"]
["Leveraged","syn.","compel, influence, regulate"]
["Liberated","del"]
["Licensed","syn.","accredit, certify, permit"]
["Lifted","syn.","elevate, raise, uphold"]
["Lightened","del"]
["Limited","syn.","confine, restrict, lessen"]
["Linked","syn.","combine, group, relate"]
["Liquidated","syn.","cash, convert, honor"]
["Listed","del"]
["Listened","syn.","attend, hear, observe"]
["Litigated","syn.","contest, dispute, sue"]
["Loaded","syn.","heap, pack, pile"]
["Lobbied","del"]
["Localized","del"]
["Located","syn.","detect, find, uncover"]
["Logged","syn.","enter, note, record"]
["Made","syn.","create, invent, produce"]
["Maintained","syn.","invent, support, sustain"]
["Managed","syn.","direct, supervise, wield"]
["Mandated","syn.","agree, mandate, permit"]
["Maneuvered","syn.","devise, navigate, operate"]
["Manipulated","syn.","change, maneuver, plan"]
["Manufactured","syn.","assemble, build, complete"]
["Mapped","syn.","chart, direct, plan"]
["Marked","syn.","check, imprint, label"]
["Marketed","syn.","advertise, display, sell"]
["Mastered","syn.","comprehend, grasp, understand"]
["Masterminded","del"]
["Maximized","syn.","enlarge, escalate, increase"]
["Measured","syn.","assess, gauge, mete"]
["Mechanized","del"]
["Mediated","syn.","arbitrate, conciliate, determine"]
["Memorized","syn.","comprehend, fathom, understand"]
["Mentored","syn.","coach, counsel, guide"]
["Mentored ","del"]
["Merged","syn.","blend, mix, unite"]
["Merited","syn.","mix, gain, rate"]
["Met","syn.","contact, encounter, engage"]
["Methodized","del"]
["Minimized","syn.","curtail, decrease, diminish"]
["Mobilized","syn.","impel, propel, ready"]
["Modeled","syn.","base, create, pattern"]
["Modelled","del"]
["Moderated","syn.","abate, curb, modify"]
["Modernized","del"]
["Modified","syn.","adjust, convert, vary"]
["Molded","syn.","build, frame, plot"]
["Monitored","syn.","audit, control, observe"]
["Monopolized","syn.","consume, engross, possess"]
["Motivated","syn.","cause, quicken, sway"]
["Mounted","syn.","begin, promote, start"]
["Moved","syn.","advance, relocate, proceed"]
["Multiplied","syn.","add, boot, raise"]
["Named","syn.","classify, define, label"]
["Narrated","syn.","depict, portray, recite"]
["Navigated","syn.","direct, operate, guide"]
["Negotiated","syn.","accommodate, haggle, mediate"]
["Netted","syn.","accumulate, earn, reap"]
["Networked","del"]
["Neutralized","syn.","balance, negate, offset"]
["Nominated","syn.","appoint, elect, present"]
["Normalized","syn.","class, control, even"]
["Notified","syn.","alert, inform, warn"]
["Nursed","del"]
["Nurtured","syn.","care, develop, foster"]
["Observed","syn.","detect, discover, mark"]
["Obtained","syn.","acquire, collect, retain"]
["Offered","syn.","extend, furnish, provide"]
["Officiated","syn.","conduct, direct, manage"]
["Offset","syn.","balance, compensate, negate"]
["Opened","syn.","disclose, expand, vacated"]
["Operated","syn.","conduct, convey, promote"]
["Optimized","syn.","culminate, expand, perfect"]
["Orchestrated","syn.","arrange, compose, organize"]
["Ordered","syn.","command, direct, instruct"]
["Organized","syn.","arrange, construct, formulate"]
["Orientated","del"]
["Oriented","syn.","adapt, conform, direct"]
["Originated","syn.","begin, commence, start"]
["Outdistanced","syn.","outdo, outpace, pass"]
["Outlined","syn.","chart, describe, plot"]
["Outperformed","syn.","beat, eclipse, surpass"]
["Outshined","del"]
["Overcame","syn.","best, conquer, master"]
["Overhauled","syn.","examine, fix, redo"]
["Oversaw","syn.","captain, command, manage"]
["Owned","syn.","have, occupy, possess"]
["Paced","syn.",", , "]
["Packaged","syn.",", , "]
["Packed","syn.",", , "]
["Pared","syn.","crop, prune, reduce"]
["Participated","syn.","aide, concur, share"]
["Partnered","syn.","consort, corporate, help"]
["Passed","syn.","accomplish, complete, finish"]
["Penetrated","syn.","charge, insert, seep"]
["Perceived","syn.","behold, divine, observe"]
["Perfected","syn.","accomplish, complete, refine"]
["Performed","syn.","achieve, effect, satisfy"]
["Persuaded","syn.","coach, enlist, urge"]
["Photographed","syn.","depict, draw, portray"]
["Piloted","syn.","convey, guide, oversee"]
["Pinpointed","syn.","define, place, spot"]
["Pioneered","syn.","begin, develop, start"]
["Placed","syn.","allot, locate, station"]
["Planned","syn.","craft, devise, outline"]
["Played","syn.","divert, show, trifle"]
["Practiced","del"]
["Praised","syn.","cheer, ennoble, extol"]
["Precluded","del"]
["Predicted","syn.","anticipate, conclude, foresee"]
["Prepared","syn.","alter, change, revise"]
["Prescribed","syn.","appoint, command, require"]
["Presented","syn.","cite, declare, state"]
["Preserved","syn.","conserve, defend, uphold"]
["Presided","syn.","advise, chair, manage"]
["Pressed","del"]
["Prevailed","syn.","dominate, master, succeed"]
["Prevented","syn.","avoid, counter, restrict"]
["Printed","syn.","compose, issue, publish"]
["Prioritized","syn.","assert, charge, repeat"]
["Probed","del"]
["Processed","syn.","alter, convert, refine"]
["Procured","syn.","annex, induce, secure"]
["Produced","syn.","create, make, manufactory"]
["Profiled","syn.","contour, form, shape"]
["Programmed","syn.","book, charter, reserve"]
["Progressed","syn.","advance, proceed, travel"]
["Projected","syn.","arrange, chart, feature"]
["Promoted","syn.","advance, further, urge"]
["Proofread","syn.","alter, emend, revise"]
["Propelled","del"]
["Proposed","syn.","advance, contend, state"]
["Protected","syn.","assure, defend, guard"]
["Proved","syn.","affirm, attest, certify"]
["Provided","syn.","arrange, cater, furnish"]
["Pruned","syn.","clip, trim, reduce"]
["Publicized","syn.","bill, headline, spotlight"]
["Published","del"]
["Purchased","syn.","attain, invest, procure"]
["Pursued","syn.","bait, follow, track"]
["Quadrupled","syn.",", , "]
["Qualified","syn.","certify, endow, sanction"]
["Quantified","syn.","add, calculate, measure"]
["Queried","syn.","doubt, enquire, examine"]
["Questioned","syn.","ask, challenge, probe"]
["Quoted","syn.","detail, name, recall"]
["Raised","syn.","boost, elevate, lift"]
["Rallied","syn.","assemble, muster, organize"]
["Ran","del"]
["Ranked","syn.","arrange, class, rate"]
["Rated","syn.","classify, rank, value"]
["Reached","syn.","attain, enter, show"]
["Read","syn.","construe, skim, study"]
["Realigned","syn.",", , "]
["Realized","syn.","catch, feature, image"]
["Rearranged","syn.","alter, draft, style"]
["Reasoned","syn.","conclude, decide, solve"]
["Rebuilt","syn.","fix, mend, repair"]
["Recalled","del"]
["Received","syn.","acquire, derive, secure"]
["Recognized","syn.","note, observe, recall"]
["Recommend","del"]
["Recommended","syn.","advise, exhaust, urge"]
["Reconciled","syn.","accepted, submit, yield"]
["Reconstructed","syn.","fix, overhaul, reform"]
["Recorded","syn.","catalog, copy, transcribe"]
["Recovered","syn.","balance, transcribe, restore"]
["Recreated","del"]
["Recruited","syn.","draft, enlist, gather"]
["Rectified","syn.","amend, correct, fix"]
["Redeemed","del"]
["Redesigned","syn.","alter, change, improve"]
["Redirected","syn.","alter, change, veer"]
["Reduced","syn.","abate, curtail, decrease"]
["Reenergized","del"]
["Re-Engineered","syn.","update, create, remodel"]
["Referred","syn.","cite, credit, name"]
["Refined","del"]
["Refocused","syn.","attract, converge, spotlight"]
["Registered","syn.","enlist, join, record"]
["Regulated","syn.","adjust, control, manage"]
["Rehabilitated","syn.","adjust, change, improve"]
["Reinforced","syn.","augment, bolster, stress"]
["Reiterated","syn.","echo, recap, retell"]
["Rejected","del"]
["Related","syn.","depict, express, state"]
["Released","syn.","absolve, clear, vent"]
["Relied","syn.","await, commit, depend"]
["Relieved","syn.","ally, console, improve"]
["Remained","syn.","abide, delay, endure"]
["Remitted","del"]
["Remodeled","syn.","adjust, alter, tailor"]
["Rendered","syn.","cede, furnish, tender"]
["Renegotiated","syn.","assess, postpone, remand"]
["Renewed","syn.","brace, continue, extend"]
["Reorganized","syn.","adapt, convert, vary"]
["Repaired","syn.","correct, patch, revive"]
["Replaced","syn.","convert, modify, transform"]
["Replicated","syn.","clone, copy, imitate"]
["Replied","syn.","answer, transform, return"]
["Reported","syn.","advise, cover, state"]
["Represented","syn.","enact, factor, served"]
["Reproduced","syn.","copy, echo, parallel"]
["Requested","syn.","appeal, demand, entreat"]
["Required","del"]
["Rescued","del"]
["Researched","syn.","consult, explore, inquire"]
["Reserved","syn.","contact, maintain, schedule"]
["Reshaped","del"]
["Resolved","syn.","agree, cinch, elect"]
["Respond","del"]
["Responded","syn.","answer, counter, retort"]
["Restored","syn.","improve, mend, repair"]
["Restricted","del"]
["Restructured","syn.","arrange, conform, shape"]
["Retained","syn.","absorb, grasp, possess"]
["Retooled","syn.","deduce, overhaul, remake"]
["Retrieved","syn.","recall, restore, salvage"]
["Returned","syn.","convey, refund, render"]
["Revamped","syn.","convert, modify, reform"]
["Revealed","del"]
["Reversed","syn.","annul, convert, overset"]
["Reviewed","syn.","examine, recap, rehash"]
["Revised","syn.","compare, redo, revamp"]
["Revitalized","syn.","assist, enliven, refresh"]
["Revived","del"]
["Revolutionized","syn.","adapt, evolved, renovate"]
["Rewarded","syn.","compensate, honor, pay"]
["Rewrote","del"]
["Risked","syn.","brave, chance, confront"]
["Rotated","syn.","circle, move, pivot"]
["Routed","syn.","conduct, direct, pilot"]
["Safeguarded","syn.","assure, cover, defend"]
["Salvaged","syn.","deliver, reclaim, save"]
["Sampled","del"]
["Saved","syn.","regain, rescue, retrieve"]
["Scanned","syn.","browse, check, skim"]
["Scheduled","syn.","appoint, engage, slate"]
["Screened","syn.","cloak, cover, shield"]
["Scripted","del"]
["Scrutinized","del"]
["Sculptured","syn.","carve, fashion, hue"]
["Searched","syn.","examine, probe, scour"]
["Secured","syn.","defend, guard, protect"]
["Segmented","del"]
["Seized","syn.","clasp, embrace, snag"]
["Selected","syn.","choose, cull, mark"]
["Sent","syn.","advance, dispatched, remit"]
["Separated","syn.","cleave, detach, divide"]
["Sequenced","syn.","assort, classify, group"]
["Served","syn.","aid, deal, provide"]
["Serviced","syn.","correct, focused, mend"]
["Set goals","del"]
["Set Up","syn.","arrange, begin, start"]
["Settled","syn.","achieve, complete, end"]
["Shaped","syn.","configure, frame, profile"]
["Shared","syn.","assign, dispense, ration"]
["Sharpened","syn.","edge, hone, taper"]
["Shipped","syn.","direct, export, send"]
["Shortened","syn.","abridge, compress, reduce"]
["Showcased","del"]
["Showed","syn.","appear, disclose, unveil"]
["Signed","syn.","abandon, cede, yield"]
["Simplified","syn.","clarify, decipher, explained"]
["Simulated","syn.","ape, copy, imitate"]
["Sketched","syn.","craft, draw, make"]
["Skyrocketed","del"]
["Slashed","syn.","cut, incise, sever"]
["Smoothed","syn.","clear, even, refine"]
["Sold","syn.","barter, contract, vend"]
["Solicited","syn.","claim, demand, refer"]
["Solidified","syn.","compact, condense, set"]
["Solved","syn.","clarify, decide, settle"]
["Sorted","syn.","classify, grade, group"]
["Sought","del"]
["Sourced","syn.","begin, create, start"]
["Sparked","syn.","excite, inspire, kindle"]
["Speaked","del"]
["Spearheaded","syn.","attend, show, usher"]
["Specialized","syn.","practice, study, trained"]
["Specified","syn.","cite, decide, itemize"]
["Speculated","syn.","consider, suspect, theorize"]
["Spent","syn.","confer, deplete, waste"]
["Spoke","syn.","allege, assert, state"]
["Sponsored","syn.","buoy, champion, promote"]
["Spurred","syn.","advance, aid, urge"]
["Staffed","syn.","employ, crew, retain"]
["Staged","del"]
["Standardized","syn.","adjust, institute, order"]
["Started","syn.","begin, order, make"]
["Steered","syn.","conduct, direct, guide"]
["Stimulated","syn.","elate, incite, prod"]
["Stood-up","del"]
["Straightened","del"]
["Strategized","del"]
["Streamlined","syn.","focus, gather, organize"]
["Strengthened","syn.","brace, cheer, restore"]
["Stretched","syn.","amplify, extend, widen"]
["Structured","syn.","build, create, make"]
["Studied","syn.","consider, ponder, watch"]
["Styled","del"]
["Submitted","syn.","enter, give, refund"]
["Substantiated","del"]
["Substituted","del"]
["Succeeded","syn.","accomplish, complete, finish"]
["Suggested","syn.","broach, commend, convey"]
["Summarized","syn.","abridge, convey, cut"]
["Supervised","syn.","administer, control, manage"]
["Supplied","syn.","cater, deliver, furnish"]
["Supported","syn.","buoy, aid, promote"]
["Surged","del"]
["Surpassed","syn.","exceed, outrank, top"]
["Surveyed","syn.","access, case, inspect"]
["Sustained","del"]
["Swayed","syn.","bend, incline, lean"]
["Swept","syn.","accomplish, complete, won"]
["Symbolized","syn.","denote, embody, suggest"]
["Synthesized","syn.","arrange, blend, integrate"]
["Systematized","del"]
["Systemized","syn.","array, design, frame"]
["Tabulated","syn.","catalogued, classified, ordered"]
["Tackled","syn.","accepted, attacked, undertook"]
["Tailed","del"]
["Talked","syn.","spoke, conversed, articulated"]
["Tallied","syn.","computed, summed, inventoried"]
["Tamed","del"]
["Targeted","syn.","aimed, focused, attempted"]
["Tasted","syn.","tried, savored, sampled"]
["Taught","syn.","educated, coached, explained"]
["Teamed","syn.","affiliated, cooperated, coordinated"]
["Tempered","syn.","abated, mitigated, softened"]
["Tended","syn.","cared for, minded, oversaw"]
["Terminated","syn.","aborted, discontinued, finished"]
["Tested","syn.","evaluated, assessed, analyzed"]
["Testified","syn.","affirmed, corroborated, swore"]
["Theorized","del"]
["Thwarted","del"]
["Tied","syn.","bound, fastened, united"]
["Tightened","del"]
["Timed","del"]
["Took","syn.","acquired, accepted, seized"]
["Topped","syn.","surpassed, bested, outshined"]
["Totaled","syn.","summed, calculated, figured"]
["Toured","del"]
["Traced","syn.","hunted, followed, chased"]
["Tracked","syn.","pursued, followed, shadowed"]
["Traded","del"]
["Trained","syn.","prepared, coached, instructed"]
["Transcribed","syn.","recorded, reproduced, rewrote"]
["Transferred","del"]
["Transformed","syn.","revolutionized, reformed, mutated"]
["Transitioned","syn.","developed, evolved, progressed"]
["Translated","syn.","interpreted, deciphered, paraphrased"]
["Transmitted","syn.","broadcast, dispatched, conveyed"]
["Transported","del"]
["Transposed","del"]
["Traveled","syn.","journeyed, ventured, explored"]
["Treated","syn.","conducted, managed, served"]
["Trimmed","syn.","clipped, cropped, truncated"]
["Tripled","syn.","increased, inflated, multiplied"]
["Troubleshot","syn.","serviced, repaired, corrected"]
["Turned","syn.","altered, modified, transformed"]
["Tutored","syn.","taught, coached, trained"]
["Typed","syn.","classified, categorized, transcribed"]
["Uncovered","syn.","bear, display, expose"]
["Underlined","syn.","accentuate, emphasize, feature"]
["Underscored","syn.","highlight, stress, underline"]
["Undertook","syn.","commit, devote, endeavor"]
["Underwrote","syn.","endorse, consent, finance"]
["Unearthed","syn.","delve, excavate, expose"]
["Unified","syn.","arrange, integrate, orchestrate"]
["United","syn.","ally, commingle, unify"]
["Unveiled","del"]
["Updated","syn.","refresh, renew, restore"]
["Upgraded","syn.","boost, elevate, advance"]
["Upheld","syn.","aid, endorse, maintain"]
["Urged","syn.","compel, incite, recommend"]
["Used","syn.","consume, exercise, utilize"]
["Utilized","syn.","employ, handle, use"]
["Validated","syn.","certify, endorse, verify"]
["Valued","syn.","laud, revere, treasure"]
["Vaulted","syn.","ascend, hurtle, surpass"]
["Verbalized","syn.","express, state, utter"]
["Verified","syn.","certify, justify, validate"]
["Vetted","del"]
["Viewed","syn.","consider, deem, judge"]
["Visited","del"]
["Visualized","syn.","deem, foresee, suppose"]
["Vitalized","del"]
["Voiced","syn.","announce, declare, proclaim"]
["Volunteered","syn.","advance, offer, suggest"]
["Weathered","syn.","brave, endure, overcome"]
["Weighed","syn.","contemplate, consider, evaluate"]
["Widened","syn.","augment, broaden, expand"]
["Withdrew","del"]
["Withstood","syn.","bear, brave, weather"]
["Witnessed","del"]
["Won","syn.","achieve, conquer, prevail"]
["Worked","syn.","labor, manage, toil"]
["Wove","syn.","blend, incorporate, interlace"]
["Wrote","syn.","author, compose, create"]
["Xeroxed","del"]
["Yielded","syn.","accrue, earn, generate"]
["Zapped","del"]
["Zeroed In","del"]
["Zipped","del"]
["Zoned Off","del"]
["Zoomed In","del"]
["Zoomed Out","del"]

{"sheet":"JP&21-101_acronyms","index":3,"n_rows":7251,"n_cols":26,"rows_kept":7251,"cut":false,"hidden":false,"merged":[[7205,0,7205,5],[7205,6,7205,25],[7218,0,7218,5],[7218,6,7218,25],[7211,0,7211,5],[7211,6,7211,25],[7225,0,7225,5],[7225,6,7225,25],[7226,0,7226,5],[7226,6,7226,25],[7231,0,7231,5],[7231,6,7231,25],[7233,0,7233,5],[7233,6,7233,25],[7227,0,7227,5],[7227,6,7227,25],[7242,0,7242,5],[7242,6,7242,25],[6718,6,6718,25],[6754,0,6754,5],[6754,6,6754,25],[6786,0,6786,5],[6786,6,6786,25],[6788,0,6788,5],[6788,6,6788,25],[6790,0,6790,5],[6790,6,6790,25],[6792,0,6792,5],[6792,6,6792,25],[6798,0,6798,5],[6798,6,6798,25],[6802,0,6802,5],[6802,6,6802,25],[6803,0,6803,5],[6803,6,6803,25],[6820,0,6820,5],[6820,6,6820,25],[6889,0,6889,5],[6889,6,6889,25],[7015,0,7015,5],[7015,6,7015,25],[7017,0,7017,5],[7017,6,7017,25],[7110,0,7110,5],[7110,6,7110,25],[7117,0,7117,5],[7118,0,7118,5],[7117,6,7117,25],[7118,6,7118,25],[7135,0,7135,5],[7135,6,7135,25],[7095,6,7095,25],[7096,6,7096,25],[7139,6,7139,25],[7158,6,7158,25],[7159,6,7159,25],[7016,6,7016,25],[7018,6,7018,25],[7019,6,7019,25],[7020,6,7020,25],[7103,6,7103,25],[7104,6,7104,25],[7201,0,7201,5],[7201,6,7201,25],[7021,6,7021,25],[7022,6,7022,25],[7023,6,7023,25],[7024,6,7024,25],[7154,6,7154,25],[7155,6,7155,25],[7156,6,7156,25],[7157,6,7157,25],[7160,6,7160,25],[7161,6,7161,25],[7142,6,7142,25],[7143,6,7143,25],[7144,6,7144,25],[7145,6,7145,25],[7146,6,7146,25],[7147,6,7147,25],[7128,6,7128,25],[7129,6,7129,25],[7130,6,7130,25],[7131,6,7131,25],[7132,6,7132,25],[7133,6,7133,25],[7114,6,7114,25],[7115,6,7115,25],[7116,6,7116,25],[7119,6,7119,25],[7120,6,7120,25],[7121,6,7121,25],[7101,6,7101,25],[7102,6,7102,25],[7202,0,7202,5],[7202,6,7202,25],[6635,6,6635,25],[7105,6,7105,25],[7106,6,7106,25],[7089,6,7089,25],[7090,6,7090,25],[7091,6,7091,25],[7092,6,7092,25],[7093,6,7093,25],[7094,6,7094,25],[7140,6,7140,25],[7141,6,7141,25],[7134,6,7134,25],[7136,6,7136,25],[7124,6,7124,25],[7125,6,7125,25],[7126,6,7126,25],[7127,6,7127,25],[7122,6,7122,25],[7123,6,7123,25],[7109,6,7109,25],[7111,6,7111,25],[7112,6,7112,25],[7113,6,7113,25],[7107,6,7107,25],[7108,6,7108,25],[7097,6,7097,25],[7098,6,7098,25],[7099,6,7099,25],[7100,6,7100,25],[7085,6,7085,25],[7086,6,7086,25],[7087,6,7087,25],[6034,6,6034,25],[6101,0,6101,5],[6101,6,6101,25],[6121,0,6121,5],[6121,6,6121,25],[6192,0,6192,5],[6192,6,6192,25],[6204,0,6204,5],[6204,6,6204,25],[6225,0,6225,5],[6225,6,6225,25],[6233,0,6233,5],[6233,6,6233,25],[6234,0,6234,5],[6234,6,6234,25],[6240,0,6240,5],[6240,6,6240,25],[6105,6,6105,25],[6106,6,6106,25],[6107,6,6107,25],[6108,6,6108,25],[6109,6,6109,25],[6110,6,6110,25],[6111,6,6111,25],[6112,6,6112,25],[6174,6,6174,25],[6175,6,6175,25],[6176,6,6176,25],[6650,6,6650,25],[6557,6,6557,25],[6558,6,6558,25],[6559,6,6559,25],[6560,6,6560,25],[6561,6,6561,25],[6562,6,6562,25],[6563,6,6563,25],[6564,6,6564,25],[6631,6,6631,25],[6632,6,6632,25],[6634,6,6634,25],[6636,6,6636,25],[6628,6,6628,25],[6629,6,6629,25],[6618,6,6618,25],[6619,6,6619,25],[6620,6,6620,25],[6621,6,6621,25],[6616,6,6616,25],[6617,6,6617,25],[6604,6,6604,25],[6605,6,6605,25],[6606,6,6606,25],[6607,6,6607,25],[6602,6,6602,25],[6603,6,6603,25],[6553,6,6553,25],[6554,6,6554,25],[6555,6,6555,25],[6556,6,6556,25],[6551,6,6551,25],[6637,6,6637,25],[6638,6,6638,25],[6639,6,6639,25],[6640,6,6640,25],[5578,6,5578,25],[5568,6,5568,25],[5569,6,5569,25],[5691,6,5691,25],[5692,6,5692,25],[5693,6,5693,25],[5694,6,5694,25],[5689,6,5689,25],[5690,6,5690,25],[5677,6,5677,25],[5678,6,5678,25],[5679,6,5679,25],[5680,6,5680,25],[5675,6,5675,25],[5676,6,5676,25],[5663,6,5663,25],[5664,6,5664,25],[5666,6,5666,25],[5667,6,5667,25],[5719,6,5719,25],[5811,6,5811,25],[5964,6,5964,25],[5965,6,5965,25],[5966,6,5966,25],[6092,6,6092,25],[6093,6,6093,25],[6094,6,6094,25],[6095,6,6095,25],[6096,6,6096,25],[6097,6,6097,25],[6080,6,6080,25],[6081,6,6081,25],[6082,6,6082,25],[6083,6,6083,25],[6084,6,6084,25],[6085,6,6085,25],[6068,6,6068,25],[6069,6,6069,25],[6070,6,6070,25],[6071,6,6071,25],[6072,6,6072,25],[6073,6,6073,25],[6056,6,6056,25],[6057,6,6057,25],[6058,6,6058,25],[6059,6,6059,25],[6060,6,6060,25],[5958,6,5958,25],[5959,6,5959,25],[5960,6,5960,25],[5961,6,5961,25],[5962,6,5962,25],[6031,6,6031,25],[6032,6,6032,25],[6033,6,6033,25],[6035,6,6035,25],[6036,6,6036,25],[6037,6,6037,25],[6038,6,6038,25],[6039,6,6039,25],[6027,6,6027,25],[6028,6,6028,25],[6029,6,6029,25],[6030,6,6030,25],[5823,0,5823,5],[5823,6,5823,25],[5594,0,5594,5],[5594,6,5594,25],[5873,0,5873,5],[5873,6,5873,25],[5913,0,5913,5],[5913,6,5913,25],[5035,6,5035,25],[5036,6,5036,25],[5037,6,5037,25],[5038,6,5038,25],[5344,6,5344,25],[5365,0,5365,5],[5365,6,5365,25],[5395,0,5395,5],[5395,6,5395,25],[5397,0,5397,5],[5397,6,5397,25],[5399,0,5399,5],[5399,6,5399,25],[5400,0,5400,5],[5400,6,5400,25],[5412,0,5412,5],[5412,6,5412,25],[5440,0,5440,5],[5440,6,5440,25],[5456,0,5456,5],[5456,6,5456,25],[5500,0,5500,5],[5500,6,5500,25],[5506,0,5506,5],[5506,6,5506,25],[5542,0,5542,5],[5542,6,5542,25],[5556,0,5556,5],[5556,6,5556,25],[5557,0,5557,5],[5557,6,5557,25],[5558,0,5558,5],[5558,6,5558,25],[5552,6,5552,25],[5553,6,5553,25],[5554,6,5554,25],[5555,6,5555,25],[5550,6,5550,25],[5551,6,5551,25],[5539,6,5539,25],[5540,6,5540,25],[5541,6,5541,25],[5543,6,5543,25],[5537,6,5537,25],[5538,6,5538,25],[5525,6,5525,25],[5526,6,5526,25],[5515,6,5515,25],[5516,6,5516,25],[5517,6,5517,25],[5518,6,5518,25],[5513,6,5513,25],[5514,6,5514,25],[5502,6,5502,25],[5575,6,5575,25],[5577,6,5577,25],[5504,6,5504,25],[5505,6,5505,25],[5519,6,5519,25],[5520,6,5520,25],[5521,6,5521,25],[5522,6,5522,25],[5523,6,5523,25],[5524,6,5524,25],[5507,6,5507,25],[5259,6,5259,25],[5270,0,5270,5],[5270,6,5270,25],[5280,0,5280,5],[5280,6,5280,25],[5282,0,5282,5],[5282,6,5282,25],[5283,0,5283,5],[5283,6,5283,25],[5186,6,5186,25],[5187,6,5187,25],[5188,6,5188,25],[5189,6,5189,25],[5190,6,5190,25],[5191,6,5191,25],[5192,6,5192,25],[5193,6,5193,25],[5260,6,5260,25],[5261,6,5261,25],[5262,6,5262,25],[5263,6,5263,25],[5257,6,5257,25],[5258,6,5258,25],[5245,6,5245,25],[5246,6,5246,25],[5247,6,5247,25],[5248,6,5248,25],[5243,6,5243,25],[5244,6,5244,25],[5233,6,5233,25],[5234,6,5234,25],[5235,6,5235,25],[5236,6,5236,25],[5231,6,5231,25],[5232,6,5232,25],[5414,6,5414,25],[5402,6,5402,25],[5403,6,5403,25],[5404,6,5404,25],[5405,6,5405,25],[5508,6,5508,25],[5509,6,5509,25],[5510,6,5510,25],[5511,6,5511,25],[5512,6,5512,25],[5489,6,5489,25],[5490,6,5490,25],[5491,6,5491,25],[5492,6,5492,25],[5487,6,5487,25],[5488,6,5488,25],[5477,6,5477,25],[5478,6,5478,25],[5479,6,5479,25],[5466,6,5466,25],[4518,6,4518,25],[4531,0,4531,5],[4531,6,4531,25],[4541,0,4541,5],[4541,6,4541,25],[4561,0,4561,5],[4561,6,4561,25],[4562,0,4562,5],[4563,0,4563,5],[4564,0,4564,5],[4565,0,4565,5],[4566,0,4566,5],[4567,0,4567,5],[4562,6,4562,25],[4563,6,4563,25],[4564,6,4564,25],[4565,6,4565,25],[4566,6,4566,25],[4567,6,4567,25],[4671,0,4671,5],[4671,6,4671,25],[4688,0,4688,5],[4688,6,4688,25],[4729,0,4729,5],[4729,6,4729,25],[4779,0,4779,5],[4779,6,4779,25],[4795,0,4795,5],[4795,6,4795,25],[4888,0,4888,5],[4888,6,4888,25],[4049,6,4049,25],[4073,0,4073,5],[4073,6,4073,25],[4084,0,4084,5],[4084,6,4084,25],[4122,0,4122,5],[4122,6,4122,25],[4155,0,4155,5],[4155,6,4155,25],[4238,0,4238,5],[4238,6,4238,25],[4245,0,4245,5],[4245,6,4245,25],[4268,0,4268,5],[4268,6,4268,25],[4269,0,4269,5],[4269,6,4269,25],[4274,0,4274,5],[4274,6,4274,25],[4276,0,4276,5],[4276,6,4276,25],[4279,0,4279,5],[4279,6,4279,25],[4306,0,4306,5],[4306,6,4306,25],[4355,0,4355,5],[4355,6,4355,25],[4375,0,4375,5],[4375,6,4375,25],[4377,0,4377,5],[4377,6,4377,25],[4411,0,4411,5],[4411,6,4411,25],[3079,6,3079,25],[3080,6,3080,25],[3237,6,3237,25],[3245,0,3245,5],[3245,6,3245,25],[2986,0,2986,5],[2986,6,2986,25],[3278,0,3278,5],[3278,6,3278,25],[3371,0,3371,5],[3371,6,3371,25],[3439,0,3439,5],[3439,6,3439,25],[3450,0,3450,5],[3450,6,3450,25],[3453,0,3453,5],[3453,6,3453,25],[3464,0,3464,5],[3464,6,3464,25],[3588,0,3588,5],[3588,6,3588,25],[3673,0,3673,5],[3673,6,3673,25],[3735,0,3735,5],[3735,6,3735,25],[3798,0,3798,5],[3798,6,3798,25],[3837,0,3837,5],[3837,6,3837,25],[3875,0,3875,5],[3875,6,3875,25],[3881,0,3881,5],[3881,6,3881,25],[3847,0,3847,5],[3847,6,3847,25],[3821,6,3821,25],[3822,6,3822,25],[3823,6,3823,25],[3824,6,3824,25],[3825,6,3825,25],[3826,6,3826,25],[3827,6,3827,25],[3828,6,3828,25],[3744,6,3744,25],[3745,6,3745,25],[3746,6,3746,25],[3747,6,3747,25],[3742,6,3742,25],[3743,6,3743,25],[3731,6,3731,25],[3732,6,3732,25],[3733,6,3733,25],[3734,6,3734,25],[3729,6,3729,25],[3730,6,3730,25],[3719,6,3719,25],[3720,6,3720,25],[3721,6,3721,25],[3722,6,3722,25],[3717,6,3717,25],[3718,6,3718,25],[3529,6,3529,25],[3530,6,3530,25],[3531,6,3531,25],[2216,6,2216,25],[2197,6,2197,25],[2199,6,2199,25],[2200,6,2200,25],[2779,6,2779,25],[2789,0,2789,5],[2789,6,2789,25],[2803,0,2803,5],[2803,6,2803,25],[2799,0,2799,5],[2799,6,2799,25],[2821,0,2821,5],[2821,6,2821,25],[2837,0,2837,5],[2837,6,2837,25],[2917,0,2917,5],[2917,6,2917,25],[2921,0,2921,5],[2921,6,2921,25],[3005,0,3005,5],[3005,6,3005,25],[3063,0,3063,5],[3063,6,3063,25],[3056,0,3056,5],[3056,6,3056,25],[3088,0,3088,5],[3088,6,3088,25],[3093,0,3093,5],[3093,6,3093,25],[3121,0,3121,5],[3121,6,3121,25],[3125,0,3125,5],[3125,6,3125,25],[2325,6,2325,25],[2318,0,2318,5],[2318,6,2318,25],[2342,0,2342,5],[2342,6,2342,25],[2354,0,2354,5],[2354,6,2354,25],[2355,0,2355,5],[2355,6,2355,25],[2364,0,2364,5],[2364,6,2364,25],[2406,0,2406,5],[2406,6,2406,25],[2410,0,2410,5],[2410,6,2410,25],[2445,0,2445,5],[2445,6,2445,25],[2478,0,2478,5],[2478,6,2478,25],[2492,0,2492,5],[2492,6,2492,25],[2495,0,2495,5],[2495,6,2495,25],[2537,0,2537,5],[2537,6,2537,25],[2547,0,2547,5],[2547,6,2547,25],[2589,0,2589,5],[2589,6,2589,25],[2599,0,2599,5],[2599,6,2599,25],[1857,6,1857,25],[1871,0,1871,5],[1871,6,1871,25],[1875,0,1875,5],[1875,6,1875,25],[1589,0,1589,5],[1590,0,1590,5],[1591,0,1591,5],[1589,6,1589,25],[1590,6,1590,25],[1591,6,1591,25],[1962,0,1962,5],[1962,6,1962,25],[1999,0,1999,5],[1999,6,1999,25],[1865,0,1865,5],[1865,6,1865,25],[2012,0,2012,5],[2012,6,2012,25],[2054,0,2054,5],[2054,6,2054,25],[2090,0,2090,5],[2090,6,2090,25],[2103,0,2103,5],[2103,6,2103,25],[2108,0,2108,5],[2108,6,2108,25],[2133,0,2133,5],[2133,6,2133,25],[2143,0,2143,5],[2143,6,2143,25],[2159,0,2159,5],[2159,6,2159,25],[2158,6,2158,25],[2007,6,2007,25],[2008,6,2008,25],[2009,6,2009,25],[2010,6,2010,25],[2011,6,2011,25],[2013,6,2013,25],[2014,6,2014,25],[2015,6,2015,25],[2146,6,2146,25],[2147,6,2147,25],[2148,6,2148,25],[2149,6,2149,25],[2150,6,2150,25],[2151,6,2151,25],[2132,6,2132,25],[2134,6,2134,25],[2135,6,2135,25],[2136,6,2136,25],[2137,6,2137,25],[2138,6,2138,25],[2120,6,2120,25],[2121,6,2121,25],[2122,6,2122,25],[2123,6,2123,25],[2124,6,2124,25],[2125,6,2125,25],[2107,6,2107,25],[2109,6,2109,25],[2110,6,2110,25],[2111,6,2111,25],[1028,6,1028,25],[1031,0,1031,5],[1031,6,1031,25],[1032,0,1032,5],[1032,6,1032,25],[1035,0,1035,5],[1035,6,1035,25],[1101,0,1101,5],[1101,6,1101,25],[1102,0,1102,5],[1102,6,1102,25],[1117,0,1117,5],[1117,6,1117,25],[1126,0,1126,5],[1126,6,1126,25],[1136,0,1136,5],[1136,6,1136,25],[1150,0,1150,5],[1150,6,1150,25],[1165,0,1165,5],[1165,6,1165,25],[1214,0,1214,5],[1214,6,1214,25],[1223,0,1223,5],[1223,6,1223,25],[1422,0,1422,5],[1422,6,1422,25],[1346,0,1346,5],[1346,6,1346,25],[1439,0,1439,5],[1439,6,1439,25],[1314,0,1314,5],[1314,6,1314,25],[1404,6,1404,25],[1405,6,1405,25],[1406,6,1406,25],[1407,6,1407,25],[1408,6,1408,25],[1409,6,1409,25],[1410,6,1410,25],[1411,6,1411,25],[1327,6,1327,25],[1328,6,1328,25],[1329,6,1329,25],[1330,6,1330,25],[1325,6,1325,25],[1326,6,1326,25],[1315,6,1315,25],[1316,6,1316,25],[1317,6,1317,25],[1318,6,1318,25],[1312,6,1312,25],[1313,6,1313,25],[1302,6,1302,25],[1303,6,1303,25],[1304,6,1304,25],[1305,6,1305,25],[1300,6,1300,25],[1301,6,1301,25],[1107,6,1107,25],[1108,6,1108,25],[1109,6,1109,25],[1110,6,1110,25],[1111,6,1111,25],[7243,6,7243,25],[7244,6,7244,25],[7245,6,7245,25],[7246,6,7246,25],[7247,6,7247,25],[7248,6,7248,25],[7228,6,7228,25],[7229,6,7229,25],[7230,6,7230,25],[7232,6,7232,25],[7234,6,7234,25],[7235,6,7235,25],[7212,6,7212,25],[7213,6,7213,25],[7214,6,7214,25],[7215,6,7215,25],[7216,6,7216,25],[7217,6,7217,25],[7196,6,7196,25],[7197,6,7197,25],[7198,6,7198,25],[7199,6,7199,25],[7200,6,7200,25],[7203,6,7203,25],[7184,6,7184,25],[7185,6,7185,25],[7186,6,7186,25],[7187,6,7187,25],[7188,6,7188,25],[7189,6,7189,25],[7168,6,7168,25],[7169,6,7169,25],[7170,6,7170,25],[7171,6,7171,25],[7175,6,7175,25],[7177,6,7177,25],[7172,6,7172,25],[7173,6,7173,25],[7174,6,7174,25],[7176,6,7176,25],[7088,6,7088,25],[6870,6,6870,25],[6871,6,6871,25],[6872,6,6872,25],[6873,6,6873,25],[6874,6,6874,25],[6875,6,6875,25],[6876,6,6876,25],[6877,6,6877,25],[7003,6,7003,25],[7004,6,7004,25],[7005,6,7005,25],[7006,6,7006,25],[7007,6,7007,25],[7008,6,7008,25],[6991,6,6991,25],[6992,6,6992,25],[6993,6,6993,25],[6994,6,6994,25],[6995,6,6995,25],[6996,6,6996,25],[6979,6,6979,25],[6980,6,6980,25],[6981,6,6981,25],[6982,6,6982,25],[6983,6,6983,25],[6984,6,6984,25],[6967,6,6967,25],[6968,6,6968,25],[6969,6,6969,25],[6970,6,6970,25],[6971,6,6971,25],[6972,6,6972,25],[6943,6,6943,25],[6944,6,6944,25],[6945,6,6945,25],[6946,6,6946,25],[6947,6,6947,25],[6948,6,6948,25],[6949,6,6949,25],[6950,6,6950,25],[6939,6,6939,25],[6940,6,6940,25],[6941,6,6941,25],[6942,6,6942,25],[6937,6,6937,25],[6938,6,6938,25],[6927,6,6927,25],[6928,6,6928,25],[6929,6,6929,25],[6930,6,6930,25],[6925,6,6925,25],[6926,6,6926,25],[6915,6,6915,25],[6916,6,6916,25],[6917,6,6917,25],[6918,6,6918,25],[6913,6,6913,25],[6914,6,6914,25],[7083,6,7083,25],[7084,6,7084,25],[7073,6,7073,25],[7074,6,7074,25],[7075,6,7075,25],[6641,6,6641,25],[6642,6,6642,25],[6643,6,6643,25],[6644,6,6644,25],[6716,6,6716,25],[6717,6,6717,25],[6719,6,6719,25],[6720,6,6720,25],[6721,6,6721,25],[6722,6,6722,25],[6723,6,6723,25],[6724,6,6724,25],[6858,6,6858,25],[6859,6,6859,25],[6860,6,6860,25],[6861,6,6861,25],[6862,6,6862,25],[6863,6,6863,25],[6846,6,6846,25],[6847,6,6847,25],[6848,6,6848,25],[6849,6,6849,25],[6850,6,6850,25],[6851,6,6851,25],[6834,6,6834,25],[6835,6,6835,25],[6836,6,6836,25],[6837,6,6837,25],[6794,6,6794,25],[6795,6,6795,25],[6796,6,6796,25],[6797,6,6797,25],[6799,6,6799,25],[6800,6,6800,25],[6801,6,6801,25],[6804,6,6804,25],[6787,6,6787,25],[6789,6,6789,25],[6791,6,6791,25],[6793,6,6793,25],[6784,6,6784,25],[6785,6,6785,25],[6774,6,6774,25],[6775,6,6775,25],[6776,6,6776,25],[6777,6,6777,25],[6749,6,6749,25],[6750,6,6750,25],[6751,6,6751,25],[6752,6,6752,25],[6747,6,6747,25],[6748,6,6748,25],[6737,6,6737,25],[6738,6,6738,25],[6739,6,6739,25],[6740,6,6740,25],[6735,6,6735,25],[6736,6,6736,25],[6725,6,6725,25],[6726,6,6726,25],[6727,6,6727,25],[6728,6,6728,25],[6778,6,6778,25],[6779,6,6779,25],[6404,6,6404,25],[6405,6,6405,25],[6406,6,6406,25],[6407,6,6407,25],[6408,6,6408,25],[6409,6,6409,25],[6410,6,6410,25],[6411,6,6411,25],[6543,6,6543,25],[6544,6,6544,25],[6546,6,6546,25],[6547,6,6547,25],[6548,6,6548,25],[6549,6,6549,25],[6531,6,6531,25],[6532,6,6532,25],[6533,6,6533,25],[6534,6,6534,25],[6535,6,6535,25],[6536,6,6536,25],[6518,6,6518,25],[6519,6,6519,25],[6520,6,6520,25],[6521,6,6521,25],[6522,6,6522,25],[6523,6,6523,25],[6505,6,6505,25],[6507,6,6507,25],[6508,6,6508,25],[6509,6,6509,25],[6510,6,6510,25],[6511,6,6511,25],[6482,6,6482,25],[6487,6,6487,25],[6497,6,6497,25],[6506,6,6506,25],[6524,6,6524,25],[6545,6,6545,25],[6542,6,6542,25],[6537,6,6537,25],[6538,6,6538,25],[6527,6,6527,25],[6528,6,6528,25],[6529,6,6529,25],[6530,6,6530,25],[6525,6,6525,25],[6526,6,6526,25],[6514,6,6514,25],[6515,6,6515,25],[6516,6,6516,25],[6517,6,6517,25],[6512,6,6512,25],[6513,6,6513,25],[6501,6,6501,25],[6502,6,6502,25],[6503,6,6503,25],[6504,6,6504,25],[6499,6,6499,25],[6500,6,6500,25],[6488,6,6488,25],[6489,6,6489,25],[6490,6,6490,25],[6491,6,6491,25],[6437,6,6437,25],[6550,6,6550,25],[6570,6,6570,25],[6567,6,6567,25],[6601,6,6601,25],[6611,6,6611,25],[6615,6,6615,25],[6630,6,6630,25],[6633,6,6633,25],[6485,6,6485,25],[6486,6,6486,25],[6474,6,6474,25],[6475,6,6475,25],[6476,6,6476,25],[6477,6,6477,25],[6472,6,6472,25],[6473,6,6473,25],[6461,6,6461,25],[6462,6,6462,25],[6463,6,6463,25],[6464,6,6464,25],[6459,6,6459,25],[6460,6,6460,25],[6449,6,6449,25],[6450,6,6450,25],[6451,6,6451,25],[6452,6,6452,25],[6447,6,6447,25],[6448,6,6448,25],[6196,6,6196,25],[6434,6,6434,25],[6435,6,6435,25],[6424,6,6424,25],[6425,6,6425,25],[6426,6,6426,25],[6427,6,6427,25],[6422,6,6422,25],[6423,6,6423,25],[6412,6,6412,25],[6413,6,6413,25],[6414,6,6414,25],[6415,6,6415,25],[6428,6,6428,25],[6429,6,6429,25],[6430,6,6430,25],[6431,6,6431,25],[6432,6,6432,25],[6433,6,6433,25],[6416,6,6416,25],[6417,6,6417,25],[6418,6,6418,25],[6419,6,6419,25],[6420,6,6420,25],[6421,6,6421,25],[6436,6,6436,25],[6400,6,6400,25],[6401,6,6401,25],[6402,6,6402,25],[6403,6,6403,25],[6398,6,6398,25],[6399,6,6399,25],[6552,6,6552,25],[6539,6,6539,25],[6540,6,6540,25],[6541,6,6541,25]],"merged_total":14500,"flags":["merged_cut"]}
["A","B","C","D","E","F","G","H","I","J","K","L","M","N","O","P","Q","R","S","T","U","V","W","X","Y","Z"]
["Abreviation",null,null,null,null,null,"DEFINITION     Items in BOLD can be found in 21-101."]
[".NL.",null,null,null,null,null,"not less than"]
["1MC",null,null,null,null,null,"general announcing system"]
["1NCD",null,null,null,null,null,"1st Naval Construction Division"]
["1NCD",null,null,null,null,null,"First Naval Construction Division"]
["1st IOC",null,null,null,null,null,"1st Information Operations Command (Land)"]
["2-D",null,null,null,null,null,"two-dimensional"]
["2E",null,null,null,null,null,"Role 2 enhanced"]
["2LM",null,null,null,null,null,"Role 2 light maneuver"]
["3-D",null,null,null,null,null,"three-dimensional"]
["618 AOC (TACC)",null,null,null,null,null,"618 Air Operations Center (Tanker Airlift Control Center)"]
["A",null,null,null,null,null,"analog"]
["A&P",null,null,null,null,null,"administrative and personnel; analysis and production"]
["A-1",null,null,null,null,null,"director of manpower, personnel, and services (Air Force)"]
["A-2",null,null,null,null,null,"intelligence staff officer (Air Force)"]
["A-3",null,null,null,null,null,"operations directorate (COMAFFOR staff); operations staff officer (Air Force)"]
["A-4",null,null,null,null,null,"director of logistics (Air Force)"]
["A-5",null,null,null,null,null,"plans directorate (COMAFFOR staff)"]
["A-6",null,null,null,null,null,"communications staff officer (Air Force)"]
["A-7",null,null,null,null,null,"director of installations and mission support (Air Force)"]
["A-Space",null,null,null,null,null,"Analytic Space"]
["A/C",null,null,null,null,null,"aircraft"]
["A/D",null,null,null,null,null,"analog-to-digital"]
["A/DACG",null,null,null,null,null,"arrival/departure airfield control group"]
["A/DCG",null,null,null,null,null,"arrival/departure control group"]
["A/E",null,null,null,null,null,"ammunition/explosives"]
["A/ETF",null,null,null,null,null,"automated/electronic target folder"]
["A/G",null,null,null,null,null,"air to ground"]
["A/M",null,null,null,null,null,"approach and moor"]
["A/NM",null,null,null,null,null,"administrative/network management"]
["A/S",null,null,null,null,null,"anti-spoofing"]
["A2C2",null,null,null,null,null,"Army airspace command and control"]
["AA",null,null,null,null,null,"assessment agent; avenue of approach"]
["AA&E",null,null,null,null,null,"arms, ammunition, and explosives"]
["AAA",null,null,null,null,null,"antiaircraft artillery; arrival and assembly area; assign alternate area"]
["AABB",null,null,null,null,null,"American Association of Blood Banks"]
["AABWS",null,null,null,null,null,"amphibious assault bulk water system"]
["AAC",null,null,null,null,null,"activity address code"]
["AACG",null,null,null,null,null,"arrival airfield control group"]
["AADC",null,null,null,null,null,"area air defense commander"]
["AADP",null,null,null,null,null,"area air defense plan"]
["AAFES",null,null,null,null,null,"Army and Air Force Exchange Service"]
["AAFIF",null,null,null,null,null,"automated air facility information file"]
["AAFS",null,null,null,null,null,"amphibious assault fuel system"]
["AAFSF",null,null,null,null,null,"amphibious assault fuel supply facility"]
["AAG",null,null,null,null,null,"aeronautical assignment group"]
["AAGS",null,null,null,null,null,"Army air-ground system"]
["AAI",null,null,null,null,null,"air-to-air interface"]
["AAM",null,null,null,null,null,"air-to-air missile"]
["AAMDC",null,null,null,null,null,"United States Army Air and Missile Defense Command"]
["AAOE",null,null,null,null,null,"arrival and assembly operations element"]
["AAOG",null,null,null,null,null,"arrival and assembly operations group"]
["AAP",null,null,null,null,null,"Allied administrative publication; assign alternate parent"]
["AAR",null,null,null,null,null,"after action report; after action review; air-to-air refueling area"]
["AAS",null,null,null,null,null,"amphibious assault ship"]
["AAST",null,null,null,null,null,"aeromedical evacuation administrative support team"]
["AAT",null,null,null,null,null,"automatic analog test; aviation advisory team"]
["AATCC",null,null,null,null,null,"amphibious air traffic control center"]
["AAU",null,null,null,null,null,"analog applique unit"]
["AAV",null,null,null,null,null,"amphibious assault vehicle"]
["AAW",null,null,null,null,null,"antiair warfare"]
["AB",null,null,null,null,null,"air base"]
["ABCA",null,null,null,null,null,"American, British, Canadian, Australian, and New Zealand"]
["ABCS",null,null,null,null,null,"Army Battle Command System"]
["ABD",null,null,null,null,null,"airbase defense"]
["ABDR",null,null,null,null,null,"Aircraft Battle Damage Repair"]
["ABFC",null,null,null,null,null,"advanced base functional component"]
["ABFDS",null,null,null,null,null,"aerial bulk fuel delivery system"]
["ABFS",null,null,null,null,null,"amphibious bulk fuel system"]
["ABGD",null,null,null,null,null,"air base ground defense"]
["ABIS",null,null,null,null,null,"Automated Biometric Identification System"]
["ABL",null,null,null,null,null,"airborne laser"]
["ABLTS",null,null,null,null,null,"amphibious bulk liquid transfer system"]
["ABM",null,null,null,null,null,"antiballistic missile"]
["ABN",null,null,null,null,null,"airborne"]
["ABNCP",null,null,null,null,null,"Airborne Command Post"]
["ABO",null,null,null,null,null,"air base operability; blood typing system"]
["ABP",null,null,null,null,null,"air battle plan"]
["AC",null,null,null,null,null,"Active Component; alternating current; Aircraft Commander"]
["AC-130",null,null,null,null,null,"Hercules"]
["AC/S, C4I",null,null,null,null,null,"Assistant Chief of Staff, Command, Control, Communications, Computers, and Intelligence (USMC)"]
["AC2",null,null,null,null,null,"airspace command and control"]
["ACA",null,null,null,null,null,"air clearance authority; airlift clearance authority; airspace control authority; airspace coordination area"]
["ACAA",null,null,null,null,null,"automatic chemical agent alarm"]
["ACAPS",null,null,null,null,null,"area communications electronics capabilities"]
["ACAT",null,null,null,null,null,"aeromedical evacuation command augmentation team"]
["ACB",null,null,null,null,null,"amphibious construction battalion"]
["ACC",null,null,null,null,null,"Air Combat Command; air component commander; area coordination center; Army Contracting Command"]
["ACCE",null,null,null,null,null,"air component coordination element"]
["ACCON",null,null,null,null,null,"acoustic condition"]
["ACCS",null,null,null,null,null,"air command and control system"]
["ACCSA",null,null,null,null,null,"Allied Communications and Computer Security Agency"]
["ACD",null,null,null,null,null,"automated cargo documentation"]
["ACDO",null,null,null,null,null,"assistant command duty officer"]
["ACE",null,null,null,null,null,"airborne command element (USAF); air combat element (NATO); Allied Command Europe; aviation combat element (USMC)"]
["ACEOI",null,null,null,null,null,"automated communications-electronics operating instructions"]
["ACF",null,null,null,null,null,"air contingency force"]
["ACFT",null,null,null,null,null,"Aircraft"]
["ACIC",null,null,null,null,null,"Army Counterintelligence Center"]
["ACINT",null,null,null,null,null,"acoustic intelligence"]
["ACK",null,null,null,null,null,"acknowledgement"]
["ACL",null,null,null,null,null,"access control list; allowable cabin load"]
["ACLANT",null,null,null,null,null,"Allied Command Atlantic"]
["ACLP",null,null,null,null,null,"affiliated contingency load planning"]
["ACM",null,null,null,null,null,"advanced conventional munitions; advanced cruise missile; air combat maneuver; air contingency Marine air-ground task force (MAGTF); airspace coordinating measure; Aircraft Configuration Management"]
["ACMREQ",null,null,null,null,null,"airspace control means request; airspace coordination measures request"]
["ACN",null,null,null,null,null,"assign commercial network; Authorization Change Notice"]
["ACO",null,null,null,null,null,"administrative contracting officer; airspace control order"]
["ACOA",null,null,null,null,null,"adaptive course of action"]
["ACOC",null,null,null,null,null,"area communications operations center"]
["ACOCC",null,null,null,null,null,"air combat operations command center"]
["ACOS",null,null,null,null,null,"assistant chief of staff"]
["ACP",null,null,null,null,null,"access control point; air commander's pointer; airspace control plan; Allied communications publication; assign common pool"]
["ACPINS",null,null,null,null,null,"Automated Computer Program Identification Number System"]
["ACR",null,null,null,null,null,"armored cavalry regiment (Army); assign channel reassignment; Authorization Change Requests"]
["ACS",null,null,null,null,null,"agile combat support; air-capable ship; airspace control system; auxiliary crane ship"]
["ACSA",null,null,null,null,null,"acquisition and cross-servicing agreement; Allied Communications Security Agency"]
["ACT",null,null,null,null,null,"activity; advance civilian team; Allied Command Transformation"]
["ACU",null,null,null,null,null,"assault craft unit"]
["ACV",null,null,null,null,null,"aircraft cockpit video; armored combat vehicle"]
["ACW",null,null,null,null,null,"advanced conventional weapons"]
["AD",null,null,null,null,null,"active duty; advanced deployability; air defense; automatic distribution; priority add-on; Airworthiness Directives"]
["ADA",null,null,null,null,null,"aerial damage assessment; air defense artillery"]
["ADAFCO",null,null,null,null,null,"air defense artillery fire control officer"]
["ADAL",null,null,null,null,null,"authorized dental allowance list"]
["ADAM",null,null,null,null,null,"air defense airspace management"]
["ADAM/BAE",null,null,null,null,null,"air defense airspace management/brigade aviation element"]
["ADAMS",null,null,null,null,null,"Allied Deployment and Movement System"]
["ADANS",null,null,null,null,null,"Air Mobility Command Deployment Analysis System"]
["ADC",null,null,null,null,null,"air defense commander; area damage control"]
["ADCC",null,null,null,null,null,"Assistant Dedicated Crew Chief"]
["ADCAP",null,null,null,null,null,"advanced capability"]
["ADCI/MS",null,null,null,null,null,"Associate Director of Central Intelligence for Military Support"]
["ADCON",null,null,null,null,null,"administrative control"]
["ADD",null,null,null,null,null,"assign on-line diagnostic"]
["ADDO",null,null,null,null,null,"Assistant Deputy Director for Operations"]
["ADDO(MS)",null,null,null,null,null,"Assistant Deputy Director for Operations/Military Support"]
["ADE",null,null,null,null,null,"airdrop damage estimate; assign digit editing"]
["ADF",null,null,null,null,null,"automatic direction finding"]
["ADIZ",null,null,null,null,null,"air defense identification zone"]
["ADKC/RCU",null,null,null,null,null,"Automatic Key Distribution Center/Rekeying Control Unit"]
["ADL",null,null,null,null,null,"advanced distributed learning; assign XX (SL) routing"]
["ADMIN",null,null,null,null,null,"administration"]
["ADN",null,null,null,null,null,"Allied Command Europe desired ground zero number"]
["ADNET",null,null,null,null,null,"anti-drug network"]
["ADOC",null,null,null,null,null,"air defense operations center"]
["ADP",null,null,null,null,null,"air defense plan; Army doctrine publication; automated data processing"]
["ADPE",null,null,null,null,null,"automated data processing equipment"]
["ADPS",null,null,null,null,null,"automatic data processing system"]
["ADR",null,null,null,null,null,"accident data recorder; aircraft damage repair; airfield damage repair; Aircraft Document Review / Ammunition Disposition Report"]
["ADRA",null,null,null,null,null,"Adventist Development and Relief Agency"]
["ADRP",null,null,null,null,null,"Army doctrine reference publication"]
["ADS",null,null,null,null,null,"air defense section; air defense sector; amphibian discharge site; authoritative data source; Automated Data System"]
["ADSIA",null,null,null,null,null,"Allied Data Systems Interoperability Agency"]
["ADSW",null,null,null,null,null,"active duty for special work"]
["ADT",null,null,null,null,null,"active duty for training; assign digital transmission group; automatic digital tester"]
["ADUSD(TP)",null,null,null,null,null,"Assistant Deputy Under Secretary of Defense, Transportation Policy"]
["ADVON",null,null,null,null,null,"advanced echelon"]
["ADW",null,null,null,null,null,"air defense warnings"]
["ADWC",null,null,null,null,null,"air defense warning condition"]
["ADZ",null,null,null,null,null,"amphibious defense zone"]
["AE",null,null,null,null,null,"aeromedical evacuation; assault echelon; attenuation equalizer"]
["AEC",null,null,null,null,null,"aeromedical evacuation crew"]
["AECA",null,null,null,null,null,"Arms Export Control Act"]
["AECM",null,null,null,null,null,"aeromedical evacuation crew member"]
["AECS",null,null,null,null,null,"aeromedical evacuation command squadron"]
["AECT",null,null,null,null,null,"aeromedical evacuation control team"]
["AEF",null,null,null,null,null,"Aerospace Expeditionary Force"]
["AEG",null,null,null,null,null,"air expeditionary group"]
["AEHF",null,null,null,null,null,"advanced extremely high frequency"]
["AELT",null,null,null,null,null,"aeromedical evacuation liaison team"]
["AEOS",null,null,null,null,null,"aeromedical evacuation operations squadron"]
["AEOT",null,null,null,null,null,"aeromedical evacuation operations team"]
["AEPS",null,null,null,null,null,"aircrew escape propulsion system"]
["AEPST",null,null,null,null,null,"aeromedical evacuation plans and strategy team"]
["AES",null,null,null,null,null,"aeromedical evacuation squadron"]
["AESC",null,null,null,null,null,"aeromedical evacuation support cell"]
["AET",null,null,null,null,null,"airport emergency team"]
["AETC",null,null,null,null,null,"Air Education and Training Command"]
["AETF",null,null,null,null,null,"air expeditionary task force"]
["AEU",null,null,null,null,null,"assign essential user bypass"]
["AEW",null,null,null,null,null,"airborne early warning"]
["AF",null,null,null,null,null,"Air Force; Air Force (form); amphibious force"]
["AF/A2",null,null,null,null,null,"Air Force Director of Intelligence, Surveillance, and Reconnaissance"]
["AF/A4L",null,null,null,null,null,"Air Force Directorate of Logistics"]
["AF/DP",null,null,null,null,null,"Deputy Chief of Staff for Personnel, United States Air Force"]
["AF/IL",null,null,null,null,null,"Deputy Chief of Staff for Installations and Logistics, USAF"]
["AF/XO",null,null,null,null,null,"Deputy Chief of Staff for Plans and Operations, United States Air Force"]
["AF/XOI",null,null,null,null,null,"Air Force Director of Intelligence, Surveillance, and Reconnaissance"]
["AF/XOO",null,null,null,null,null,"Director of Operations, United States Air Force"]
["AFAARS",null,null,null,null,null,"Air Force After Action Reporting System"]
["AFARN",null,null,null,null,null,"Air Force air request net"]
["AFATDS",null,null,null,null,null,"Advanced Field Artillery Tactical Data System"]
["AFB",null,null,null,null,null,"Air Force base"]
["AFC",null,null,null,null,null,"area frequency coordinator; automatic frequency control"]
["AFCA",null,null,null,null,null,"Air Force Communications Agency"]
["AFCAP",null,null,null,null,null,"Air Force contract augmentation program; Armed Forces contract augmentation program"]
["AFCB",null,null,null,null,null,"Armed Forces Chaplains Board"]
["AFCC",null,null,null,null,null,"Air Force Component Commander"]
["AFCCC",null,null,null,null,null,"Air Force Combat Climatology Center"]
["AFCEE",null,null,null,null,null,"Air Force Center for Engineering and the Environment"]
["AFCENT",null,null,null,null,null,"Allied Forces Central Europe (NATO)"]
["AFCERT",null,null,null,null,null,"Air Force computer emergency response team"]
["AFCESA",null,null,null,null,null,"Air Force Civil Engineering Support Agency"]
["AFCSM",null,null,null,null,null,"Air Force Computer Systems Manual"]
["AFD",null,null,null,null,null,"assign fixed directory"]
["AFDA",null,null,null,null,null,"Air Force doctrine annex"]
["AFDC",null,null,null,null,null,"Air Force Doctrine Center"]
["AFDD",null,null,null,null,null,"Air Force doctrine document"]
["AFDIGS",null,null,null,null,null,"Air Force digital graphics system"]
["AFDIL",null,null,null,null,null,"Armed Forces DNA Identification Laboratory"]
["AFDIS",null,null,null,null,null,"Air Force Weather Agency Dial In Subsystem"]
["AFE",null,null,null,null,null,"Armed Forces Entertainment; Aircrew Flight Equipment"]
["AFEES",null,null,null,null,null,"Armed Forces Examining and Entrance Station"]
["AFETS",null,null,null,null,null,"Air Force Engineering and Technical Service"]
["AFFARS",null,null,null,null,null,"Air Force Federal Aquisition Regulation Supplement"]
["AFFIS",null,null,null,null,null,"Air Facilities File Information System"]
["AFFMA",null,null,null,null,null,"Air Force Frequency Management Agency"]
["AFFOR",null,null,null,null,null,"Air Force forces"]
["AFH",null,null,null,null,null,"Air Force handbook"]
["AFHSC",null,null,null,null,null,"Armed Forces Health Surveillance Center"]
["AFI",null,null,null,null,null,"Air Force instruction"]
["AFIAA",null,null,null,null,null,"Air Force Intelligence Analysis Agency"]
["AFID",null,null,null,null,null,"anti-fratricide identification device"]
["AFIP",null,null,null,null,null,"Armed Forces Institute of Pathology"]
["AFIRB",null,null,null,null,null,"Armed Forces Identification Review Board"]
["AFIS",null,null,null,null,null,"American Forces Information Service"]
["AFISRA",null,null,null,null,null,"Air Force Intelligence, Surveillance, and Reconnaissance Agency"]
["AFIT",null,null,null,null,null,"Air Force Institute of Technology"]
["AFIWC",null,null,null,null,null,"Air Force Information Warfare Center"]
["AFJI",null,null,null,null,null,"Air Force joint instruction"]
["AFJMAN",null,null,null,null,null,"Air Force Joint Manual"]
["AFLC",null,null,null,null,null,"Air Force Logistics Command"]
["AFLCMC/EBH",null,null,null,null,null,"Air Force Life Cycle Management Center, Munition Division"]
["AFLE",null,null,null,null,null,"Air Force liaison element"]
["AFLNO",null,null,null,null,null,"Air Force liaison officer"]
["AFMAN",null,null,null,null,null,"Air Force manual"]
["AFMC",null,null,null,null,null,"Air Force Materiel Command"]
["AFMD",null,null,null,null,null,"Air Force Mission Directive"]
["AFME",null,null,null,null,null,"Armed Forces Medical Examiner"]
["AFMES",null,null,null,null,null,"Armed Forces Medical Examiner System"]
["AFMETCAL",null,null,null,null,null,"Air Force Metrology and Calibration Program"]
["AFMIC",null,null,null,null,null,"Armed Forces Medical Intelligence Center"]
["AFMLO",null,null,null,null,null,"Air Force Medical Logistics Office"]
["AFMS",null,null,null,null,null,"Air Force Medical Service"]
["AFNCC",null,null,null,null,null,"Air Force Network Control Center"]
["AFNORTH",null,null,null,null,null,"Air Force North; Allied Forces Northern Europe (NATO)"]
["AFNORTHWEST",null,null,null,null,null,"Allied Forces North West Europe (NATO)"]
["AFNSEP",null,null,null,null,null,"Air Force National Security and Emergency Preparedness Agency"]
["AFOA",null,null,null,null,null,"Air Force Operations Activity"]
["AFOE",null,null,null,null,null,"assault follow-on echelon"]
["AFORMS",null,null,null,null,null,"Automated Forms"]
["AFOSH",null,null,null,null,null,"Air Force Occupational Safety and Health"]
["AFOSHSTD",null,null,null,null,null,"Air Force Occupational Safety and Health Standards"]
["AFOSI",null,null,null,null,null,"Air Force Office of Special Investigations"]
["AFPAM",null,null,null,null,null,"Air Force pamphlet"]
["AFPC",null,null,null,null,null,"Air Force Personnel Center"]
["AFPD",null,null,null,null,null,"Air Force policy directive"]
["AFPEO",null,null,null,null,null,"Armed Forces Professional Entertainment Overseas"]
["AFPLS",null,null,null,null,null,"Air Force Primary Standards Laboratory"]
["AFR",null,null,null,null,null,"Air Force Reserve; assign frequency for network reporting"]
["AFRAT",null,null,null,null,null,"Air Force Radiation Assessment Team"]
["AFRC",null,null,null,null,null,"Air Force Reserve Command; Armed Forces Recreation Center"]
["AFRCC",null,null,null,null,null,"Air Force rescue coordination center"]
["AFREP",null,null,null,null,null,"Air Force Repair and Enhancement Program"]
["AFRIMS",null,null,null,null,null,"Air Force Records Information Management System"]
["AFRL",null,null,null,null,null,"Air Force Research Laboratory"]
["AFRRI",null,null,null,null,null,"Armed Forces Radiobiology Research Institute"]
["AFRTS",null,null,null,null,null,"American Forces Radio and Television Service"]
["AFS",null,null,null,null,null,"aeronautical fixed service"]
["AFSATCOM",null,null,null,null,null,"Air Force satellite communications (system)"]
["AFSB",null,null,null,null,null,"Army field support brigade"]
["AFSC",null,null,null,null,null,"Armed Forces Staff College; Army Field Support Center; United States Air Force specialty code/Air Force Sustainment Center"]
["AFSCN",null,null,null,null,null,"Air Force Satellite Control Network"]
["AFSMO",null,null,null,null,null,"Air Force Spectrum Management Office"]
["AFSOC",null,null,null,null,null,"Air Force Special Operations Command; Air Force special operations component"]
["AFSOCC",null,null,null,null,null,"Air Force special operations control center"]
["AFSOD",null,null,null,null,null,"Air Force special operations detachment"]
["AFSOE",null,null,null,null,null,"Air Force special operations element"]
["AFSOF",null,null,null,null,null,"Air Force special operations forces"]
["AFSOUTH",null,null,null,null,null,"Allied Forces, South (NATO)"]
["AFSPACE",null,null,null,null,null,"United States Space Command Air Force"]
["AFSPC",null,null,null,null,null,"Air Force Space Command"]
["AFSPOC",null,null,null,null,null,"Air Force Space Operations Center"]
["AFSTRAT",null,null,null,null,null,"Air Forces Strategic"]
["AFTAC",null,null,null,null,null,"Air Force Technical Applications Center"]
["AFTH",null,null,null,null,null,"Air Force Theater Hospital"]
["AFTN",null,null,null,null,null,"Aeronautical Fixed Telecommunications Network"]
["AFTO",null,null,null,null,null,"Air Force technical order"]
["AFTRANS",null,null,null,null,null,"Air Force Transportation Component"]
["AFTTP",null,null,null,null,null,"Air Force tactics, techniques, and procedures; Air Force technical training publication"]
["AFTTP(I)",null,null,null,null,null,"Air Force tactics, techniques, and procedures (instruction)"]
["AFW",null,null,null,null,null,"Air Force Weather"]
["AFWA",null,null,null,null,null,"Air Force Weather Agency"]
["AFWCF",null,null,null,null,null,"Air Force working capital fund"]
["AFWIN",null,null,null,null,null,"Air Force Weather Information Network"]
["AG",null,null,null,null,null,"adjutant general (Army)"]
["AGARD",null,null,null,null,null,"Advisory Group for Aerospace Research and Development"]
["AGE",null,null,null,null,null,"aerospace ground equipment"]
["AGETS",null,null,null,null,null,"Automated Ground Engine Test Set"]
["AGIL",null,null,null,null,null,"airborne general illumination lightself"]
["AGL",null,null,null,null,null,"above ground level"]
["AGM",null,null,null,null,null,"Air Surface Attack Guided Missile"]
["AGM-28A",null,null,null,null,null,"Hound Dog"]
["AGM-65",null,null,null,null,null,"Maverick"]
["AGM-69",null,null,null,null,null,"short range attack missile"]
["AGR",null,null,null,null,null,"Active Guard and Reserve"]
["AGS",null,null,null,null,null,"aviation ground support"]
["AHA",null,null,null,null,null,"alert holding area"]
["AHD",null,null,null,null,null,"antihandling device"]
["AHRS",null,null,null,null,null,"Attitude Heading Reference System"]
["AI",null,null,null,null,null,"airborne interceptor; air interdiction; area of interest"]
["AIA",null,null,null,null,null,"Air Intelligence Agency"]
["AIASA",null,null,null,null,null,"annual integrated assessment for security assistance"]
["AIC",null,null,null,null,null,"air intercept controller; assign individual compressed dial; Atlantic Intelligence Command"]
["AICF/USA",null,null,null,null,null,"Action Internationale Contre La Faim (International Action Against Hunger)"]
["AIDS",null,null,null,null,null,"acquired immunodeficiency syndrome"]
["AIF",null,null,null,null,null,"automated installation intelligence file"]
["AIFA",null,null,null,null,null,"AAFES Imprest Fund Activity"]
["AIG",null,null,null,null,null,"addressee indicator group"]
["AIIRS",null,null,null,null,null,"automated intelligence information reporting system"]
["AIK",null,null,null,null,null,"assistance in kind"]
["AIM",null,null,null,null,null,"Airman's Information Manual"]
["AIM-54A",null,null,null,null,null,"Phoenix"]
["AIM-7",null,null,null,null,null,"Sparrow"]
["AIM-9",null,null,null,null,null,"Sidewinder"]
["AIMD",null,null,null,null,null,"aircraft intermediate maintenance department"]
["AIMS",null,null,null,null,null,"Air Intercept Missile System"]
["AIMT",null,null,null,null,null,"air interdiction of maritime targets"]
["AIP",null,null,null,null,null,"aeronautical information publication"]
["AIQC",null,null,null,null,null,"antiterrorism instructor qualification course"]
["AIRBAT",null,null,null,null,null,"Airborne Intelligence, Surveillance, and Reconnaissance Requirements-Based Allocation Tool"]
["AIRCAT",null,null,null,null,null,"Automated Inspection, Repair, Corrosion, and Aircraft Tracking"]
["AIRCENT",null,null,null,null,null,"Allied Air Forces Central Europe (NATO)"]
["AIRES",null,null,null,null,null,"advanced imagery requirements exploitation system"]
["AIREVACCONFIRM",null,null,null,null,null,"air evacuation confirmation"]
["AIREVACREQ",null,null,null,null,null,"air evacuation request"]
["AIREVACRESP",null,null,null,null,null,"air evacuation response"]
["AIRNORTHWEST",null,null,null,null,null,"Allied Air Forces North West Europe (NATO)"]
["AIRREQRECON",null,null,null,null,null,"air request reconnaissance"]
["AIRSOUTH",null,null,null,null,null,"Allied Air Forces Southern Europe (NATO)"]
["AIRSUPREQ",null,null,null,null,null,"air support request"]
["AIS",null,null,null,null,null,"automated information system; Aircraft Instrumentation System"]
["AIT",null,null,null,null,null,"aeromedical isolation team; automated information technology; automatic identification technology"]
["AIU",null,null,null,null,null,"Automatic Digital Network Interface Unit"]
["AJ",null,null,null,null,null,"anti-jam"]
["AJ/CM",null,null,null,null,null,"anti-jam control modem"]
["AJBPO",null,null,null,null,null,"area joint blood program office"]
["AJCC",null,null,null,null,null,"alternate joint communications center"]
["AJF",null,null,null,null,null,"allied joint force"]
["AJFP",null,null,null,null,null,"adaptive joint force packaging"]
["AJMRO",null,null,null,null,null,"area joint medical regulating office"]
["AJNPE",null,null,null,null,null,"airborne joint nuclear planning element"]
["AJP",null,null,null,null,null,"allied joint publication"]
["AK",null,null,null,null,null,"commercial cargo ship"]
["AKNLDG",null,null,null,null,null,"acknowledge message"]
["ALARA",null,null,null,null,null,"as low as reasonably achievable"]
["ALC",null,null,null,null,null,"Air Logistics Complex"]
["ALCC",null,null,null,null,null,"airlift control center"]
["ALCE",null,null,null,null,null,"airlift control element"]
["ALCF",null,null,null,null,null,"airlift control flight"]
["ALCG",null,null,null,null,null,"analog line conditioning group"]
["ALCM",null,null,null,null,null,"air-launched cruise missile"]
["ALCOM",null,null,null,null,null,"United States Alaskan Command"]
["ALCON",null,null,null,null,null,"all concerned"]
["ALCS",null,null,null,null,null,"airlift control squadron"]
["ALCT",null,null,null,null,null,"airlift control team"]
["ALD",null,null,null,null,null,"airborne laser designator; available-to-load date"]
["ALE",null,null,null,null,null,"airlift liaison element"]
["ALEP",null,null,null,null,null,"amphibious lift enhancement program"]
["ALERFA",null,null,null,null,null,"alert phase (ICAO)"]
["ALERT",null,null,null,null,null,"attack and launch early reporting to theater"]
["ALERTORD",null,null,null,null,null,"alert order"]
["ALIS",null,null,null,null,null,"Autonomic Logistics Information System"]
["ALLOREQ",null,null,null,null,null,"air allocation request; allocation request"]
["ALLTV",null,null,null,null,null,"all light level television"]
["ALMSNSCD",null,null,null,null,null,"airlift mission schedule"]
["ALN",null,null,null,null,null,"ammunition lot number"]
["ALNOT",null,null,null,null,null,"alert notice"]
["ALO",null,null,null,null,null,"air liaison officer"]
["ALOC",null,null,null,null,null,"air line of communications"]
["ALORD",null,null,null,null,null,"alert launch order"]
["ALP",null,null,null,null,null,"allied logistic publication"]
["ALSA",null,null,null,null,null,"Air Land Sea Application (Center)"]
["ALSE",null,null,null,null,null,"aviation life support equipment"]
["ALSS",null,null,null,null,null,"advanced logistic support site"]
["ALT",null,null,null,null,null,"acquisition, logistics, and technology"]
["ALTD",null,null,null,null,null,"airborne laser target designator"]
["ALTRV",null,null,null,null,null,"altitude reservation"]
["ALTTSC",null,null,null,null,null,"alternate Tomahawk strike coordinator"]
["AM",null,null,null,null,null,"amplitude modulation"]
["AMA",null,null,null,null,null,"Acceleration Monitor Assemblies"]
["AMAL",null,null,null,null,null,"authorized medical allowance list"]
["AMB",null,null,null,null,null,"air mobility branch; ambassador"]
["AMBUS",null,null,null,null,null,"ambulance bus"]
["AMC",null,null,null,null,null,"airborne mission coordinator; Air Mobility Command; Army Materiel Command: midpoint compromise search area"]
["AMC/SGXM",null,null,null,null,null,"Air Mobility Command/Command Surgeon’s Office"]
["AMCC",null,null,null,null,null,"allied movement coordination center; alternate military command center"]
["AMCIT",null,null,null,null,null,"American citizen"]
["AMCM",null,null,null,null,null,"airborne mine countermeasures"]
["AMCT",null,null,null,null,null,"air mobility control team"]
["AMD",null,null,null,null,null,"air and missile defense; air mobility division"]
["AMDC",null,null,null,null,null,"air and missile defense commander"]
["AME",null,null,null,null,null,"antenna mounted electronics; Alternate Mission Equipment"]
["AMEDD",null,null,null,null,null,"Army Medical Department"]
["AMEDDCS",null,null,null,null,null,"U.S. Army Medical Department Center and School"]
["AMedP",null,null,null,null,null,"allied medical publication"]
["AMEMB",null,null,null,null,null,"American Embassy"]
["AMETL",null,null,null,null,null,"agency mission-essential task list"]
["AMF(L)",null,null,null,null,null,"ACE Mobile Force (Land) (NATO)"]
["AMH",null,null,null,null,null,"automated message handler"]
["AMHS",null,null,null,null,null,"automated message handling system"]
["AMIO",null,null,null,null,null,"alien migrant interdiction operations"]
["AMLO",null,null,null,null,null,"air mobility liaison officer"]
["AMMO",null,null,null,null,null,"ammunition"]
["AMOC",null,null,null,null,null,"Air and Marine Operations Center (DHS)"]
["AMOCC",null,null,null,null,null,"air mobility operations control center"]
["AMOG",null,null,null,null,null,"air mobility operations group"]
["AMOPES",null,null,null,null,null,"Army Mobilization and Operations Planning and Execution System"]
["AMOPS",null,null,null,null,null,"Army mobilization and operations planning system; Army mobilization operations system"]
["AMOS",null,null,null,null,null,"air mobility operations squadron"]
["AMOSS",null,null,null,null,null,"Air and Marine Operations Surveillance System"]
["AMOW",null,null,null,null,null,"air mobility operations wing"]
["AMP",null,null,null,null,null,"amplifier; anaylsis of mobility platform"]
["AMP-PAT",null,null,null,null,null,"analysis of mobility platform suite of port analysis tools"]
["AMPE",null,null,null,null,null,"automated message processing exchange"]
["AMPN",null,null,null,null,null,"amplification"]
["AMPSSO",null,null,null,null,null,"Automated Message Processing System Security Office (or Officer)"]
["AMQP",null,null,null,null,null,"Aircraft Maintenance Qualification Program"]
["AMRAAM",null,null,null,null,null,"advanced medium-range air-to-air missile"]
["AMS",null,null,null,null,null,"Aerial Measuring System (DOE); air mobility squadron; Army management structure; Asset Management System"]
["AMS-TAC",null,null,null,null,null,"Automated Manifesting System-Tactical"]
["AMSS",null,null,null,null,null,"air mobility support squadron"]
["AMT",null,null,null,null,null,"aerial mail terminal"]
["AMU",null,null,null,null,null,"atomic mass unit; Aircraft Maintenance Unit"]
["AMVER",null,null,null,null,null,"automated mutual-assistance vessel rescue system"]
["AMW",null,null,null,null,null,"air mobility wing; amphibious warfare"]
["AMX",null,null,null,null,null,"air mobility express"]
["AMXS",null,null,null,null,null,"Aircraft Maintenance Squadron"]
["AN",null,null,null,null,null,"alphanumeric; analog nonsecure"]
["ANCA",null,null,null,null,null,"Allied Naval Communications Agency"]
["ANDVT",null,null,null,null,null,"advanced narrowband digital voice terminal"]
["ANG",null,null,null,null,null,"Air National Guard"]
["ANGLICO",null,null,null,null,null,"air-naval gunfire liaison company"]
["ANGUS",null,null,null,null,null,"Air National Guard of the United States"]
["ANMCC",null,null,null,null,null,"Alternate National Military Command Center"]
["ANN",null,null,null,null,null,"assign NNX routing"]
["ANR",null,null,null,null,null,"Alaskan North American Aerospace Defense Command Region"]
["ANSI",null,null,null,null,null,"American National Standards Institute"]
["ANX",null,null,null,null,null,"assign NNXX routing"]
["ANY",null,null,null,null,null,"assign NYX routing"]
["ANZUS",null,null,null,null,null,"Australia-New Zealand-United States Treaty"]
["AO",null,null,null,null,null,"action officer; administration officer; air officer; area of operations; aviation ordnance person"]
["AO&M",null,null,null,null,null,"administration, operation, and maintenance"]
["AOA",null,null,null,null,null,"amphibious objective area"]
["AOB",null,null,null,null,null,"advanced operations base; aviation operations branch"]
["AOC",null,null,null,null,null,"air operations center; Army operations center; Air and Space Operations Center"]
["AOC-E",null,null,null,null,null,"Aviation Operations Center-East (USCS)"]
["AOC-W",null,null,null,null,null,"Aviation Operations Center-West (USCS)"]
["AOCC",null,null,null,null,null,"air operations control center"]
["AOCU",null,null,null,null,null,"analog orderwire control unit"]
["AOD",null,null,null,null,null,"air operations directive; on-line diagnostic"]
["AODB",null,null,null,null,null,"air operations database"]
["AOF",null,null,null,null,null,"azimuth of fire"]
["AOG",null,null,null,null,null,"Army Operations Group"]
["AOI",null,null,null,null,null,"area of interest"]
["AOL",null,null,null,null,null,"All Operator Letters"]
["AOP",null,null,null,null,null,"air operations plan; area of probability"]
["AOR",null,null,null,null,null,"area of responsibility"]
["AOSS",null,null,null,null,null,"aviation ordnance safety supervisor"]
["AOTR",null,null,null,null,null,"Aviation Operational Threat Response"]
["AP",null,null,null,null,null,"allied publication; antipersonnel; average power"]
["A/P",null,null,null,null,null,"Airframe/Powerplant"]
["APA",null,null,null,null,null,"Army pre-positioned afloat"]
["APAN",null,null,null,null,null,"All Partners Access Network; Asia-Pacific Area Network"]
["APC",null,null,null,null,null,"aerial port commander; assign preprogrammed conference list"]
["APCC",null,null,null,null,null,"alternate processing and correlation center"]
["APE",null,null,null,null,null,"airfield pavement evaluation"]
["APES",null,null,null,null,null,"Automated Patient Evacuation System"]
["APEX",null,null,null,null,null,"Adaptive Planning and Execution"]
["APF",null,null,null,null,null,"afloat pre-positioning force"]
["APG",null,null,null,null,null,"aimpoint graphic"]
["APHIS",null,null,null,null,null,"Animal and Plant Health Inspection Service (USDA)"]
["APIC",null,null,null,null,null,"allied press information center"]
["APL",null,null,null,null,null,"antipersonnel land mine"]
["APO",null,null,null,null,null,"afloat pre-positioning operations; Air Force post office; Army post office"]
["APOD",null,null,null,null,null,"aerial port of debarkation"]
["APOE",null,null,null,null,null,"aerial port of embarkation"]
["APORT",null,null,null,null,null,"aerial port"]
["APORTSREP",null,null,null,null,null,"air operations bases report"]
["APP",null,null,null,null,null,"allied procedural publication"]
["APPS",null,null,null,null,null,"analytical photogrammetric positioning system"]
["APR",null,null,null,null,null,"assign primary zone routing"]
["APS",null,null,null,null,null,"aerial port squadron; Army pre-positioned stocks"]
["APS-3",null,null,null,null,null,"afloat pre-positioning stocks; Army pre-positioned stocks-3"]
["APU",null,null,null,null,null,"auxiliary power unit"]
["AQL",null,null,null,null,null,"Acceptable Quality Level"]
["AR",null,null,null,null,null,"air refueling; Army regulation; Army reserve"]
["ARB",null,null,null,null,null,"alternate recovery base; assign receive bypass lists"]
["ARBS",null,null,null,null,null,"angle rate bombing system"]
["ARC",null,null,null,null,null,"air Reserve Components/ Automated Records Check; American Red Cross"]
["ARCENT",null,null,null,null,null,"United States Army Central Command"]
["ARCT",null,null,null,null,null,"air refueling control team"]
["ARDF",null,null,null,null,null,"automatic radio direction finding"]
["AREC",null,null,null,null,null,"air resource element coordinator"]
["ARFOR",null,null,null,null,null,"Army forces"]
["ARG",null,null,null,null,null,"Accident Response Group (DOE); amphibious ready group"]
["ARGO",null,null,null,null,null,"automatic ranging grid overlay"]
["ARINC",null,null,null,null,null,"Aeronautical Radio Incorporated"]
["ARL-M",null,null,null,null,null,"airborne reconnaissance low-multifunction"]
["ARM",null,null,null,null,null,"antiradiation missile"]
["ARNG",null,null,null,null,null,"Army National Guard"]
["ARNGUS",null,null,null,null,null,"Army National Guard of the United States"]
["ARP",null,null,null,null,null,"air refueling point"]
["ARPERCEN",null,null,null,null,null,"United States Army Reserve Personnel Center"]
["ARQ",null,null,null,null,null,"automatic request-repeat"]
["ARRC",null,null,null,null,null,"Allied Command Europe Rapid Reaction Corps (NATO)"]
["ARRDATE",null,null,null,null,null,"arrival date"]
["ARRT",null,null,null,null,null,"Automated Requirements Roadmap Tool"]
["ARS",null,null,null,null,null,"acute radiation syndrome; air rescue service"]
["ARSOA",null,null,null,null,null,"Army special operations aviation"]
["ARSOC",null,null,null,null,null,"Army special operations component"]
["ARSOF",null,null,null,null,null,"Army special operations forces"]
["ARSOTF",null,null,null,null,null,"Army special operations task force"]
["ARSPACE",null,null,null,null,null,"Army Space Command"]
["ARSPOC",null,null,null,null,null,"Army space operations center"]
["ART",null,null,null,null,null,"air reserve technician; AEF Reporting Tool"]
["ARTCC",null,null,null,null,null,"air route traffic control center"]
["ARTS III",null,null,null,null,null,"Automated Radar Tracking System"]
["ARTYMET",null,null,null,null,null,"artillery meteorological"]
["AS",null,null,null,null,null,"analog secure; Allowance Standard"]
["ASA",null,null,null,null,null,"automatic spectrum analyzer"]
["ASA(ALT)",null,null,null,null,null,"Assistant Secretary of the Army for Acquisition, Logistics, and   Technology"]
["ASAP",null,null,null,null,null,"as soon as possible"]
["ASARS",null,null,null,null,null,"Advanced Synthetic Aperture Radar System"]
["ASAS",null,null,null,null,null,"All Source Analysis System"]
["ASAT",null,null,null,null,null,"antisatellite weapon"]
["ASB",null,null,null,null,null,"naval advanced support base"]
["ASBP",null,null,null,null,null,"Armed Services Blood Program"]
["ASBPO",null,null,null,null,null,"Armed Services Blood Program Office"]
["ASC",null,null,null,null,null,"acting service chief; Aeronautical Systems Center; Air Systems Command; Army Sustainment Command; assign switch classmark; Automatic Digital Network switching center"]
["ASCC",null,null,null,null,null,"Air Standardization Coordinating Committee; Army Service component command; Army Service component commander"]
["ASCIET",null,null,null,null,null,"all Services combat identification evaluation team"]
["ASCII",null,null,null,null,null,"American Standard Code for Information Interchange"]
["ASCOPE",null,null,null,null,null,"areas, structures, capabilities, organizations, people, and events"]
["ASCS",null,null,null,null,null,"air support control section, air support coordination section"]
["ASD",null,null,null,null,null,"Assistant Secretary of Defense"]
["ASD(A&L)",null,null,null,null,null,"Assistant Secretary of Defense (Acquisition and Logistics)"]
["ASD(C)",null,null,null,null,null,"Assistant Secretary of Defense (Comptroller)"]
["ASD(C3I)",null,null,null,null,null,"Assistant Secretary of Defense (Command, Control, Communications, and Intelligence)"]
["ASD(FM&P)",null,null,null,null,null,"Assistant Secretary of Defense (Force Management and Personnel)"]
["ASD(FMP)",null,null,null,null,null,"Assistant Secretary of Defense (Force Management Policy)"]
["ASD(GSA)",null,null,null,null,null,"Assistant Secretary of Defense for Global Strategic Affairs"]
["ASD(HA)",null,null,null,null,null,"Assistant Secretary of Defense (Health Affairs)"]
["ASD(HD&ASA)",null,null,null,null,null,"Assistant Secretary of Defense (Homeland Defense and Americas' Security Affairs)"]
["ASD(HD)",null,null,null,null,null,"Assistant Secretary of Defense (Homeland Defense)"]
["ASD(ISA)",null,null,null,null,null,"Assistant Secretary of Defense (International Security Affairs)"]
["ASD(ISP)",null,null,null,null,null,"Assistant Secretary of Defense (International Security Policy)"]
["ASD(L&MR)",null,null,null,null,null,"Assistant Secretary of Defense for Logistics and Materiel Readiness"]
["ASD(LA)",null,null,null,null,null,"Assistant Secretary of Defense (Legislative Affairs)"]
["ASD(NII)",null,null,null,null,null,"Assistant Secretary of Defense (Networks and Information Integration)"]
["ASD(OEPP)",null,null,null,null,null,"Assistant Secretary of Defense for Operational Energy Plans and Programs"]
["ASD(P&L)",null,null,null,null,null,"Assistant Secretary of Defense (Production and Logistics)"]
["ASD(PA&E)",null,null,null,null,null,"Assistant Secretary of Defense (Program Analysis and Evaluation)"]
["ASD(PA)",null,null,null,null,null,"Assistant Secretary of Defense (Public Affairs)"]
["ASD(RA)",null,null,null,null,null,"Assistant Secretary of Defense (Reserve Affairs)"]
["ASD(RSA)",null,null,null,null,null,"Assistant Secretary of Defense (Regional Security Affairs)"]
["ASD(S&R)",null,null,null,null,null,"Assistant Secretary of Defense (Strategy and Requirements)"]
["ASD(SO/LIC&IC)",null,null,null,null,null,"Assistant Secretary of Defense for Special Operations and Low-Intensity Conflict and Interdependent Capabilities"]
["ASD(SO/LIC)",null,null,null,null,null,"Assistant Secretary of Defense (Special Operations and Low-Intensity Conflict)"]
["ASDI",null,null,null,null,null,"analog simple data interface"]
["ASDIA",null,null,null,null,null,"All-Source Document Index"]
["ASE",null,null,null,null,null,"aircraft survivability equipment; automated stabilization equipment"]
["ASF",null,null,null,null,null,"aeromedical staging facility"]
["ASG",null,null,null,null,null,"Allied System for Geospatial Intelligence; area support group"]
["ASH",null,null,null,null,null,"Assistant Administrator for Security and Hazardous Materials; Assistant Secretary for Health (DHHS)"]
["ASI",null,null,null,null,null,"assign and display switch initialization"]
["ASIC",null,null,null,null,null,"Air and Space Interoperability Council"]
["ASIF",null,null,null,null,null,"Airlift Support Industrial Fund"]
["ASIMIS",null,null,null,null,null,"Aircraft Structural Integrity Management Information System"]
["ASIP",null,null,null,null,null,"Aircraft Structural Integrity Program"]
["ASL",null,null,null,null,null,"allowable supply list; archipelagic sea lane; assign switch locator (SL) routing; authorized stockage list (Army)"]
["ASM",null,null,null,null,null,"air-to-surface missile; armored scout mission; Army Spectrum Manager; automated scheduling message; Aircraft Structural Maintenance"]
["ASMD",null,null,null,null,null,"antiship missile defense"]
["ASMO",null,null,null,null,null,"Army Spectrum Management Office"]
["ASN(RD&A)",null,null,null,null,null,"Assistant Secretary of the Navy for Research, Development and   Acquisition"]
["ASO",null,null,null,null,null,"advanced special operations; air support operations"]
["ASOC",null,null,null,null,null,"air support operations center"]
["ASOFDTG",null,null,null,null,null,"as of date/time group"]
["ASP",null,null,null,null,null,"ammunition supply point"]
["ASPA",null,null,null,null,null,"American Service-Members' Protection Act"]
["ASPP",null,null,null,null,null,"acquisition systems protection program"]
["ASPPO",null,null,null,null,null,"Armed Service Production Planning Office"]
["ASPR",null,null,null,null,null,"Office of Assistant Secretary for Preparedness and Response (DHHS)"]
["ASR",null,null,null,null,null,"air support request; available supply rate"]
["ASSETREP",null,null,null,null,null,"transportation assets report"]
["AST",null,null,null,null,null,"assign secondary traffic channels"]
["ASTS",null,null,null,null,null,"aeromedical staging squadron"]
["ASW",null,null,null,null,null,"antisubmarine warfare; average surface wind"]
["ASWBPL",null,null,null,null,null,"Armed Services Whole Blood Processing Laboratories"]
["ASWC",null,null,null,null,null,"antisubmarine warfare commander"]
["At",null,null,null,null,null,"total attainable search area"]
["AT",null,null,null,null,null,"antitank; antiterrorism"]
["AT/FP",null,null,null,null,null,"antiterrorism/force protection"]
["ATA",null,null,null,null,null,"Airlift Tanker Association; antiterrorism assistance"]
["ATAC",null,null,null,null,null,"antiterrorism alert center (Navy)"]
["ATACC",null,null,null,null,null,"advanced tactical air command center"]
["ATACMS",null,null,null,null,null,"Army Tactical Missile System"]
["ATACO",null,null,null,null,null,"air tactical actions control officer"]
["ATACS",null,null,null,null,null,"Army Tactical Communications System"]
["ATAF",null,null,null,null,null,"Allied Tactical Air Force (NATO)"]
["ATBM",null,null,null,null,null,"antitactical ballistical missile"]
["ATC",null,null,null,null,null,"Air Threat Conference; air traffic control; air transportable clinic (USAF)"]
["ATCA",null,null,null,null,null,"Allied Tactical Communications Agency"]
["ATCAA",null,null,null,null,null,"air traffic control assigned airspace"]
["ATCC",null,null,null,null,null,"Antiterrorism Coordinating Committee"]
["ATCC-SSG",null,null,null,null,null,"Antiterrorism Coordinating Committee-Senior Steering Group"]
["ATCRBS",null,null,null,null,null,"Air Traffic Control Radar Beacon System"]
["ATCS",null,null,null,null,null,"air traffic control section"]
["ATD",null,null,null,null,null,"Aircrew Training Devices"]
["ATDLS",null,null,null,null,null,"Advanced Tactical Data Link System"]
["ATDM",null,null,null,null,null,"adaptive time division multiplexer"]
["ATDS",null,null,null,null,null,"airborne tactical data system"]
["ATEP",null,null,null,null,null,"Antiterrorism Enterprise Portal"]
["ATERS",null,null,null,null,null,"Automatic Test Reporting System"]
["ATF",null,null,null,null,null,"Advanced Targeting FLIR; amphibious task force; Bureau of Alcohol, Tobacco, Firearms, and Explosives (DOJ)"]
["ATG",null,null,null,null,null,"amphibious task group; assign trunk group cluster"]
["ATGM",null,null,null,null,null,"antitank guided missile; antitank guided munition"]
["ATH",null,null,null,null,null,"air transportable hospital; assign thresholds"]
["ATHS",null,null,null,null,null,"Airborne Target Handover System"]
["ATI",null,null,null,null,null,"asset target interaction"]
["ATM",null,null,null,null,null,"advanced trauma management; air target material; assign traffic metering"]
["ATMCT",null,null,null,null,null,"air terminal movement control team"]
["ATMP",null,null,null,null,null,"Air Target Materials Program"]
["ATN",null,null,null,null,null,"assign thresholds"]
["AtN",null,null,null,null,null,"attack the network"]
["ATO",null,null,null,null,null,"air tasking order; antiterrorism officer"]
["ATOC",null,null,null,null,null,"air tactical operations center; air terminal operations center"]
["ATP",null,null,null,null,null,"advance targeting pod; allied tactical publication; Army tactical publication"]
["ATR",null,null,null,null,null,"attrition reserve"]
["ATS",null,null,null,null,null,"air traffic service; assign terminal service"]
["ATSD(AE)",null,null,null,null,null,"Assistant to the Secretary of Defense (Atomic Energy)"]
["ATSD(IO)",null,null,null,null,null,"Assistant to the Secretary of Defense (Intelligence Oversight)"]
["ATSD(NCB)",null,null,null,null,null,"Assistant to the Secretary of Defense for Nuclear and Chemical and Biological Defense Programs"]
["ATSO",null,null,null,null,null,"Ability To Survive and Operate"]
["ATT",null,null,null,null,null,"assign terminal type"]
["ATTP",null,null,null,null,null,"Army tactics, techniques, and procedures"]
["ATTU",null,null,null,null,null,"air transportable treatment unit"]
["ATWG",null,null,null,null,null,"antiterrorism working group"]
["AU",null,null,null,null,null,"African Union"]
["AUEL",null,null,null,null,null,"automated unit equipment list"]
["AUF",null,null,null,null,null,"airborne use of force"]
["AUG",null,null,null,null,null,"application user group"]
["AUIC",null,null,null,null,null,"active duty unit identification code"]
["AUR",null,null,null,null,null,"Accomplishment Utilization Report / All-Up-Round"]
["AURC",null,null,null,null,null,"All-Up-Round Container"]
["AUSCANNZUKUS",null,null,null,null,null,"Australian, Canadian, New Zealand, United Kingdom, United States"]
["AUTODIN",null,null,null,null,null,"Automatic Digital Network"]
["AUX",null,null,null,null,null,"auxiliary"]
["AV",null,null,null,null,null,"air vehicle; asset visibility"]
["AV-8",null,null,null,null,null,"Harrier"]
["AV/VI",null,null,null,null,null,"audiovisual/visual information"]
["AVCAL",null,null,null,null,null,"aviation consolidated allowance list"]
["AVDO",null,null,null,null,null,"Aerospace Vehicle Distribution Office"]
["AVDTG",null,null,null,null,null,"analog via digital trunk group"]
["AVGAS",null,null,null,null,null,"aviation gasoline"]
["AVIM",null,null,null,null,null,"aviation intermediate maintenance"]
["AVL",null,null,null,null,null,"anti-vehicle land mine; assign variable location"]
["AVOU",null,null,null,null,null,"analog voice orderwire unit"]
["AVOW",null,null,null,null,null,"analog voice orderwire"]
["AVS",null,null,null,null,null,"asset validation system; asset visibility system; audiovisual squadron"]
["AVTR",null,null,null,null,null,"Airborne Videotape Recorder"]
["AVUM",null,null,null,null,null,"aviation unit maintenance"]
["AW",null,null,null,null,null,"air warfare"]
["AWACS",null,null,null,null,null,"Airborne Warning and Control System"]
["AWBS",null,null,null,null,null,"Automated Weight and Balance System"]
["AWC",null,null,null,null,null,"air warfare commander"]
["AWCAP",null,null,null,null,null,"airborne weapons corrective action program"]
["AWDS",null,null,null,null,null,"automated weather distribution system"]
["AWG",null,null,null,null,null,"Asymmetric Warfare Group (Army)"]
["AWM",null,null,null,null,null,"Awaiting Maintenance"]
["AWN",null,null,null,null,null,"Automated Weather Network"]
["AWOL",null,null,null,null,null,"absent without leave"]
["AWP",null,null,null,null,null,"Awaiting Parts"]
["AWS",null,null,null,null,null,"Air Weather Service"]
["AWSE",null,null,null,null,null,"armament weapons support equipment"]
["AWSIM",null,null,null,null,null,"air warfare simulation model"]
["AWSR",null,null,null,null,null,"Air Weather Service regulation"]
["AXO",null,null,null,null,null,"abandoned explosive ordnance"]
["AXX",null,null,null,null,null,"assign XXX routing"]
["AZR",null,null,null,null,null,"assign zone restriction lists"]
["B",null,null,null,null,null,"cross-over barrier pattern"]
["B&A",null,null,null,null,null,"boat and aircraft"]
["B-52",null,null,null,null,null,"Stratofortress"]
["B/B",null,null,null,null,null,"baseband"]
["BAE",null,null,null,null,null,"brigade aviation element"]
["BAF",null,null,null,null,null,"backup alert force"]
["BAG",null,null,null,null,null,"baggage"]
["BAH",null,null,null,null,null,"basic allowance for housing"]
["BAI",null,null,null,null,null,"backup aircraft inventory; battlefield air interdiction"]
["BALO",null,null,null,null,null,"battalion air liaison officer"]
["BALS",null,null,null,null,null,"berthing and loading schedule"]
["BAS",null,null,null,null,null,"basic allowance for subsistence; battalion aid station"]
["BATF",null,null,null,null,null,"Bureau of Alcohol, Tobacco, and Firearms"]
["BB",null,null,null,null,null,"breakbulk"]
["bbl",null,null,null,null,null,"barrel (42 US gallons)"]
["BC",null,null,null,null,null,"bottom current"]
["BCA",null,null,null,null,null,"border crossing authority"]
["BCAT",null,null,null,null,null,"beddown capability assessment tool"]
["BCC",null,null,null,null,null,"battle control center"]
["BCD",null,null,null,null,null,"battlefield coordination detachment"]
["BCG",null,null,null,null,null,"beach control group"]
["BCI",null,null,null,null,null,"bit count integrity"]
["BCL",null,null,null,null,null,"battlefield coordination line"]
["BCN",null,null,null,null,null,"beacon"]
["BCOC",null,null,null,null,null,"base cluster operations center"]
["BCR",null,null,null,null,null,"baseline change request"]
["BCS",null,null,null,null,null,"Bench Check Serviceable"]
["BCT",null,null,null,null,null,"brigade combat team"]
["BCTP",null,null,null,null,null,"battle command training program"]
["BCU",null,null,null,null,null,"beach clearance unit"]
["BD",null,null,null,null,null,"barge derrick"]
["BDA",null,null,null,null,null,"battle damage assessment"]
["BDAREP",null,null,null,null,null,"battle damage assessment report"]
["BDC",null,null,null,null,null,"blood donor center"]
["BDE",null,null,null,null,null,"brigade"]
["BDL",null,null,null,null,null,"beach discharge lighter"]
["BDOC",null,null,null,null,null,"base defense operations center"]
["BDR",null,null,null,null,null,"battle damage repair"]
["BDRP",null,null,null,null,null,"Biological Defense Research Program"]
["BDZ",null,null,null,null,null,"base defense zone"]
["BE",null,null,null,null,null,"basic encyclopedia; Bioenvironmental Engineering"]
["BE number",null,null,null,null,null,"basic encyclopedia number"]
["BEAR",null,null,null,null,null,"base expeditionary airfield resources"]
["BEE",null,null,null,null,null,"bioenvironmental engineering officer"]
["BEI",null,null,null,null,null,"biometrics-enabled intelligence"]
["BEN",null,null,null,null,null,"base encyclopedia number"]
["BER",null,null,null,null,null,"bit error ratio"]
["BES",null,null,null,null,null,"budget estimate submission"]
["BEST",null,null,null,null,null,"border enforcement security task force"]
["BfV",null,null,null,null,null,"Bundesamt für Verfassungsschutz (federal office for defending the Constitution)"]
["BGC",null,null,null,null,null,"boat group commander"]
["BHR",null,null,null,null,null,"Bureau of Humanitarian Response"]
["BI",null,null,null,null,null,"battlefield injury; battle injury"]
["BIA",null,null,null,null,null,"behavioral influences analysis; Bureau of Indian Affairs"]
["BIAR",null,null,null,null,null,"biometric intelligence analysis report"]
["BIAS",null,null,null,null,null,"Battlefield Illumination Assistance System"]
["BICES",null,null,null,null,null,"battlefield information collection and exploitation system (NATO)"]
["BICON",null,null,null,null,null,"double container"]
["BIDDS",null,null,null,null,null,"Base Information Digital Distribution System"]
["BIDE",null,null,null,null,null,"basic identity data element"]
["BIFC",null,null,null,null,null,"Boise Interagency Fire Center"]
["BIFS",null,null,null,null,null,"Border Intelligence Fusion Section"]
["BIH",null,null,null,null,null,"International Time Bureau (Bureau International d'l'Heure)"]
["BII",null,null,null,null,null,"base information infrastructure"]
["BIMA",null,null,null,null,null,"Biometrics Identity Management Agency"]
["BINM",null,null,null,null,null,"Bureau of International Narcotics Matters"]
["BIO",null,null,null,null,null,"biological; Bureau of International Organizations"]
["BIS",null,null,null,null,null,"Bureau of Industry and Security"]
["BISS",null,null,null,null,null,"base installation security system"]
["BIT",null,null,null,null,null,"built-in test"]
["BITE",null,null,null,null,null,"built-in test equipment"]
["BIU",null,null,null,null,null,"beach interface unit"]
["BKA",null,null,null,null,null,"Bundeskriminalamt (federal criminal office)"]
["BL",null,null,null,null,null,"biocontainment level"]
["BLCP",null,null,null,null,null,"beach lighterage control point"]
["BLDREP",null,null,null,null,null,"blood report"]
["BLDSHIPREP",null,null,null,null,null,"blood shipment report"]
["BLM",null,null,null,null,null,"Bureau of Land Management"]
["BLOS",null,null,null,null,null,"beyond line-of-sight"]
["BLT",null,null,null,null,null,"battalion landing team"]
["BM",null,null,null,null,null,"ballistic missile; battle management; beach module"]
["BMC4I",null,null,null,null,null,"Battle Management Command, Control, Communications, Computers, and Intelligence"]
["BMCT",null,null,null,null,null,"begin morning civil twilight"]
["BMD",null,null,null,null,null,"ballistic missile defense"]
["BMDO",null,null,null,null,null,"Ballistic Missile Defense Organization"]
["BMDS",null,null,null,null,null,"ballistic missile defense system"]
["BMET",null,null,null,null,null,"biomedical electronics technician"]
["BMNT",null,null,null,null,null,"begin morning nautical twilight"]
["BMU",null,null,null,null,null,"beachmaster unit"]
["BN",null,null,null,null,null,"battalion"]
["BND",null,null,null,null,null,"Bundesnachrichtendienst (federal intelligence service)"]
["BOA",null,null,null,null,null,"basic ordering agreement"]
["BOC",null,null,null,null,null,"base operations center; bomb on coordinate"]
["BOCCA",null,null,null,null,null,"Bureau of Coordination of Civil Aircraft (NATO)"]
["BOG",null,null,null,null,null,"beach operations group"]
["BOH",null,null,null,null,null,"bottom of hill"]
["BORFIC",null,null,null,null,null,"Border Patrol Field Intelligence Center"]
["BOS",null,null,null,null,null,"base operating support; battlefield operating system"]
["BOS-I",null,null,null,null,null,"base operating support-integrator"]
["BOSG",null,null,null,null,null,"base operations support group"]
["BOSS",null,null,null,null,null,"base operating support service"]
["BOT",null,null,null,null,null,"bomb on target"]
["BOW",null,null,null,null,null,"Bill of Work"]
["BP",null,null,null,null,null,"battle position; block parity"]
["BPA",null,null,null,null,null,"blanket purchase agreement"]
["BPC",null,null,null,null,null,"building partnership capacity"]
["BPD",null,null,null,null,null,"blood products depot"]
["BPG",null,null,null,null,null,"beach party group"]
["BPI",null,null,null,null,null,"bits per inch"]
["BPLAN",null,null,null,null,null,"base plan"]
["BPO",null,null,null,null,null,"blood program office; Basic Post-Flight"]
["BPPBS",null,null,null,null,null,"bi-annual planning, programming, and budget system"]
["bps",null,null,null,null,null,"bits per second"]
["BPSK",null,null,null,null,null,"biphase shift keying"]
["BPT",null,null,null,null,null,"beach party team"]
["BPWRR",null,null,null,null,null,"bulk petroleum war reserve requirement"]
["BPWRS",null,null,null,null,null,"bulk petroleum war reserve stocks"]
["BR",null,null,null,null,null,"budget review"]
["BRA",null,null,null,null,null,"Bomb Rack Assembly"]
["BRAC",null,null,null,null,null,"base realignment and closure"]
["BRACE",null,null,null,null,null,"Base Resource and Capabillity Estimator"]
["BRC",null,null,null,null,null,"base recovery course"]
["BRU",null,null,null,null,null,"Bomb Rack Unit"]
["BS",null,null,null,null,null,"battle staff; broadcast source"]
["BSA",null,null,null,null,null,"beach support area; brigade support area"]
["BSB",null,null,null,null,null,"brigade support battalion"]
["BSC",null,null,null,null,null,"black station clock"]
["BSC ro",null,null,null,null,null,"black station clock receive out"]
["BSCT",null,null,null,null,null,"behavioral science consultation team"]
["BSD",null,null,null,null,null,"blood supply detachment"]
["BSI",null,null,null,null,null,"base support installation"]
["BSL",null,null,null,null,null,"Basic Systems Listing"]
["BSP",null,null,null,null,null,"base support plan"]
["BSRP",null,null,null,null,null,"bureau strategic resource plan"]
["BSSG",null,null,null,null,null,"brigade service support group"]
["BSU",null,null,null,null,null,"blood supply unit"]
["BSZ",null,null,null,null,null,"base security zone"]
["BT",null,null,null,null,null,"bathythermograph"]
["BTB",null,null,null,null,null,"believed-to-be"]
["BTC",null,null,null,null,null,"blood transshipment center"]
["BTG",null,null,null,null,null,"basic target graphic"]
["BTOC",null,null,null,null,null,"battalion tactical operations center"]
["BTS",null,null,null,null,null,"Border and Transportation Security (DHS)"]
["BTU",null,null,null,null,null,"beach termination unit"]
["BULK",null,null,null,null,null,"bulk cargo"]
["BUMEDINST",null,null,null,null,null,"Bureau of Medicine and Surgery instruction"]
["BVR",null,null,null,null,null,"beyond visual range"]
["BW",null,null,null,null,null,"biological warfare"]
["BWC",null,null,null,null,null,"Biological Weapons Convention"]
["BZ",null,null,null,null,null,"buffer zone"]
["C",null,null,null,null,null,"Celsius; centigrade; clock; compromise band; coverage factor; creeping line pattern"]
["C di",null,null,null,null,null,"conditioned diphase"]
["C&A",null,null,null,null,null,"certification and accreditation"]
["C&E",null,null,null,null,null,"communications and electronics"]
["C&LAT",null,null,null,null,null,"cargo and loading analysis table"]
["C-130",null,null,null,null,null,"Hercules"]
["C-141",null,null,null,null,null,"Starlifter"]
["C-17",null,null,null,null,null,"Globemaster III"]
["C-21",null,null,null,null,null,"Learjet"]
["C-27",null,null,null,null,null,"Spartan"]
["C-2X",null,null,null,null,null,"coalition Intelligence Directorate counterintelligence and human intelligence staff element"]
["C-5",null,null,null,null,null,"Galaxy"]
["C-B",null,null,null,null,null,"chemical-biological"]
["C-CS",null,null,null,null,null,"communication and computer systems"]
["C-day",null,null,null,null,null,"unnamed day on which a deployment operation begins"]
["C-E",null,null,null,null,null,"communications-electronics"]
["C-IED",null,null,null,null,null,"counter-improvised explosive device"]
["C-JWICS",null,null,null,null,null,"Containerized Joint Worldwide Intelligence Communications System"]
["C-level",null,null,null,null,null,"category level"]
["C-NAF",null,null,null,null,null,"component numbered air force"]
["C-SMPP",null,null,null,null,null,"Consolidated Satellite Communications Management Policies and Procedures"]
["C-SSE",null,null,null,null,null,"consolidated satellite communications system expert"]
["C/A",null,null,null,null,null,"course acquisition"]
["C/C",null,null,null,null,null,"cabin cruiser; cast off and clear"]
["C2",null,null,null,null,null,"command and control"]
["C2-attack",null,null,null,null,null,"an offensive form of command and control warfare"]
["C2-protect",null,null,null,null,null,"a defensive form of command and control warfare"]
["C2CRE",null,null,null,null,null,"command and control chemical, biological, radiological, and nuclear response element"]
["C2E",null,null,null,null,null,"command and control element"]
["C2IP",null,null,null,null,null,"Command and Control Initiatives Program"]
["C2IPS",null,null,null,null,null,"Command and Control Information Processing System"]
["C2P",null,null,null,null,null,"command and control protection"]
["C2S",null,null,null,null,null,"command and control support"]
["C3",null,null,null,null,null,"command, control, and communications"]
["C3AG",null,null,null,null,null,"Command, Control, and Communications Advisory Group"]
["C3CM",null,null,null,null,null,"command, control, and communications countermeasures"]
["C3I",null,null,null,null,null,"command, control, communications, and intelligence"]
["C3IC",null,null,null,null,null,"coalition coordination, communications, and integration center"]
["C3SMP",null,null,null,null,null,"Command, Control, and Communications Systems Master Plan"]
["C4 systems",null,null,null,null,null,"command, control, communications, and computer systems"]
["C4CM",null,null,null,null,null,"command, control, communications, and computer countermeasures"]
["C4I",null,null,null,null,null,"command, control, communications, computers, and intelligence"]
["C4IFTW",null,null,null,null,null,"command, control, communications, computers, and intelligence for the Warrior"]
["C4S",null,null,null,null,null,"command, control, communications, and computer systems"]
["CA",null,null,null,null,null,"chaplain assistant; civil administration; civil affairs; combat assessment; coordinating altitude; credibility assessment; criticality assessment; Cannibalization Authority / Combat Support Coded"]
["CAA",null,null,null,null,null,"civil air augmentation; combat aviation advisors; command arrangement agreement"]
["CAAF",null,null,null,null,null,"contractor personnel authorized to accompany the force"]
["CAAP",null,null,null,null,null,"COMAFFOR Apportionment and Allocation Process"]
["CAB",null,null,null,null,null,"combat aviation brigade"]
["CAC",null,null,null,null,null,"common access card; current actions center"]
["CACOM",null,null,null,null,null,"civil affairs command"]
["CA/CRL",null,null,null,null,null,"Custodian Authorization/Custody Receipt Listing"]
["CACTIS",null,null,null,null,null,"community automated intelligence system"]
["CAD",null,null,null,null,null,"Canadian air division; cartridge actuated device; collective address designator; Computer Aided Design"]
["CAD/PAD",null,null,null,null,null,"Cartridge/Propellant Activated Device"]
["CADRS",null,null,null,null,null,"concern and deficiency reporting system"]
["CADS",null,null,null,null,null,"containerized ammunition distribution system"]
["CAF",null,null,null,null,null,"Canadian Air Force; combat air forces; commander, airborne/air assault force"]
["CAFMS",null,null,null,null,null,"computer-assisted force management system"]
["CAG",null,null,null,null,null,"carrier air group; civil affairs group; collective address group"]
["CAGO",null,null,null,null,null,"contractor acquired government owned"]
["CAIMS",null,null,null,null,null,"conventional ammunition integrated management system"]
["CAINS",null,null,null,null,null,"carrier aircraft inertial navigation system"]
["CAIS",null,null,null,null,null,"civil authority information support"]
["CAISE",null,null,null,null,null,"civil authority information support element"]
["CAL",null,null,null,null,null,"caliber; critical asset list"]
["CALA",null,null,null,null,null,"Community Airborne Library Architecture"]
["CALCM",null,null,null,null,null,"conventional air-launched cruise missile"]
["CALICS",null,null,null,null,null,"communication, authentication, location, intentions, condition, and situation"]
["CALMS",null,null,null,null,null,"computer-aided load manifesting system"]
["CAM",null,null,null,null,null,"chemical agent monitor; crisis action module"]
["CAMOC",null,null,null,null,null,"Caribbean Air and Marine Operations Center"]
["CAMPS",null,null,null,null,null,"Consolidated Air Mobility Planning System"]
["CAMS",null,null,null,null,null,"FM/G081—Core Automated Maintenance System-For Mobility"]
["CAMT",null,null,null,null,null,"countering air and missile threats"]
["CANA",null,null,null,null,null,"convulsant antidote for nerve agent"]
["CANADA COM",null,null,null,null,null,"Canada Command"]
["CANN",null,null,null,null,null,"Cannibalization"]
["CANR",null,null,null,null,null,"Canadian North American Aerospace Defense Command Region"]
["CANUS",null,null,null,null,null,"Canada-United States"]
["CANUS BDD",null,null,null,null,null,"Canada-United States Basic Defense Document"]
["CANUS CDP",null,null,null,null,null,"Canada-United States Combined Defense Plan"]
["CAO",null,null,null,null,null,"chief administrative officer; civil affairs operations; counterair operation"]
["CAO SOP",null,null,null,null,null,"standing operating procedures for coordination of atomic operations"]
["CAOC",null,null,null,null,null,"combat air operations center; combined air operations center"]
["CAP",null,null,null,null,null,"Civil Air Patrol; civil augmentation program; combat air patrol; configuration and alarm panel; Consolidated Appeals Process (UN); crisis action planning"]
["CAPT",null,null,null,null,null,"civil affairs planning team"]
["CAR",null,null,null,null,null,"Chief of the Army Reserve; Corrective Action Request"]
["CARA",null,null,null,null,null,"chemical, biological, radiological, nuclear, and high-yield explosives analytical and remediation activity"]
["CARDA",null,null,null,null,null,"continental United States airborne reconnaissance for damage assessment; continental United States area reconnaissance for damage assessment"]
["CARE",null,null,null,null,null,"Cooperative for Assistance and Relief Everywhere (CAREUSA)"]
["CARIBROC",null,null,null,null,null,"Caribbean Regional Operations Center"]
["CARP",null,null,null,null,null,"computed air release point; contingency alternate route plan"]
["CARS",null,null,null,null,null,"combat arms regimental system"]
["CARVER",null,null,null,null,null,"criticality, accessibility, recuperability, vulnerability, effect, and recognizability"]
["CAS",null,null,null,null,null,"casualty; civil aviation security; close air support; Combat Ammunition System"]
["CASEVAC",null,null,null,null,null,"casualty evacuation"]
["CASF",null,null,null,null,null,"contingency aeromedical staging facility"]
["CASP",null,null,null,null,null,"computer-aided search planning"]
["CASPER",null,null,null,null,null,"contact area summary position report"]
["CASREP",null,null,null,null,null,"casualty report"]
["CASREQ",null,null,null,null,null,"close air support request"]
["CASS",null,null,null,null,null,"Centralized Aircraft Support System"]
["CAST",null,null,null,null,null,"Combat Armament Support Team / Command Aircraft Systems Training"]
["CAT",null,null,null,null,null,"category; civil affairs team; crisis action team"]
["CAT I",null,null,null,null,null,"Category I"]
["CAT II",null,null,null,null,null,"Category II"]
["CATCC",null,null,null,null,null,"carrier air traffic control center"]
["CATF",null,null,null,null,null,"commander, amphibious task force"]
["CATM",null,null,null,null,null,"Captive Air Training Munition"]
["CAU",null,null,null,null,null,"crypto ancillary unit; cryptographic auxiliary unit"]
["CAVU",null,null,null,null,null,"ceiling and visibility unlimited"]
["CAW",null,null,null,null,null,"carrier air wing"]
["CAW/ESS",null,null,null,null,null,"crisis action weather and environmental support system"]
["CAX",null,null,null,null,null,"computer-assisted exercise"]
["CB",null,null,null,null,null,"chemical-biological; construction battalion (SEABEES); Customer Bulletins"]
["CBBLS",null,null,null,null,null,"hundreds of barrels"]
["CBCP",null,null,null,null,null,"Customs and Border Clearance Program (DOD)"]
["CBD",null,null,null,null,null,"chemical, biological defense"]
["CBFS",null,null,null,null,null,"cesium beam frequency standard"]
["CBG",null,null,null,null,null,"coalition building guide"]
["CBIRF",null,null,null,null,null,"Chemical-Biological Incident Response Force"]
["CBLTU",null,null,null,null,null,"common battery line terminal unit"]
["CBM",null,null,null,null,null,"Carriage Conventional Bomb Module"]
["CBM+",null,null,null,null,null,"Condition-Based Maintenance Plus"]
["CBMR",null,null,null,null,null,"capabilities-based munitions requirements"]
["CBMU",null,null,null,null,null,"construction battalion maintenance unit"]
["CBP",null,null,null,null,null,"capabilities-based planning; Customs and Border Protection (DHS)"]
["CBPO",null,null,null,null,null,"Consolidated Base Personnel Office"]
["CBPS",null,null,null,null,null,"chemical biological protective shelter"]
["CBR",null,null,null,null,null,"chemical, biological, and radiological"]
["CBRN",null,null,null,null,null,"Caribbean Basin Radar Network; chemical, biological, radiological, and nuclear"]
["CBRN CM",null,null,null,null,null,"chemical, biological, radiological, and nuclear consequence management"]
["CBRNE",null,null,null,null,null,"chemical, biological, radiological, nuclear, and high-yield explosives"]
["CBRT",null,null,null,null,null,"chemical-biological response team"]
["CBS",null,null,null,null,null,"common battery signaling"]
["CBSA",null,null,null,null,null,"Canadian Border Services Agency"]
["CbT",null,null,null,null,null,"combating terrorism"]
["CBT",null,null,null,null,null,"common battery terminal; Computer-Based Training"]
["CbT-RIF",null,null,null,null,null,"Combating Terrorism Readiness Initiatives Fund"]
["CBTZ",null,null,null,null,null,"combat zone"]
["CBU",null,null,null,null,null,"conference bridge unit; construction battalion unit; Cluster Bomb Unit"]
["CBW",null,null,null,null,null,"chemical and biological warfare"]
["CC",null,null,null,null,null,"component command (NATO); component commander; critical capability; Commander; Controlled Cryptographic Item/Customer Comment"]
["CC&D",null,null,null,null,null,"camouflage, concealment, and deception"]
["CCA",null,null,null,null,null,"carrier-controlled approach; central contracting authority; circuit card assembly; combat cargo assistant; container control activity; contamination control area; contingency capabilities assessment; contract construction agent"]
["CCAP",null,null,null,null,null,"combatant command AFRTS planner"]
["CCAS",null,null,null,null,null,"contingency contract administration services"]
["CCAS-C",null,null,null,null,null,"contingency contract administration services commander"]
["CCATT",null,null,null,null,null,"critical care air transport team"]
["CCB",null,null,null,null,null,"Community Counterterrorism Board; configuration control board"]
["CCC",null,null,null,null,null,"coalition coordination cell; coalition coordination center; crisis coordination center; critical control circuit; cross-cultural communications course"]
["CCD",null,null,null,null,null,"camouflage, concealment, and deception; Course Control Document"]
["CCDB",null,null,null,null,null,"consolidated counterdrug database"]
["CCDR",null,null,null,null,null,"combatant commander"]
["CCE",null,null,null,null,null,"container control element; continuing criminal enterprise"]
["CCEB",null,null,null,null,null,"Combined Communications-Electronics Board"]
["CCF",null,null,null,null,null,"collection coordination facility"]
["CCG",null,null,null,null,null,"combat communications group; crisis coordination group"]
["CCGD",null,null,null,null,null,"commander, Coast Guard district"]
["CCIB",null,null,null,null,null,"command center integration branch"]
["CCICA",null,null,null,null,null,"command counterintelligence coordinating authority"]
["CCIF",null,null,null,null,null,"Combatant Commander Initiative Fund"]
["CCIP",null,null,null,null,null,"continuously computed impact point"]
["CCIR",null,null,null,null,null,"commander's critical information requirement; International Radio Consultative Committee"]
["CCIS",null,null,null,null,null,"common channel interswitch signaling"]
["CCITT",null,null,null,null,null,"International Telegraph and Telephone Consultative Committee"]
["CCIU",null,null,null,null,null,"CEF control interface unit"]
["CCJTF",null,null,null,null,null,"commander, combined joint task force"]
["CCL",null,null,null,null,null,"communications/computer link"]
["CCLI",null,null,null,null,null,"commerce control list item; computer control list item"]
["CCMD",null,null,null,null,null,"combatant command"]
["CCMS",null,null,null,null,null,"Compass Call Mission Simulator"]
["CCO",null,null,null,null,null,"central control officer; combat cargo officer; command and control office; container control officer; contingency contracting officer"]
["CCOI",null,null,null,null,null,"critical contact of interest"]
["CCP",null,null,null,null,null,"casualty collection point; consolidated cryptologic program; consolidation and containerization point"]
["CCPDS",null,null,null,null,null,"command center processing and display system"]
["CCR",null,null,null,null,null,"closed circuit refueling"]
["CCRD",null,null,null,null,null,"combatant commander's required delivery date"]
["CCS",null,null,null,null,null,"central control ship; commander’s communication synchronization; container control site"]
["CCSA",null,null,null,null,null,"combatant command support agent"]
["CCSD",null,null,null,null,null,"command communications service designator; control communications service designator"]
["CCT",null,null,null,null,null,"collaborative contingency targeting; combat control team"]
["CCTI",null,null,null,null,null,"Chairman of the Joint Chiefs of Staff commended training issue"]
["CCTV",null,null,null,null,null,"closed circuit television"]
["CCW",null,null,null,null,null,"1980 United Nations Convention on Conventional Weapons; continuous carrier wave"]
["CCY",null,null,null,null,null,"Calculated Cycles"]
["CD",null,null,null,null,null,"channel designator; compact disc; counterdrug; customer direct; Command Disable / Deputy Commander (e.g., MXG/CD)"]
["CD-ROM",null,null,null,null,null,"compact disc read-only memory"]
["CDA",null,null,null,null,null,"Commercial Derivative Aircraft"]
["CDB",null,null,null,null,null,"Central Database"]
["CDC",null,null,null,null,null,"Centers for Disease Control and Prevention; Career Development Course"]
["CDD",null,null,null,null,null,"chemical decontamination detachment"]
["CDDAR",null,null,null,null,null,"Crash Damaged, or Disabled Aircraft Recovery"]
["CDE",null,null,null,null,null,"collateral damage estimation"]
["CDEMA",null,null,null,null,null,"Caribbean Disaster Emergency Management Agency"]
["CDERA",null,null,null,null,null,"Caribbean Disaster Emergency Response Agency"]
["CDF",null,null,null,null,null,"combined distribution frame"]
["CDHAM",null,null,null,null,null,"Center for Disaster and Humanitarian Assistance Medicine"]
["CDI",null,null,null,null,null,"cargo disposition instructions; conditioned diphase"]
["CDIP",null,null,null,null,null,"combined defense improvement project"]
["CDIPO",null,null,null,null,null,"counterdrug intelligence preparation for operations"]
["CDLMS",null,null,null,null,null,"common data link management system"]
["CDM",null,null,null,null,null,"cable driver modem"]
["CDMGB",null,null,null,null,null,"cable driver modem group buffer"]
["CDN",null,null,null,null,null,"compressed dial number"]
["CDO",null,null,null,null,null,"command duty officer; commander, detainee operations"]
["CDOC",null,null,null,null,null,"counterdrug operations center"]
["CDOPS",null,null,null,null,null,"counterdrug operations"]
["CDP",null,null,null,null,null,"commander's dissemination policy; landing craft air cushion departure point"]
["CDR",null,null,null,null,null,"commander; continuous data recording"]
["CDRAFNORTH",null,null,null,null,null,"Commander, Air Force North"]
["CDRAFSOF",null,null,null,null,null,"commander, Air Force special operations forces"]
["CDRCFCOM",null,null,null,null,null,"Commander, Combined Forces Command"]
["CDRESC",null,null,null,null,null,"commander, electronic security command"]
["CDREUDAC",null,null,null,null,null,"Commander, European Command Defense Analysis Center (ELINT) or European Data Analysis Center"]
["CDRFORSCOM",null,null,null,null,null,"Commander, Forces Command"]
["CDRG",null,null,null,null,null,"catastrophic disaster response group (FEMA)"]
["CDRJSOTF",null,null,null,null,null,"commander, joint special operations task force"]
["CDRL",null,null,null,null,null,"contract data requirements list"]
["CDRMTMC",null,null,null,null,null,"Commander, Military Traffic Management Command"]
["CDRNORAD",null,null,null,null,null,"Commander, North American Aerospace Defense Command"]
["CDRTSOC",null,null,null,null,null,"commander, theater special operations command"]
["CDRUNC",null,null,null,null,null,"Commander, United Nations Command"]
["CDRUSAFRICOM",null,null,null,null,null,"Commander, United States Africa Command"]
["CDRUSAINSCOM",null,null,null,null,null,"Commander, United States Army Intelligence and Security Command"]
["CDRUSARNORTH",null,null,null,null,null,"Commander, United States Army, North"]
["CDRUSCENTCOM",null,null,null,null,null,"Commander, United States Central Command"]
["CDRUSCYBERCOM",null,null,null,null,null,"Commander, United States Cyber Command"]
["CDRUSELEMNORAD",null,null,null,null,null,"Commander, United States Element, North American Aerospace Defense Command"]
["CDRUSEUCOM",null,null,null,null,null,"Commander, United States European Command"]
["CDRUSJFCOM",null,null,null,null,null,"Commander, United States Joint Forces Command"]
["CDRUSNAVEUR",null,null,null,null,null,"Commander, United States Naval Forces, Europe"]
["CDRUSNORTHCOM",null,null,null,null,null,"Commander, United States Northern Command"]
["CDRUSPACOM",null,null,null,null,null,"Commander, United States Pacific Command"]
["CDRUSSOCOM",null,null,null,null,null,"Commander, United States Special Operations Command"]
["CDRUSSOUTHCOM",null,null,null,null,null,"Commander, United States Southern Command"]
["CDRUSSTRATCOM",null,null,null,null,null,"Commander, United States Strategic Command"]
["CDRUSTRANSCOM",null,null,null,null,null,"Commander, United States Transportation Command"]
["CDS",null,null,null,null,null,"Canadian Chief of Defence Staff; Chief of Defence Staff (Canada); container delivery system"]
["CDSO",null,null,null,null,null,"counterdrug support office"]
["CDSSC",null,null,null,null,null,"continuity of operations plan designated successor service chief"]
["CDU",null,null,null,null,null,"counterdrug update"]
["CE",null,null,null,null,null,"casualty estimation; circular error; command element; communications-electronics; core element; counterespionage; critical element; Civil Engineer / Communications Electronics"]
["CEA",null,null,null,null,null,"captured enemy ammunition"]
["CEB",null,null,null,null,null,"combat engineer battalion"]
["CEC",null,null,null,null,null,"civil engineer corps"]
["CECOM",null,null,null,null,null,"communications-electronics command"]
["CEDI",null,null,null,null,null,"commercial electronic data interface"]
["CEDREP",null,null,null,null,null,"communications-electronics deployment report"]
["CEE",null,null,null,null,null,"captured enemy equipment"]
["CEF",null,null,null,null,null,"civil engineering file; common equipment facility"]
["CEG",null,null,null,null,null,"common equipment group"]
["CEHC",null,null,null,null,null,"Counter Explosive Hazards Center (Army)"]
["CEI",null,null,null,null,null,"critical employment indicator"]
["CELLEX",null,null,null,null,null,"cellular exploitation"]
["CEM",null,null,null,null,null,"combined effects munition"]
["CEMC",null,null,null,null,null,"communications-electronics management center"]
["CEMIRT",null,null,null,null,null,"civil engineer maintenance, inspection, and repair team"]
["CEMP",null,null,null,null,null,"Comprehensive Emergency Management Plan"]
["CEMS",null,null,null,null,null,"Comprehensive Engine Management System"]
["CENTRIXS",null,null,null,null,null,"Combined Enterprise Regional Information Exchange System"]
["CEOI",null,null,null,null,null,"communications-electronics operating instructions"]
["CEP",null,null,null,null,null,"cable entrance panel; Chairman’s Exercise Program"]
["CEPOD",null,null,null,null,null,"communications-electronics post-deployment report"]
["CERF",null,null,null,null,null,"Central Emergency Revolving Fund (UN)"]
["CERFP",null,null,null,null,null,"chemical, biological, radiological, nuclear, and high-yield explosives enhanced response force package"]
["CERP",null,null,null,null,null,"Commanders' Emergency Response Program"]
["CERT",null,null,null,null,null,"computer emergency response team; contingency engineering response team"]
["CERTSUB",null,null,null,null,null,"certain submarine"]
["CES",null,null,null,null,null,"coast earth station"]
["CESE",null,null,null,null,null,"civil engineering support equipment; communications equipment support element"]
["CESG",null,null,null,null,null,"communications equipment support group"]
["CESO",null,null,null,null,null,"civil engineer support office"]
["CESPG",null,null,null,null,null,"civil engineering support plan group; civil engineering support planning generator"]
["CETS",null,null,null,null,null,"Contractor Engineering and Technical Services"]
["CEW",null,null,null,null,null,"civilian expeditionary workforce"]
["CEXC",null,null,null,null,null,"combined explosives exploitation cell"]
["CF",null,null,null,null,null,"Canadian forces; carrier furnished; causeway ferry; conventional forces; drift error confidence factor"]
["CF-COP",null,null,null,null,null,"counterfire common operational picture"]
["CFA",null,null,null,null,null,"Committee on Food Aid Policies and Programmes (UN); critical factors analysis"]
["CFACC",null,null,null,null,null,"combined force air component commander"]
["CFB",null,null,null,null,null,"Canadian forces base"]
["CFC",null,null,null,null,null,"Combined Forces Command, Korea"]
["CFETP",null,null,null,null,null,"Career Field Education and Training Plan"]
["CFL",null,null,null,null,null,"Contingency Planning Facilities List; coordinated fire line"]
["CFLCC",null,null,null,null,null,"coalition forces land component commander"]
["CFM",null,null,null,null,null,"cubic feet per minute"]
["CFO",null,null,null,null,null,"chief financial officer"]
["CFPM",null,null,null,null,null,"causeway ferry power module"]
["CFR",null,null,null,null,null,"Code of Federal Regulations"]
["CFS",null,null,null,null,null,"CI force protection source"]
["CFSO",null,null,null,null,null,"counterintelligence force protection source operations"]
["CFST",null,null,null,null,null,"coalition forces support team"]
["CFT",null,null,null,null,null,"Conformal Fuel Tank / Contract Field Team"]
["CG",null,null,null,null,null,"Chairman's guidance; Coast Guard; commanding general; Comptroller General"]
["CG-652",null,null,null,null,null,"Coast Guard Spectrum Management and Telecommunications Policy Division"]
["CGAS",null,null,null,null,null,"Coast Guard Air Station"]
["CGAUX",null,null,null,null,null,"Coast Guard Auxiliary"]
["CGC",null,null,null,null,null,"Coast Guard Cutter"]
["CGCAP",null,null,null,null,null,"Coast Guard capabilities plan"]
["CGCG",null,null,null,null,null,"Coast Guard Cryptologic Group"]
["CGCIS",null,null,null,null,null,"Coast Guard Counterintelligence Service"]
["CGDEFOR",null,null,null,null,null,"Coast Guard defense force"]
["CGFMFLANT",null,null,null,null,null,"Commanding General, Fleet Marine Forces, Atlantic"]
["CGFMFPAC",null,null,null,null,null,"Commanding General, Fleet Marine Forces, Pacific"]
["CGIS",null,null,null,null,null,"United States Coast Guard Investigative Service"]
["CGLSMP",null,null,null,null,null,"Coast Guard logistic support and mobilization plan"]
["CGO",null,null,null,null,null,"Continuing Government Organization"]
["CGP",null,null,null,null,null,"Coast Guard publication; Central Ground Processors"]
["CGRS",null,null,null,null,null,"common geographic reference system"]
["CGS",null,null,null,null,null,"common ground station; continental United States ground station"]
["CGUSAREUR",null,null,null,null,null,"Commanding General, United States Army, Europe"]
["CH",null,null,null,null,null,"channel; contingency hospital"]
["CH-53",null,null,null,null,null,"Sea Stallion"]
["CHAMPUS",null,null,null,null,null,"Civilian Health and Medical Program for the Uniformed  Services"]
["CHARC",null,null,null,null,null,"counterintelligence and human intelligence analysis and requirements cell"]
["CHB",null,null,null,null,null,"cargo-handling battalion"]
["CHCS",null,null,null,null,null,"composite health care system"]
["CHCSS",null,null,null,null,null,"Chief, Central Security Service"]
["CHE",null,null,null,null,null,"cargo-handing equipment; container-handling equipment"]
["CHET",null,null,null,null,null,"customs high endurance tracker"]
["CHOP",null,null,null,null,null,"change of operational control"]
["CHPMSK",null,null,null,null,null,"Centralized High Priority Mission Support Kit"]
["CHPPM",null,null,null,null,null,"US Army Center for Health Promotion and Preventive Medicine"]
["CHRIS",null,null,null,null,null,"chemical hazard response information system"]
["CHRP",null,null,null,null,null,"contaminated human remains pouch"]
["CHSTR",null,null,null,null,null,"characteristics of transportation resources"]
["CHSTREP",null,null,null,null,null,"characteristics of transportation resources report"]
["CI",null,null,null,null,null,"civilian internee; counterintelligence"]
["CI/KR",null,null,null,null,null,"critical infrastructure and key resources"]
["CIA",null,null,null,null,null,"Central Intelligence Agency"]
["CIAP",null,null,null,null,null,"Central Intelligence Agency program; central intelligence architecture plan; command intelligence architecture plan; command intelligence architecture program"]
["CIAS",null,null,null,null,null,"counterintelligence analysis section"]
["CIAT",null,null,null,null,null,"counterintelligence analytic team"]
["CIB",null,null,null,null,null,"combined information bureau; controlled image base"]
["CIC",null,null,null,null,null,"combat information center; combat intelligence center (Marine Corps); combined intelligence center; communications interface controller; content indicator code; counterintelligence center"]
["CICA",null,null,null,null,null,"counterintelligence coordinating authority"]
["CICAD",null,null,null,null,null,"Inter-American Drug Abuse Control Commission"]
["CICC",null,null,null,null,null,"counterintelligence coordination cell"]
["CICR",null,null,null,null,null,"counterintelligence collection requirement"]
["CID",null,null,null,null,null,"combat identification; combat intelligence division; criminal investigation division"]
["CIDB",null,null,null,null,null,"common intelligence database"]
["CIDC",null,null,null,null,null,"Criminal Investigation Division Command"]
["CIDNE",null,null,null,null,null,"Combined Information Data Network Exchange"]
["CIE",null,null,null,null,null,"collaborative information environment"]
["CIEA",null,null,null,null,null,"classification, identification, and engagement area"]
["CIEG/CIEL",null,null,null,null,null,"common information exchange glossary and language"]
["CIFA",null,null,null,null,null,"counterintelligence field activity"]
["CIG",null,null,null,null,null,"communications interface group"]
["CIHO",null,null,null,null,null,"counterintelligence/human intelligence officer"]
["CIIR",null,null,null,null,null,"counterintelligence information report"]
["CIL",null,null,null,null,null,"command information library; critical information list; critical item list"]
["CILO",null,null,null,null,null,"counterintelligence liaison officer"]
["CIM",null,null,null,null,null,"civil information management; compartmented information management"]
["CIMIC",null,null,null,null,null,"civil-military coorperation"]
["CIN",null,null,null,null,null,"cargo increment number"]
["CIO",null,null,null,null,null,"chief information officer; command intelligence officer"]
["CIOC",null,null,null,null,null,"counterintelligence operations cell"]
["CIOTA",null,null,null,null,null,"counterintelligence operational tasking authority"]
["CIP",null,null,null,null,null,"communications interface processor; critical infrastructure protection; Control Indicator Programmer"]
["CIPSU",null,null,null,null,null,"communications interface processor pseudo line"]
["CIR",null,null,null,null,null,"continuing intelligence requirement"]
["CIRM",null,null,null,null,null,"International Radio-Medical Center"]
["CIRV",null,null,null,null,null,"common interswitch rekeying variable"]
["CIRVIS",null,null,null,null,null,"communications instructions for reporting vital intelligence sightings"]
["CIS",null,null,null,null,null,"common item support; Commonwealth of Independent States; communications interface shelter"]
["CISAR",null,null,null,null,null,"catastrophic incident search and rescue"]
["CISD",null,null,null,null,null,"critical incident stress debriefing"]
["CISO",null,null,null,null,null,"counterintelligence staff office; counterintelligence support officer"]
["CITE",null,null,null,null,null,"computer intrusion technical exploitation"]
["CITP",null,null,null,null,null,"counter-improvised explosive device targeting program"]
["CITS",null,null,null,null,null,"Central Integrated Test System"]
["CIV",null,null,null,null,null,"civilian"]
["CIVMAR",null,null,null,null,null,"civil service mariner"]
["CIVPOL",null,null,null,null,null,"civilian police"]
["CIWG",null,null,null,null,null,"communications interoperability working group"]
["CJ-4",null,null,null,null,null,"combined-joint logistics officer"]
["CJATF",null,null,null,null,null,"commander, joint amphibious task force"]
["CJB",null,null,null,null,null,"Congressional Justification Book"]
["CJCS",null,null,null,null,null,"Chairman of the Joint Chiefs of Staff"]
["CJCSI",null,null,null,null,null,"Chairman of The Joint Chiefs of Staff Instruction"]
["CJCSAN",null,null,null,null,null,"Chairman of the Joint Chiefs of Staff Alerting Network"]
["CJCSI",null,null,null,null,null,"Chairman of the Joint Chiefs of Staff instruction"]
["CJCSM",null,null,null,null,null,"Chairman of the Joint Chiefs of Staff manual"]
["CJDA",null,null,null,null,null,"critical joint duty assignment"]
["CJE",null,null,null,null,null,"component joint data networks operations officer equivalent"]
["CJLOTS",null,null,null,null,null,"combined joint logistics over-the-shore"]
["CJMAB",null,null,null,null,null,"Central Joint Mortuary Affairs Board"]
["CJMAO",null,null,null,null,null,"Central Joint Mortuary Affairs Office; Chief, joint mortuary affairs office"]
["CJMISTF",null,null,null,null,null,"combined joint military information support task force"]
["CJMTF",null,null,null,null,null,"combined joint military information support operations task force"]
["CJOC",null,null,null,null,null,"Canada Joint Operations Command"]
["CJSART",null,null,null,null,null,"Criminal Justice Sector Assessment Rating Tool"]
["CJSMPT",null,null,null,null,null,"Coalition Joint Spectrum Management Planning Tool"]
["CJTF",null,null,null,null,null,"combined joint task force (NATO); commander, joint task force"]
["CJTF-CS",null,null,null,null,null,"Commander, Joint Task Force - Civil Support"]
["CJTF-NCR",null,null,null,null,null,"Commander, Joint Task Force - National Capital Region"]
["CKT",null,null,null,null,null,"circuit"]
["CL",null,null,null,null,null,"class; Checklist"]
["CLA",null,null,null,null,null,"landing craft air cushion launch area"]
["CLASSRON",null,null,null,null,null,"class squadron"]
["CLB",null,null,null,null,null,"combat logistics battalion"]
["CLD",null,null,null,null,null,"compact laser designator"]
["CLDP",null,null,null,null,null,"Commercial Law Development Program"]
["CLEA",null,null,null,null,null,"civilian law enforcement agency"]
["CLF",null,null,null,null,null,"combat logistics force; commander, landing force"]
["CLG",null,null,null,null,null,"combat logistics group"]
["CLGP",null,null,null,null,null,"cannon-launched guided projectile"]
["CLIA",null,null,null,null,null,"Clinical Laboratory Improvement Amendments"]
["CLIPS",null,null,null,null,null,"communications link interface planning system"]
["CLPSB",null,null,null,null,null,"combatant commander logistic procurement support board"]
["CLPT",null,null,null,null,null,"contingency load planning team"]
["CLR",null,null,null,null,null,"combat logistics regiment"]
["CLS",null,null,null,null,null,"contracted logistic support"]
["CLSS",null,null,null,null,null,"combat logistic support squadron"]
["CLT",null,null,null,null,null,"civil liaison team; combat lasing team"]
["CLT",null,null,null,null,null,"civil liaison team"]
["CLZ",null,null,null,null,null,"craft landing zone; cushion landing zone; landing craft air cushion landing zone"]
["Cm",null,null,null,null,null,"mean coverage factor"]
["CM",null,null,null,null,null,"Chairman's memorandum; collection manager; combination module; Configuration Management; control modem; countermine; cruise missile"]
["cm",null,null,null,null,null,"centimeter"]
["CM R&A",null,null,null,null,null,"consequence management response and assessment"]
["CM&D",null,null,null,null,null,"collection management & dissemination"]
["CMA",null,null,null,null,null,"collection management authority"]
["CMAA",null,null,null,null,null,"cooperative military airlift agreement"]
["CMAH",null,null,null,null,null,"commander of a combatant command's Mobile Alternate Headquarters"]
["CMAOC",null,null,null,null,null,"Casualty and Mortuary Affairs Operations Center"]
["CMAT",null,null,null,null,null,"consequence management advisory team"]
["Cmc",null,null,null,null,null,"midpoint compromise coverage factor"]
["CMC",null,null,null,null,null,"Commandant of the Marine Corps; crew management cell; Office of Civilian-Military Cooperation (USAID)"]
["CMCB",null,null,null,null,null,"civil-military coordination board"]
["CMCC",null,null,null,null,null,"combined movement coordination center"]
["CMD",null,null,null,null,null,"command; cruise missile defense"]
["CMDO",null,null,null,null,null,"command military deception officer"]
["CME",null,null,null,null,null,"civil-military engagement"]
["CMHT",null,null,null,null,null,"consequence management home team"]
["CMM",null,null,null,null,null,"Office of Conflict Management and Mitigation (USAID)"]
["CMMA",null,null,null,null,null,"collection management mission application"]
["CMO",null,null,null,null,null,"Central Measurement and Signature Intelligence (MASINT) Organization; chief medical officer; chief military observer; civil-military operations; collection management office(r); configuration management office"]
["CMOC",null,null,null,null,null,"cargo movement operations center; Cheyenne Mountain Operations Center; civil-military operations center"]
["CMOS",null,null,null,null,null,"cargo movement operations system; Cargo Movement Operations System (USAF); complimentary metal-oxide semiconductor"]
["CMP",null,null,null,null,null,"communications message processor; contractor management plan"]
["CMPF",null,null,null,null,null,"commander, maritime pre-positioned force"]
["CMPT",null,null,null,null,null,"consequence management planning team"]
["CMRT",null,null,null,null,null,"consequence management response team"]
["CMS",null,null,null,null,null,"cockpit management system; command management system; community management staff; community security materiel system; contingency mutual support; crisis management system; Calibration Measurement Summaries/Component Maintenance Squadron"]
["CMSE",null,null,null,null,null,"civil-military support element"]
["CMST",null,null,null,null,null,"consequence management support team"]
["CMTS",null,null,null,null,null,"comments"]
["CMTU",null,null,null,null,null,"cartridge magnetic tape unit"]
["CMV",null,null,null,null,null,"commercial motor vehicle"]
["CMX",null,null,null,null,null,"crisis management exercise"]
["CNAC",null,null,null,null,null,"Customs National Aviation Center (USCS)"]
["CNASP",null,null,null,null,null,"chairman's net assessment for strategic planning"]
["CNBG",null,null,null,null,null,"commander, naval beach group"]
["CNC",null,null,null,null,null,"Crime and Narcotics Center (CIA)"]
["CNCE",null,null,null,null,null,"communications nodal control element"]
["CNCI",null,null,null,null,null,"Comprehensive National Cybersecurity Initiative"]
["CND",null,null,null,null,null,"counternarcotics division; Can Not Duplicate"]
["CNE",null,null,null,null,null,"computer network exploitation; Counter Narcotics Enforcement"]
["CNGB",null,null,null,null,null,"Chief, National Guard Bureau"]
["CNIC",null,null,null,null,null,"Commander, Navy Installations Command"]
["CNM",null,null,null,null,null,"classified notice to mariners"]
["CNMOC",null,null,null,null,null,"Commander, Naval Meteorology and Oceanography Command"]
["CNO",null,null,null,null,null,"Chief of Naval Operations"]
["CNOG",null,null,null,null,null,"Chairman, Nuclear Operations Group"]
["CNRF",null,null,null,null,null,"Commander, Naval Reserve Forces"]
["CNSG",null,null,null,null,null,"Commander, Naval Security Group"]
["CNTY",null,null,null,null,null,"country"]
["CNWDI",null,null,null,null,null,"critical nuclear weapons design information"]
["CO",null,null,null,null,null,"commanding officer; cyberspace operations"]
["CO2",null,null,null,null,null,"Carbon Dioxide"]
["COA",null,null,null,null,null,"course of action"]
["COAA",null,null,null,null,null,"course-of-action analysis"]
["COAMPS",null,null,null,null,null,"Coupled Ocean Atmosphere Mesoscale Prediction System"]
["COB",null,null,null,null,null,"collocated operating base; contingency operating base"]
["COBOL",null,null,null,null,null,"common business-oriented language"]
["COC",null,null,null,null,null,"combat operations center"]
["CoC",null,null,null,null,null,"Code of Conduct"]
["COCOM",null,null,null,null,null,"combatant command (command authority)"]
["COD",null,null,null,null,null,"carrier onboard delivery; combat operations division"]
["COE",null,null,null,null,null,"Army Corps of Engineers; common operating environment; concept of employment"]
["COEDMHA",null,null,null,null,null,"Center for Excellence in Disaster Management and Humanitarian Assistance (USPACOM)"]
["COF",null,null,null,null,null,"chief of fires; conduct of fire"]
["COFC",null,null,null,null,null,"container on flatcar"]
["COG",null,null,null,null,null,"center of gravity; continuity of government"]
["COGARD",null,null,null,null,null,"Coast Guard"]
["COI",null,null,null,null,null,"community of interest; contact of interest"]
["COIC",null,null,null,null,null,"counter-improvised explosive device operations integration center"]
["COIN",null,null,null,null,null,"counterinsurgency"]
["COLDS",null,null,null,null,null,"cargo offload and discharge system"]
["COLISEUM",null,null,null,null,null,"community on-line intelligence system for end-users and managers"]
["COLPRO",null,null,null,null,null,"collective protection"]
["COLS",null,null,null,null,null,"concept of logistic support"]
["COLT",null,null,null,null,null,"combat observation and lasing team"]
["COM",null,null,null,null,null,"chief of mission; collection operations management; command; commander"]
["COMACC",null,null,null,null,null,"Commander, Air Combat Command"]
["COMAFFOR",null,null,null,null,null,"commander, Air Force forces"]
["COMAFSOC",null,null,null,null,null,"Commander, Air Force Special Operations Command"]
["COMAJF",null,null,null,null,null,"commander, allied joint force"]
["COMALF",null,null,null,null,null,"commander airlift forces"]
["COMALOC",null,null,null,null,null,"commercial air line of communications"]
["COMARFOR",null,null,null,null,null,"commander, Army forces"]
["COMBS",null,null,null,null,null,"Contractor Operated and Maintained Base Supply"]
["COMCAM",null,null,null,null,null,"combat camera"]
["COMCARGRU",null,null,null,null,null,"commander, carrier group"]
["COMCRUDESGRU",null,null,null,null,null,"commander, cruiser destroyer group"]
["COMDCAEUR",null,null,null,null,null,"Commander, Defense Communications Agency Europe"]
["COMDESRON",null,null,null,null,null,"commander, destroyer squadron"]
["COMDT COGARD",null,null,null,null,null,"Commandant, United States Coast Guard"]
["COMDTINST",null,null,null,null,null,"Commandant of the Coast Guard instruction"]
["COMFLTCYBERCOM",null,null,null,null,null,"Commander, Fleet Cyber Command"]
["COMICEDEFOR",null,null,null,null,null,"Commander United States Forces, Iceland"]
["COMIDEASTFOR",null,null,null,null,null,"Commander, Middle East Forces"]
["COMINEWARCOM",null,null,null,null,null,"Commander, Mine Warfare Command"]
["COMINT",null,null,null,null,null,"communications intelligence"]
["COMJCSE",null,null,null,null,null,"Commander, Joint Communications Support Element"]
["COMJIC",null,null,null,null,null,"Commander, Joint Intelligence Center"]
["COMLANDFOR",null,null,null,null,null,"commander, land forces"]
["COMLANTAREACOGARD",null,null,null,null,null,"Commander, Coast Guard Atlantic Area"]
["COMLOGGRU",null,null,null,null,null,"combat logistics group"]
["COMM",null,null,null,null,null,"communications"]
["COMMARFOR",null,null,null,null,null,"commander, Marine Corps forces"]
["COMMARFORNORTH",null,null,null,null,null,"Commander, Marine Corps Forces North"]
["COMMDZ",null,null,null,null,null,"Commander, Maritime Defense Zone"]
["COMNAV",null,null,null,null,null,"Committee for European Airspace Coordination Working Group on Communications and Navigation Aids"]
["COMNAVAIRLANT",null,null,null,null,null,"Commander, Naval Air Force, Atlantic"]
["COMNAVAIRPAC",null,null,null,null,null,"Commander, Naval Air Force, Pacific"]
["COMNAVAIRSYSCOM",null,null,null,null,null,"Commander, Naval Air Systems Command"]
["COMNAVCOMTELCOM",null,null,null,null,null,"Commander, Naval Computer and Telecommunications Command"]
["COMNAVELSG",null,null,null,null,null,"Commander, Navy Expeditionary Logistics Support Group"]
["COMNAVFOR",null,null,null,null,null,"commander, Navy forces"]
["COMNAVMETOCCOM",null,null,null,null,null,"Commander, Naval Meteorology and Oceanography Command"]
["COMNAVSEASYSCOM",null,null,null,null,null,"Commander, Naval Sea Systems Command"]
["COMNAVSECGRP",null,null,null,null,null,"Commander, United States Navy Security Group"]
["COMNAVSURFLANT",null,null,null,null,null,"Commander, Naval Surface Force, Atlantic"]
["COMNAVSURFPAC",null,null,null,null,null,"Commander, Naval Surface Force, Pacific"]
["COMNET",null,null,null,null,null,"communications network"]
["COMP",null,null,null,null,null,"component"]
["COMPACAF",null,null,null,null,null,"Commander, Pacific Air Forces"]
["COMPACAREACOGARD",null,null,null,null,null,"Commander, Coast Guard Pacific Area"]
["COMPACFLT",null,null,null,null,null,"Commander, Pacific Fleet"]
["COMPASS",null,null,null,null,null,"common operational modeling, planning, and simulation strategy; Computerized Movement Planning and Status System"]
["COMPES",null,null,null,null,null,"contingency operations mobility planning and execution system"]
["COMPLAN",null,null,null,null,null,"communications plan"]
["COMPUSEC",null,null,null,null,null,"computer security"]
["COMSAT",null,null,null,null,null,"communications satellite"]
["COMSC",null,null,null,null,null,"Commander, Military Sealift Command"]
["COMSCINST",null,null,null,null,null,"Commander, Military Sealift Command instruction"]
["COMSEC",null,null,null,null,null,"communications security"]
["COMSOC",null,null,null,null,null,"Commander, Special Operations Command"]
["COMSOCCENT",null,null,null,null,null,"Commander, Special Operations Command, United States Central Command"]
["COMSOCEUR",null,null,null,null,null,"Commander, Special Operations Command, United States European Command"]
["COMSOCPAC",null,null,null,null,null,"Commander, Special Operations Command, Pacific"]
["COMSOCSOUTH",null,null,null,null,null,"Commander Special Operations Command, United States Southern Command"]
["COMSOF",null,null,null,null,null,"commander, special operations forces"]
["COMSTAT",null,null,null,null,null,"communications status"]
["COMSUBLANT",null,null,null,null,null,"Commander Submarine Force, United States Atlantic Fleet"]
["COMSUBPAC",null,null,null,null,null,"Commander Submarine Force, United States Pacific Fleet"]
["COMSUPNAVFOR",null,null,null,null,null,"commander, supporting naval forces"]
["COMTAC",null,null,null,null,null,"tactical communications"]
["COMTENTHFLT",null,null,null,null,null,"Commander, Tenth Fleet"]
["COMUSAFE",null,null,null,null,null,"Commander, United States Air Force in Europe"]
["COMUSARCENT",null,null,null,null,null,"Commander, United States Army Forces, Central Command"]
["COMUSCENTAF",null,null,null,null,null,"Commander, United States Air Force, Central Command"]
["COMUSFLTFORCOM",null,null,null,null,null,"Commander, United States Fleet Forces Command"]
["COMUSFORAZ",null,null,null,null,null,"Commander United States Forces, Azores"]
["COMUSJ",null,null,null,null,null,"Commander, United States Forces Japan"]
["COMUSK",null,null,null,null,null,"Commander, United States Forces Korea"]
["COMUSMARCENT",null,null,null,null,null,"Commander, United States Marine Forces, Central Command"]
["COMUSNAVCENT",null,null,null,null,null,"Commander, United States Navy, Central Command"]
["COMUSPACFLT",null,null,null,null,null,"Commander, United States Pacific Fleet"]
["COMUSSOCJFCOM",null,null,null,null,null,"Commander Special Operations Command, United States Joint Forces Command"]
["CONCAP",null,null,null,null,null,"construction capabilities contract (Navy); Construction Capabilities Contract Process; construction capabilities contract program"]
["CONEX",null,null,null,null,null,"container express"]
["CONEXPLAN",null,null,null,null,null,"contingency and exercise plan"]
["CONOPS",null,null,null,null,null,"concept of operations"]
["CONPLAN",null,null,null,null,null,"concept plan; operation plan in concept format"]
["CONR",null,null,null,null,null,"continental United States North American Aerospace Defense Command Region"]
["Cont/Exp",null,null,null,null,null,"Contingency/Expeditionary"]
["CONUS",null,null,null,null,null,"continental United States"]
["CONUSA",null,null,null,null,null,"Continental United States Army"]
["COOP",null,null,null,null,null,"continuity of operations"]
["COP",null,null,null,null,null,"common operational picture"]
["COP-CSE",null,null,null,null,null,"common operational picture-combat support enabled"]
["COPG",null,null,null,null,null,"chairman, operations planners group"]
["COPPERHEAD",null,null,null,null,null,"name for cannon-launched guided projectile"]
["COPS",null,null,null,null,null,"communications operational planning system"]
["COR",null,null,null,null,null,"contracting officer representative"]
["CORE",null,null,null,null,null,"contingency response program"]
["COS",null,null,null,null,null,"chief of staff; chief of station; critical occupational specialty"]
["COSMIC",null,null,null,null,null,"North Atlantic Treaty Organization (NATO) security category"]
["COSPAS",null,null,null,null,null,"cosmicheskaya sistyema poiska avariynch sudov - space system for search of distressed vessels (Russian satellite system)"]
["COSR",null,null,null,null,null,"combat and operational stress reactions"]
["COT",null,null,null,null,null,"commanding officer of troops; crisis operations team"]
["COTP",null,null,null,null,null,"captain of the port"]
["COTR",null,null,null,null,null,"Contracting Officer Technical Representative"]
["COTS",null,null,null,null,null,"cargo offload and transfer system; commercial off-the-shelf; container offloading and transfer system"]
["COU",null,null,null,null,null,"cable orderwire unit"]
["counter C3",null,null,null,null,null,"counter command, control, and communications"]
["COVCOM",null,null,null,null,null,"covert communications"]
["CP",null,null,null,null,null,"check point; collection point; command post; contact point; control point; counterproliferation"]
["CP&I",null,null,null,null,null,"coastal patrol and interdiction"]
["CPA",null,null,null,null,null,"closest point of approach"]
["CPARS",null,null,null,null,null,"Contractor Performance Assessment Rating System"]
["CPD",null,null,null,null,null,"combat plans division"]
["CPE",null,null,null,null,null,"customer premise equipment"]
["CPFL",null,null,null,null,null,"contingency planning facilities list"]
["CPG",null,null,null,null,null,"central processor group; commander, amphibious group; Contingency Planning Guidance"]
["CPI",null,null,null,null,null,"crash position indicator"]
["CPIC",null,null,null,null,null,"coalition press information center"]
["CPINS",null,null,null,null,null,"Computer Program Identification Numbering System"]
["CPM",null,null,null,null,null,"civilian personnel manual"]
["CPO",null,null,null,null,null,"chief petty officer; complete provisions only"]
["CPR",null,null,null,null,null,"cardiopulmonary resuscitation"]
["CPRC",null,null,null,null,null,"coalition personnel recovery center"]
["CPS",null,null,null,null,null,"characters per second; collective protective shelter"]
["CPT",null,null,null,null,null,"common procedural terminology; Cockpit Trainer"]
["CPU",null,null,null,null,null,"central processing unit"]
["CPX",null,null,null,null,null,"command post exercise"]
["CR",null,null,null,null,null,"civil reconnaissance; critical requirement"]
["CR-UAV",null,null,null,null,null,"close-range unmanned aerial vehicle"]
["CRA",null,null,null,null,null,"command relationships agreement; continuing resolution authority; coordinating review authority"]
["CRAF",null,null,null,null,null,"Civil Reserve Air Fleet"]
["CRAM",null,null,null,null,null,"control random access memory"]
["CRB",null,null,null,null,null,"configuration review board"]
["CRC",null,null,null,null,null,"circuit routing chart; Civilian Response Corps (DOS); civil response corps; coastal riverine company; control and reporting center; CONUS replacement center; COOP response cell; crisis reaction center; cyclic redundancy rate"]
["CRD",null,null,null,null,null,"capstone requirements document; chemical reconnaissance detachment"]
["CRE",null,null,null,null,null,"contingency response element; control reporting element"]
["CREAPER",null,null,null,null,null,"Communications and Radar Electronic Attack Planning Effectiveness Reference"]
["CREST",null,null,null,null,null,"casualty and resource estimation support tool"]
["CREW",null,null,null,null,null,"counter radio-controlled improvised explosive device electronic warfare"]
["CRF",null,null,null,null,null,"channel reassignment function; coastal riverine force; contingency response force; Centralized Repair Facilities"]
["CRG",null,null,null,null,null,"contingency response group"]
["CRI",null,null,null,null,null,"collective routing indicator"]
["CRIF",null,null,null,null,null,"cargo routing information file"]
["CRITIC",null,null,null,null,null,"critical information; critical intelligence communication; critical message (intelligence)"]
["CRITICOMM",null,null,null,null,null,"critical intelligence communications system"]
["CRM",null,null,null,null,null,"collection requirements management; comment resolution matrix; crew resource management"]
["CrM",null,null,null,null,null,"crisis management"]
["CRO",null,null,null,null,null,"combat rescue officer"]
["CROP",null,null,null,null,null,"common relevant operational picture"]
["CRP",null,null,null,null,null,"control and reporting post; Centralized Rotable Pool"]
["CRRC",null,null,null,null,null,"combat rubber raiding craft"]
["CRS",null,null,null,null,null,"Catholic Relief Services; Chairman's readiness system; coastal radio station; community relations service; container recovery system; Coordinator for Reconstruction and Stabilization"]
["CRSG",null,null,null,null,null,"country reconstruction and stabilization group"]
["CRSP",null,null,null,null,null,"centralized receiving and shipping point; Consumable Readiness Spares Package"]
["CRT",null,null,null,null,null,"cathode ray tube; chemical, biological, radiological, nuclear, and high-yield explosives response team; contingency response team"]
["CRTS",null,null,null,null,null,"casualty receiving and treatment ship"]
["CRW",null,null,null,null,null,"contingency response wing"]
["CRYPTO",null,null,null,null,null,"cryptographic"]
["CS",null,null,null,null,null,"call sign; Chaplain Service (Air Force); circuit switch; coastal station; combat service; combat support; content staging; controlled space; creeping line single-unit; critical source"]
["CSA",null,null,null,null,null,"Chief of Staff, United States Army; combat support agency; container stuffing activity; Client Support Administrators"]
["CSAAS",null,null,null,null,null,"combat support agency assessment system"]
["CSADR",null,null,null,null,null,"combat support agency director's report"]
["CSAF",null,null,null,null,null,"Chief of Staff, United States Air Force"]
["CSAM",null,null,null,null,null,"computer security for acquisition managers"]
["CSAR",null,null,null,null,null,"combat search and rescue"]
["CSAR3",null,null,null,null,null,"combat support agency responsiveness and readiness report"]
["CSARTE",null,null,null,null,null,"combat search and rescue task element"]
["CSARTF",null,null,null,null,null,"combat search and rescue task force"]
["CSB",null,null,null,null,null,"contracting support brigade"]
["CSB (MEB)",null,null,null,null,null,"combat support brigade (maneuver enhancement brigade)"]
["CSC",null,null,null,null,null,"combat support center; community support center; convoy support center; creeping line single-unit coordinated; International Convention for Safe Containers"]
["CSCC",null,null,null,null,null,"coastal sea control commander"]
["CSE",null,null,null,null,null,"client server environment; combat support enhanced; combat support equipment; contingency support element; cyberspace support element"]
["CSEL",null,null,null,null,null,"circuit switch select line; combat survivor evader locator; command senior enlisted leader"]
["CSEP",null,null,null,null,null,"Chairman of the Joint Chiefs of Staff-sponsored exercise program"]
["CSG",null,null,null,null,null,"carrier strike group; Chairman's Staff Group; coordinating subgroup; cryptologic services group; Cryptologic Support Group"]
["CSGN",null,null,null,null,null,"coordinating subgroup for narcotics"]
["CSH",null,null,null,null,null,"combat support hospital"]
["CSIF",null,null,null,null,null,"communications service industrial fund"]
["CSIP",null,null,null,null,null,"contract support integration plan"]
["CSIPG",null,null,null,null,null,"circuit switch interface planning guide"]
["CSL",null,null,null,null,null,"combat stores list"]
["CSNP",null,null,null,null,null,"causeway section, nonpowered"]
["CSNP(BE)",null,null,null,null,null,"causeway section nonpowered (beach end)"]
["CSNP(I)",null,null,null,null,null,"causeway section, nonpowered (intermediate)"]
["CSNP(SE)",null,null,null,null,null,"causeway section, nonpowered (sea end)"]
["CSO",null,null,null,null,null,"Bureau of Conflict and Stabilization Operations (DOS); Center for Special Operations (USSOCOM); communications support organization; controlled source operation; Concurrent Servicing Operation"]
["CSOA",null,null,null,null,null,"combined special operations area"]
["CSOB",null,null,null,null,null,"command systems operations branch"]
["CSOD",null,null,null,null,null,"command systems operation division"]
["CSP",null,null,null,null,null,"call service position; career sea pay; causeway section, powered; commence search point; contracting support plan; crisis staffing procedures (JCS); cryptologic support package"]
["CSPAR",null,null,null,null,null,"combatant commander's preparedness assessment report"]
["CSR",null,null,null,null,null,"central source registry; combatant commander's summary report; commander's summary report; controlled supply rate"]
["CSRF",null,null,null,null,null,"common source route file"]
["CSRL",null,null,null,null,null,"Conventional Stores Rotary Launcher"]
["CSS",null,null,null,null,null,"Central Security Service (NSA); combat service support; communications subsystem; coordinator surface search;Concurrent Servicing Supervisor / Chief Servicing Supervisor"]
["CSSA",null,null,null,null,null,"combat service support area"]
["CSSAMO",null,null,null,null,null,"combat service support automation management office"]
["CSSB",null,null,null,null,null,"combat sustainment support battalion"]
["CSSC",null,null,null,null,null,"coded switch set controller"]
["CSST",null,null,null,null,null,"combat service support team"]
["CSSU",null,null,null,null,null,"combat service support unit"]
["CST",null,null,null,null,null,"contingency support team; customer service team"]
["CSW",null,null,null,null,null,"compartment stowage worksheet; coordinate seeking weapons"]
["CT",null,null,null,null,null,"computed tomography; control telemetry; counterterrorism; country team"]
["CTA",null,null,null,null,null,"common table of allowance"]
["CTAF",null,null,null,null,null,"counterterrorism analytical framework"]
["CTAPS",null,null,null,null,null,"contingency Theater Air Control System automated planning system"]
["CTC",null,null,null,null,null,"cargo transfer company (USA); counterterrorist center"]
["CTDB",null,null,null,null,null,"combating terrorism database"]
["CTEP",null,null,null,null,null,"combined training and education plan"]
["CTF",null,null,null,null,null,"combined task force; commander, task force; counter threat finance"]
["CTF IAMD",null,null,null,null,null,"commander, task force integrated air and missile defense"]
["CTFP",null,null,null,null,null,"Combating Terrorism Fellowship Program"]
["CTG",null,null,null,null,null,"commander, task group"]
["CTID",null,null,null,null,null,"communications transmission identifier"]
["CTK",null,null,null,null,null,"Composite Tool Kit"]
["CTKB",null,null,null,null,null,"combating terrorism knowledge base"]
["CTL",null,null,null,null,null,"candidate target list"]
["CTM",null,null,null,null,null,"core target material"]
["CTOC",null,null,null,null,null,"corps tactical operations center"]
["CTP",null,null,null,null,null,"common tactical picture"]
["CTR",null,null,null,null,null,"cooperative threat reduction"]
["CTRIF",null,null,null,null,null,"Combating Terrorism Readiness Initiative Fund"]
["CTS",null,null,null,null,null,"commodity tracking system; Contingency Tracking System; controlled technical services"]
["CTSS",null,null,null,null,null,"central targeting support staff"]
["CTU",null,null,null,null,null,"commander, task unit"]
["CTVS",null,null,null,null,null,"Cockpit Television Sensor"]
["CU",null,null,null,null,null,"cubic capacity; common unit"]
["CUI",null,null,null,null,null,"controlled unclassified information"]
["CUL",null,null,null,null,null,"common-user logistics"]
["CULT",null,null,null,null,null,"common-user land transportation"]
["CUT",null,null,null,null,null,"Cross Utilization Training"]
["CV",null,null,null,null,null,"aircraft carrier; carrier; critical vulnerability; curriculum vitae; Vice Commander"]
["CVAMP",null,null,null,null,null,"Core Vulnerability Assessment Management Program"]
["CVN",null,null,null,null,null,"aircraft carrier, nuclear"]
["CVR",null,null,null,null,null,"cockpit voice recorder"]
["CVS",null,null,null,null,null,"commercial vendor services"]
["CVSD",null,null,null,null,null,"continuous variable slope delta"]
["CVT",null,null,null,null,null,"criticality-vulnerability-threat"]
["CVW",null,null,null,null,null,"carrier air wing; cryptovariable weekly (GPS)"]
["CVWC",null,null,null,null,null,"carrier strike group air wing commander"]
["CW",null,null,null,null,null,"carrier wave; continuous wave; Chemical Warfare / Complied With / Continuous Wave"]
["CWA",null,null,null,null,null,"chemical warfare agent"]
["CWC",null,null,null,null,null,"Chemical Weapons Convention; composite warfare commander"]
["CWDE",null,null,null,null,null,"chemical warfare defense equipment"]
["CWMD",null,null,null,null,null,"countering weapons of mass destruction"]
["CWO",null,null,null,null,null,"communications watch officer; Combat Wing Organization"]
["CWP",null,null,null,null,null,"causeway pier"]
["CWPD",null,null,null,null,null,"Conventional War Plans Division, Joint Staff (J-7)"]
["CWR",null,null,null,null,null,"calm water ramp"]
["CWT",null,null,null,null,null,"combat weather team; customer wait time"]
["CY",null,null,null,null,null,"calendar year"]
["D04",null,null,null,null,null,"Daily Document Register"]
["D18",null,null,null,null,null,"Priority Monitor, Report"]
["D23",null,null,null,null,null,"Repair Cycle Asset Management Listing"]
["D",null,null,null,null,null,"total drift, data"]
["d",null,null,null,null,null,"surface drift"]
["D&D",null,null,null,null,null,"denial and deception"]
["D&F",null,null,null,null,null,"determinations and findings"]
["D&M",null,null,null,null,null,"detection and monitoring"]
["D&R",null,null,null,null,null,"debrief and reintegrate"]
["D-2X",null,null,null,null,null,"Department of Defense-level counterintelligence and human intelligence staff element"]
["D-cell",null,null,null,null,null,"deployment cell"]
["D-day",null,null,null,null,null,"unnamed day on which operations commence or are scheduled to commence"]
["D/A",null,null,null,null,null,"digital-to-analog"]
["D/C",null,null,null,null,null,"downconverter"]
["D/CI&SP",null,null,null,null,null,"Director, Counterintelligence and Security Programs"]
["D/CIA",null,null,null,null,null,"Director, Central Intelligence Agency"]
["D/T/ID",null,null,null,null,null,"detect/track/identify"]
["D3A",null,null,null,null,null,"decide, detect, deliver, and assess"]
["Da",null,null,null,null,null,"aerospace drift; Development Assistance"]
["DA",null,null,null,null,null,"data adapter aerospace drift; data administrator; Department of the Army; Development Assistance; direct action; Directorate for Mission Services (DIA); double agent"]
["DA&M",null,null,null,null,null,"Director of Administration and Management"]
["DAA",null,null,null,null,null,"designated approving authority; display alternate area routing lists"]
["DAADC",null,null,null,null,null,"deputy area air defense commander"]
["DAADC(AMD)",null,null,null,null,null,"deputy area air defense commander for air and missile defense"]
["DAAS",null,null,null,null,null,"defense automatic addressing system"]
["DAASO",null,null,null,null,null,"defense automatic addressing system office"]
["DAB",null,null,null,null,null,"Defense Acquisition Board"]
["DAC",null,null,null,null,null,"Defense Intelligence Agency (DIA) counterintelligence and security activity; Department of Army civilians; Development Assistance Committee (OECD)"]
["DACB",null,null,null,null,null,"data adapter control block"]
["DACG",null,null,null,null,null,"departure airfield control group"]
["DACM",null,null,null,null,null,"data adapter control mode"]
["DADCAP",null,null,null,null,null,"dawn and dusk combat air patrol"]
["DAF",null,null,null,null,null,"Department of the Air Force"]
["DAFL",null,null,null,null,null,"directive authority for logistics"]
["DAFSC",null,null,null,null,null,"Duty Air Force Specialty Code"]
["DAICC",null,null,null,null,null,"domestic air interdiction coordinator center"]
["DAL",null,null,null,null,null,"defended asset list"]
["DALIS",null,null,null,null,null,"Disaster Assistance Logistics Information System"]
["DALS",null,null,null,null,null,"downed aviator locator system"]
["DAMA",null,null,null,null,null,"demand assigned multiple access"]
["DAMES",null,null,null,null,null,"defense automatic addressing system (DAAS) automated message exchange system"]
["DAN",null,null,null,null,null,"Diver's Alert Network"]
["DAO",null,null,null,null,null,"defense attache office; defense attache officer; department/agency/organization"]
["DAP",null,null,null,null,null,"designated acquisition program"]
["DAR",null,null,null,null,null,"Defense Acquisition Regulation; distortion adaptive receiver"]
["DARO",null,null,null,null,null,"Defense Airborne Reconnaissance Office"]
["DARPA",null,null,null,null,null,"Defense Advanced Research Projects Agency"]
["DART",null,null,null,null,null,"disaster assistance response team; downed aircraft recovery team; dynamic analysis and replanning tool"]
["DAS",null,null,null,null,null,"deep air support (USMC); defense attache system; direct access subscriber; direct air support"]
["DAS3",null,null,null,null,null,"decentralized automated service support system"]
["DASA",null,null,null,null,null,"Department of the Army (DA) staff agencies"]
["DASC",null,null,null,null,null,"direct air support center"]
["DASC(A)",null,null,null,null,null,"direct air support center (airborne)"]
["DASD",null,null,null,null,null,"Deputy Assistant Secretary of Defense"]
["DASD(H&RA)",null,null,null,null,null,"Deputy Assistant Secretary of Defense (Humanitarian & Refugee Affairs)"]
["DASD(I)",null,null,null,null,null,"Deputy Assistant Secretary of Defense (Intelligence)"]
["DASD(P&HA)",null,null,null,null,null,"Deputy Assistant Secretary of Defense (Peacekeeping and Humanitarian Affairs)"]
["DASD(S&IO)",null,null,null,null,null,"Deputy Assistant Secretary of Defense (Security and Information Operations)"]
["DASD-CN",null,null,null,null,null,"Deputy Assistant Secretary of Defense for Counternarcotics"]
["DASSS",null,null,null,null,null,"decentralized automated service support system"]
["DAT",null,null,null,null,null,"deployment action item"]
["DATM",null,null,null,null,null,"Dummy Air Training Missiles"]
["DATT",null,null,null,null,null,"defense attache"]
["DATU",null,null,null,null,null,"data adapter termination unit"]
["dB",null,null,null,null,null,"decibel"]
["DBA",null,null,null,null,null,"database administrator"]
["DBDB",null,null,null,null,null,"digital bathymetric database"]
["DBDB-V",null,null,null,null,null,"digital bathymetric database variable"]
["DBG",null,null,null,null,null,"database generation"]
["DBI",null,null,null,null,null,"defense budget issue"]
["DBIDS",null,null,null,null,null,"Defense Biometric Identification System"]
["DBM ",null,null,null,null,null,"Database Manager"]
["DBMS",null,null,null,null,null,"database management system; Defense-Business Management System"]
["DBSMC",null,null,null,null,null,"Defense Business Systems Management Committee"]
["DBSS",null,null,null,null,null,"Defense Blood Standard System"]
["DBT",null,null,null,null,null,"design basis threat"]
["DC",null,null,null,null,null,"Deputies Committee; direct current; Directorate of Counterintelligence (DIA); dislocated civilian"]
["DC/S for RA",null,null,null,null,null,"Deputy Chief of Staff for Reserve Affairs"]
["DC3",null,null,null,null,null,"Department of Defense Cyber Crime Center"]
["DCA",null,null,null,null,null,"Defense Communications Agency; Defense Cooperation Agreements; defensive counterair; dual-capable aircraft"]
["DCAA",null,null,null,null,null,"Defense Contract Audit Agency"]
["DCAM",null,null,null,null,null,"Defense Medical Logistics Standard Support (DMLSS) customer assistance module"]
["DCAPES",null,null,null,null,null,"Deliberate and Crisis Action Planning and Execution Segments"]
["DCC",null,null,null,null,null,"damage control center; deployment control center; Dedicated Crew Chief"]
["DCCC",null,null,null,null,null,"defense collection coordination center"]
["DCCEP",null,null,null,null,null,"developing country combined exercise program"]
["DCD",null,null,null,null,null,"data collection device"]
["DCE",null,null,null,null,null,"defense coordinating element"]
["DCGS",null,null,null,null,null,"distributed common ground/surface system"]
["DCHA",null,null,null,null,null,"Bureau for Democracy, Conflict, and Humanitarian Assistance (USAID)"]
["DCHC",null,null,null,null,null,"Defense Counterintelligence and Human Intelligence Center"]
["DCHE",null,null,null,null,null,"Defense Counterintelligence and Human Intelligence Enterprise"]
["DCI",null,null,null,null,null,"defense critical infrastructure; Director of Central Intelligence; dual channel interchange"]
["DCID",null,null,null,null,null,"Director of Central Intelligence directive"]
["DCIIS",null,null,null,null,null,"Defense Counterintelligence Information System"]
["DCIO",null,null,null,null,null,"defense criminal investigative organization"]
["DCIP",null,null,null,null,null,"Defense Critical Infrastructure Program"]
["DCIS",null,null,null,null,null,"Defense Criminal Investigative Services"]
["DCISE",null,null,null,null,null,"Defense Industrial Base Collaborative Information Sharing Environment"]
["DCJTF",null,null,null,null,null,"deputy commander, joint task force"]
["DCM",null,null,null,null,null,"data channel multiplexer; deputy chief of mission"]
["DCMA",null,null,null,null,null,"Defense Contract Management Agency"]
["DCMC",null,null,null,null,null,"Office of Deputy Chairman, Military Committee"]
["DCMO",null,null,null,null,null,"deputy chief military observer"]
["DCNO",null,null,null,null,null,"Deputy Chief of Naval Operations"]
["DCO",null,null,null,null,null,"debarkation control officer; Defense Connect Online; defense coordinating officer; defensive cyberspace operations; dial central office"]
["DCO-RA",null,null,null,null,null,"defensive cyberspace operations response actions"]
["DCP",null,null,null,null,null,"Defense Continuity Program; detainee collection point"]
["DCPA",null,null,null,null,null,"Defense Civil Preparedness Agency"]
["DCPG",null,null,null,null,null,"digital clock pulse generator"]
["DCR",null,null,null,null,null,"doctrine, organization, training, materiel, leadership and education, personnel, and facilities change recommendation"]
["DCRF",null,null,null,null,null,"defense chemical, biological, radiological, and nuclear response force"]
["DCS",null,null,null,null,null,"Defense Courier Service; deputy chief of staff; digital computer system"]
["DCSCU",null,null,null,null,null,"dual capability servo control unit"]
["DCSINT",null,null,null,null,null,"Deputy Chief of Staff for Intelligence"]
["DCSLOG",null,null,null,null,null,"Deputy Chief of Staff for Logistics, US Army"]
["DCSOPS",null,null,null,null,null,"Deputy Chief of Staff for Operations and Plans, United States Army"]
["DCSPER",null,null,null,null,null,"Deputy Chief of Staff for Personnel, United States Army"]
["DCST",null,null,null,null,null,"Defense Logistics Agency (DLA) contingency support team"]
["DCTC",null,null,null,null,null,"Defense Combating Terrorism Center"]
["DCTS",null,null,null,null,null,"Defense Collaboration Tool Suite"]
["DCW",null,null,null,null,null,"Defense Collection Watch (DIA)"]
["DD",null,null,null,null,null,"Department of Defense form; destroyer (Navy ship); Delayed Discrepancy"]
["DDA",null,null,null,null,null,"deputy development advisor; Deputy Director for Administration (CIA); designated development activity"]
["DDC",null,null,null,null,null,"data distribution center; defense distribution center"]
["DDCI",null,null,null,null,null,"Deputy Director of Central Intelligence (CIA)"]
["DDCI/CM",null,null,null,null,null,"Deputy Director of Central Intelligence for Community Management"]
["DDED",null,null,null,null,null,"defense distribution expeditionary depot"]
["DDG",null,null,null,null,null,"guided missile destroyer"]
["DDI",null,null,null,null,null,"Deputy Director of Intelligence (CIA); Director of Defense Intelligence"]
["DDL",null,null,null,null,null,"digital data link"]
["DDM",null,null,null,null,null,"Defense Logistics Agency Distribution Mapping; digital data modem"]
["DDMA",null,null,null,null,null,"Defense Distribution Mapping Activity"]
["DDMS",null,null,null,null,null,"Deputy Director for Military Support (NRO)"]
["DDN",null,null,null,null,null,"Defense Data Network"]
["DDO",null,null,null,null,null,"Deputy Director of Operations (CIA)"]
["DDOC",null,null,null,null,null,"Deployment and Distribution Operations Center (USTRANSCOM)"]
["DDP",null,null,null,null,null,"detailed deployment plan"]
["DDR",null,null,null,null,null,"disarmament, demobilization, and reintegration; Daily Demand Rate"]
["DDR&E",null,null,null,null,null,"director of defense research and engineering"]
["DDRRR",null,null,null,null,null,"disarmament, demobilization, repatriation, reintegration, and resettlement"]
["DDS",null,null,null,null,null,"defense dissemination system; Deployable Disbursing System; dry deck shelter"]
["DDS&T",null,null,null,null,null,"Deputy Director for Science & Technology (CIA)"]
["DDSBn",null,null,null,null,null,"deployment and distribution support battalion"]
["DDSM",null,null,null,null,null,"Defense Distinguished Service Medal"]
["DDST",null,null,null,null,null,"deployment and distribution support team"]
["DDTS",null,null,null,null,null,"Data Display Training Set"]
["DDWSO",null,null,null,null,null,"Deputy Director for Wargaming, Simulation, and Operations"]
["De",null,null,null,null,null,"total drift error"]
["DE",null,null,null,null,null,"damage expectancy; decedent effects; delay equalizer; directed energy"]
["de",null,null,null,null,null,"individual drift error"]
["de max",null,null,null,null,null,"maximum drift error"]
["de min",null,null,null,null,null,"minimum drift error"]
["de minimax",null,null,null,null,null,"minimax drift error"]
["DEA",null,null,null,null,null,"Drug Enforcement Administration (DOJ)"]
["dea",null,null,null,null,null,"aerospace drift error"]
["DEACN",null,null,null,null,null,"Drug Enforcement Administration Communications Network"]
["DEAR",null,null,null,null,null,"disease and environmental alert report"]
["DEARAS",null,null,null,null,null,"Department of Defense Emergency Authorities Retrieval and Analysis System"]
["DeCA",null,null,null,null,null,"Defense Commissary Agency"]
["DECC",null,null,null,null,null,"Defense Enterprise Computer Center"]
["DEERS",null,null,null,null,null,"Defense Enrollment Eligibility Reporting System"]
["DEFSMAC",null,null,null,null,null,"Defense Special Missile and Aerospace Center"]
["DEL",null,null,null,null,null,"deployable equipment list"]
["DEMARC",null,null,null,null,null,"demarcation"]
["DEMIL",null,null,null,null,null,"demilitarization"]
["DeMS",null,null,null,null,null,"deployment management system"]
["DEMUX",null,null,null,null,null,"demultiplex"]
["DEP",null,null,null,null,null,"Delayed Entry Program; deployed"]
["DEP&S",null,null,null,null,null,"Drug Enforcement Plans and Support"]
["DEPCJTF",null,null,null,null,null,"deputy commander, joint task force"]
["DEPID",null,null,null,null,null,"deployment indicator code"]
["DEPMEDS",null,null,null,null,null,"deployable medical systems"]
["DepOpsDeps",null,null,null,null,null,"Service deputy operations deputies"]
["DEPORD",null,null,null,null,null,"deployment order"]
["DEROS",null,null,null,null,null,"Date Eligible for Return from Overseas"]
["DESC",null,null,null,null,null,"Defense Energy Support Center"]
["DESCOM",null,null,null,null,null,"Depot System Command (Army)"]
["DESIGAREA",null,null,null,null,null,"designated area message"]
["DEST",null,null,null,null,null,"destination; domestic emergency support team"]
["DET",null,null,null,null,null,"detainee"]
["DETRESFA",null,null,null,null,null,"distress phase (lCAO)"]
["DEV",null,null,null,null,null,"Deviation"]
["DEW",null,null,null,null,null,"directed-energy warfare"]
["DF",null,null,null,null,null,"direction finding; dispersion factor; disposition form"]
["DFARS",null,null,null,null,null,"Department of Defense Federal Acquisition Regulation Supplement"]
["DFAS",null,null,null,null,null,"Defense Finance and Accounting Service"]
["DFAS-DE",null,null,null,null,null,"Defense Finance and Accounting Service-Denver"]
["DFC",null,null,null,null,null,"deputy force commander; detention facility commander"]
["DFE",null,null,null,null,null,"Defense Intelligence Agency forward element; Defense Joint Intelligence Operations Center forward element; division force equivalent"]
["DFM",null,null,null,null,null,"deterrent force module"]
["DFO",null,null,null,null,null,"disaster field office (FEMA)"]
["DFR",null,null,null,null,null,"Defense Fuel Region"]
["DFR/E",null,null,null,null,null,"Defense Fuel Region, Europe"]
["DFR/ME",null,null,null,null,null,"Defense Fuel Region, Middle East"]
["DFRIF",null,null,null,null,null,"Defense Freight Railway Interchange Fleet"]
["DFSC",null,null,null,null,null,"Defense Fuel Supply Center"]
["DFSP",null,null,null,null,null,"defense fuel support point"]
["DFT",null,null,null,null,null,"deployment for training; Depot Field Team"]
["DG",null,null,null,null,null,"defense guidance"]
["DGIAP",null,null,null,null,null,"Defense General Intelligence and Applications Program"]
["DGM",null,null,null,null,null,"digital group multiplex"]
["DH",null,null,null,null,null,"death due to hostilities; Directorate for Human Intelligence (DIA)"]
["DHA",null,null,null,null,null,"detainee holding area"]
["DHB",null,null,null,null,null,"Defense Health Board"]
["DHE",null,null,null,null,null,"defense human intelligence executor"]
["DHHS",null,null,null,null,null,"Department of Health and Human Services"]
["DHM",null,null,null,null,null,"Department of Defense human intelligence manager"]
["DHMO",null,null,null,null,null,"Department of Defense human intelligence management office"]
["DHP",null,null,null,null,null,"Defense Health Program"]
["DHS",null,null,null,null,null,"Defense Human Intelligence (HUMINT) Service; Department of Homeland Security; Director of Health Services"]
["DI",null,null,null,null,null,"Defense Intelligence Agency (DIA) Directorate for Analysis; DIA Directorate for Intelligence Production; discrete identifier; dynamic interface"]
["DI&E",null,null,null,null,null,"data integration and exploitation"]
["DIA",null,null,null,null,null,"Defense Intelligence Agency"]
["DIA/DHX",null,null,null,null,null,"Defense Intelligence Agency, Directorate of Human Intelligence, Office of Document and Media Operations"]
["DIAC",null,null,null,null,null,"Defense Intelligence Analysis Center"]
["DIAM",null,null,null,null,null,"Defense Intelligence Agency manual; Defense Intelligence Agency memorandum"]
["DIAMONDS",null,null,null,null,null,"Defense Integration and Management of Nuclear Data Services"]
["DIAP",null,null,null,null,null,"Defense Intelligence Analysis Program; Drug Interdiction Assistance Program"]
["DIAR",null,null,null,null,null,"Defense Intelligence Agency (DIA) regulation"]
["DIB",null,null,null,null,null,"defense industrial base"]
["DIBITS",null,null,null,null,null,"digital in-band interswitch trunk signaling"]
["DIBRS",null,null,null,null,null,"defense incident-based reporting system"]
["DIBTS",null,null,null,null,null,"digital in-band trunk signaling"]
["DICO",null,null,null,null,null,"Data Information Coordination Office"]
["DID",null,null,null,null,null,"Defense Intelligence Digest"]
["DIDHS",null,null,null,null,null,"Deployable Intelligence Data Handling System"]
["DIDO",null,null,null,null,null,"designated intelligence disclosure official"]
["DIDS",null,null,null,null,null,"Defense Intelligence Dissemination System"]
["DIEB",null,null,null,null,null,"Defense Intelligence Executive Board"]
["DIEPS",null,null,null,null,null,"Digital Imagery Exploitation Production System"]
["DIFM",null,null,null,null,null,"Due-in From Maintenance"]
["DIG",null,null,null,null,null,"digital"]
["DIGO",null,null,null,null,null,"Defence Imagery and Geospatial Organisation (Australia)"]
["DII-COE",null,null,null,null,null,"defense information infrastructure-common operating environment"]
["DIILS",null,null,null,null,null,"Defense Institute of International Legal Studies"]
["DIJE",null,null,null,null,null,"Defense Intelligence Joint Environment (United Kingdom)"]
["DILPA",null,null,null,null,null,"diphase loop modem-A"]
["DIMA",null,null,null,null,null,"drilling individual mobilization augmentee"]
["DIMOC",null,null,null,null,null,"Defense Imagery Management Operations Center"]
["DIN",null,null,null,null,null,"defense intelligence notice"]
["DINET",null,null,null,null,null,"Defense Industrial Net"]
["DINFOS",null,null,null,null,null,"Defense Information School"]
["DIOC",null,null,null,null,null,"drug interdiction operations center"]
["DIOCC",null,null,null,null,null,"Defense Intelligence Operations Coordination Center (DIA)"]
["DIPC",null,null,null,null,null,"defense industrial plant equipment center"]
["DIPF",null,null,null,null,null,"defense intelligence priorities framework"]
["DIPFAC",null,null,null,null,null,"diplomatic facility"]
["DIPGM",null,null,null,null,null,"diphase supergroup modem"]
["DIREP",null,null,null,null,null,"Difficulty Report"]
["DIRINT",null,null,null,null,null,"Director of Intelligence (USMC)"]
["DIRJIATF",null,null,null,null,null,"director, joint inter-agency task force"]
["DIRLAUTH",null,null,null,null,null,"direct liaison authorized"]
["DIRM",null,null,null,null,null,"Directorate for Information and Resource Management"]
["DIRMOBFOR",null,null,null,null,null,"director of mobility forces"]
["DIRNSA",null,null,null,null,null,"Director, National Security Agency"]
["DIRSPACEFOR",null,null,null,null,null,"director of space forces (USAF)"]
["DIS",null,null,null,null,null,"defense information system; Defense Investigative Service; distributed interactive simulation"]
["DISA",null,null,null,null,null,"Defense Information Systems Agency"]
["DISA-LO",null,null,null,null,null,"Defense Information Systems Agency - liaison officer"]
["DISANMOC",null,null,null,null,null,"Defense Information Systems Agency Network Management and Operations Center"]
["DisasterAWARE",null,null,null,null,null,"Disaster All-Hazard Warnings, Analysis, and Risk Evaluation System"]
["DISCOM",null,null,null,null,null,"division support command (Army)"]
["DISGM",null,null,null,null,null,"diphase supergroup"]
["DISN",null,null,null,null,null,"Defense Information Systems Network"]
["DISN-E",null,null,null,null,null,"Defense Information Systems Network - Europe"]
["DISO",null,null,null,null,null,"deception in support of operations security; defense intelligence support office"]
["DISP",null,null,null,null,null,"drug investigation support program (FAA)"]
["DIT",null,null,null,null,null,"Data Integrity Team"]
["DITDS",null,null,null,null,null,"defense information threat data system; defense intelligence threat data system"]
["DITSUM",null,null,null,null,null,"defense intelligence terrorist summary"]
["DJIOC",null,null,null,null,null,"Defense Joint Intelligence Operations Center"]
["DJS",null,null,null,null,null,"Director, Joint Staff"]
["DJSM",null,null,null,null,null,"Director, Joint Staff, memorandum"]
["DJTFS",null,null,null,null,null,"deputy joint task force surgeon"]
["DLA",null,null,null,null,null,"Defense Logistics Agency"]
["DLADS",null,null,null,null,null,"Defense Logistics Agency Disposition Service"]
["DLAM",null,null,null,null,null,"Defense Logistics Agency manual"]
["DLAR",null,null,null,null,null,"Defense Logistics Agency regulation"]
["DLD",null,null,null,null,null,"digital liaison detachment"]
["DLEA",null,null,null,null,null,"drug law enforcement agency"]
["DLED",null,null,null,null,null,"dedicated loop encryption device"]
["DLIR",null,null,null,null,null,"Downward-Looking Infrared Radar"]
["DLIS",null,null,null,null,null,"Defense Logistics Information Service"]
["DLM",null,null,null,null,null,"defense logistics manual"]
["DLMS",null,null,null,null,null,"Department Logistics Management System"]
["DLO",null,null,null,null,null,"Dual Loading Operation"]
["DLP",null,null,null,null,null,"data link processor"]
["DLPMA",null,null,null,null,null,"diphase loop modem A"]
["DLQ",null,null,null,null,null,"deck landing qualification"]
["DLR",null,null,null,null,null,"depot-level repairable"]
["DLSA",null,null,null,null,null,"Defense Legal Services Agency"]
["DLSS",null,null,null,null,null,"Defense Logistics Standard Systems"]
["DLTM",null,null,null,null,null,"digital line termination module"]
["DLTU",null,null,null,null,null,"digital line termination unit"]
["DM",null,null,null,null,null,"detection and monitoring; docking module"]
["DMA",null,null,null,null,null,"Defense Media Activity"]
["dmax",null,null,null,null,null,"maximum drift distance"]
["DMB",null,null,null,null,null,"datum marker buoy"]
["DMC",null,null,null,null,null,"data mode control"]
["DMD",null,null,null,null,null,"digital message device"]
["DMDC",null,null,null,null,null,"defense management data center; defense manpower data center"]
["DME",null,null,null,null,null,"distance measuring equipment"]
["DMHS",null,null,null,null,null,"Defense Message Handling System"]
["DMI",null,null,null,null,null,"director military intelligence"]
["DMIGS",null,null,null,null,null,"Domestic Mobile Integrated Geospatial-Intelligence System"]
["dmin",null,null,null,null,null,"minimum drift distance"]
["DML",null,null,null,null,null,"data manipulation language"]
["DMLSS",null,null,null,null,null,"Defense Medical Logistics Standard Support"]
["DMMPO",null,null,null,null,null,"Defense Medical Materiel Program Office"]
["DMO",null,null,null,null,null,"directory maintenance official"]
["DMORT",null,null,null,null,null,"Disaster Mortuary Operational Response Team"]
["DMOS",null,null,null,null,null,"duty military occupational specialty"]
["DMPI",null,null,null,null,null,"designated mean point of impact"]
["DMRD",null,null,null,null,null,"defense management resource decision"]
["DMRIS",null,null,null,null,null,"defense medical regulating information system"]
["DMS",null,null,null,null,null,"defense message system; defense meteorological system; director of military support; Decentralized Materiel Support"]
["DMSB",null,null,null,null,null,"Defense Medical Standardization Board"]
["DMSM",null,null,null,null,null,"Defense Meritorious Service Medal"]
["DMSO",null,null,null,null,null,"Defense Modeling and Simulation Office; director of major staff office; Division Medical Supply Office"]
["DMSP",null,null,null,null,null,"Defense Meteorological Satellite Program"]
["DMSSC",null,null,null,null,null,"defense medical system support center"]
["DMT",null,null,null,null,null,"disaster management team (UN)"]
["DMU",null,null,null,null,null,"disk memory unit"]
["DMZ",null,null,null,null,null,"demilitarized zone"]
["DN",null,null,null,null,null,"digital nonsecure"]
["DNA",null,null,null,null,null,"Defense Nuclear Agency; deoxyribonucleic acid"]
["DNAT",null,null,null,null,null,"defense nuclear advisory team"]
["DNBI",null,null,null,null,null,"disease and nonbattle injury"]
["DNC",null,null,null,null,null,"digital nautical chart"]
["DND",null,null,null,null,null,"Department of National Defence (Canada)"]
["DNDO",null,null,null,null,null,"Domestic Nuclear Detection Office (DHS)"]
["DNGA",null,null,null,null,null,"Director of National Geospatial-Intelligence Agency"]
["DNI",null,null,null,null,null,"Director of National Intelligence; Director of Naval Intelligence"]
["DNIF",null,null,null,null,null,"duty not involving flying"]
["DNMSP",null,null,null,null,null,"driftnet monitoring support program"]
["DNSO",null,null,null,null,null,"Defense Network Systems Organization"]
["DNVT",null,null,null,null,null,"digital nonsecure voice terminal"]
["DNY",null,null,null,null,null,"display area code (NYX) routing"]
["DOA",null,null,null,null,null,"days of ammunition; dead on arrival; director of administration"]
["DOB",null,null,null,null,null,"date of birth; dispersal operating base"]
["DOC",null,null,null,null,null,"Department of Commerce; designed operational capability"]
["DOCC",null,null,null,null,null,"deep operations coordination cell"]
["DOCDIV",null,null,null,null,null,"documents division"]
["DOCEX",null,null,null,null,null,"document exploitation"]
["DOCNET",null,null,null,null,null,"Doctrine Networked Education and Training"]
["DOD",null,null,null,null,null,"Department of Defense"]
["DOD-JIC",null,null,null,null,null,"Department of Defense Joint Intelligence Center"]
["DODAAC",null,null,null,null,null,"Department of Defense activity address code"]
["DODAAD",null,null,null,null,null,"Department of Defense Activity Address Directory"]
["DODAC DOD",null,null,null,null,null,"ammunition code"]
["DODD",null,null,null,null,null,"Department of Defense directive"]
["DODDS",null,null,null,null,null,"Department of Defense Dependent Schools"]
["DODEX",null,null,null,null,null,"Department of Defense intelligence system information system extension"]
["DODFMR",null,null,null,null,null,"Department of Defense Financial Management Regulation"]
["DODI",null,null,null,null,null,"Department of Defense instruction"]
["DODIC",null,null,null,null,null,"Department of Defense identification code"]
["DODID",null,null,null,null,null,"Department of Defense Intelligence Digest"]
["DODIIS",null,null,null,null,null,"Department of Defense Intelligence Information System"]
["DODIN",null,null,null,null,null,"Department of Defense information networks"]
["DODIPC",null,null,null,null,null,"Department of Defense intelligence production community"]
["DODIPP",null,null,null,null,null,"Department of Defense Intelligence Production Program"]
["DODM",null,null,null,null,null,"data orderwire diphase modem; Department of Defense manual"]
["DOE",null,null,null,null,null,"Department of Energy"]
["DOEHRS",null,null,null,null,null,"Defense Occupational and Environmental Health Reporting System"]
["DOF",null,null,null,null,null,"degree of freedom"]
["DOI",null,null,null,null,null,"Defense Special Security Communications System (DSSCS) Operating Instructions; Department of the Interior; Date of Installation"]
["DOJ",null,null,null,null,null,"Department of Justice"]
["DOL",null,null,null,null,null,"Department of Labor"]
["DOM",null,null,null,null,null,"day of month; Date of Manufacture / Director of Maintenance"]
["DOMEX",null,null,null,null,null,"document and media exploitation"]
["DOMS",null,null,null,null,null,"director of military support"]
["DON",null,null,null,null,null,"Department of the Navy"]
["DOP ",null,null,null,null,null,"Dropped Object Prevention"]
["DOPMA",null,null,null,null,null,"Defense Officer Personnel Management Act"]
["DOR",null,null,null,null,null,"date of rank; Due-Out Release"]
["DOS",null,null,null,null,null,"date of separation; days of supply; denial of service; Department of State; disk operating system"]
["DOT",null,null,null,null,null,"Department of Transportation"]
["DOTEO",null,null,null,null,null,"Department of Transportation emergency organization"]
["DOTMLPF",null,null,null,null,null,"doctrine, organization, training, materiel, leadership and education, personnel, and facilities"]
["DOW",null,null,null,null,null,"data orderwire; died of wounds"]
["DOX-T",null,null,null,null,null,"direct operational exchange-tactical"]
["DOY",null,null,null,null,null,"day of year"]
["dp",null,null,null,null,null,"parachute drift"]
["DP",null,null,null,null,null,"Air Force component plans officer (staff); decisive point; Directorate for Policy Support (DIA); displaced person"]
["DPA",null,null,null,null,null,"danger pay allowance; Defense Production Act"]
["DPAP",null,null,null,null,null,"Defense Procurement and Acquisition Policy"]
["DPAS",null,null,null,null,null,"Defense Priorities and Allocation System"]
["DPC",null,null,null,null,null,"deception planning cell; Defense Planning Committee (NATO)"]
["DPEC",null,null,null,null,null,"displaced person exploitation cell"]
["DPG",null,null,null,null,null,"Defense Planning Guidance"]
["DPI",null,null,null,null,null,"desired point of impact"]
["dpi",null,null,null,null,null,"dots per inch"]
["DPICM",null,null,null,null,null,"dual purpose improved conventional munitions"]
["DPKO",null,null,null,null,null,"Department of Peacekeeping Operations (UN)"]
["DPLSM",null,null,null,null,null,"dipulse group modem"]
["DPM",null,null,null,null,null,"dissemination program manager"]
["DPMO",null,null,null,null,null,"Defense Prisoner of War/Missing Personnel Office"]
["DPO",null,null,null,null,null,"distribution process owner"]
["DPP",null,null,null,null,null,"data patch panel; distributed production program"]
["DPPDB",null,null,null,null,null,"digital point positioning database"]
["DPQ",null,null,null,null,null,"defense planning questionnaire (NATO)"]
["DPR",null,null,null,null,null,"display non-nodal routing"]
["DPRB",null,null,null,null,null,"Defense Planning and Resources Board"]
["DPRE",null,null,null,null,null,"displaced persons, refugees, and evacuees"]
["DPS",null,null,null,null,null,"data processing system"]
["DPSC",null,null,null,null,null,"Defense Personnel Support Center"]
["DPSK",null,null,null,null,null,"differential phase shift keying"]
["DR",null,null,null,null,null,"dead reckoning; digital receiver; disaster relief; Deficiency Report"]
["DRB",null,null,null,null,null,"Defense Resources Board"]
["DRC",null,null,null,null,null,"Data Repository Center"]
["DRe",null,null,null,null,null,"dead reckoning error"]
["DRL",null,null,null,null,null,"Bureau of Democracy, Human Rights, and Labor (DOS)"]
["DRMD",null,null,null,null,null,"deployments requirements manning document"]
["DRMO",null,null,null,null,null,"Defense Reutilization and Marketing Office"]
["DRMS",null,null,null,null,null,"Defense Reutilization and Marketing Service; distance root-mean-square"]
["DRN",null,null,null,null,null,"Disaster Response Network"]
["DRO",null,null,null,null,null,"departmental requirements office; departmental requirements officer"]
["DRRS",null,null,null,null,null,"Defense Readiness Reporting System"]
["DRS",null,null,null,null,null,"detainee reporting system"]
["DRSN",null,null,null,null,null,"Defense Red Switched Network"]
["DRT",null,null,null,null,null,"dead reckoning tracer; decontamination and reconnaissance team"]
["DRTC",null,null,null,null,null,"designated reporting technical control"]
["DRU",null,null,null,null,null,"Direct Report Unit"]
["DS",null,null,null,null,null,"Directorate for Information Management and Chief Information Officer (DIA); direct support; doctrine sponsor; Defensive Systems"]
["DSA",null,null,null,null,null,"defense special assessment (DIA)"]
["DSAA",null,null,null,null,null,"Defense Security Assistance Agency"]
["DSAID",null,null,null,null,null,"defense sexual assault incident database"]
["DSAR",null,null,null,null,null,"Defense Supply Agency regulation"]
["DSB",null,null,null,null,null,"digital in-band trunk signaling (DIBTS) signaling buffer"]
["DSC",null,null,null,null,null,"defensive space control; digital selective calling; dual-status commander"]
["DSCA",null,null,null,null,null,"Defense Security Cooperation Agency; defense support of civil authorities"]
["DSCP",null,null,null,null,null,"Defense Supply Center Philadelphia"]
["DSCR",null,null,null,null,null,"Defense Supply Center Richmond"]
["DSCS",null,null,null,null,null,"Defense Satellite Communications System"]
["DSCSOC",null,null,null,null,null,"Defense Satellite Communications System operations center"]
["DSDI",null,null,null,null,null,"digital simple data interface"]
["DSE",null,null,null,null,null,"direct support element"]
["DSF",null,null,null,null,null,"District Stability Framework (USAID)"]
["DSG",null,null,null,null,null,"digital signal generator"]
["DSI",null,null,null,null,null,"defense simulation internet"]
["DSL",null,null,null,null,null,"display switch locator (SL) routing"]
["DSM",null,null,null,null,null,"decision support matrix"]
["DSMAC",null,null,null,null,null,"digital scene-matching area correlation"]
["DSN",null,null,null,null,null,"Defense Switched Network"]
["DSNET",null,null,null,null,null,"Defense Secure Network"]
["DSNET-2",null,null,null,null,null,"Defense Secure Network-2"]
["DSO",null,null,null,null,null,"Defense Spectrum Organization; defensive systems officer"]
["DSOE",null,null,null,null,null,"deployment schedule of events"]
["DSP",null,null,null,null,null,"Defense Satellite Program; Defense Support Program"]
["DSPD",null,null,null,null,null,"defense support to public diplomacy"]
["DSPL",null,null,null,null,null,"display system programming language"]
["DSPS",null,null,null,null,null,"Director, Security Plans and Service"]
["DSR",null,null,null,null,null,"defense source registry"]
["DSS",null,null,null,null,null,"Defense Security Service; Distribution Standard System; Decentralized Supply Support"]
["DSS/ALOC",null,null,null,null,null,"direct support system/air line of communications"]
["DSSCS",null,null,null,null,null,"Defense Special Security Communications System"]
["DSSM",null,null,null,null,null,"Defense Superior Service Medal"]
["DSSO",null,null,null,null,null,"data system support organization; defense systems support organization"]
["DSSO",null,null,null,null,null,"defense sensitive support office"]
["DSSR",null,null,null,null,null,"Department of State Standardized Regulation"]
["DST",null,null,null,null,null,"decision support template; Defense Logistics Agency support team; deployment support team; district support team"]
["DSTP",null,null,null,null,null,"Director of Strategic Target Planning"]
["DSTR",null,null,null,null,null,"destroy"]
["DSTS-G",null,null,null,null,null,"Defense Information Systems Network (DISN) Satellite Transmission Services - Global"]
["DSV",null,null,null,null,null,"Detected Safety Violations"]
["DSVL",null,null,null,null,null,"doppler sonar velocity log"]
["DSVT",null,null,null,null,null,"digital subscriber voice terminal"]
["DT",null,null,null,null,null,"Directorate for MASINT and Technical Collection (DIA)"]
["DTA",null,null,null,null,null,"Defense Threat Assessment; dynamic threat assessment"]
["DTAM",null,null,null,null,null,"defense terrorism awareness message"]
["DTC",null,null,null,null,null,"defense transportation coordination"]
["DTCI",null,null,null,null,null,"Defense Transportation Coordination Initiative"]
["DTD",null,null,null,null,null,"detailed troop decontamination"]
["DTE",null,null,null,null,null,"data terminal equipment; developmental test and evaluation"]
["DTED",null,null,null,null,null,"digital terrain elevation data"]
["DTG",null,null,null,null,null,"date-time group; digital trunk group (digital transmission group)"]
["DTIP",null,null,null,null,null,"Disruptive Technology Innovations Partnership (DIA)"]
["DTL",null,null,null,null,null,"designator target line"]
["DTMF",null,null,null,null,null,"dual tone multi-frequency"]
["DTMR",null,null,null,null,null,"defense traffic management regulation"]
["DTO",null,null,null,null,null,"division transportation office; drug trafficking organization"]
["DTOC",null,null,null,null,null,"division tactical operations center"]
["DTR",null,null,null,null,null,"defense transportation regulation"]
["DTRA",null,null,null,null,null,"Defense Threat Reduction Agency"]
["DTRACS",null,null,null,null,null,"Defense Transportation Reporting and Control System"]
["DTRATCA",null,null,null,null,null,"Defense Threat Reduction and Treaty Compliance Agency"]
["DTS",null,null,null,null,null,"Defense Transportation System; Defense Travel System; diplomatic telecommunications service"]
["DTTS",null,null,null,null,null,"Defense Transportation Tracking System"]
["DTWR",null,null,null,null,null,"defense terrorism warning report"]
["DU",null,null,null,null,null,"depleted uranium"]
["DUSD",null,null,null,null,null,"deputy under Secretary of Defense"]
["DUSD (CI&S)",null,null,null,null,null,"Deputy Under Secretary of Defense for Counterintelligence and Security"]
["DUSD(L&MR)",null,null,null,null,null,"Deputy Under Secretary of Defense for Logistics and Materiel Readiness"]
["DUSDL",null,null,null,null,null,"Deputy Under Secretary of Defense for Logistics"]
["DUSDP",null,null,null,null,null,"Deputy Under Secretary of Defense for Policy"]
["DV",null,null,null,null,null,"distinguished visitor"]
["DVA",null,null,null,null,null,"Department of Veterans Affairs"]
["DVD",null,null,null,null,null,"digital video device; digital video disc"]
["DVITS",null,null,null,null,null,"Digital Video Imagery Transmission System"]
["DVOW",null,null,null,null,null,"digital voice orderwire"]
["DVR",null,null,null,null,null,"Document Validation Report"]
["DVT",null,null,null,null,null,"deployment visualization tool"]
["DWAS",null,null,null,null,null,"Defense Working Capital Accounting System"]
["DWMCF",null,null,null,null,null,"double-wide modular causeway ferry"]
["DWT",null,null,null,null,null,"deadweight tonnage"]
["DWTS",null,null,null,null,null,"Digital Wideband Transmission System"]
["DX",null,null,null,null,null,"Directorate for External Relations (DIA)"]
["DZ",null,null,null,null,null,"drop zone"]
["DZC",null,null,null,null,null,"drop zone controller"]
["DZCO",null,null,null,null,null,"drop zone control officer"]
["DZSO",null,null,null,null,null,"drop zone safety officer"]
["DZST",null,null,null,null,null,"drop zone support team"]
["DZSTL",null,null,null,null,null,"drop zone support team leader"]
["eTools",null,null,null,null,null,"Electronic Tools"]
["E",null,null,null,null,null,"total probable error"]
["E&DCP",null,null,null,null,null,"evaluation and data collection plan"]
["E&E",null,null,null,null,null,"emergency and extraordinary expense authority; Electro-Environmental"]
["E&EE",null,null,null,null,null,"emergency and extraordinary expense"]
["E&HWG",null,null,null,null,null,"Environmental and Health Working Group"]
["E&I",null,null,null,null,null,"engineering and installation"]
["E&M",null,null,null,null,null,"ear and mouth; special signaling leads"]
["E-8C",null,null,null,null,null,"joint surveillance, target attack radar system (JSTARS) aircraft"]
["E-ARTS",null,null,null,null,null,"en route automated radar tracking system"]
["E-mail",null,null,null,null,null,"electronic mail"]
["E-O TDA",null,null,null,null,null,"electro-optical tactical decision aid"]
["E-Space",null,null,null,null,null,"Electromagnetic-Space"]
["E-UAV",null,null,null,null,null,"endurance unmanned aerial vehicle"]
["E1",null,null,null,null,null,"Echelon 1"]
["E2",null,null,null,null,null,"Echelon 2"]
["E3",null,null,null,null,null,"Echelon 3; electromagnetic environmental effects"]
["E4",null,null,null,null,null,"Echelon 4"]
["E5",null,null,null,null,null,"Echelon 5"]
["EA",null,null,null,null,null,"electronic attack; emergency action; evaluation agent; executive agent; executive assistant"]
["ea",null,null,null,null,null,"each"]
["EAC",null,null,null,null,null,"echelons above corps (ARMY); emergency action; emergency action committee"]
["EACS",null,null,null,null,null,"expeditionary aeromedical evacuation crew member support"]
["EACT",null,null,null,null,null,"expeditionary aeromedical evacuation coordination team"]
["EAD",null,null,null,null,null,"earliest arrival date; echelons above division (Army); extended active duty"]
["EADRU",null,null,null,null,null,"Euro-Atlantic disaster response unit"]
["EADS",null,null,null,null,null,"Eastern Air Defense Sector"]
["EAES",null,null,null,null,null,"expeditionary aeromedical evacuation squadron"]
["EAF",null,null,null,null,null,"expeditionary aerospace forces; expeditionary airfield"]
["EAI",null,null,null,null,null,"executive agent instruction"]
["EAID",null,null,null,null,null,"Equipment Authorization Inventory Data"]
["EALT",null,null,null,null,null,"earliest anticipated launch time"]
["EAM",null,null,null,null,null,"emergency action message"]
["EAP",null,null,null,null,null,"emergency action plan; emergency action procedures"]
["EAP-CJCS",null,null,null,null,null,"emergency action procedures of the Chairman of the Joint Chiefs of Staff"]
["EAPC",null,null,null,null,null,"Euro-Atlantic Partnership Council"]
["EARLY",null,null,null,null,null,"evasion and recovery supplemental data report"]
["EASF",null,null,null,null,null,"expeditionary aeromedical staging facility"]
["EAST",null,null,null,null,null,"expeditionary aeromedical evacuation staging team"]
["EASTPAC",null,null,null,null,null,"eastern Pacific Ocean"]
["EAWP",null,null,null,null,null,"Engine Automated Work Package"]
["EBCDIC",null,null,null,null,null,"extended binary coded decimal interchange code"]
["EBS",null,null,null,null,null,"environmental baseline survey"]
["EC",null,null,null,null,null,"electronic combat; enemy combatant; error control; European Community; Equipment Condition"]
["ECAC",null,null,null,null,null,"Electromagnetic Compatibility Analysis Center"]
["ECB",null,null,null,null,null,"echelons corps and below (Army)"]
["ECC",null,null,null,null,null,"engineer coordination cell; evacuation control center"]
["ECES",null,null,null,null,null,"expeditionary civil engineer squadron"]
["ECHA",null,null,null,null,null,"Executive Committee for Humanitarian Affairs (UN)"]
["ECHO",null,null,null,null,null,"European Commission Directorate General for Humanitarian Aid and Civil Protection; European Community Humanitarian Aid Department"]
["ECM",null,null,null,null,null,"electronic countermeasures; Equipment Configuration Management"]
["ECN",null,null,null,null,null,"electronic change notice; Minimum Essential Emergency Communications Network"]
["ECO",null,null,null,null,null,"electronic combat officer"]
["ECOSOC",null,null,null,null,null,"Economic and Social Council (UN)"]
["ECP",null,null,null,null,null,"emergency command precedence; engineering change proposal; entry control point"]
["ECS",null,null,null,null,null,"expeditionary combat support"]
["ECSS",null,null,null,null,null,"Expeditionary Combat Support System"]
["ECU",null,null,null,null,null,"environmental control unit"]
["ED",null,null,null,null,null,"envelope delay; evaluation directive; Incapacitated"]
["EDA",null,null,null,null,null,"Economic Development Administration (DOC); excess defense articles"]
["EDC",null,null,null,null,null,"estimated date of completion"]
["EDD",null,null,null,null,null,"earliest delivery date"]
["EDI",null,null,null,null,null,"electronic data interchange"]
["EDSC",null,null,null,null,null,"Engineering Data Service Center"]
["EDSS",null,null,null,null,null,"equipment deployment and storage system"]
["EE",null,null,null,null,null,"emergency establishment"]
["EEA",null,null,null,null,null,"environmental executive agent"]
["EEBD",null,null,null,null,null,"emergency escape breathing device"]
["EECT",null,null,null,null,null,"end evening civil twilight"]
["EED",null,null,null,null,null,"electro-explosive device; emergency-essential designation"]
["EEDAC",null,null,null,null,null,"emergency essential Department of the Army civilian"]
["EEE",null,null,null,null,null,"emergency and extraordinary expense"]
["EEFI",null,null,null,null,null,"essential element of friendly information"]
["EEI",null,null,null,null,null,"essential element of information"]
["EELV",null,null,null,null,null,"evolved expendable launch vehicle"]
["EEO",null,null,null,null,null,"equal employment opportunity"]
["EEPROM",null,null,null,null,null,"electronic erasable programmable read-only memory"]
["EER",null,null,null,null,null,"enlisted employee review; extended echo ranging"]
["EEZ",null,null,null,null,null,"exclusive economic zone"]
["EFA",null,null,null,null,null,"engineering field activity"]
["EFAC",null,null,null,null,null,"emergency family assistance center"]
["EFD",null,null,null,null,null,"engineering field division"]
["EFP",null,null,null,null,null,"explosively formed projectile"]
["EFST",null,null,null,null,null,"essential fire support task"]
["EFT",null,null,null,null,null,"electronic funds transfer"]
["EFTO",null,null,null,null,null,"encrypt for transmission only"]
["EGAT",null,null,null,null,null,"Bureau of Economic Growth, Agriculture, and Trade (USAID)"]
["EGM",null,null,null,null,null,"Earth Gravity Model"]
["EGS",null,null,null,null,null,"Earth ground station"]
["EH",null,null,null,null,null,"explosive hazard"]
["EHCC",null,null,null,null,null,"explosive hazards coordination cell"]
["EHDB",null,null,null,null,null,"explosive hazard database"]
["EHF",null,null,null,null,null,"extremely high frequency"]
["EHM+",null,null,null,null,null,"Engine Health Management"]
["EHO",null,null,null,null,null,"environmental health officer"]
["HER",null,null,null,null,null,"Event History Recorder"]
["EHRA",null,null,null,null,null,"environmental health risk assessment"]
["EHSA",null,null,null,null,null,"environmental health site assessment"]
["EHT",null,null,null,null,null,"explosive hazard team"]
["EI",null,null,null,null,null,"environmental information; exercise item; Evaluation and Inspection"]
["EIA",null,null,null,null,null,"Electronic Industries Association"]
["EID",null,null,null,null,null,"electrically initiated device; Event Identification Description / Equipment Identification Designator"]
["EIP",null,null,null,null,null,"Event Identification Description / Equipment Identification Designator"]
["EIS",null,null,null,null,null,"Environmental Impact Statement"]
["eJMAPS",null,null,null,null,null,"electronic Joint Manpower and Personnel System"]
["EJPME",null,null,null,null,null,"enlisted joint professional military education"]
["ELBA",null,null,null,null,null,"emergency locator beacon"]
["ELCAS",null,null,null,null,null,"elevated causeway system"]
["ELCAS(M)",null,null,null,null,null,"elevated causeway system (modular)"]
["ELCAS(NL)",null,null,null,null,null,"elevated causeway system (Navy lighterage)"]
["ELD",null,null,null,null,null,"emitter locating data"]
["ELINT",null,null,null,null,null,"electronic intelligence"]
["ELIST",null,null,null,null,null,"enhanced logistics intratheater support tool"]
["ELOS",null,null,null,null,null,"extended line of sight"]
["ELPP",null,null,null,null,null,"equal level patch panel"]
["ELR",null,null,null,null,null,"extra-long-range aircraft"]
["ELSEC",null,null,null,null,null,"electronics security"]
["ELT",null,null,null,null,null,"emergency locator transmitter"]
["ELV",null,null,null,null,null,"expendable launch vehicle"]
["ELVA",null,null,null,null,null,"emergency low-visibility approach"]
["EM",null,null,null,null,null,"electromagnetic; emergency management; executive manager; Engine Management"]
["EMAC",null,null,null,null,null,"emergency management assistance compact"]
["EMALL",null,null,null,null,null,"electronic mall"]
["EMBM",null,null,null,null,null,"electromagnetic battle management"]
["EMC",null,null,null,null,null,"electromagnetic compatibility"]
["EMCON",null,null,null,null,null,"emission control"]
["EMD",null,null,null,null,null,"effective miss distance; expeditionary military information support detachment"]
["EME",null,null,null,null,null,"electromagnetic environment"]
["EMEDS",null,null,null,null,null,"expeditionary medical support"]
["EMF",null,null,null,null,null,"expeditionary medical facility"]
["EMFR",null,null,null,null,null,"Electrommagnetic Field Radiation"]
["EMI",null,null,null,null,null,"electromagnetic interface; electromagnetic interference"]
["EMIO",null,null,null,null,null,"expanded maritime interception operations"]
["EMOC",null,null,null,null,null,"Enhanced Maintenance Operations Center"]
["EMOE",null,null,null,null,null,"electromagnetic operational environment"]
["EMP",null,null,null,null,null,"electromagnetic pulse"]
["EMR hazards",null,null,null,null,null,"electromagnetic radiation hazards"]
["EMS",null,null,null,null,null,"electromagnetic spectrum; emergency medical services; Equipment Maintenance Squadron / Environmental Management System"]
["EMSC",null,null,null,null,null,"electromagnetic spectrum control"]
["EMSEC",null,null,null,null,null,"emanations security"]
["EMT",null,null,null,null,null,"emergency medical technician; emergency medical treatment; expeditionary military information support team"]
["EMTF",null,null,null,null,null,"expeditionary mobility task force"]
["EMU",null,null,null,null,null,"expeditionary medical unit"]
["EMV",null,null,null,null,null,"electromagnetic vulnerability"]
["EMXG/CC",null,null,null,null,null,"Equipment Maintenance Squadron / Environmental Management System"]
["ENCOM",null,null,null,null,null,"engineer command (Army)"]
["ENDEX",null,null,null,null,null,"exercise termination"]
["ENL",null,null,null,null,null,"enlisted"]
["ENMCS",null,null,null,null,null,"Engine Not Mission Capable for Supply"]
["ENSCE",null,null,null,null,null,"enemy situation correlation element"]
["ENWGS",null,null,null,null,null,"Enhanced Naval Warfare Gaming System"]
["EO",null,null,null,null,null,"electro-optical; end office; equal opportunity; executive order; eyes only"]
["EO-IR",null,null,null,null,null,"electro-optical-infrared"]
["EO-IR CM",null,null,null,null,null,"electro-optical-infrared countermeasure"]
["EOB",null,null,null,null,null,"electromagnetic order of battle; electronic order of battle; enemy order of battle"]
["EOC",null,null,null,null,null,"early operational capability; emergency operating center; emergency operations center"]
["EOCA",null,null,null,null,null,"explosive ordnance clearance agent"]
["EOD ",null,null,null,null,null,"Explosive Ordnance Disposal"]
["EODMU-1",null,null,null,null,null,"explosive ordnance disposal mobile unit one"]
["EOI",null,null,null,null,null,"electro-optic(al) imagery"]
["EOL",null,null,null,null,null,"end of link"]
["EOM",null,null,null,null,null,"end of message"]
["EOP",null,null,null,null,null,"emergency operating procedures"]
["EOR",null,null,null,null,null,"End of Runway"]
["EOT",null,null,null,null,null,"Engine Operating Time"]
["EOW",null,null,null,null,null,"engineering orderwire"]
["EP",null,null,null,null,null,"electronic protection; emergency preparedness; emergency procedures; excess property; execution planning"]
["EPA",null,null,null,null,null,"Environmental Protection Agency; evasion plan of action"]
["EPBX",null,null,null,null,null,"electronic private branch exchange"]
["EPC",null,null,null,null,null,"Emergency Procurement Committee"]
["EPE",null,null,null,null,null,"Evaluator Proficiency Evaluation"]
["EPF",null,null,null,null,null,"enhanced palletized load system (PLS) flatrack"]
["EPH",null,null,null,null,null,"emergency planning handbook"]
["EPIC",null,null,null,null,null,"El Paso Intelligence Center"]
["EPIRB",null,null,null,null,null,"emergency position-indicating radio beacon"]
["EPLO",null,null,null,null,null,"emergency preparedness liaison officer"]
["EPR ",null,null,null,null,null,"Evaluator Proficiency Report"]
["EPROM",null,null,null,null,null,"erasable programmable read-only memory"]
["EPU",null,null,null,null,null,"expeditionary port unit"]
["EPW",null,null,null,null,null,"enemy prisoner of war"]
["EPW/CI",null,null,null,null,null,"enemy prisoner of war/civilian internee"]
["ER",null,null,null,null,null,"Exceptional Release"]
["ERC",null,null,null,null,null,"emergency relief coordinator; exercise related construction"]
["ERDC",null,null,null,null,null,"Engineer Research and Development Center"]
["ERG",null,null,null,null,null,"Emergency Response Guidebook"]
["ERGM",null,null,null,null,null,"extended range guided munitions"]
["ERO",null,null,null,null,null,"engine running on or offload"]
["ERPSS",null,null,null,null,null,"En Route Patient Staging System"]
["ERRC",null,null,null,null,null,"Expendability, Recoverability, Reparability Code"]
["ERRO",null,null,null,null,null,"Emergency Response and Recovery Office"]
["ERSD",null,null,null,null,null,"estimated return to service date"]
["ERT",null,null,null,null,null,"emergency response team (FEMA); engineer reconnaissance team"]
["ERT-A",null,null,null,null,null,"emergency response team - advance element"]
["ERU",null,null,null,null,null,"emergency response unit"]
["ERW",null,null,null,null,null,"explosive remnants of war"]
["ES",null,null,null,null,null,"electronic warfare support; executive secretariat; Enterprise Solution-Supply"]
["ESAC",null,null,null,null,null,"Electromagnetic-Space Analysis Center (NSA)"]
["ESB",null,null,null,null,null,"engineer support battalion"]
["ESC",null,null,null,null,null,"Electronics Systems Center; expeditionary sustainment command"]
["ESF",null,null,null,null,null,"Economic Support Fund; emergency support function"]
["ESG",null,null,null,null,null,"executive steering group; expeditionary strike group"]
["ESGN",null,null,null,null,null,"electrically suspended gyro navigation"]
["ESI",null,null,null,null,null,"extremely sensitive information"]
["ESK",null,null,null,null,null,"electronic staff weather officer kit"]
["ESM",null,null,null,null,null,"expeditionary site mapping"]
["ESO",null,null,null,null,null,"embarkation staff officer; environmental science officer; Expeditionary Support Organization (DFAS)"]
["ESOC",null,null,null,null,null,"Emergency Supply Operations Center"]
["ESOH",null,null,null,null,null,"environmental, safety, and occupational health"]
["ESOHMS",null,null,null,null,null,"Environment Safety and Occupational Health"]
["ESORTS",null,null,null,null,null,"Enhanced Status of Resources and Training System"]
["ESP",null,null,null,null,null,"engineer support plan; Expeditionary Site Plan"]
["ESR",null,null,null,null,null,"external supported recovery"]
["EST",null,null,null,null,null,"embarked security team; emergency service team; emergency support team (FEMA); en route support team"]
["ESTA",null,null,null,null,null,"En Route Support Team Advanced"]
["ET",null,null,null,null,null,"electronics technician"]
["ET&D",null,null,null,null,null,"Engine Trending and Diagnostics"]
["ETA",null,null,null,null,null,"estimated time of arrival"]
["ETAC",null,null,null,null,null,"emergency tactical air control"]
["ETD",null,null,null,null,null,"estimated time of departure"]
["ETF",null,null,null,null,null,"electronic target folder"]
["ETI",null,null,null,null,null,"estimated time of intercept"]
["ETIC",null,null,null,null,null,"estimated time for completion; estimated time in commission; Expected Time in Commission"]
["ETIMS",null,null,null,null,null,"Enhanced Technical Information Management System"]
["ETM",null,null,null,null,null,"electronic transmission; essential tasks matrix"]
["ETO",null,null,null,null,null,"Emergency Transportation Operations (DOT)"]
["ETPL",null,null,null,null,null,"endorsed TEMPEST products list"]
["ETR",null,null,null,null,null,"export traffic release"]
["ETS",null,null,null,null,null,"European telephone system; Engineering Technical Service"]
["ETSS",null,null,null,null,null,"extended training service specialist"]
["ETTAS",null,null,null,null,null,"Engine Test Trim Automated System"]
["ETX",null,null,null,null,null,"end of text"]
["EU",null,null,null,null,null,"European Union"]
["EUB",null,null,null,null,null,"essential user bypass"]
["EURV",null,null,null,null,null,"essential user rekeying variable"]
["EUSA",null,null,null,null,null,"Eighth US Army"]
["EUSC",null,null,null,null,null,"effective United States control; effective United States controlled"]
["EUSCS",null,null,null,null,null,"effective United States-controlled ships"]
["EVC",null,null,null,null,null,"evasion chart"]
["EVE",null,null,null,null,null,"equal value exchange"]
["EVS",null,null,null,null,null,"Electro-optical Viewing System"]
["EW",null,null,null,null,null,"early warning; electronic warfare"]
["EW/GCI",null,null,null,null,null,"early warning/ground-controlled intercept"]
["EWC",null,null,null,null,null,"electronic warfare cell; electronic warfare coordinator"]
["EWCA",null,null,null,null,null,"electronic warfare control authority"]
["EWCC",null,null,null,null,null,"electronic warfare coordination cell"]
["EWCS",null,null,null,null,null,"electronic warfare control ship"]
["EWD",null,null,null,null,null,"Electronic Warfare Directorate (USSTRATCOM)"]
["EWE",null,null,null,null,null,"electronic warfare element"]
["EWG",null,null,null,null,null,"electronic warfare group"]
["EWIR",null,null,null,null,null,"electronic warfare integrated reprogramming"]
["EWO",null,null,null,null,null,"Emergency War Order/Electronic Warfare Officer"]
["EWS",null,null,null,null,null,"Electronic Warfare System"]
["EX",null,null,null,null,null,"Exercises/Contingencies"]
["EXCIMS",null,null,null,null,null,"Executive Council for Modeling and Simulations"]
["ExCom",null,null,null,null,null,"executive committee"]
["EXDIR",null,null,null,null,null,"Executive Director (CIA)"]
["EXDIR/ICA",null,null,null,null,null,"Executive Director for Intelligence Community Affairs (USG)"]
["EXECSEC",null,null,null,null,null,"executive secretary"]
["EXER",null,null,null,null,null,"exercise"]
["EXORD",null,null,null,null,null,"execute order"]
["EXPLAN",null,null,null,null,null,"exercise plan"]
["EXPRESS",null,null,null,null,null,"Execution and Prioritization of Repair Support System"]
["EZ",null,null,null,null,null,"exchange zone"]
["EZCO",null,null,null,null,null,"extraction zone control officer"]
["EZM",null,null,null,null,null,"engagement zone manager"]
["F",null,null,null,null,null,"Fahrenheit; flare patterns; flash"]
["F&ES",null,null,null,null,null,"fire and emergency services"]
["F-hour",null,null,null,null,null,"effective time of announcement by the Secretary of Defense to the Military Departments of a decision to mobilize Reserve units"]
["F/AD",null,null,null,null,null,"force/activity designator"]
["F/V",null,null,null,null,null,"fishing vessel"]
["F2T2EA",null,null,null,null,null,"find, fix, track, target, engage, and assess"]
["F3EAD",null,null,null,null,null,"find, fix, finish, exploit, analyze, and disseminate"]
["F3EAD",null,null,null,null,null,"find, fix, finish, exploit, analyze, and disseminate"]
["FA",null,null,null,null,null,"feasibility assessment; field artillery"]
["FAA",null,null,null,null,null,"Federal Aviation Administration (DOT); Foreign Assistance Act"]
["FAAO",null,null,null,null,null,"Federal Aviation Administration order"]
["FAAR",null,null,null,null,null,"facilitated after-action review"]
["FAC",null,null,null,null,null,"forward air controller"]
["FAC(A)",null,null,null,null,null,"forward air controller (airborne)"]
["FACE",null,null,null,null,null,"forward aviation combat engineering"]
["FACSFAC",null,null,null,null,null,"fleet area control and surveillance facility"]
["FACT",null,null,null,null,null,"field advance civilian team; field assessment and coordination team"]
["FAD",null,null,null,null,null,"feasible arrival date; Force Activity Designator"]
["FAE",null,null,null,null,null,"fuel air explosive"]
["FAH",null,null,null,null,null,"foreign affairs handbook"]
["FALD",null,null,null,null,null,"Field Administration and Logistics Division"]
["FALOP",null,null,null,null,null,"Forward Area Limited Observing Program"]
["FAM",null,null,null,null,null,"functional area manager"]
["FAMP",null,null,null,null,null,"forward area minefield planning"]
["FAO",null,null,null,null,null,"Food and Agriculture Organization (UN); foreign area officer"]
["FAPES",null,null,null,null,null,"Force Augmentation Planning and Execution System"]
["FAR",null,null,null,null,null,"Federal Acquisition Regulation; Federal Aviation Regulation; formal assessment report"]
["FARC",null,null,null,null,null,"Revolutionary Armed Forces of Colombia"]
["FARP",null,null,null,null,null,"forward arming and refueling point; Forward Area Refueling Point"]
["FAS",null,null,null,null,null,"Foreign Agricultural Service (USDA); frequency assignment subcommittee; fueling at sea; functional account symbol"]
["FASCAM",null,null,null,null,null,"family of scatterable mines"]
["FAST",null,null,null,null,null,"field assessment surveillance team; fleet antiterrorism security team"]
["FAX",null,null,null,null,null,"facsimile"]
["FB",null,null,null,null,null,"forward boundary"]
["FBI",null,null,null,null,null,"Federal Bureau of Investigation (DOJ)"]
["FBIS",null,null,null,null,null,"Foreign Broadcast Information Service"]
["FBO",null,null,null,null,null,"faith-based organization"]
["FC",null,null,null,null,null,"field circular; final coordination; fires cell (Army); floating causeway; floating craft; force commander"]
["FC/FD",null,null,null,null,null,"Functional Commander/Functional Director"]
["FCA",null,null,null,null,null,"Foreign Claims Act; functional configuration audit"]
["FCC",null,null,null,null,null,"Federal Communications Commission; Federal coordinating center; functional combatant commander; Functional Commander/Functional Director"]
["FCE",null,null,null,null,null,"forward command element"]
["FCF",null,null,null,null,null,"Functional Check Flight"]
["FCG",null,null,null,null,null,"foreign clearance guide"]
["FCM",null,null,null,null,null,"foreign consequence management"]
["FCO",null,null,null,null,null,"federal coordinating officer"]
["FCP",null,null,null,null,null,"fire control party"]
["FCT",null,null,null,null,null,"firepower control team; Flight Circuit Test"]
["FD",null,null,null,null,null,"first draft; from temporary duty"]
["FDA",null,null,null,null,null,"Food and Drug Administration"]
["FDBM",null,null,null,null,null,"functional database manager"]
["FDC",null,null,null,null,null,"fire direction center"]
["FDESC",null,null,null,null,null,"force description"]
["FDL",null,null,null,null,null,"fast deployment logistics"]
["FDLP",null,null,null,null,null,"flight deck landing practice"]
["FDM",null,null,null,null,null,"frequency division multiplexing"]
["FDO",null,null,null,null,null,"fire direction officer; flexible deterrent option; flight deck officer; foreign disclosure officer"]
["FDP",null,null,null,null,null,"forward distribution point"]
["FDPMU",null,null,null,null,null,"forward-deployable preventive medicine unit"]
["FDR",null,null,null,null,null,"foreign disaster relief; Flight Data Recorder"]
["FDR/FA",null,null,null,null,null,"flight data recorder/fault analyzer"]
["FDS",null,null,null,null,null,"fault detection system"]
["FDSL",null,null,null,null,null,"fixed directory subscriber list"]
["FDSS",null,null,null,null,null,"fault detection subsystem"]
["FDSSS",null,null,null,null,null,"flight deck status and signaling system"]
["FDT",null,null,null,null,null,"forward distribution team"]
["FDUL",null,null,null,null,null,"fixed directory unit list"]
["FDX",null,null,null,null,null,"full duplex"]
["FE",null,null,null,null,null,"facilities engineering"]
["FEA",null,null,null,null,null,"front-end analysis"]
["FEBA",null,null,null,null,null,"forward edge of the battle area"]
["FEC",null,null,null,null,null,"facilities engineering command; forward error correction"]
["FECC",null,null,null,null,null,"fires and effects coordination cell"]
["FED-STD",null,null,null,null,null,"federal standard"]
["FEI",null,null,null,null,null,"forensic-enabled intelligence"]
["FEK",null,null,null,null,null,"frequency exchange keying"]
["FEMA",null,null,null,null,null,"Federal Emergency Management Agency (DHS)"]
["FEMS",null,null,null,null,null,"Facility and Equipment Management System"]
["FEP",null,null,null,null,null,"fleet satellite (FLTSAT) extremely high frequency (EHF) package; foreign excess property"]
["FEPP",null,null,null,null,null,"federal excess personal property; foreign excess personal property"]
["FES",null,null,null,null,null,"fire emergency services"]
["FEST",null,null,null,null,null,"foreign emergency support team; forward engineer support team"]
["FET",null,null,null,null,null,"facility engineer team"]
["FEU",null,null,null,null,null,"forty-foot equivalent unit"]
["FEZ",null,null,null,null,null,"fighter engagement zone"]
["FF",null,null,null,null,null,"navy fast frigate"]
["Ff",null,null,null,null,null,"fatigue correction factor"]
["FFA",null,null,null,null,null,"free-fire area"]
["FFC",null,null,null,null,null,"force fires coordinator"]
["FFCC",null,null,null,null,null,"flight ferry control center; force fires coordination center (USMC)"]
["FFD",null,null,null,null,null,"foundation feature data"]
["FFE",null,null,null,null,null,"field force engineering; flame field expedients"]
["FFG",null,null,null,null,null,"guided missile frigate"]
["FFH",null,null,null,null,null,"fast frequency hopping"]
["FFH-net",null,null,null,null,null,"fast-frequency-hopping net"]
["FFHT-net",null,null,null,null,null,"fast-frequency-hopping training net"]
["FFIR",null,null,null,null,null,"friendly force information requirement"]
["FFP",null,null,null,null,null,"Food for Peace; fresh frozen plasma; Office of Food for Peace (DOS)"]
["FFT",null,null,null,null,null,"friendly force tracking"]
["FFTU",null,null,null,null,null,"forward freight terminal unit"]
["FG",null,null,null,null,null,"fighter group"]
["FGMDSS",null,null,null,null,null,"Future Global Maritime Distress and Safety System"]
["FGS",null,null,null,null,null,"final governing standard; Force Generation Service (UN)"]
["FH",null,null,null,null,null,"fleet hospital"]
["FHA",null,null,null,null,null,"Bureau for Food and Humanitarian Assistance; foreign humanitarian assistance"]
["FHC",null,null,null,null,null,"family help center"]
["FHP",null,null,null,null,null,"force health protection; Flying Hour Program"]
["FHWA",null,null,null,null,null,"Federal Highway Administration (DOT)"]
["FI",null,null,null,null,null,"foreign intelligence"]
["FIA",null,null,null,null,null,"functional interoperability architecture"]
["FIAR",null,null,null,null,null,"Financial Improvement and Audit Readiness"]
["FIC",null,null,null,null,null,"force indicator code"]
["FID",null,null,null,null,null,"foreign internal defense"]
["FIDAF",null,null,null,null,null,"foreign internal defense augmentation force"]
["FIE",null,null,null,null,null,"foreign intelligence entity"]
["FIFO",null,null,null,null,null,"first-in-first-out"]
["FinCEN",null,null,null,null,null,"Financial Crimes Enforcement Network"]
["FIR",null,null,null,null,null,"first-impressions report; flight information region"]
["FIRCAP",null,null,null,null,null,"foreign intelligence requirements capabilities and priorities"]
["FIS",null,null,null,null,null,"flight information service; Foreign Intelligence Service"]
["FISC",null,null,null,null,null,"fleet and industrial supply center"]
["FISINT",null,null,null,null,null,"foreign instrumentation signals intelligence"]
["FISS",null,null,null,null,null,"foreign intelligence and security services"]
["FIST",null,null,null,null,null,"fire support team; fleet imagery support terminal; fleet intelligence support team"]
["FIT",null,null,null,null,null,"Facility for Interoperability Testing"]
["FIWC",null,null,null,null,null,"fleet information warfare center"]
["FIXe",null,null,null,null,null,"navigational fix error"]
["FK",null,null,null,null,null,"Air Force Stock Record Account Number Prefix (munitions)"]
["FLAR",null,null,null,null,null,"forward-looking airborne radar"]
["FLENUMMETOCCEN",null,null,null,null,null,"Fleet Numerical Meteorology and Oceanography Center"]
["FLENUMMETOCDET",null,null,null,null,null,"Fleet Numerical Meteorological and Oceanographic Detachment"]
["FLETC",null,null,null,null,null,"Federal Law Enforcement Training Center (DHS)"]
["FLIP",null,null,null,null,null,"flight information publication; flight instruction procedures"]
["FLIR",null,null,null,null,null,"forward-looking infrared RADAR"]
["FLITE",null,null,null,null,null,"federal legal information through electronics"]
["FLO/FLO",null,null,null,null,null,"float-on/float-off"]
["FLOLS",null,null,null,null,null,"fresnel lens optical landing system"]
["FLOT",null,null,null,null,null,"forward line of own troops"]
["FLP",null,null,null,null,null,"force level planning"]
["FLS",null,null,null,null,null,"forward logistic site"]
["FLSG",null,null,null,null,null,"force logistic support group"]
["FLTCYBERCOM",null,null,null,null,null,"Fleet Cyber Command (Navy)"]
["FLTSAT",null,null,null,null,null,"fleet satellite"]
["FLTSATCOM",null,null,null,null,null,"fleet satellite communications"]
["FM",null,null,null,null,null,"field manual (Army); financial management; flare multiunit;  force module; frequency management; frequency modulation; functional manager"]
["FM/A",null,null,null,null,null,"functional manager for analysis"]
["FMA-net",null,null,null,null,null,"frequency management A-net"]
["FMAS",null,null,null,null,null,"foreign media analysis subsystem"]
["FMAT",null,null,null,null,null,"financial management augmentation team"]
["FMC",null,null,null,null,null,"force movement characteristics; full mission-capable"]
["FMCH",null,null,null,null,null,"fleet multichannel"]
["FMCR",null,null,null,null,null,"Fleet Marine Corps Reserve"]
["FMF",null,null,null,null,null,"Fleet Marine Force; foreign military financing"]
["FMFP",null,null,null,null,null,"foreign military financing program"]
["FMI",null,null,null,null,null,"field manual-interim"]
["FMID",null,null,null,null,null,"force module identifier"]
["FMO",null,null,null,null,null,"frequency management office; functional manager office"]
["FMP",null,null,null,null,null,"foreign materiel program"]
["FMS",null,null,null,null,null,"force module subsystem; foreign military sales"]
["FMSC",null,null,null,null,null,"frequency management sub-committee"]
["FMSCA",null,null,null,null,null,"Federal Motor Carrier Safety Administration"]
["FMT-net",null,null,null,null,null,"frequency management training net"]
["FMV",null,null,null,null,null,"full motion video"]
["FN",null,null,null,null,null,"foreign nation"]
["FNMOC",null,null,null,null,null,"Fleet Numerical Meteorology and Oceanography Center"]
["FNMOD",null,null,null,null,null,"Fleet Numerical Meteorological and Oceanographic Detachment"]
["FNOC",null,null,null,null,null,"Fleet Numerical Oceanographic Command"]
["FNS",null,null,null,null,null,"foreign nation support"]
["FO",null,null,null,null,null,"fiber optic; flash override; forward observer; Foreign Object"]
["FOA",null,null,null,null,null,"Field Operating Unit"]
["FOB",null,null,null,null,null,"forward operating base; forward operations base"]
["FOC",null,null,null,null,null,"full operational capability; future operations cell"]
["FOD",null,null,null,null,null,"field operations division; foreign object damage"]
["FOFW",null,null,null,null,null,"fiber optic field wire"]
["FOG",null,null,null,null,null,"Field Operations Guide for Disaster Assessment and Response"]
["FOI",null,null,null,null,null,"fault detection isolation"]
["FOIA",null,null,null,null,null,"Freedom of Information Act"]
["FOIU",null,null,null,null,null,"fiber optic interface unit"]
["FOL",null,null,null,null,null,"fiber optic link; Forward Operating Location"]
["FOM",null,null,null,null,null,"Facilitate Other Maintenance"]
["FON",null,null,null,null,null,"freedom of navigation (operations)"]
["FOO",null,null,null,null,null,"field ordering officer"]
["FORCE",null,null,null,null,null,"fuels operational readiness capability equipment (Air Force)"]
["FORMICA",null,null,null,null,null,"foreign military intelligence collection activities"]
["FORSCOM",null,null,null,null,null,"United States Army Forces Command"]
["FORSTAT",null,null,null,null,null,"force status and identity report"]
["FOS",null,null,null,null,null,"full operational status"]
["FOT",null,null,null,null,null,"follow-on operational test"]
["FOUO",null,null,null,null,null,"for official use only"]
["FP",null,null,null,null,null,"force protection; frequency panel"]
["FPA",null,null,null,null,null,"foreign policy advisor"]
["FPC",null,null,null,null,null,"final planning conference; future plans cell"]
["FPCON",null,null,null,null,null,"force protection condition"]
["FPD",null,null,null,null,null,"force protection detachment; foreign post differential"]
["FPF",null,null,null,null,null,"final protective fire"]
["FPM",null,null,null,null,null,"Federal personnel manual"]
["FPO",null,null,null,null,null,"fleet post office"]
["FPOC",null,null,null,null,null,"focal point operations center"]
["FPS",null,null,null,null,null,"Federal Protective Service; force protection source"]
["FPTAS",null,null,null,null,null,"flight path threat analysis simulation"]
["FPTS",null,null,null,null,null,"forward propagation by tropospheric scatter"]
["FPWG",null,null,null,null,null,"force protection working group"]
["FR",null,null,null,null,null,"final report; frequency response"]
["FRA",null,null,null,null,null,"Federal Railroad Administration (DOT)"]
["FRAG",null,null,null,null,null,"fragmentation code"]
["FRAGORD",null,null,null,null,null,"fragmentary order"]
["FRC",null,null,null,null,null,"federal resource coordinator; forward resuscitative care"]
["FRD",null,null,null,null,null,"formerly restricted data"]
["FREQ",null,null,null,null,null,"frequency"]
["FRERP",null,null,null,null,null,"Federal Radiological Emergency Response Plan"]
["FRF",null,null,null,null,null,"fragment retention film"]
["FRMAC",null,null,null,null,null,"Federal Radiological Monitoring and Assessment Center (DOE)"]
["FRN",null,null,null,null,null,"force requirement number"]
["FRO",null,null,null,null,null,"flexible response option"]
["FROG",null,null,null,null,null,"free rocket over ground"]
["FRP",null,null,null,null,null,"Federal response plan (USG)"]
["FRRS",null,null,null,null,null,"frequency resource record system"]
["FRTP",null,null,null,null,null,"fleet response training plan"]
["FS",null,null,null,null,null,"fighter squadron; file separator; file server; flare single-unit"]
["fs",null,null,null,null,null,"search radius safety factor"]
["FSA",null,null,null,null,null,"fire support area; Functional Systems Administrators"]
["FSAS",null,null,null,null,null,"Fuel Savings Advisory System"]
["FSB",null,null,null,null,null,"fire support base; forward staging base; forward support base; forward support battalion"]
["FSC",null,null,null,null,null,"fire support cell; fire support coordinator (USMC); Flight Service Center"]
["FSCC",null,null,null,null,null,"fire support coordination center (USMC)"]
["FSCL",null,null,null,null,null,"fire support coordination line"]
["FSCM",null,null,null,null,null,"fire support coordination measure"]
["FSCOORD",null,null,null,null,null,"fire support coordinator (Army)"]
["FSE",null,null,null,null,null,"fire support element"]
["FSEM",null,null,null,null,null,"fire support execution matrix"]
["FSF",null,null,null,null,null,"foreign security forces"]
["FSG",null,null,null,null,null,"Federal Supply Group"]
["FSI",null,null,null,null,null,"Foreign Service Institute"]
["FSK",null,null,null,null,null,"frequency shift key"]
["FSL",null,null,null,null,null,"Full Systems Listing"]
["FSN",null,null,null,null,null,"foreign service national"]
["FSO",null,null,null,null,null,"fire support officer; flight safety officer; foreign service officer"]
["FSP",null,null,null,null,null,"functional support plan"]
["FSR",null,null,null,null,null,"field service representative"]
["FSRT",null,null,null,null,null,"fatality search and recovery team"]
["FSS",null,null,null,null,null,"fast sealift ship; fire support station; flight service station"]
["FSSG",null,null,null,null,null,"force service support group (USMC)"]
["FSST",null,null,null,null,null,"forward space support to theater"]
["FST",null,null,null,null,null,"fleet surgical team"]
["FSU",null,null,null,null,null,"former Soviet Union; forward support unit"]
["FSW",null,null,null,null,null,"feet of seawater"]
["ft",null,null,null,null,null,"feet; foot"]
["ft3",null,null,null,null,null,"cubic feet"]
["FTC",null,null,null,null,null,"Federal Trade Commission"]
["FTCA",null,null,null,null,null,"Foreign Tort Claims Act"]
["FTD",null,null,null,null,null,"Field Training Detachment"]
["FTN",null,null,null,null,null,"force tracking number"]
["FTP",null,null,null,null,null,"file transfer protocol"]
["FTRG",null,null,null,null,null,"fleet tactical readiness group"]
["FTS",null,null,null,null,null,"Federal Telecommunications System; Federal telephone service; file transfer service"]
["FTU",null,null,null,null,null,"field training unit; freight terminal unit"]
["FUAC",null,null,null,null,null,"functional area code"]
["FUD",null,null,null,null,null,"File Update Mode"]
["FUNCPLAN",null,null,null,null,null,"functional plan"]
["Fv",null,null,null,null,null,"aircraft speed correction factor; Air Force Stock Record Account Number Prefix (munitions)"]
["FVT",null,null,null,null,null,"Force Validation Tool"]
["FW",null,null,null,null,null,"fighter wing; fixed-wing; weather correction factor"]
["FWC",null,null,null,null,null,"fleet weather center"]
["FWD",null,null,null,null,null,"forward"]
["FWDA",null,null,null,null,null,"friendly weapon danger area"]
["FWF",null,null,null,null,null,"former warring factions"]
["FY",null,null,null,null,null,"fiscal year"]
["FYDP",null,null,null,null,null,"Future Years Defense Program"]
["G-1",null,null,null,null,null,"Army or Marine Corps component manpower or personnel staff officer (Army division or higher staff, Marine Corps brigade or higher staff)"]
["G-2",null,null,null,null,null,"Army Deputy Chief of Staff for Intelligence; Army or Marine Corps component intelligence staff officer (Army division or higher staff, Marine Corps brigade or higher staff)"]
["G-2X",null,null,null,null,null,"Army counterintelligence and human intelligence staff element"]
["G-3",null,null,null,null,null,"Army or Marine Corps component operations staff officer (Army division or higher staff, Marine Corps brigade or higher staff); assistant chief of staff, operations"]
["G-4",null,null,null,null,null,"Army or Marine Corps component logistics staff officer (Army division or higher staff, Marine Corps brigade or higher staff); Assistant Chief of Staff for Logistics"]
["G-5",null,null,null,null,null,"assistant chief of staff, plans"]
["G-6",null,null,null,null,null,"Army or Marine Corps component command, control, communications, and computer systems staff officer; assistant chief of staff for communications; signal staff officer (Army)"]
["G-7",null,null,null,null,null,"Army component information operations staff officer; assistant chief of staff, information engagement, information operations staff officer (ARFOR)"]
["G/A",null,null,null,null,null,"ground to air"]
["G/VLLD",null,null,null,null,null,"ground/vehicle laser locator designator"]
["GA",null,null,null,null,null,"geospatial analyst; Tabun, a nerve agent"]
["GAA",null,null,null,null,null,"general agency agreement; geospatial intelligence assessment activity"]
["GACP",null,null,null,null,null,"Global Ammunition Control Point"]
["GAFS",null,null,null,null,null,"General Accounting and Finance System"]
["GAMSS",null,null,null,null,null,"Global Air Mobility Support System"]
["GAO",null,null,null,null,null,"General Accounting Office; Government Accountability Office"]
["GAR",null,null,null,null,null,"gateway access request"]
["GARS",null,null,null,null,null,"Global Area Reference System"]
["GAT",null,null,null,null,null,"governmental assistance team"]
["GATB",null,null,null,null,null,"guidance, apportionment, and targeting board"]
["GATES",null,null,null,null,null,"Global Air Transportation Execution System"]
["GB",null,null,null,null,null,"group buffer; Sarin, a nerve agent"]
["GBI",null,null,null,null,null,"ground-based interceptor"]
["GBL",null,null,null,null,null,"government bill of lading"]
["GBMD",null,null,null,null,null,"global ballistic missile defense"]
["GBR",null,null,null,null,null,"ground-based radar"]
["GBS",null,null,null,null,null,"Global Broadcast Service; Global Broadcast System"]
["GBU",null,null,null,null,null,"guided bomb unit"]
["GC",null,null,null,null,null,"general counsel; Geneva Convention; Geneva Convention Relative to the Protection of Civilian Persons in Time of War"]
["GC3A",null,null,null,null,null,"global command, control, and communications assessment"]
["GC4A",null,null,null,null,null,"global command, control, communications, and computer assessment"]
["GCA",null,null,null,null,null,"ground controlled approach"]
["GCC",null,null,null,null,null,"geographic combatant commander; global contingency construction"]
["GCCC",null,null,null,null,null,"global contingency construction contract"]
["GCCS",null,null,null,null,null,"Global Command and Control System"]
["GCCS-A",null,null,null,null,null,"Global Command and Control System-Army"]
["GCCS-I3",null,null,null,null,null,"Global Command and Control System Integrated Imagery and Intelligence"]
["GCCS-J",null,null,null,null,null,"Global Command and Control System-Joint"]
["GCCS-M",null,null,null,null,null,"Global Command and Control System-Maritime"]
["GCE",null,null,null,null,null,"ground combat element (MAGTF)"]
["GCI",null,null,null,null,null,"ground control intercept"]
["GCM",null,null,null,null,null,"global container manager; Global Information Grid (GIG) Content Management"]
["GCP",null,null,null,null,null,"global campaign plan; ground commander's pointer"]
["GCRI",null,null,null,null,null,"general collective routing indicator (RI)"]
["GCS",null,null,null,null,null,"ground control station"]
["GCSAS",null,null,null,null,null,"Generic Configuration Status Accounting Subsystem"]
["GCSC",null,null,null,null,null,"global contingency service contract"]
["GCSS",null,null,null,null,null,"Global Combat Support System"]
["GCSS-J",null,null,null,null,null,"Global Combat Support System-Joint"]
["GCTN",null,null,null,null,null,"global combating terrorism network"]
["GD",null,null,null,null,null,"Soman, a nerve agent"]
["GDF",null,null,null,null,null,"gridded data field; Guidance for Development of the Force"]
["GDIP",null,null,null,null,null,"General Defense Intelligence Program"]
["GDIPP",null,null,null,null,null,"General Defense Intelligence Proposed Program"]
["GDP",null,null,null,null,null,"General Defense Plan (SACEUR); gross domestic product"]
["GDSS",null,null,null,null,null,"Global Decision Support System"]
["GE",null,null,null,null,null,"general engineering"]
["GEF",null,null,null,null,null,"Guidance for Employment of the Force"]
["GEM",null,null,null,null,null,"Global Information Grid (GIG) Enterprise Management"]
["GENADMIN",null,null,null,null,null,"general admin (message)"]
["GENSER",null,null,null,null,null,"general service (message)"]
["GENTEXT",null,null,null,null,null,"general text"]
["GEO",null,null,null,null,null,"geosynchronous Earth orbit"]
["GEOCODE",null,null,null,null,null,"geographic code"]
["GEOFILE",null,null,null,null,null,"geolocation code file; standard specified geographic location file"]
["GEOINT",null,null,null,null,null,"geospatial intelligence"]
["GEOLOC",null,null,null,null,null,"geographic location; geographic location code"]
["GEOREF",null,null,null,null,null,"geographic reference; world geographic reference system"]
["GETS",null,null,null,null,null,"geospatial enterprise tasking, processing, exploitation, and dissemination service"]
["GF",null,null,null,null,null,"a nerve agent"]
["GFE",null,null,null,null,null,"government-furnished equipment"]
["GFI",null,null,null,null,null,"government-furnished information"]
["GFM",null,null,null,null,null,"global force management; global freight management; government-furnished material"]
["GFMAP",null,null,null,null,null,"Global Force Management Allocation Plan"]
["GFMB",null,null,null,null,null,"Global Force Management Board"]
["GFMIG",null,null,null,null,null,"Global Force Management Implementation Guidance"]
["GFMPL",null,null,null,null,null,"Graphics Fleet Mission Program Library"]
["GFOAR",null,null,null,null,null,"global family of operation plans assessment report"]
["GFS",null,null,null,null,null,"global fleet station"]
["GFU",null,null,null,null,null,"group framing unit"]
["GHz",null,null,null,null,null,"gigahertz"]
["GI",null,null,null,null,null,"geomatics and imagery"]
["GI&S",null,null,null,null,null,"geospatial information and services"]
["GIAC",null,null,null,null,null,"graphic input aggregate control"]
["GIANT",null,null,null,null,null,"Global Positioning System Interference and Navigation Tool"]
["GIBCO",null,null,null,null,null,"geospatial intelligence base for contingency operations"]
["GIC",null,null,null,null,null,"international loading gauge"]
["GIE",null,null,null,null,null,"global information environment"]
["GIG",null,null,null,null,null,"Global Information Grid"]
["GIMS",null,null,null,null,null,"Geospatial Intelligence Information Management Services"]
["GIO",null,null,null,null,null,"Geospatial Intelligence Organisation (New Zealand)"]
["GIP",null,null,null,null,null,"gridded installation photograph"]
["GIS",null,null,null,null,null,"geographic information system; geospatial information systems"]
["GITA",null,null,null,null,null,"Ground Instructional Trainer Aircraft"]
["GL",null,null,null,null,null,"government-leased"]
["GLCM",null,null,null,null,null,"ground-launched cruise missile"]
["GLINT",null,null,null,null,null,"gated laser intensifier"]
["GLO",null,null,null,null,null,"ground liaison officer"]
["GLOC",null,null,null,null,null,"ground line of communications"]
["GLSC",null,null,null,null,null,"Global Logistics Support Center"]
["GLTD",null,null,null,null,null,"ground laser target designator"]
["GM",null,null,null,null,null,"group modem"]
["GMAW",null,null,null,null,null,"Gas Metal Arc Welding"]
["GMD",null,null,null,null,null,"global missile defense; ground-based midcourse defense; group mux and/or demux"]
["GMDSS",null,null,null,null,null,"Global Maritime Distress and Safety System"]
["GMF",null,null,null,null,null,"ground mobile force"]
["GMFP",null,null,null,null,null,"global military force policy"]
["GMI",null,null,null,null,null,"general military intelligence"]
["GMLRS",null,null,null,null,null,"Global Positioning System Multiple Launch Rocket System"]
["GMP",null,null,null,null,null,"global maritime partnership"]
["GMR",null,null,null,null,null,"graduated mobilization response; ground mobile radar"]
["GMRS",null,null,null,null,null,"global mobility readiness squadron"]
["GMS",null,null,null,null,null,"global mobility squadron"]
["GMTI",null,null,null,null,null,"ground moving target indicator"]
["GNA",null,null,null,null,null,"Global Information Grid (GIG) Network Assurance"]
["GNC",null,null,null,null,null,"Global Network Operations Center"]
["GNCC",null,null,null,null,null,"global network operations (NETOPS) control center"]
["GND",null,null,null,null,null,"Global Information Grid (GIG) Network Defense"]
["GNSC",null,null,null,null,null,"global network operations (NETOPS) support center"]
["GNSS",null,null,null,null,null,"global navigation satellite system"]
["GO",null,null,null,null,null,"government-owned"]
["GOCO",null,null,null,null,null,"government-owned, contractor-operated"]
["GOES",null,null,null,null,null,"geostationary operational environmental satellite"]
["GOGO",null,null,null,null,null,"government-owned, government-operated"]
["GOS",null,null,null,null,null,"grade of service"]
["GOSG",null,null,null,null,null,"general officer steering group"]
["GOTS",null,null,null,null,null,"government off-the-shelf"]
["GOX",null,null,null,null,null,"Gaseous Oxygen"]
["GP",null,null,null,null,null,"general purpose; group"]
["GP/CC",null,null,null,null,null,"Group Commander"]
["GPC",null,null,null,null,null,"geospatial planning cell; government purchase card"]
["GPD",null,null,null,null,null,"gallons per day"]
["GPE",null,null,null,null,null,"geospatial intelligence preparation of the environment"]
["GPEE",null,null,null,null,null,"general purpose encryption equipment"]
["GPL",null,null,null,null,null,"Geospatial Product Library"]
["GPM",null,null,null,null,null,"gallons per minute; global pallet manager"]
["GPMDM",null,null,null,null,null,"group modem"]
["GPMIC",null,null,null,null,null,"Global Patient Movement Integration Center"]
["GPMJAB",null,null,null,null,null,"Global Patient Movement Joint Advisory Board"]
["GPMRC",null,null,null,null,null,"Global Patient Movement Requirements Center"]
["GPS",null,null,null,null,null,"Global Positioning System / GROUPS"]
["GPSOC",null,null,null,null,null,"Global Positioning System Operations Center"]
["GPW",null,null,null,null,null,"Geneva Convention Relative to the Treatment of Prisoners of War"]
["GPWS",null,null,null,null,null,"Ground Proximity Warning System"]
["GR",null,null,null,null,null,"graduated response"]
["GRASP",null,null,null,null,null,"general retrieval and sort processor"]
["GRCA",null,null,null,null,null,"ground reference coverage area"]
["GRG",null,null,null,null,null,"gridded reference graphic"]
["GRL",null,null,null,null,null,"global reach laydown"]
["GRREG",null,null,null,null,null,"graves registration"]
["GS",null,null,null,null,null,"general service; general support; group separator; General Schedule"]
["GS-R",null,null,null,null,null,"general support-reinforcing"]
["GSA",null,null,null,null,null,"General Services Administration"]
["GSAS",null,null,null,null,null,"Generation Sequence Action Schedule"]
["GSE",null,null,null,null,null,"ground support equipment"]
["GSI",null,null,null,null,null,"glide slope indicator"]
["GSM",null,null,null,null,null,"ground station module"]
["GSO",null,null,null,null,null,"general services officer"]
["GSORTS",null,null,null,null,null,"Global Status of Resources and Training System"]
["GSR",null,null,null,null,null,"general support-reinforcing; ground surveillance radar"]
["GSSA",null,null,null,null,null,"general supply support area"]
["GSSC",null,null,null,null,null,"global satellite communications (SATCOM) support center"]
["GST",null,null,null,null,null,"geospatial support team"]
["GSU",null,null,null,null,null,"Geographically Separated Units"]
["gt",null,null,null,null,null,"gross ton"]
["GTA",null,null,null,null,null,"graphic training aid"]
["GTAS",null,null,null,null,null,"ground-to-air signals"]
["GTAW",null,null,null,null,null,"Gas Tungsten Arc Welding"]
["GTL",null,null,null,null,null,"gun-target line"]
["GTM",null,null,null,null,null,"global transportation management"]
["GUARD",null,null,null,null,null,"US National Guard and Air Guard"]
["GUARDS",null,null,null,null,null,"General Unified Ammunition Reporting Data System"]
["GW",null,null,null,null,null,"guerrilla warfare"]
["GWC",null,null,null,null,null,"global weather central"]
["GWEN",null,null,null,null,null,"Ground Wave Emergency Network"]
["GWOT",null,null,null,null,null,"global war on terrorism"]
["GWS",null,null,null,null,null,"Geneva Convention for the Amelioration of the Condition of the Wounded and Sick in Armed Forces in the Field"]
["GWS Sea",null,null,null,null,null,"Geneva Convention for the Amelioration of the Condition of the Wounded, Sick, and Shipwrecked Members of the Armed Forces at Sea"]
["H&I",null,null,null,null,null,"harassing and interdicting"]
["H&S",null,null,null,null,null,"headquarters and service"]
["H-hour",null,null,null,null,null,"seaborne assault landing hour; specific time an operation or exercise begins"]
["HA",null,null,null,null,null,"holding area; humanitarian assistance"]
["HAARS",null,null,null,null,null,"high-altitude airdrop resupply system"]
["HAC",null,null,null,null,null,"helicopter aircraft commander; human intelligence analysis cell"]
["HACC",null,null,null,null,null,"humanitarian assistance coordination center"]
["HAF",null,null,null,null,null,"Headquarters, US Air Force"]
["HAHO",null,null,null,null,null,"high-altitude high-opening parachute technique"]
["HAP",null,null,null,null,null,"humanitarian assistance program"]
["HAP-EP",null,null,null,null,null,"humanitarian assistance program-excess property"]
["HARC",null,null,null,null,null,"human intelligence analysis and reporting cell"]
["HARM",null,null,null,null,null,"high-speed antiradiation missile"]
["HARP",null,null,null,null,null,"high altitude release point"]
["HAST",null,null,null,null,null,"humanitarian assistance survey team"]
["HATR",null,null,null,null,null,"hazardous air traffic report"]
["HAZ",null,null,null,null,null,"hazardous cargo"]
["HAZMAT",null,null,null,null,null,"hazardous materials"]
["HB",null,null,null,null,null,"heavy boat"]
["HBCT",null,null,null,null,null,"heavy brigade combat team"]
["HC",null,null,null,null,null,"Directorate for Human Capital (DIA)"]
["HCA",null,null,null,null,null,"head of contracting activity; humanitarian and civic assistance"]
["HCAS",null,null,null,null,null,"hostile casualty"]
["HC/D",null,null,null,null,null,"Hazard Class Division"]
["HCL",null,null,null,null,null,"hydrochloride"]
["HCO",null,null,null,null,null,"helicopter control officer"]
["HCP",null,null,null,null,null,"hardcopy printer"]
["HCS",null,null,null,null,null,"helicopter combat support (Navy); helicopter coordination section"]
["HCT",null,null,null,null,null,"human intelligence (HUMINT) collection team"]
["HD",null,null,null,null,null,"a mustard agent; harbor defense; harmonic distortion; homeland defense"]
["HDC",null,null,null,null,null,"harbor defense commander; helicopter direction center"]
["HDCU",null,null,null,null,null,"harbor defense command unit"]
["HDM",null,null,null,null,null,"humanitarian demining"]
["HDO",null,null,null,null,null,"humanitarian demining operations"]
["HDPLX",null,null,null,null,null,"half duplex"]
["HDR",null,null,null,null,null,"humanitarian daily ration"]
["HDTC",null,null,null,null,null,"Humanitarian Demining Training Center"]
["HE",null,null,null,null,null,"heavy equipment; high explosives"]
["HEAT",null,null,null,null,null,"helicopter external air transport; high explosive antitank"]
["HEC",null,null,null,null,null,"helicopter element coordinator"]
["HEFOE",null,null,null,null,null,"hydraulic electrical fuel oxygen engine"]
["HEI",null,null,null,null,null,"high explosives incendiary"]
["HEL-H",null,null,null,null,null,"heavy helicopter"]
["HEL-L",null,null,null,null,null,"light helicopter"]
["HEL-M",null,null,null,null,null,"medium helicopter"]
["HELO",null,null,null,null,null,"helicopter"]
["HEMP",null,null,null,null,null,"high-altitude electromagnetic pulse"]
["HEMTT",null,null,null,null,null,"heavy expanded mobile tactical truck"]
["HEO",null,null,null,null,null,"highly elliptical orbit"]
["HEPA",null,null,null,null,null,"high efficiency particulate air"]
["HERF",null,null,null,null,null,"hazards of electromagnetic radiation to fuels"]
["HERO",null,null,null,null,null,"electromagnetic radiation hazards; hazards of electromagnetic radiation to ordnance"]
["HERP",null,null,null,null,null,"hazards of electromagnetic radiation to personnel"]
["HET",null,null,null,null,null,"heavy equipment transporter; human intelligence exploitation team"]
["HEWSweb",null,null,null,null,null,"Humanitarian Early Warning Service"]
["HF",null,null,null,null,null,"high frequency"]
["HFA",null,null,null,null,null,"human factors analysis"]
["HFDF",null,null,null,null,null,"high-frequency direction finding"]
["HFP",null,null,null,null,null,"hostile fire pay"]
["HFRB",null,null,null,null,null,"high frequency regional broadcast"]
["HH",null,null,null,null,null,"homing pattern"]
["HHC",null,null,null,null,null,"headquarters and headquarters company"]
["HHD",null,null,null,null,null,"headquarters and headquarters detachment"]
["HHQ",null,null,null,null,null,"higher headquarters"]
["HHS",null,null,null,null,null,"Department of Health and Human Services"]
["HIC",null,null,null,null,null,"humanitarian information center"]
["HICAP",null,null,null,null,null,"high-capacity firefighting foam station"]
["HIDACZ",null,null,null,null,null,"high-density airspace control zone"]
["HIDTA",null,null,null,null,null,"high-intensity drug trafficking area"]
["HIFR",null,null,null,null,null,"helicopter in-flight refueling"]
["HIMAD",null,null,null,null,null,"high-to-medium-altitude air defense"]
["HIMARS",null,null,null,null,null,"High Mobility Artillery Rocket System"]
["HIMEZ",null,null,null,null,null,"high-altitude missile engagement zone"]
["HIRSS",null,null,null,null,null,"hover infrared suppressor subsystem"]
["HIRTA",null,null,null,null,null,"high intensity radio transmission area"]
["HIU",null,null,null,null,null,"humanitarian information unit (DOS)"]
["HIV",null,null,null,null,null,"human immunodeficiency virus"]
["HJ",null,null,null,null,null,"crypto key change"]
["HLPS",null,null,null,null,null,"heavy-lift pre-position ship"]
["HM",null,null,null,null,null,"hazardous material"]
["HMA",null,null,null,null,null,"humanitarian mine action"]
["HMH",null,null,null,null,null,"Marine heavy helicopter squadron"]
["HMIRS",null,null,null,null,null,"Hazardous Material Information Resource System"]
["HMIS",null,null,null,null,null,"Hazardous Material Information System"]
["HMLA",null,null,null,null,null,"Marine light/attack helicopter squadron"]
["HMM",null,null,null,null,null,"Marine medium helicopter squadron"]
["HMMWV",null,null,null,null,null,"high mobility multipurpose wheeled vehicle"]
["HMOD",null,null,null,null,null,"harbormaster operations detachment"]
["HMW",null,null,null,null,null,"health, morale, and welfare"]
["HN",null,null,null,null,null,"host nation"]
["HNC",null,null,null,null,null,"host-nation coordination"]
["HNCC",null,null,null,null,null,"host nation coordination center"]
["HNS",null,null,null,null,null,"host-nation support"]
["HNSCC",null,null,null,null,null,"host-nation support coordination cell"]
["HNSF",null,null,null,null,null,"host-nation security forces"]
["HOB",null,null,null,null,null,"height of burst"]
["HOC",null,null,null,null,null,"human intelligence operations cell; humanitarian operations center"]
["HOCC",null,null,null,null,null,"humanitarian operations coordination center"]
["HOD",null,null,null,null,null,"head of delegation"]
["HOGE",null,null,null,null,null,"hover out of ground effect"]
["HOIS",null,null,null,null,null,"hostile intelligence service"]
["HOM",null,null,null,null,null,"head of mission"]
["HOSTAC",null,null,null,null,null,"helicopter operations from ships other than aircraft carriers (USN publication)"]
["HOW MAL",null,null,null,null,null,"How Malfunction"]
["HPA",null,null,null,null,null,"high power amplifier"]
["HPM",null,null,null,null,null,"high-power microwave"]
["HPMSK",null,null,null,null,null,"high priority mission support kit"]
["HPO",null,null,null,null,null,"Hourly Post-flight / High Performance Organization"]
["HPT",null,null,null,null,null,"high-payoff target; High Pressure Turbine"]
["HQ",null,null,null,null,null,"HAVE QUICK; headquarters"]
["HQCOMDT",null,null,null,null,null,"headquarters commandant"]
["HQDA",null,null,null,null,null,"Headquarters, Department of the Army"]
["HQFM-net",null,null,null,null,null,"HAVE QUICK frequency modulation net"]
["HQFMT-net",null,null,null,null,null,"HAVE QUICK frequency modulation training net"]
["HQMC",null,null,null,null,null,"Headquarters, Marine Corps"]
["HR",null,null,null,null,null,"helicopter request; hostage rescue"]
["HRB",null,null,null,null,null,"high-risk billet"]
["HRC",null,null,null,null,null,"high-risk-of-capture; Human Resources Command"]
["HRF",null,null,null,null,null,"homeland response force"]
["HRJTF",null,null,null,null,null,"humanitarian relief joint task force"]
["HRO",null,null,null,null,null,"humanitarian relief organizations"]
["HRP",null,null,null,null,null,"high-risk personnel; human remains pouch"]
["HRS",null,null,null,null,null,"horizon reference system"]
["HRT",null,null,null,null,null,"health response team; hostage rescue team"]
["HS",null,null,null,null,null,"health services; helicopter antisubmarine (Navy); homeland security; homing single-unit"]
["HSAC",null,null,null,null,null,"Homeland Security Advisory Council"]
["HSAS",null,null,null,null,null,"Homeland Security Advisory System"]
["HSB",null,null,null,null,null,"high speed boat"]
["HSC",null,null,null,null,null,"helicopter sea combat (Navy); Homeland Security Council; Home Station Check"]
["HSC/PC",null,null,null,null,null,"Homeland Security Council Principals Committee"]
["HSC/PCC",null,null,null,null,null,"Homeland Security Council Policy Coordination Committee"]
["HSCDM",null,null,null,null,null,"high speed cable driver modem"]
["HSD",null,null,null,null,null,"health service delivery; human intelligence support detachment"]
["HSE",null,null,null,null,null,"headquarters support element; human intelligence support element (DIA)"]
["HSEP",null,null,null,null,null,"hospital surgical expansion package (USAF)"]
["HSI",null,null,null,null,null,"hyperspectral imagery; Office of Homeland Security Investigations (DHS)"]
["HSIN",null,null,null,null,null,"Homeland Security Information Network (DHS)"]
["HSIP",null,null,null,null,null,"Homeland Security Infrastructure Program"]
["HSM",null,null,null,null,null,"humanitarian service medal"]
["HSPD",null,null,null,null,null,"homeland security Presidential directive"]
["HSPR",null,null,null,null,null,"high speed pulse restorer"]
["HSS",null,null,null,null,null,"health service support"]
["HSSDB",null,null,null,null,null,"high speed serial data buffer"]
["HST",null,null,null,null,null,"helicopter support team"]
["HSV",null,null,null,null,null,"high-speed vessel"]
["HT",null,null,null,null,null,"hatch team"]
["HTERRCAS",null,null,null,null,null,"hostile terrorist casualty"]
["HTG",null,null,null,null,null,"hard target graphic"]
["HTH",null,null,null,null,null,"high test hypochlorite"]
["HU",null,null,null,null,null,"hospital unit"]
["HUD",null,null,null,null,null,"head-up display"]
["HUMINT",null,null,null,null,null,"human intelligence"]
["HUMRO",null,null,null,null,null,"humanitarian relief operation"]
["HUMRO OCP",null,null,null,null,null,"humanitarian relief operation operational capability package"]
["HUS",null,null,null,null,null,"hardened unique storage"]
["HVA",null,null,null,null,null,"high-value asset"]
["HVAA",null,null,null,null,null,"high value airborne asset"]
["HVAC",null,null,null,null,null,"heating, ventilation, and air conditioning"]
["HVCDS",null,null,null,null,null,"high-velocity container delivery system"]
["HVI",null,null,null,null,null,"high-value individual"]
["HVT",null,null,null,null,null,"high-value target"]
["HW",null,null,null,null,null,"hazardous waste"]
["HWM",null,null,null,null,null,"high water mark"]
["HYE",null,null,null,null,null,"high-yield explosives"]
["Hz",null,null,null,null,null,"hertz"]
["I",null,null,null,null,null,"immediate; individual"]
["I&A",null,null,null,null,null,"Office of Intelligence and Analysis (DHS)"]
["I/B",null,null,null,null,null,"inboard"]
["I/O",null,null,null,null,null,"input/output"]
["I/R",null,null,null,null,null,"internment/resettlement"]
["I/R BN",null,null,null,null,null,"internment/resettlement battalion"]
["I/T",null,null,null,null,null,"interpreter and translator"]
["I/UA",null,null,null,null,null,"Immediate and Urgent Action"]
["I2",null,null,null,null,null,"identity intelligence"]
["I2WD",null,null,null,null,null,"Intelligence and Information Warfare Division (Army)"]
["IA",null,null,null,null,null,"imagery analyst; implementing arrangement; individual augmentee; information assurance; initial assessment; Inspection Authorization"]
["IAA",null,null,null,null,null,"incident area assessment; incident awareness and assessment"]
["IAC",null,null,null,null,null,"Interagency Advisory Council"]
["IACG",null,null,null,null,null,"interagency coordination group"]
["IADB",null,null,null,null,null,"Inter-American Defense Board"]
["IADS",null,null,null,null,null,"integrated air defense system"]
["IAEA",null,null,null,null,null,"International Atomic Energy Agency (UN)"]
["IAF",null,null,null,null,null,"initial approach fix"]
["IAIP",null,null,null,null,null,"Information Analysis and Infrastructure Protection"]
["IAM",null,null,null,null,null,"inertially aided munition"]
["IAMD",null,null,null,null,null,"integrated air and missile defense"]
["IAMSAR",null,null,null,null,null,"International Aeronautical and Maritime Search and Rescue manual"]
["IAP",null,null,null,null,null,"incident action plan; international airport"]
["IAR",null,null,null,null,null,"interoperability assessment report"]
["IAS",null,null,null,null,null,"International Assistance System"]
["IASC",null,null,null,null,null,"Inter-Agency Standing Committee (UN); interim acting service chief"]
["IAT",null,null,null,null,null,"Individual Aircraft Tracking"]
["IATA",null,null,null,null,null,"International Air Transport Association"]
["IATACS",null,null,null,null,null,"Improved Army Tactical Communications System"]
["IATO",null,null,null,null,null,"interim authority to operate"]
["IAVM",null,null,null,null,null,"information assurance vulnerability management"]
["IAW",null,null,null,null,null,"in accordance with"]
["IBB",null,null,null,null,null,"International Broadcasting Bureau"]
["IBCT",null,null,null,null,null,"infantry brigade combat team"]
["IBES",null,null,null,null,null,"intelligence budget estimate submission"]
["IBET",null,null,null,null,null,"integrated border enforcement team"]
["IBM",null,null,null,null,null,"International Business Machines"]
["IBS",null,null,null,null,null,"Integrated Booking System; integrated broadcast service; Integrated Broadcast System"]
["IBS-I",null,null,null,null,null,"Integrated Broadcast Service-Interactive"]
["IBS-S",null,null,null,null,null,"Integrated Broadcast Service-Simplex"]
["IBU",null,null,null,null,null,"inshore boat unit"]
["IC",null,null,null,null,null,"incident commander; intelligence community; intercept"]
["IC/EXCOM",null,null,null,null,null,"Intelligence Community Executive Committee"]
["IC3",null,null,null,null,null,"integrated command, control, and communications"]
["ICAD",null,null,null,null,null,"individual concern and deficiency"]
["ICAF",null,null,null,null,null,"Interagency Conflict Assessment Framework"]
["ICAO",null,null,null,null,null,"International Civil Aviation Organization"]
["ICAT",null,null,null,null,null,"interagency conflict assessment team"]
["ICBM",null,null,null,null,null,"intercontinental ballistic missile"]
["ICC",null,null,null,null,null,"information confidence convention; information coordination center; Intelligence Coordination Center (USCG); International Criminal Court; Interstate Commerce Commission"]
["ICD",null,null,null,null,null,"international classifications of diseases; International Cooperation and Development Program (USDA)"]
["ICDC",null,null,null,null,null,"Intelligence Community Deputies Committee"]
["ICDS",null,null,null,null,null,"improved container delivery system"]
["ICE",null,null,null,null,null,"Immigration and Customs Enforcement"]
["ICEDEFOR",null,null,null,null,null,"Iceland Defense Forces"]
["ICEPP",null,null,null,null,null,"Incident Communications Emergency Policy and Procedures"]
["ICG",null,null,null,null,null,"interagency core group"]
["ICIS",null,null,null,null,null,"integrated consumable item support"]
["ICITAP",null,null,null,null,null,"International Criminal Investigative Training Assistance Program (DOJ)"]
["ICM",null,null,null,null,null,"image city map; improved conventional munitions; integrated collection management"]
["ICN",null,null,null,null,null,"idle channel noise; interface control net"]
["ICNIA",null,null,null,null,null,"integrated communications, navigation, and identification avionics"]
["ICOD",null,null,null,null,null,"intelligence cutoff data"]
["ICODES",null,null,null,null,null,"integrated computerized deployment system"]
["ICON",null,null,null,null,null,"imagery communications and operations node; intermediate coordination node"]
["ICP",null,null,null,null,null,"intertheater communications security package; interface change proposal; inventory control point"]
["ICPC",null,null,null,null,null,"Intelligence Community Principals Committee"]
["ICR",null,null,null,null,null,"Intelligence Collection Requirements"]
["ICRC",null,null,null,null,null,"International Committee of the Red Cross"]
["ICRI",null,null,null,null,null,"interswitch collective routing indicator"]
["ICS",null,null,null,null,null,"incident command system; internal communications system; inter-Service chaplain support"]
["ICSAR",null,null,null,null,null,"interagency committee on search and rescue"]
["ICSF",null,null,null,null,null,"integrated command communications system framework"]
["ICT",null,null,null,null,null,"information and communications technology"]
["ICU",null,null,null,null,null,"intensive care unit; interface control unit"]
["ICVA",null,null,null,null,null,"International Council of Voluntary Agencies"]
["ICW",null,null,null,null,null,"in coordination with"]
["I-Deck",null,null,null,null,null,"Initialization Deck"]
["ID",null,null,null,null,null,"identification; identifier; initiating directive"]
["ID/IQ",null,null,null,null,null,"indefinite delivery/indefinite quantity"]
["IDAD",null,null,null,null,null,"internal defense and development"]
["IDB",null,null,null,null,null,"integrated database"]
["IDCA",null,null,null,null,null,"International Development Cooperation Agency"]
["IDDF",null,null,null,null,null,"intermediate data distribution facility"]
["IDEA ",null,null,null,null,null,"Innovation Development through Employee Awareness"]
["IDEAS",null,null,null,null,null,"Intelligence Data Elements Authorized Standards"]
["IDEX",null,null,null,null,null,"imagery data exploitation system"]
["IDF",null,null,null,null,null,"intermediate distribution frame"]
["IDL",null,null,null,null,null,"integrated distribution lane"]
["IDM",null,null,null,null,null,"improved data modem; information dissemination management"]
["IDNDR",null,null,null,null,null,"International Decade for Natural Disaster Reduction (UN)"]
["IDO",null,null,null,null,null,"installation deployment officer"]
["IDP",null,null,null,null,null,"imagery derived product; imminent danger pay; internally displaced person"]
["IDRA",null,null,null,null,null,"infectious disease risk assessment"]
["IDS",null,null,null,null,null,"individual deployment site; integrated deployment system; interface design standards; intrusion detection system"]
["IDSRS",null,null,null,null,null,"Integrated Defense Source Registration System"]
["IDSS",null,null,null,null,null,"interoperability decision support system"]
["IDT",null,null,null,null,null,"inactive duty training"]
["IDZ",null,null,null,null,null,"inner defense zone"]
["IEB",null,null,null,null,null,"intelligence exploitation base"]
["IED",null,null,null,null,null,"improvised explosive device"]
["IEDD",null,null,null,null,null,"improvised explosive device defeat"]
["IEEE",null,null,null,null,null,"Institute of Electrical and Electronics Engineers"]
["IEL",null,null,null,null,null,"illustrative evaluation scenario"]
["IEM",null,null,null,null,null,"installation emergency management"]
["IEMATS",null,null,null,null,null,"improved emergency message automatic transmission system"]
["IER",null,null,null,null,null,"information exchange requirement"]
["IES",null,null,null,null,null,"imagery exploitation system"]
["IESS",null,null,null,null,null,"imagery exploitation support system"]
["IETM",null,null,null,null,null,"Interactive Electronic Technical Manuals"]
["IEW",null,null,null,null,null,"intelligence and electronic warfare"]
["IF",null,null,null,null,null,"intermediate frequency"]
["IFC",null,null,null,null,null,"intelligence fusion center"]
["IFCS",null,null,null,null,null,"improved fire control system; Instrument and Flight Control Systems"]
["IFE",null,null,null,null,null,"In-Flight Emergency"]
["IFF",null,null,null,null,null,"identification, friend or foe"]
["IFF/SIF",null,null,null,null,null,"identification, friend or foe/selective identification feature"]
["IFFN",null,null,null,null,null,"identification, friend, foe, or neutral"]
["IFO",null,null,null,null,null,"integrated financial operations"]
["IFP",null,null,null,null,null,"integrated force package"]
["IFR",null,null,null,null,null,"instrument flight rules; In Flight Refueling"]
["IFRC",null,null,null,null,null,"International Federation of Red Cross and Red Crescent Societies"]
["IFSAR",null,null,null,null,null,"interferometric synthetic aperture radar"]
["IG",null,null,null,null,null,"inspector general"]
["IGC",null,null,null,null,null,"Integrated Data Environment/Global Transportation Network Convergence"]
["IGE",null,null,null,null,null,"independent government estimate; Internal Government Estimates"]
["IGL",null,null,null,null,null,"intelligence gain/loss"]
["IGO",null,null,null,null,null,"intergovernmental organization"]
["IGSM",null,null,null,null,null,"interim ground station module (JSTARS)"]
["IHADSS",null,null,null,null,null,"integrated helmet and display sight system (Army)"]
["IHC",null,null,null,null,null,"international humanitarian community"]
["IHO",null,null,null,null,null,"industrial hygiene officer"]
["IHS",null,null,null,null,null,"international health specialist"]
["IIB",null,null,null,null,null,"interagency information bureau"]
["IICL",null,null,null,null,null,"Institute of International Container Lessons"]
["IICT",null,null,null,null,null,"Interagency Intelligence Committee on Counterterrorism"]
["IIM",null,null,null,null,null,"intelligence information management"]
["IIP",null,null,null,null,null,"Bureau of International Information Programs (DOS); interagency implementation plan; international information program; interoperability improvement program"]
["IIR",null,null,null,null,null,"imagery interpretation report; imagery infared; intelligence information report"]
["IJC3S",null,null,null,null,null,"initial joint command, control, and communications system; Integrated Joint Command, Control, and Communications System"]
["IL",null,null,null,null,null,"intermediate location"]
["ILAB",null,null,null,null,null,"Bureau of International Labor Affairs (DOL)"]
["ILM",null,null,null,null,null,"Intermediate Level Maintenance"]
["ILO",null,null,null,null,null,"in lieu of; International Labor Organization (UN)"]
["ILOC",null,null,null,null,null,"integrated line of communications"]
["ILS",null,null,null,null,null,"integrated logistic support"]
["ILS-S",null,null,null,null,null,"Integrated Logistics Systems-Supply"]
["IM",null,null,null,null,null,"information management; intermediate module; Item Manager"]
["IMA",null,null,null,null,null,"individual mobilization augmentee"]
["IMAAC",null,null,null,null,null,"Interagency Modeling and Atmospheric Assessment Center"]
["IMC",null,null,null,null,null,"instrument meteorological conditions; International Medical Corps"]
["IMDC",null,null,null,null,null,"isolated, missing, detained, or captured"]
["IMDG",null,null,null,null,null,"international maritime dangerous goods (UN)"]
["IMDS",null,null,null,null,null,"Integrated Maintenance Data System"]
["IMET",null,null,null,null,null,"international military education and training"]
["IMETS",null,null,null,null,null,"Integrated Meteorological System"]
["IMF",null,null,null,null,null,"International Monetary Fund (UN)"]
["IMI",null,null,null,null,null,"international military information"]
["IMINT",null,null,null,null,null,"imagery intelligence"]
["IMIS",null,null,null,null,null,"Integrated Maintenance Information System"]
["IMIT",null,null,null,null,null,"international military information team"]
["IMLTU",null,null,null,null,null,"intermatrix line termination unit"]
["IMM",null,null,null,null,null,"integrated materiel management; intelligence mission management"]
["IMMDELREQ",null,null,null,null,null,"immediate delivery required"]
["IMO",null,null,null,null,null,"information management officer; International Maritime Organization"]
["IMOSAR",null,null,null,null,null,"International Maritime Organization (IMO) search and rescue manual"]
["IMOSS",null,null,null,null,null,"interim mobile oceanographic support system"]
["IMP",null,null,null,null,null,"implementation; information management plan; inventory management plan"]
["IMPP",null,null,null,null,null,"integrated mission planning process"]
["IMPT",null,null,null,null,null,"incident management planning team; integrated mission planning team"]
["IMRL",null,null,null,null,null,"individual material requirements list"]
["IMS",null,null,null,null,null,"information management system; interagency management system; Interagency Management System for Reconstruction and Stabilization; international military staff; international military standardization"]
["IMSP",null,null,null,null,null,"information management support plan"]
["IMSU",null,null,null,null,null,"installation medical support unit"]
["IMTF",null,null,null,null,null,"integrated mission task force"]
["IMU",null,null,null,null,null,"inertial measuring unit; intermatrix unit"]
["IN",null,null,null,null,null,"Air Force component intelligence officer (staff); impulse noise; instructor"]
["INCERFA",null,null,null,null,null,"uncertainty phase (ICAO)"]
["INCNR",null,null,null,null,null,"increment number"]
["INCSEA",null,null,null,null,null,"incidents at sea"]
["IND",null,null,null,null,null,"improvised nuclear device"]
["INDRAC",null,null,null,null,null,"Interagency Combating Weapons of Mass Destruction Database of Responsibilities, Authorities, and Capabilities"]
["INF",null,null,null,null,null,"infantry"]
["INFOCON",null,null,null,null,null,"information operations condition"]
["INID",null,null,null,null,null,"intercept network in dialing"]
["INJILL",null,null,null,null,null,"injured or ill"]
["INL",null,null,null,null,null,"Bureau of International Narcotics and Law Enforcement Affairs (DOS)"]
["INLS",null,null,null,null,null,"improved Navy lighterage system"]
["INM",null,null,null,null,null,"international narcotics matters"]
["INMARSAT",null,null,null,null,null,"international maritime satellite"]
["INR",null,null,null,null,null,"Bureau of Intelligence and Research (DOS)"]
["INREQ",null,null,null,null,null,"information request"]
["INRP",null,null,null,null,null,"Initial National Response Plan"]
["INS",null,null,null,null,null,"Immigration and Naturalization Service; inertial navigation system; insert code"]
["INSARAG",null,null,null,null,null,"International Search and Rescue Advisory Group"]
["INSCOM",null,null,null,null,null,"United States Army Intelligence and Security Command"]
["INTAC",null,null,null,null,null,"individual terrorism awareness course"]
["INTACS",null,null,null,null,null,"integrated tactical communications system"]
["INTELSAT",null,null,null,null,null,"International Telecommunications Satellite Organization"]
["INTELSITSUM",null,null,null,null,null,"intelligence situation summary"]
["InterAction",null,null,null,null,null,"American Council for Voluntary International Action"]
["INTERCO",null,null,null,null,null,"International Code of Signals"]
["INTERPOL",null,null,null,null,null,"International Criminal Police Organization"]
["INTERPOL-USNCB",null,null,null,null,null,"International Criminal Police Organization United States National Central Bureau (DOJ)"]
["INTREP",null,null,null,null,null,"intelligence report"]
["INU",null,null,null,null,null,"inertial navigation unit; integration unit"]
["INV",null,null,null,null,null,"invalid"]
["INVOL",null,null,null,null,null,"involuntary"]
["INW",null,null,null,null,null,"In Work"]
["IO",null,null,null,null,null,"information objectives; information operations; intelligence oversight"]
["IO force",null,null,null,null,null,"information operations force"]
["IOB",null,null,null,null,null,"intelligence oversight board"]
["IOC",null,null,null,null,null,"Industrial Operations Command; initial operational capability; intelligence operations center; investigations operations center"]
["IOCB",null,null,null,null,null,"information operations coordination board"]
["IOI",null,null,null,null,null,"injured other than hostilities or illness"]
["IOII",null,null,null,null,null,"information operations intelligence integration"]
["IOM",null,null,null,null,null,"installation, operation, and maintenance; International Organization for Migration"]
["IOP",null,null,null,null,null,"interface operating procedure"]
["IOSS",null,null,null,null,null,"Interagency Operations Security Support Staff"]
["IOT",null,null,null,null,null,"information operations team"]
["IOU",null,null,null,null,null,"input/output unit"]
["IOW",null,null,null,null,null,"information operations wing"]
["IOWG",null,null,null,null,null,"information operations working group"]
["IP",null,null,null,null,null,"initial point; initial position; instructor pilot; intelligence planning; internet protocol"]
["IPA",null,null,null,null,null,"intelligence production agency"]
["IPB",null,null,null,null,null,"intelligence preparation of the battlespace"]
["IPBD",null,null,null,null,null,"intelligence program budget decision"]
["IPC",null,null,null,null,null,"initial planning conference; integration planning cell; interagency planning cell; interagency policy committee"]
["IPCOT",null,null,null,null,null,"In-Place Consecutive Overseas Tour"]
["IPDM",null,null,null,null,null,"intelligence program decision memorandum"]
["IPDP",null,null,null,null,null,"inland petroleum distribution plan"]
["IPDS",null,null,null,null,null,"imagery processing and dissemination system; inland petroleum distribution system (Army)"]
["IPE",null,null,null,null,null,"individual protective equipment; industrial plant equipment"]
["IPG",null,null,null,null,null,"isolated personnel guidance"]
["IPI",null,null,null,null,null,"indigenous populations and institutions; In-Process Inspection"]
["IPL",null,null,null,null,null,"imagery product library; integrated priority list; In-Process Inspection"]
["IPMS",null,null,null,null,null,"Information Processing Management System"]
["IPO",null,null,null,null,null,"International Program Office"]
["IPOE",null,null,null,null,null,"intelligence preparation of the operational environment"]
["IPOM",null,null,null,null,null,"intelligence program objective memorandum"]
["IPP",null,null,null,null,null,"impact point prediction; industrial preparedness program"]
["IPR",null,null,null,null,null,"in-progress review; intelligence production requirement"]
["IPR F",null,null,null,null,null,"plan approval in-progress review"]
["IPRG",null,null,null,null,null,"intelligence program review group"]
["IPS",null,null,null,null,null,"illustrative planning scenario; Integrated Planning System (DHS); Interim Polar System; interoperability planning system"]
["IPSG",null,null,null,null,null,"intelligence program support group"]
["IPSP",null,null,null,null,null,"intelligence priorities for strategic planning"]
["IPT",null,null,null,null,null,"integrated planning team; integrated process team; Integrated Product Team; intelligence planning team"]
["IR",null,null,null,null,null,"incident report; information rate; information requirement; infrared; intelligence requirement"]
["IR pointer",null,null,null,null,null,"infrared pointer"]
["IRA",null,null,null,null,null,"Provisional Irish Republican Army"]
["IRAC",null,null,null,null,null,"Interdepartment Radio Advisory Committee (DOC)"]
["IRADS",null,null,null,null,null,"Infrared Acquisitions/Designation System"]
["IRBM",null,null,null,null,null,"intermediate-range ballistic missile"]
["IRC",null,null,null,null,null,"information-related capability; International Red Cross; International Rescue Committee; internet relay chat"]
["IRCCM",null,null,null,null,null,"infrared counter countermeasures"]
["IRCM",null,null,null,null,null,"infrared countermeasures"]
["IRDS",null,null,null,null,null,"infrared detection set"]
["IREP",null,null,null,null,null,"Intermediate Repair Enhancement Program"]
["IRF",null,null,null,null,null,"Immediate Reaction Forces (NATO); incident response force"]
["IRINT",null,null,null,null,null,"infrared intelligence"]
["IRISA",null,null,null,null,null,"Intelligence Report Index Summary File"]
["IRO",null,null,null,null,null,"international relief organization"]
["IRR",null,null,null,null,null,"Individual Ready Reserve; integrated readiness report"]
["IRS",null,null,null,null,null,"Internal Revenue Service"]
["IRSCC",null,null,null,null,null,"interagency remote sensing coordination cell"]
["IRSP",null,null,null,null,null,"In-place Readiness Spares Packages"]
["IRST",null,null,null,null,null,"infrared search and track"]
["IRSTS",null,null,null,null,null,"infrared search and track sensor; Infrared Search and Track System"]
["IRT",null,null,null,null,null,"Initial Response Team"]
["IRTPA",null,null,null,null,null,"Intelligence Reform and Terrorism Prevention Act"]
["IS",null,null,null,null,null,"information superiority; information system; interswitch"]
["ISA",null,null,null,null,null,"individual Service augmentee; international standardization agreement; inter-Service agreement"]
["ISAC",null,null,null,null,null,"information sharing and analysis center"]
["ISAF",null,null,null,null,null,"International Security Assistance Force"]
["ISB",null,null,null,null,null,"intermediate staging base"]
["ISDB",null,null,null,null,null,"integrated satellite communications (SATCOM) database"]
["ISDDC",null,null,null,null,null,"Integrated Mission Support for Surface Deployment and Distribution Command"]
["ISE",null,null,null,null,null,"Information Sharing Environment; intelligence support element"]
["ISG",null,null,null,null,null,"information synchronization group; isolated soldier guidance"]
["ISI2R",null,null,null,null,null,"identify, separate, isolate, influence, and reintegrate"]
["ISMCS",null,null,null,null,null,"international station meteorological climatic summary"]
["ISMMP",null,null,null,null,null,"integrated continental United States (CONUS) medical mobilization plan"]
["ISN",null,null,null,null,null,"Bureau of International Security and Nonproliferation (DOS); internment serial number"]
["ISO",null,null,null,null,null,"International Organization for Standardization; isolation; Isochronal Inspection"]
["ISOO",null,null,null,null,null,"Information Security Oversight Office"]
["ISOPAK",null,null,null,null,null,"International Organization for Standardization package"]
["ISOPREP",null,null,null,null,null,"isolated personnel report"]
["ISP",null,null,null,null,null,"internet service provider"]
["ISR",null,null,null,null,null,"intelligence, surveillance, and reconnaissance"]
["ISR WG",null,null,null,null,null,"Intelligence, Surveillance, and Reconnaissance Wing"]
["ISRD",null,null,null,null,null,"intelligence, surveillance, and reconnaissance division"]
["ISS",null,null,null,null,null,"in-system select"]
["ISSA",null,null,null,null,null,"inter-Service support agreement"]
["ISSG",null,null,null,null,null,"Intelligence Senior Steering Group"]
["ISSM",null,null,null,null,null,"information system security manager"]
["ISSO",null,null,null,null,null,"information systems security organization"]
["IST",null,null,null,null,null,"integrated system test; interswitch trunk"]
["ISU",null,null,null,null,null,"internal airlift or helicopter slingable container unit"]
["ISU/DOR",null,null,null,null,null,"Issue/Due-Out Release"]
["IT",null,null,null,null,null,"information system technician; information technology"]
["ITA",null,null,null,null,null,"international telegraphic alphabet; International Trade Administration (DOC)"]
["ITAC",null,null,null,null,null,"intelligence and threat analysis center (Army)"]
["ITALD",null,null,null,null,null,"improved tactical air-launched decoy"]
["ITAR",null,null,null,null,null,"international traffic in arms regulation (coassembly)"]
["ITF",null,null,null,null,null,"intelligence task force (DIA)"]
["ITG",null,null,null,null,null,"infrared target graphic"]
["ITL",null,null,null,null,null,"intelligence task list"]
["ITO",null,null,null,null,null,"installation transportation officer"]
["ITRO",null,null,null,null,null,"inter-Service training organization"]
["ITU",null,null,null,null,null,"International Telecommunications Union"]
["ITV",null,null,null,null,null,"in-transit visibility"]
["ITW/AA",null,null,null,null,null,"integrated tactical warning and attack assessment"]
["IUWG",null,null,null,null,null,"inshore undersea warfare group"]
["IV",null,null,null,null,null,"intravenous"]
["IVR",null,null,null,null,null,"initial voice report"]
["IVSN",null,null,null,null,null,"Initial Voice Switched Network"]
["IW",null,null,null,null,null,"irregular warfare"]
["IW-D",null,null,null,null,null,"defensive information warfare"]
["IWC",null,null,null,null,null,"information operations warfare commander"]
["IWG",null,null,null,null,null,"intelligence working group; interagency working group"]
["IWSC",null,null,null,null,null,"Information Warfare Support Center"]
["IWW",null,null,null,null,null,"inland waterway"]
["IWWS",null,null,null,null,null,"inland waterway system"]
["J-1",null,null,null,null,null,"manpower and personnel directorate of a joint staff; manpower and personnel staff section"]
["J-2",null,null,null,null,null,"intelligence directorate of a joint staff; intelligence staff section"]
["J-2A",null,null,null,null,null,"deputy directorate for administration of a joint staff"]
["J-2J",null,null,null,null,null,"deputy directorate for support of a joint staff"]
["J-2M",null,null,null,null,null,"deputy directorate for crisis management of a joint staff"]
["J-2O",null,null,null,null,null,"deputy directorate for crisis operations of a joint staff"]
["J-2P",null,null,null,null,null,"deputy directorate for assessment, doctrine, requirements, and capabilities of a joint staff"]
["J-2T",null,null,null,null,null,"deputy directorate for targets of a joint staff"]
["J-2T",null,null,null,null,null,"Deputy Directorate for Targeting, Joint Staff Intelligence Directorate"]
["J-2T-1",null,null,null,null,null,"joint staff target operations division"]
["J-2T-2",null,null,null,null,null,"Target Plans Division"]
["J-2X",null,null,null,null,null,"joint force counterintelligence and human intelligence staff element"]
["J-3",null,null,null,null,null,"operations directorate of a joint staff; operations staff section"]
["J-31",null,null,null,null,null,"Joint Force Coordinator (Joint Staff)"]
["J-35",null,null,null,null,null,"future operations cell"]
["J-39 DDGO",null,null,null,null,null,"Joint Staff, Deputy Director for Global Operations"]
["J-4",null,null,null,null,null,"logistics directorate of a joint staff; logistics staff section"]
["J-5",null,null,null,null,null,"plans directorate of a joint staff; plans staff section"]
["J-6",null,null,null,null,null,"communications system directorate of a joint staff; command, control, communications, and computer systems staff section"]
["J-7",null,null,null,null,null,"engineering staff section of a joint staff; Joint Staff Directorate for Joint Force Development; operational plans and interoperability directorate of a joint staff"]
["J-7/JED",null,null,null,null,null,"exercises and training directorate of a joint staff"]
["J-8",null,null,null,null,null,"Joint Staff Directorate for Force Structure, Resource, and Assessment; force structure, resource, and assessment directorate of a joint staff"]
["J-9",null,null,null,null,null,"civil-military operations directorate of a joint staff; civil-military operations staff section"]
["J-A",null,null,null,null,null,"judge advocate directorate of a joint staff"]
["J2-CI",null,null,null,null,null,"Joint Counterintelligence Office"]
["JA",null,null,null,null,null,"judge advocate"]
["JA/ATT",null,null,null,null,null,"joint airborne and air transportability training"]
["JAAR",null,null,null,null,null,"joint after-action report"]
["JAARS",null,null,null,null,null,"Joint After-Action Reporting System"]
["JAAT",null,null,null,null,null,"joint air attack team"]
["JAC",null,null,null,null,null,"joint analysis center"]
["JACC",null,null,null,null,null,"joint airspace control center"]
["JACC/CP",null,null,null,null,null,"joint airborne communications center/command post"]
["JACCC",null,null,null,null,null,"joint airlift coordination and control cell"]
["JACCE",null,null,null,null,null,"joint air component coordination element"]
["JACS",null,null,null,null,null,"joint automated communication-electronics operating instructions system"]
["JADO",null,null,null,null,null,"joint air defense operations"]
["JADOC",null,null,null,null,null,"Joint Air Defense Operations Center (NORAD)"]
["JADOCS",null,null,null,null,null,"Joint Automated Deep Operations Coordination System"]
["JAFWIN",null,null,null,null,null,"JWICS Air Force weather information network"]
["JAG",null,null,null,null,null,"judge advocate general"]
["JAGIC",null,null,null,null,null,"joint air-ground integration center"]
["JAGMAN",null,null,null,null,null,"Manual of the Judge Advocate General (US Navy)"]
["JAI",null,null,null,null,null,"joint administrative instruction; joint airdrop inspection"]
["JAIC",null,null,null,null,null,"joint air intelligence center"]
["JAIEG",null,null,null,null,null,"joint atomic information exchange group"]
["JAMMS",null,null,null,null,null,"Joint Asset Movement Management System"]
["JAMPS",null,null,null,null,null,"Joint Interoperability of Tactical Command and Control Systems (JINTACCS) automated message preparation system"]
["JANAP",null,null,null,null,null,"Joint Army, Navy, Air Force publication"]
["JAO",null,null,null,null,null,"joint air operations"]
["JAOC",null,null,null,null,null,"joint air operations center"]
["JAOP",null,null,null,null,null,"joint air operations plan"]
["JAPO",null,null,null,null,null,"joint area petroleum office"]
["JAR",null,null,null,null,null,"joint activity report"]
["JARB",null,null,null,null,null,"joint acquisition review board"]
["JARCC",null,null,null,null,null,"joint air reconnaissance control center"]
["JARN",null,null,null,null,null,"joint air request net"]
["JARS",null,null,null,null,null,"joint automated readiness system"]
["JASC",null,null,null,null,null,"joint action steering committee"]
["JASSM",null,null,null,null,null,"joint air-to-surface standoff missile"]
["JAT",null,null,null,null,null,"joint acceptance test; joint assessment team"]
["JAT Guide",null,null,null,null,null,"Joint Antiterrorism Program Manager's Guide"]
["JATACS",null,null,null,null,null,"joint advanced tactical cryptological support"]
["JAWS",null,null,null,null,null,"Joint Munitions Effectiveness Manual (JMEM)/air-to-surface weaponeering system"]
["JBP",null,null,null,null,null,"Joint Blood Program"]
["JBPO",null,null,null,null,null,"joint blood program office"]
["JC2WC",null,null,null,null,null,"joint command and control warfare center"]
["JCA",null,null,null,null,null,"jamming control authority; joint capability area"]
["JCALS",null,null,null,null,null,"Joint Computer-Aided Acquisition and Logistics Support"]
["JCASREP",null,null,null,null,null,"joint casualty report"]
["JCAT",null,null,null,null,null,"joint crisis action team"]
["JCC",null,null,null,null,null,"joint collaboration cell; joint command center; joint contracting center; joint course catalog; joint cyberspace center"]
["JCCA",null,null,null,null,null,"joint combat capability assessment"]
["JCCB",null,null,null,null,null,"Joint Configuration Control Board"]
["JCCC",null,null,null,null,null,"joint combat camera center; joint communications control center"]
["JCCP",null,null,null,null,null,"joint casualty collection point"]
["JCCSE",null,null,null,null,null,"Joint Continental United States Communications Support Environment"]
["JCE",null,null,null,null,null,"Joint Intelligence Virtual Architecture (JIVA) Collaborative Environment"]
["JCEOI",null,null,null,null,null,"joint communications-electronics operating instructions"]
["JCET",null,null,null,null,null,"joint combined exchange training; joint combined exercise for training"]
["JCEWR",null,null,null,null,null,"joint coordination of electronic warfare reprogramming"]
["JCEWS",null,null,null,null,null,"joint force commander's electronic warfare staff"]
["JCGRO",null,null,null,null,null,"joint central graves registration office"]
["JCIDO",null,null,null,null,null,"Joint Combat Identification Office"]
["JCIOC",null,null,null,null,null,"joint counterintelligence operations center"]
["JCISA",null,null,null,null,null,"Joint Command Information Systems Activity"]
["JCISB",null,null,null,null,null,"Joint Counterintelligence Support Branch"]
["JCIU",null,null,null,null,null,"joint counterintelligence unit"]
["JCLL",null,null,null,null,null,"joint center for lessons learned"]
["JCMA",null,null,null,null,null,"joint communications security monitoring activity"]
["JCMB",null,null,null,null,null,"joint collection management board"]
["JCMC",null,null,null,null,null,"joint crisis management capability"]
["JCMEB",null,null,null,null,null,"joint civil-military engineer board"]
["JCMEC",null,null,null,null,null,"Joint Captured Materiel Exploitation Center (DIA)"]
["JCMO",null,null,null,null,null,"joint communications security management office"]
["JCMOTF",null,null,null,null,null,"joint civil-military operations task force"]
["JCMPO",null,null,null,null,null,"Joint Cruise Missile Project Office"]
["JCMS",null,null,null,null,null,"Joint Construction Management System"]
["JCMT",null,null,null,null,null,"joint collection management tools"]
["JCN",null,null,null,null,null,"joint communications network; Job Control Number"]
["JCRM",null,null,null,null,null,"Joint Capabilities Requirements Manager"]
["JCS",null,null,null,null,null,"Joint Chiefs of Staff"]
["JCSAN",null,null,null,null,null,"Joint Chiefs of Staff Alerting Network"]
["JCSAR",null,null,null,null,null,"joint combat search and rescue"]
["JCSB",null,null,null,null,null,"joint contracting support board"]
["JCSC",null,null,null,null,null,"joint communications satellite center"]
["JCSE",null,null,null,null,null,"joint communications support element; Joint Communications Support Element (USTRANSCOM)"]
["JCSM",null,null,null,null,null,"Joint Chiefs of Staff memorandum"]
["JCSP",null,null,null,null,null,"joint contracting support plan"]
["JCSS",null,null,null,null,null,"joint communications support squadron"]
["JCTN",null,null,null,null,null,"joint composite track network"]
["JDA",null,null,null,null,null,"joint duty assignment"]
["JDAAP",null,null,null,null,null,"Joint Doctrine Awareness Action Plan"]
["JDAL",null,null,null,null,null,"Joint Duty Assignment List"]
["JDAM",null,null,null,null,null,"Joint Direct Attack Munition"]
["JDAMIS",null,null,null,null,null,"Joint Duty Assignment Management Information System"]
["JDAT",null,null,null,null,null,"joint deployable analysis team"]
["JDC",null,null,null,null,null,"joint deployment community; Joint Doctrine Center"]
["JDD",null,null,null,null,null,"joint doctrine distribution; Job Data Documentation"]
["JDDC",null,null,null,null,null,"joint doctrine development community"]
["JDDE",null,null,null,null,null,"joint deployment and distribution enterprise"]
["JDDOC",null,null,null,null,null,"joint deployment and distribution operations center"]
["JDDT",null,null,null,null,null,"joint doctrine development tool"]
["JDEC",null,null,null,null,null,"joint document exploitation center"]
["JDEIS",null,null,null,null,null,"Joint Doctrine, Education, and Training Electronic Information System"]
["JDIG",null,null,null,null,null,"Joint Drug Intelligence Group"]
["JDIGS",null,null,null,null,null,"Joint Digital Information Gathering System"]
["JDISS",null,null,null,null,null,"joint deployable intelligence support system"]
["JDN",null,null,null,null,null,"joint data network"]
["JDNC",null,null,null,null,null,"joint data network operations cell"]
["JDNO",null,null,null,null,null,"joint data network operations officer"]
["JDOG",null,null,null,null,null,"joint detention operations group"]
["JDOMS",null,null,null,null,null,"Joint Director of Military Support"]
["JDPC",null,null,null,null,null,"Joint Doctrine Planning Conference"]
["JDPI",null,null,null,null,null,"joint desired point of impact"]
["JDPO",null,null,null,null,null,"joint deployment process owner"]
["JDRS",null,null,null,null,null,"Joint Deficiency Reporting System"]
["JDSS",null,null,null,null,null,"Joint Decision Support System"]
["JDSSC",null,null,null,null,null,"Joint Data Systems Support Center"]
["JDTC",null,null,null,null,null,"Joint Deployment Training Center"]
["JE",null,null,null,null,null,"joint experimentation"]
["JEAP",null,null,null,null,null,"Joint Electronic Intelligence (ELINT) Analysis Program"]
["JECC",null,null,null,null,null,"Joint Enabling Capabilities Command (USTRANSCOM)"]
["JECE",null,null,null,null,null,"Joint Elimination Coordination Element"]
["JECG",null,null,null,null,null,"joint exercise control group"]
["JECPO",null,null,null,null,null,"Joint Electronic Commerce Program Office"]
["JEDD",null,null,null,null,null,"Joint Education and Doctrine Division"]
["JEDMICS",null,null,null,null,null,"Joint Engineering Data management Information and Control System"]
["JEEP",null,null,null,null,null,"joint emergency evacuation plan"]
["JEFF",null,null,null,null,null,"Joint Expeditionary Forensic Facility (Army)"]
["JEIM",null,null,null,null,null,"Jet Engine Intermediate Maintenance"]
["JEL",null,null,null,null,null,"Joint Electronic Library"]
["JEM",null,null,null,null,null,"joint exercise manual"]
["JEMB",null,null,null,null,null,"joint environmental management board"]
["JEMP",null,null,null,null,null,"joint exercise management package"]
["JEMSMO",null,null,null,null,null,"joint electromagnetic spectrum management operations"]
["JEMSO",null,null,null,null,null,"joint electromagnetic spectrum operations"]
["JENM",null,null,null,null,null,"joint enterprise network manager"]
["JEP",null,null,null,null,null,"Joint Exercise Program"]
["JEPES",null,null,null,null,null,"Joint Engineer Planning and Execution System"]
["JET",null,null,null,null,null,"joint expeditionary team; Joint Operation Planning and Execution System editing tool"]
["JETSC",null,null,null,null,null,"Jet Engine Test Stand Calibrator"]
["JEWC",null,null,null,null,null,"Joint Electronic Warfare Center"]
["JEWCS",null,null,null,null,null,"Joint Electronic Warfare Core Staff (NATO)"]
["JEZ",null,null,null,null,null,"joint engagement zone"]
["JFA",null,null,null,null,null,"joint field activity"]
["JFACC",null,null,null,null,null,"joint force air component commander"]
["JFAST",null,null,null,null,null,"Joint Flow and Analysis System for Transportation"]
["JFC",null,null,null,null,null,"joint force commander"]
["JFCC",null,null,null,null,null,"joint functional component command"]
["JFCC NW",null,null,null,null,null,"Joint Functional Component Command for Network Warfare"]
["JFCC-GS",null,null,null,null,null,"Joint Functional Component Command for Global Strike"]
["JFCC-IMD",null,null,null,null,null,"Joint Functional Component Command for Integrated Missile Defense"]
["JFCC-ISR",null,null,null,null,null,"Joint Functional Component Command for Intelligence, Surveillance, and Reconnaissance (USSTRATCOM)"]
["JFCC-Space",null,null,null,null,null,"Joint Functional Component Command for Space (USSTRATCOM)"]
["JFCH",null,null,null,null,null,"joint force chaplain"]
["JFE",null,null,null,null,null,"joint fires element"]
["JFHQ",null,null,null,null,null,"joint force headquarters"]
["JFHQ-NCR",null,null,null,null,null,"Joint Force Headquarters-National Capital Region"]
["JFHQ-State",null,null,null,null,null,"joint force headquarters-state"]
["JFIIT",null,null,null,null,null,"Joint Fires Integration and Interoperability Team"]
["JFIP",null,null,null,null,null,"Japanese facilities improvement project"]
["JFLCC",null,null,null,null,null,"joint force land component commander"]
["JFMC",null,null,null,null,null,"joint fleet mail center"]
["JFMCC",null,null,null,null,null,"joint force maritime component commander"]
["JFMO",null,null,null,null,null,"joint frequency management office"]
["JFO",null,null,null,null,null,"joint field office; joint fires observer"]
["JFP",null,null,null,null,null,"joint force package (packaging); joint force provider; Joint Frequency Panel (MCEB)"]
["JFRB",null,null,null,null,null,"Joint Foreign Release Board"]
["JFRG",null,null,null,null,null,"joint force requirements generator"]
["JFRG II",null,null,null,null,null,"joint force requirements generator II"]
["JFS",null,null,null,null,null,"joint force surgeon; Jet Fuel Starter"]
["JFSOC",null,null,null,null,null,"joint force special operations component"]
["JFSOCC",null,null,null,null,null,"joint force special operations component commander"]
["JFTR",null,null,null,null,null,"joint Federal travel regulations"]
["JFUB",null,null,null,null,null,"joint facilities utilization board"]
["JGWE",null,null,null,null,null,"joint global warning enterprise"]
["JHMCS",null,null,null,null,null,"joint helmet-mounted cueing system"]
["JHSV",null,null,null,null,null,"joint high-speed vessel"]
["JI",null,null,null,null,null,"joint inspection"]
["JIA",null,null,null,null,null,"joint individual augmentation; joint individual augmentee"]
["JIACG",null,null,null,null,null,"joint interagency coordination group"]
["JIADS",null,null,null,null,null,"joint integrated air defense system"]
["JIATF",null,null,null,null,null,"joint interagency task force"]
["JIATF-E",null,null,null,null,null,"joint interagency task force - East"]
["JIATF-S",null,null,null,null,null,"Joint Interagency Task Force-South"]
["JIATF-W",null,null,null,null,null,"Joint Interagency Task Force-West"]
["JIC",null,null,null,null,null,"joint information center"]
["JICC",null,null,null,null,null,"joint information coordination center; joint interface control cell"]
["JICO",null,null,null,null,null,"joint interface control officer"]
["JICPAC",null,null,null,null,null,"Joint Intelligence Center, Pacific"]
["JICTRANS",null,null,null,null,null,"Joint Intelligence Center for Transportation"]
["JIDC",null,null,null,null,null,"joint intelligence and debriefing center; joint interrogation and debriefing center"]
["JIEDDO",null,null,null,null,null,"Joint Improvised Explosive Device Defeat Organization"]
["JIEE",null,null,null,null,null,"Joint Information Exchange Environment"]
["JIEO",null,null,null,null,null,"joint interoperability engineering organization"]
["JIEP",null,null,null,null,null,"joint intelligence estimate for planning"]
["JIES",null,null,null,null,null,"joint interoperability evaluation system"]
["JIG",null,null,null,null,null,"joint interrogation group"]
["JILE",null,null,null,null,null,"joint intelligence liaison element"]
["JIMB",null,null,null,null,null,"joint information management board"]
["JIMP",null,null,null,null,null,"joint implementation master plan"]
["JIMPP",null,null,null,null,null,"joint industrial mobilization planning process"]
["JIMS",null,null,null,null,null,"joint information management system"]
["JINTACCS",null,null,null,null,null,"Joint Interoperability of Tactical Command and Control Systems"]
["JIO",null,null,null,null,null,"joint interrogation operations"]
["JIOC",null,null,null,null,null,"joint information operations center; joint intelligence operations center"]
["JIOC-SOUTH",null,null,null,null,null,"Joint Intelligence Operations Center, South"]
["JIOC-TRANS",null,null,null,null,null,"Joint Intelligence Operations Center - Transportation"]
["JIOCPAC",null,null,null,null,null,"Joint Intelligence Operations Center, Pacific"]
["JIOP",null,null,null,null,null,"joint interface operational procedures"]
["JIOP-MTF",null,null,null,null,null,"joint interface operating procedures-message text formats"]
["JIOWC",null,null,null,null,null,"Joint Information Operations Warfare Center"]
["JIPC",null,null,null,null,null,"joint imagery production complex"]
["JIPCL",null,null,null,null,null,"joint integrated prioritized collection list"]
["JIPOE",null,null,null,null,null,"joint intelligence preparation of the operational environment"]
["JIPTL",null,null,null,null,null,"joint integrated prioritized target list"]
["JIS",null,null,null,null,null,"joint information system"]
["JISE",null,null,null,null,null,"joint intelligence support element"]
["JITC",null,null,null,null,null,"joint interoperability test command"]
["JITF-CT",null,null,null,null,null,"Joint Intelligence Task Force for Combating Terrorism"]
["JIVA",null,null,null,null,null,"Joint Intelligence Virtual Architecture"]
["JIVU",null,null,null,null,null,"Joint Intelligence Virtual University"]
["JKDDC",null,null,null,null,null,"Joint Knowledge Development and Distribution Capability"]
["JKnIFE",null,null,null,null,null,"Joint Improvised Explosive Device Defeat Organization Knowledge and Information Fusion Exchange"]
["JLCC",null,null,null,null,null,"joint lighterage control center; joint logistics coordination center"]
["JLE",null,null,null,null,null,"joint logistics environment"]
["JLEnt",null,null,null,null,null,"joint logistics enterprise"]
["JLLIS",null,null,null,null,null,"Joint Lessons Learned Information System"]
["JLLP",null,null,null,null,null,"Joint Lessons Learned Program"]
["JLNCHREP",null,null,null,null,null,"joint launch report"]
["JLOA",null,null,null,null,null,"joint logistics over-the-shore operation area"]
["JLOC",null,null,null,null,null,"joint logistics operations center"]
["JLOTS",null,null,null,null,null,"joint logistics over-the-shore"]
["JLRC",null,null,null,null,null,"joint logistics readiness center"]
["JLSB",null,null,null,null,null,"joint line of communications security board"]
["JLSE",null,null,null,null,null,"joint legal support element"]
["JM&S",null,null,null,null,null,"joint modeling and simulation"]
["JMAARS",null,null,null,null,null,"joint model after-action review system"]
["JMAC",null,null,null,null,null,"Joint Mortuary Affairs Center (Army)"]
["JMAG",null,null,null,null,null,"Joint METOC Advisory Group"]
["JMAO",null,null,null,null,null,"joint mortuary affairs office; joint mortuary affairs officer"]
["JMAR",null,null,null,null,null,"joint medical asset repository"]
["JMAS",null,null,null,null,null,"joint manpower automation system"]
["JMAT",null,null,null,null,null,"joint medical analysis tool; joint mobility assistance team"]
["JMB",null,null,null,null,null,"joint meteorology and oceanography board"]
["JMC",null,null,null,null,null,"joint military command; joint movement center"]
["JMCC",null,null,null,null,null,"joint meteorological and oceanographic coordination cell"]
["JMCG",null,null,null,null,null,"joint movement control group"]
["JMCIS",null,null,null,null,null,"Joint Maritime Command Information System"]
["JMCO",null,null,null,null,null,"joint meteorological and oceanographic coordination organization"]
["JMCOMS",null,null,null,null,null,"joint maritime communications system"]
["JMD",null,null,null,null,null,"joint manning document"]
["JMeDSAF",null,null,null,null,null,"joint medical semi-automated forces"]
["JMEEL",null,null,null,null,null,"joint mission-essential equipment list"]
["JMEM",null,null,null,null,null,"Joint Munitions Effectiveness Manual"]
["JMET",null,null,null,null,null,"joint mission-essential task"]
["JMETL",null,null,null,null,null,"joint mission-essential task list"]
["JMIC",null,null,null,null,null,"Joint Military Intelligence College; joint modular intermodal container"]
["JMICS",null,null,null,null,null,"Joint Worldwide Intelligence Communications System mobile integrated communications system"]
["JMIE",null,null,null,null,null,"joint maritime information element"]
["JMIP",null,null,null,null,null,"joint military intelligence program"]
["JMISC",null,null,null,null,null,"Joint Military Information Support Command"]
["JMISTF",null,null,null,null,null,"joint military information support task force"]
["JMITC",null,null,null,null,null,"Joint Military Intelligence Training Center"]
["JML ",null,null,null,null,null,"Job Standard Master Listing"]
["JMLO",null,null,null,null,null,"joint medical logistics officer"]
["JMMC",null,null,null,null,null,"Joint Material Management Center"]
["JMMT",null,null,null,null,null,"joint military mail terminal"]
["JMNA",null,null,null,null,null,"joint military net assessment"]
["JMO",null,null,null,null,null,"joint maritime operations; joint meteorological and oceanographic officer; joint munitions office"]
["JMO(AIR)",null,null,null,null,null,"joint maritime operations (air)"]
["JMOC",null,null,null,null,null,"joint medical operations center"]
["JMP",null,null,null,null,null,"joint manpower program"]
["JMPA",null,null,null,null,null,"joint military postal activity; joint military satellite communications (MILSATCOM) panel administrator"]
["JMPAB",null,null,null,null,null,"Joint Materiel Priorities and Allocation Board"]
["JMPT",null,null,null,null,null,"Joint Medical Planning Tool"]
["JMRC",null,null,null,null,null,"joint mobile relay center"]
["JMRO",null,null,null,null,null,"Joint Medical Regulating Office"]
["JMRR",null,null,null,null,null,"Joint Monthly Readiness Review"]
["JMSEP",null,null,null,null,null,"joint modeling and simulation executive panel"]
["JMSWG",null,null,null,null,null,"Joint Multi-Tactical Digital Information Link (Multi-TADIL) Standards Working Group"]
["JMT",null,null,null,null,null,"joint military training"]
["JMTCA",null,null,null,null,null,"joint munitions transportation coordinating activity"]
["JMTCSS",null,null,null,null,null,"Joint Maritime Tactical Communications Switching System"]
["JMTG",null,null,null,null,null,"joint military information support operations task group"]
["JMUA",null,null,null,null,null,"Joint Meritorious Unit Award"]
["JMV",null,null,null,null,null,"joint METOC viewer"]
["JMWG",null,null,null,null,null,"joint medical working group"]
["JNCC",null,null,null,null,null,"joint network operations control center"]
["JNMS",null,null,null,null,null,"joint network management system"]
["JNOCC",null,null,null,null,null,"Joint Operation Planning and Execution System (JOPES) Network Operation Control Center"]
["JNPE",null,null,null,null,null,"joint nuclear planning element"]
["JNSC",null,null,null,null,null,"Joint Navigation Warfare Center Navigation Warfare Support Cell"]
["JNWC",null,null,null,null,null,"Joint Navigation Warfare Center"]
["JOA",null,null,null,null,null,"joint operations area"]
["JOAF",null,null,null,null,null,"joint operations area forecast"]
["JOC",null,null,null,null,null,"joint operations center; joint oversight committee"]
["JOCC",null,null,null,null,null,"joint operations command center"]
["JOERAD",null,null,null,null,null,"joint spectrum center ordnance electomagnetic environmental effects risk assessment database"]
["JOG",null,null,null,null,null,"joint operations graphic"]
["JOGS",null,null,null,null,null,"joint operation graphics system"]
["JOPES",null,null,null,null,null,"Joint Operation Planning and Execution System"]
["JOPESIR",null,null,null,null,null,"Joint Operation Planning and Execution System Incident Reporting System"]
["JOPESREP",null,null,null,null,null,"Joint Operation Planning and Execution System Reporting System"]
["JOPG",null,null,null,null,null,"joint operations planning group"]
["JOPP",null,null,null,null,null,"joint operation planning process"]
["JOPPA",null,null,null,null,null,"joint operation planning process for air"]
["JOR",null,null,null,null,null,"joint operational requirement"]
["JORD",null,null,null,null,null,"joint operational requirements document"]
["JOSE",null,null,null,null,null,"joint operations security support element"]
["JOSG",null,null,null,null,null,"joint operational steering group"]
["JOT&E",null,null,null,null,null,"joint operational test and evaluation"]
["JOTC",null,null,null,null,null,"joint operations tasking center"]
["JOTS",null,null,null,null,null,"Joint Operational Tactical System"]
["JP",null,null,null,null,null,"joint publication"]
["JP4",null,null,null,null,null,"jet propulsion fuel, type 4"]
["JP5",null,null,null,null,null,"jet propulsion fuel, type 5"]
["JP8",null,null,null,null,null,"jet propulsion fuel, type 8"]
["JPAC",null,null,null,null,null,"joint planning augmentation cell; Joint POW/MIA Accounting Command"]
["JPADS",null,null,null,null,null,"joint precision airdrop system"]
["JPAG",null,null,null,null,null,"Joint Planning Advisory Group"]
["JPARR",null,null,null,null,null,"joint personnel accountability reconciliation and reporting"]
["JPASE",null,null,null,null,null,"joint public affairs support element; Joint Public Affairs Support Element (USTRANSCOM)"]
["JPATS",null,null,null,null,null,"joint primary aircraft training system"]
["JPAV",null,null,null,null,null,"joint personnel asset visibility"]
["JPC",null,null,null,null,null,"joint planning cell; joint postal cell"]
["JPD",null,null,null,null,null,"joint planning document"]
["JPEC",null,null,null,null,null,"joint planning and execution community"]
["JPED",null,null,null,null,null,"joint personal effects depot"]
["JPEG",null,null,null,null,null,"Joint Photographic Experts Group"]
["JPERSTAT",null,null,null,null,null,"joint personnel status and casualty report"]
["JPG",null,null,null,null,null,"joint planning group"]
["JPME",null,null,null,null,null,"joint professional military education"]
["JPMRC",null,null,null,null,null,"joint patient movement requirements center"]
["JPMT",null,null,null,null,null,"joint patient movement team"]
["JPN",null,null,null,null,null,"joint planning network"]
["JPO",null,null,null,null,null,"joint petroleum office; Joint Program Office"]
["JPO-STC",null,null,null,null,null,"Joint Program Office for Special Technology Countermeasures"]
["JPOC",null,null,null,null,null,"joint personnel operations center; joint planning orientation course"]
["JPOI",null,null,null,null,null,"joint program of instruction"]
["JPOM",null,null,null,null,null,"joint preparation and onward movement"]
["JPRA",null,null,null,null,null,"Joint Personnel Recovery Agency"]
["JPRC",null,null,null,null,null,"joint personnel reception center; joint personnel recovery center"]
["JPRSP",null,null,null,null,null,"joint personnel recovery support product"]
["JPS",null,null,null,null,null,"joint processing system"]
["JPSE",null,null,null,null,null,"Joint Planning Support Element (USTRANSCOM)"]
["JPTTA",null,null,null,null,null,"joint personnel training and tracking activity"]
["JQR",null,null,null,null,null,"joint qualification requirements"]
["JQRR",null,null,null,null,null,"joint quarterly readiness review"]
["JQS",null,null,null,null,null,"Job Qualification Standard"]
["JRADS",null,null,null,null,null,"Joint Resource Assessment Data System"]
["JRB",null,null,null,null,null,"Joint Requirements Oversight Council (JROC) Review Board"]
["JRC",null,null,null,null,null,"joint reconnaissance center"]
["JRCC",null,null,null,null,null,"joint reception coordination center"]
["JRERP",null,null,null,null,null,"Joint Radiological Emergency Response Plan"]
["JRFL",null,null,null,null,null,"joint restricted frequency list"]
["JRG",null,null,null,null,null,"joint review group"]
["JRIC",null,null,null,null,null,"joint reserve intelligence center"]
["JRIP",null,null,null,null,null,"Joint Reserve Intelligence Program"]
["JRMB",null,null,null,null,null,"Joint Requirements and Management Board"]
["JROC",null,null,null,null,null,"Joint Requirements Oversight Council"]
["JRRB",null,null,null,null,null,"joint requirements review board"]
["JRS",null,null,null,null,null,"joint reporting structure"]
["JRSC",null,null,null,null,null,"jam-resistant secure communications; joint rescue sub-center"]
["JRSOI",null,null,null,null,null,"joint reception, staging, onward movement, and integration"]
["JRTC",null,null,null,null,null,"joint readiness training center"]
["JRX",null,null,null,null,null,"joint readiness exercise"]
["JS",null,null,null,null,null,"Joint Staff; the Joint Staff"]
["JSA",null,null,null,null,null,"joint security area"]
["JSAC",null,null,null,null,null,"joint strike analysis cell; joint strike analysis center"]
["JSAM",null,null,null,null,null,"joint security assistance memorandum; Joint Service Achievement Medal; joint standoff surface attack missile"]
["JSAN",null,null,null,null,null,"Joint Staff automation for the nineties"]
["JSAP",null,null,null,null,null,"Joint Staff action package"]
["JSAS",null,null,null,null,null,"joint strike analysis system"]
["JSC",null,null,null,null,null,"joint security coordinator; Joint Spectrum Center"]
["JSCAT",null,null,null,null,null,"joint staff crisis action team"]
["JSCC",null,null,null,null,null,"joint security coordination center; joint Services coordination committee"]
["JSCM",null,null,null,null,null,"Joint Service Commendation Medal"]
["JSCP",null,null,null,null,null,"Joint Strategic Capabilities Plan"]
["JSDS",null,null,null,null,null,"Joint Staff doctrine sponsor"]
["JSEC",null,null,null,null,null,"joint strategic exploitation center"]
["JSETS",null,null,null,null,null,"Joint Search and Rescue Satellite-Aided Tracking Electronic Tracking System"]
["JSF",null,null,null,null,null,"joint support force"]
["JSHO",null,null,null,null,null,"joint shipboard helicopter operations"]
["JSIDS",null,null,null,null,null,"joint Services imagery digitizing system"]
["JSIR",null,null,null,null,null,"joint spectrum interference resolution"]
["JSISC",null,null,null,null,null,"Joint Staff Information Service Center"]
["JSIT",null,null,null,null,null,"Joint Operation Planning and Execution System (JOPES) information trace"]
["JSIVA",null,null,null,null,null,"Joint Staff Integrated Vulnerability Assessment"]
["JSM",null,null,null,null,null,"Joint Staff Manual"]
["JSME",null,null,null,null,null,"joint spectrum management element"]
["JSMS",null,null,null,null,null,"joint spectrum management system"]
["JSO",null,null,null,null,null,"joint security operations"]
["JSOA",null,null,null,null,null,"joint special operations area"]
["JSOAC",null,null,null,null,null,"joint special operations air component; joint special operations aviation component"]
["JSOACC",null,null,null,null,null,"joint special operations air component commander"]
["JSOC",null,null,null,null,null,"joint special operations command"]
["JSOFI",null,null,null,null,null,"Joint Special Operations Forces Institute"]
["JSOTF",null,null,null,null,null,"joint special operations task force"]
["JSOW",null,null,null,null,null,"joint stand-off weapon"]
["JSPA",null,null,null,null,null,"joint satellite communications panel administrator"]
["JSPD",null,null,null,null,null,"joint strategic planning document"]
["JSPDSA",null,null,null,null,null,"joint strategic planning document supporting analyses"]
["JSPOC",null,null,null,null,null,"Joint Space Operations Center"]
["JSPS",null,null,null,null,null,"Joint Strategic Planning System"]
["JSR",null,null,null,null,null,"joint strategy review"]
["JSRC",null,null,null,null,null,"joint subregional command (NATO)"]
["JSS",null,null,null,null,null,"joint surveillance system"]
["JSSA",null,null,null,null,null,"joint Services survival, evasion, resistance, and escape (SERE) agency"]
["JSSIS",null,null,null,null,null,"joint staff support information system"]
["JSST",null,null,null,null,null,"joint space support team"]
["JST",null,null,null,null,null,"Job Standard"]
["JSTAR",null,null,null,null,null,"joint system threat assessment report"]
["JSTARS",null,null,null,null,null,"Joint Surveillance Target Attack Radar System"]
["JSTE",null,null,null,null,null,"joint system training exercise"]
["JSTO",null,null,null,null,null,"joint space tasking order"]
["JT&E",null,null,null,null,null,"joint test and evaluation"]
["JTA",null,null,null,null,null,"joint technical architecture"]
["JTAC",null,null,null,null,null,"joint terminal attack controller; Joint Terrorism Analysis Center"]
["JTACE",null,null,null,null,null,"joint technical advisory chemical, biological, radiological, and nuclear element"]
["JTADS",null,null,null,null,null,"Joint Tactical Air Defense System (Army); Joint Tactical Display System"]
["JTAGS",null,null,null,null,null,"joint tactical ground station (Army); joint tactical ground station (Army and Navy); joint tactical ground system"]
["JTAIC",null,null,null,null,null,"Joint Technical Analysis and Integration Cell (Army)"]
["JTAO",null,null,null,null,null,"joint tactical air operations"]
["JTAR",null,null,null,null,null,"joint tactical air strike request"]
["JTASC",null,null,null,null,null,"joint training analysis and simulation center"]
["JTASG",null,null,null,null,null,"Joint Targeting Automation Steering Group"]
["JTAV-IT",null,null,null,null,null,"joint total asset visibility-in theater"]
["JTB",null,null,null,null,null,"Joint Transportation Board"]
["JTC",null,null,null,null,null,"joint technical committee; Joint Training Confederation"]
["JTCB",null,null,null,null,null,"joint targeting coordination board"]
["JTCC",null,null,null,null,null,"joint transportation coordination cell; joint transportation coordination center; joint transportation corporate information management center"]
["JTCG/ME",null,null,null,null,null,"Joint Technical Coordinating Group for Munitions Effectiveness"]
["JTCOIC",null,null,null,null,null,"Joint Training Counter-Improvised Explosive Device Operations Integration Center"]
["JTD",null,null,null,null,null,"joint table of distribution; joint theater distribution"]
["JTDC",null,null,null,null,null,"joint track data coordinator"]
["JTF",null,null,null,null,null,"joint task force"]
["JTF HQ",null,null,null,null,null,"joint task force headquarters"]
["JTF-6",null,null,null,null,null,"joint task force-6"]
["JTF-AK",null,null,null,null,null,"Joint Task Force-Alaska"]
["JTF-B",null,null,null,null,null,"joint task force-Bravo"]
["JTF-CM",null,null,null,null,null,"joint task force - consequence management"]
["JTF-CS",null,null,null,null,null,"Joint Task Force-Civil Support"]
["JTF-E",null,null,null,null,null,"joint task force - elimination"]
["JTF-GNO",null,null,null,null,null,"Joint Task Force-Global Network Operations"]
["JTF-GTMO",null,null,null,null,null,"Joint Task Force-Guantanamo"]
["JTF-HD",null,null,null,null,null,"Joint Task Force-Homeland Defense"]
["JTF-MAO",null,null,null,null,null,"joint task force - mortuary affairs office"]
["JTF-N",null,null,null,null,null,"Joint Task Force-North"]
["JTF-PO",null,null,null,null,null,"joint task force-port opening"]
["JTF-State",null,null,null,null,null,"joint task force-state"]
["JTFCEM",null,null,null,null,null,"joint task force contingency engineering management"]
["JTFP",null,null,null,null,null,"Joint Tactical Fusion Program"]
["JTFS",null,null,null,null,null,"joint task force surgeon"]
["JTIC",null,null,null,null,null,"joint transportation intelligence center"]
["JTIDS",null,null,null,null,null,"Joint Tactical Information Distribution System"]
["JTL",null,null,null,null,null,"joint target list"]
["JTLM",null,null,null,null,null,"joint theater logistics management"]
["JTLS",null,null,null,null,null,"joint theater-level simulation"]
["JTM",null,null,null,null,null,"joint training manual"]
["JTMD",null,null,null,null,null,"joint table of mobilization and distribution; Joint Terminology Master Database"]
["JTMP",null,null,null,null,null,"joint training master plan"]
["JTMS",null,null,null,null,null,"joint theater movement staff; joint training master schedule"]
["JTP",null,null,null,null,null,"joint test publication; joint training plan"]
["JTR",null,null,null,null,null,"joint travel regulations"]
["JTRB",null,null,null,null,null,"joint telecommunication resources board"]
["JTS",null,null,null,null,null,"Joint Targeting School; Joint Training System"]
["JTSSCCB",null,null,null,null,null,"Joint Tactical Switched Systems Configuration Control Board"]
["JTSST",null,null,null,null,null,"joint training system support team"]
["JTT",null,null,null,null,null,"joint targeting toolbox; joint training team"]
["JTTF",null,null,null,null,null,"joint terrorism task force"]
["JTWG",null,null,null,null,null,"joint targeting working group"]
["JUH-MTF",null,null,null,null,null,"Joint User Handbook-Message Text Formats"]
["JUIC",null,null,null,null,null,"joint unit identification code"]
["JUMPS",null,null,null,null,null,"Joint Uniform Military Pay System"]
["JUO",null,null,null,null,null,"joint urban operation"]
["JUSMAG",null,null,null,null,null,"Joint United States Military Advisory Group"]
["JUWTF",null,null,null,null,null,"joint unconventional warfare task force"]
["JV",null,null,null,null,null,"Joint Vision"]
["JV 2020",null,null,null,null,null,"Joint Vision 2020"]
["JVB",null,null,null,null,null,"Joint Visitors Bureau"]
["JVIDS",null,null,null,null,null,"Joint Visual Integrated Display System"]
["JVSEAS",null,null,null,null,null,"Joint Virtual Security Environment Assessment System"]
["JWAC",null,null,null,null,null,"Joint Warfare Analysis Center"]
["JWARS",null,null,null,null,null,"Joint Warfare Analysis and Requirements System"]
["JWC",null,null,null,null,null,"Joint Warfare Center"]
["JWFC",null,null,null,null,null,"Joint Warfighting Center"]
["JWG",null,null,null,null,null,"joint working group"]
["JWICS",null,null,null,null,null,"Joint Worldwide Intelligence Communications System"]
["JWID",null,null,null,null,null,"joint warrior interoperability demonstration"]
["k",null,null,null,null,null,"thousand"]
["K-Kill",null,null,null,null,null,"catastrophic kill"]
["Ka",null,null,null,null,null,"Kurtz-above band"]
["KAL",null,null,null,null,null,"key assets list"]
["KAPP",null,null,null,null,null,"Key Assets Protection Program"]
["kb",null,null,null,null,null,"kilobit"]
["kbps",null,null,null,null,null,"kilobits per second"]
["KC-135",null,null,null,null,null,"Stratotanker"]
["KDE",null,null,null,null,null,"key doctrine element"]
["KEK",null,null,null,null,null,"key encryption key"]
["KG",null,null,null,null,null,"key generator"]
["kg",null,null,null,null,null,"kilogram"]
["kHz",null,null,null,null,null,"kilohertz"]
["KLE",null,null,null,null,null,"key leader engagement"]
["KLIP",null,null,null,null,null,"key doctrine element-linked information package"]
["km",null,null,null,null,null,"kilometer"]
["KMC",null,null,null,null,null,"knowledge management center"]
["KNP",null,null,null,null,null,"Korean National Police"]
["KP",null,null,null,null,null,"key pulse"]
["kph",null,null,null,null,null,"kilometers per hour"]
["KPP",null,null,null,null,null,"key performance parameter"]
["KQ ID",null,null,null,null,null,"tactical location identifier"]
["kt",null,null,null,null,null,"kiloton(s); knot (nautical miles per hour)"]
["KTL",null,null,null,null,null,"Key Task List"]
["Ku",null,null,null,null,null,"Kurtz-under band"]
["kVA",null,null,null,null,null,"kilo Volt-Amps"]
["KVG",null,null,null,null,null,"key variable generator"]
["kW",null,null,null,null,null,"kilowatt"]
["KWOC",null,null,null,null,null,"keyword-out-of-context"]
["L",null,null,null,null,null,"length"]
["l",null,null,null,null,null,"search subarea length"]
["L-EWE",null,null,null,null,null,"land-electronic warfare element"]
["L-hour",null,null,null,null,null,"specific hour on C-day at which a deployment operation commences or is to commence"]
["L/ESS",null,null,null,null,null,"Loads/Environment Spectra Survey"]
["L/T",null,null,null,null,null,"long ton"]
["LA",null,null,null,null,null,"lead agent; legal adviser; line amplifier; loop key generator (LKG) adapter"]
["LAADS",null,null,null,null,null,"low altitude air defense system"]
["LAAM",null,null,null,null,null,"light anti-aircraft missile"]
["LABS",null,null,null,null,null,"laser airborne bathymetry system"]
["LACV",null,null,null,null,null,"lighter, air cushioned vehicle"]
["LAD",null,null,null,null,null,"latest arrival date; launch area denied"]
["LAMPS",null,null,null,null,null,"Light Airborne Multipurpose System (helicopter)"]
["LAN",null,null,null,null,null,"local area network"]
["LANDCENT",null,null,null,null,null,"Allied Land Forces Central Europe (NATO)"]
["LANDSAT",null,null,null,null,null,"land satellite"]
["LANDSOUTH",null,null,null,null,null,"Allied Land Forces Southern Europe (NATO)"]
["LANTIRN",null,null,null,null,null,"low-altitude navigation and targeting infrared for night"]
["LAO",null,null,null,null,null,"limited attack option"]
["LARC",null,null,null,null,null,"lighter, amphibious resupply, cargo"]
["LARC-V",null,null,null,null,null,"lighter, amphibious resupply, cargo, 5 ton"]
["LARS",null,null,null,null,null,"lightweight airborne recovery system"]
["LASH",null,null,null,null,null,"lighter aboard ship"]
["LAT",null,null,null,null,null,"latitude"]
["LAV",null,null,null,null,null,"light armored vehicle"]
["lb",null,null,null,null,null,"pound"]
["LBR",null,null,null,null,null,"Laser Beam Rider"]
["lbs.",null,null,null,null,null,"pounds"]
["LC",null,null,null,null,null,"lake current; legal counsel"]
["LCAC",null,null,null,null,null,"landing craft, air cushion"]
["LCADS",null,null,null,null,null,"low-cost aerial delivery system"]
["LCAP",null,null,null,null,null,"low combat air patrol"]
["LCAT",null,null,null,null,null,"Logistics Compliance Assessment Team"]
["LCB",null,null,null,null,null,"line of constant bearing"]
["LCC",null,null,null,null,null,"amphibious command ship; land component commander; launch control center; lighterage control center; link communications circuit; logistics component command"]
["LCCS",null,null,null,null,null,"landing craft control ship"]
["LCE",null,null,null,null,null,"logistics capability estimator; logistics combat element (MAGTF); logistics combat element (Marine)"]
["LCES",null,null,null,null,null,"line conditioning equipment scanner"]
["LCL",null,null,null,null,null,"Local Checklist"]
["LCM",null,null,null,null,null,"landing craft, mechanized; letter-class mail; life-cycle management"]
["LCMC",null,null,null,null,null,"life cycle management command"]
["LCN",null,null,null,null,null,"Logistics Control Number"]
["LCO",null,null,null,null,null,"landing craft air cushion control officer; lighterage control officer"]
["LCP",null,null,null,null,null,"lighterage control point"]
["LCPL",null,null,null,null,null,"landing craft, personnel, light"]
["LCS",null,null,null,null,null,"landing craft air cushion control ship"]
["LCSR",null,null,null,null,null,"life cycle systems readiness"]
["LCU",null,null,null,null,null,"landing craft, utility; launch correlation unit"]
["LCVP",null,null,null,null,null,"landing craft, vehicle, personnel"]
["LD",null,null,null,null,null,"line of departure"]
["LDA",null,null,null,null,null,"limited depository account"]
["LDF",null,null,null,null,null,"lightweight digital facsimile"]
["LDI",null,null,null,null,null,"line driver interface"]
["LDO",null,null,null,null,null,"laser designator operator"]
["LDR",null,null,null,null,null,"leader; low data rate"]
["LE",null,null,null,null,null,"law enforcement; low-order explosives"]
["LEA",null,null,null,null,null,"law enforcement agency"]
["LEAP",null,null,null,null,null,"Light ExoAtmospheric Projectile"]
["LEASAT",null,null,null,null,null,"leased satellite"]
["LEAU",null,null,null,null,null,"Law Enforcement Assistance Unit (FAA)"]
["LECIC",null,null,null,null,null,"Law Enforcement and Counterintelligence Center (DOD)"]
["LED",null,null,null,null,null,"law enforcement desk; light emitting diode"]
["LEDET",null,null,null,null,null,"law enforcement detachment (USCG)"]
["LEGAT",null,null,null,null,null,"legal attaché"]
["LEIP",null,null,null,null,null,"Law Enforcement Intelligence Program (USCG)"]
["LEMP",null,null,null,null,null,"low-altitude electromagnetic pulse"]
["LEO",null,null,null,null,null,"law enforcement operations; low Earth orbit"]
["LEP",null,null,null,null,null,"laser eye protection; law enforcement professional; linear error probable"]
["LERSM",null,null,null,null,null,"lower echelon reporting and surveillance module"]
["LERTCON",null,null,null,null,null,"alert condition"]
["LES",null,null,null,null,null,"law enforcement sensitive; leave and earnings statement; Lincoln Laboratories Experimental Satellite"]
["LESO",null,null,null,null,null,"Law Enforcement Support Office"]
["LET",null,null,null,null,null,"light equipment transport"]
["LF",null,null,null,null,null,"landing force; low frequency"]
["LFA",null,null,null,null,null,"lead federal agency"]
["LFORM",null,null,null,null,null,"landing force operational reserve material"]
["LFSP",null,null,null,null,null,"landing force support party"]
["LfV",null,null,null,null,null,"Landesamt für Verfassungsschutz (regional authority for constitutional protection)"]
["LG",null,null,null,null,null,"deputy chief of staff for logistics"]
["LGB",null,null,null,null,null,"laser-guided bomb"]
["LGM",null,null,null,null,null,"laser-guided missile; loop group multiplexer"]
["LGM-30",null,null,null,null,null,"Minuteman"]
["LGW",null,null,null,null,null,"laser-guided weapon"]
["LHA",null,null,null,null,null,"amphibious assault ship (general purpose)"]
["LHD",null,null,null,null,null,"amphibious assault ship (multipurpose)"]
["LHT",null,null,null,null,null,"line-haul tractor"]
["LIDAR",null,null,null,null,null,"light detection and ranging"]
["LIF",null,null,null,null,null,"light interference filter"]
["LIMDIS",null,null,null,null,null,"limited distribution"]
["LIMFAC",null,null,null,null,null,"limiting factor"]
["LIPS",null,null,null,null,null,"Logistics Information Processing System"]
["LIS",null,null,null,null,null,"logistics information system"]
["LIWA",null,null,null,null,null,"land information warfare activity"]
["LJG",null,null,null,null,null,"Local Job Guides"]
["LKG",null,null,null,null,null,"loop key generator"]
["LKP",null,null,null,null,null,"last known position"]
["LL",null,null,null,null,null,"lessons learned"]
["LLLGB",null,null,null,null,null,"low-level laser-guided bomb"]
["LLLTV",null,null,null,null,null,"low-light level television"]
["LLSO",null,null,null,null,null,"low-level source operation"]
["LLTR",null,null,null,null,null,"low-level transit route"]
["LM",null,null,null,null,null,"loop modem; Limited-use Munition"]
["LMARS",null,null,null,null,null,"Logistics Metrics Analysis Reporting System"]
["LMAV",null,null,null,null,null,"laser MAVERICK"]
["LMF",null,null,null,null,null,"language media format"]
["LMR",null,null,null,null,null,"Land Mobile Radio"]
["LMSR",null,null,null,null,null,"large, medium-speed roll-on/roll-off"]
["LN",null,null,null,null,null,"lead nation"]
["LN2",null,null,null,null,null,"Liquid Nitrogen"]
["LNA",null,null,null,null,null,"low voice amplifier"]
["LNI",null,null,null,null,null,"Library of National Intelligence"]
["LNO",null,null,null,null,null,"liaison officer"]
["LO",null,null,null,null,null,"low observable"]
["LO/LO",null,null,null,null,null,"lift-on/lift-off"]
["LO/RO",null,null,null,null,null,"lift-on/roll-off"]
["LOA",null,null,null,null,null,"Lead Operational Authority; letter of assist; letter of authorization; letter of offer and acceptance; lodgment operational area; logistics over-the-shore operation area"]
["LOAC",null,null,null,null,null,"law of armed conflict"]
["LOAL",null,null,null,null,null,"lock-on after launch"]
["LOBL",null,null,null,null,null,"lock-on before launch"]
["LOC",null,null,null,null,null,"line of communications; logistics operations center"]
["LOC ACC",null,null,null,null,null,"location accuracy"]
["LOCAP",null,null,null,null,null,"low combat air patrol"]
["LOCE",null,null,null,null,null,"Linked Operational Intelligence Centers Europe; Linked Operations-Intelligence Centers Europe"]
["LOD",null,null,null,null,null,"line of departure"]
["LOE",null,null,null,null,null,"letter of evaluation; line of effort"]
["LOG",null,null,null,null,null,"logistics"]
["LOGAIR",null,null,null,null,null,"logistics aircraft"]
["LOGAIS",null,null,null,null,null,"logistics automated information system"]
["LOGCAP",null,null,null,null,null,"logistics civil augmentation program (Army)"]
["LOGCAT",null,null,null,null,null,"logistics capability assessment tool"]
["LOGDET",null,null,null,null,null,"logistics detail"]
["LOGEX",null,null,null,null,null,"logistics exercise"]
["LOGFAC",null,null,null,null,null,"Logistics Feasibility Assessment Capability"]
["LOGFOR",null,null,null,null,null,"logistics force packaging system"]
["LOGMARS",null,null,null,null,null,"logistics applications of automated marking and reading symbols"]
["LOGMOD",null,null,null,null,null,"logistics module"]
["LOGPLAN",null,null,null,null,null,"logistics planning system"]
["LOGSAFE",null,null,null,null,null,"logistic sustainment analysis and feasibility estimator"]
["LOI",null,null,null,null,null,"letter of instruction; loss of input"]
["LOLA",null,null,null,null,null,"Live Ordnance Loading Area"]
["LOMEZ",null,null,null,null,null,"low-altitude missile engagement zone"]
["LONG",null,null,null,null,null,"longitude"]
["LOO",null,null,null,null,null,"line of operation"]
["LOP",null,null,null,null,null,"line of position"]
["LORAN",null,null,null,null,null,"long-range aid to navigation"]
["LOROP",null,null,null,null,null,"long range oblique photography"]
["LOS",null,null,null,null,null,"line of sight"]
["LOTS",null,null,null,null,null,"logistics over-the-shore"]
["LOX",null,null,null,null,null,"liquid oxygen"]
["LP",null,null,null,null,null,"listening post"]
["LPD",null,null,null,null,null,"amphibious transport dock; low probability of detection"]
["LPH",null,null,null,null,null,"amphibious assault ship, landing platform helicopter"]
["LPI",null,null,null,null,null,"low probability of intercept"]
["LPS ",null,null,null,null,null,"Local Page Supplement"]
["LPSB",null,null,null,null,null,"logistics procurement support board"]
["LPT",null,null,null,null,null,"Loaded Pylon Test / Low Pressure Turbine"]
["LPU",null,null,null,null,null,"line printer unit"]
["LPV",null,null,null,null,null,"laser-protective visor"]
["LRC",null,null,null,null,null,"logistics readiness center"]
["LRD",null,null,null,null,null,"laser range finder-detector"]
["LRE",null,null,null,null,null,"Launch Recovery Element"]
["LRF",null,null,null,null,null,"laser range finder"]
["LRF/D",null,null,null,null,null,"laser range finder/detector"]
["LRG",null,null,null,null,null,"long-range aircraft"]
["LRM",null,null,null,null,null,"low rate multiplexer"]
["LRN",null,null,null,null,null,"Laboratory Response Network (DHHS)"]
["LRO",null,null,null,null,null,"lighterage repair officer"]
["LRP",null,null,null,null,null,"load and roll pallet"]
["LRRP",null,null,null,null,null,"long range reconnaissance patrol"]
["LRS",null,null,null,null,null,"launch and recovery site; Logistics Readiness Squadron"]
["LRST",null,null,null,null,null,"long-range surveillance team"]
["LRSU",null,null,null,null,null,"long-range surveillance unit"]
["LRT",null,null,null,null,null,"logistics response time"]
["LRU",null,null,null,null,null,"Line Replaceable Unit"]
["LSA",null,null,null,null,null,"logistic support analysis; logistics supportability analysis"]
["LSB",null,null,null,null,null,"landing support battalion; lower sideband"]
["LSC ",null,null,null,null,null,"Load Standardization Crew"]
["LSCDM",null,null,null,null,null,"low speed cable driver modem"]
["LSD",null,null,null,null,null,"dock landing ship; least significant digit"]
["LSE",null,null,null,null,null,"landing signalman enlisted; logistic support element"]
["LSO",null,null,null,null,null,"landing safety officer; landing signals officer"]
["LSP ",null,null,null,null,null,"Logistics Support Plan"]
["LSPR",null,null,null,null,null,"low speed pulse restorer"]
["LSS",null,null,null,null,null,"laser spot search; local sensor subsystem; logistics support system"]
["LST",null,null,null,null,null,"laser spot tracker; tank landing ship"]
["LSU",null,null,null,null,null,"logistics civil augmentation program support unit"]
["LSV",null,null,null,null,null,"logistics support vessel"]
["LT",null,null,null,null,null,"large tug; local terminal; long ton"]
["LTD",null,null,null,null,null,"laser target designator"]
["LTD/R",null,null,null,null,null,"laser target designator/ranger"]
["LTF",null,null,null,null,null,"logistics task force"]
["LTG",null,null,null,null,null,"local timing generator"]
["LTIOV",null,null,null,null,null,"latest time information is of value"]
["LTL",null,null,null,null,null,"laser-to-target line"]
["LTON",null,null,null,null,null,"long ton"]
["LTS",null,null,null,null,null,"low-altitude navigation and targeting infrared for night (LANTIRN) targeting system"]
["LTT",null,null,null,null,null,"loss to theater"]
["LTU",null,null,null,null,null,"line termination unit"]
["LUT",null,null,null,null,null,"local user terminal"]
["LV",null,null,null,null,null,"LEAVE"]
["LVS",null,null,null,null,null,"Logistics Vehicle System (USMC)"]
["LW",null,null,null,null,null,"leeway"]
["LWC",null,null,null,null,null,"Local Work Cards"]
["LWR",null,null,null,null,null,"Lutheran World Relief"]
["LZ",null,null,null,null,null,"landing zone"]
["LZCO",null,null,null,null,null,"landing zone control officer"]
["M30",null,null,null,null,null,"Monthly Due-Out Validation Listing"]
["M",null,null,null,null,null,"million"]
["M&E",null,null,null,null,null,"monitoring and evaluation"]
["M&S",null,null,null,null,null,"modeling and simulation"]
["M-DARC",null,null,null,null,null,"military direct access radar channel"]
["M-day",null,null,null,null,null,"mobilization day; unnamed day on which mobilization of forces begins"]
["M-Kill",null,null,null,null,null,"mobility kill"]
["M/ATMP",null,null,null,null,null,"Missiles/Air Target Materials Program"]
["M/CM/S",null,null,null,null,null,"mobility, countermobility, and/or survivability"]
["M88A1",null,null,null,null,null,"recovery vehicle"]
["mA",null,null,null,null,null,"milliampere(s)"]
["MA",null,null,null,null,null,"master; medical attendant; military action; mortuary affairs"]
["MAAG",null,null,null,null,null,"military assistance advisory group"]
["MAAP",null,null,null,null,null,"master air attack plan"]
["MAC",null,null,null,null,null,"mobility assault company; Mortuary Affairs Center"]
["MACB",null,null,null,null,null,"multinational acquisition and contracting board"]
["MACCS",null,null,null,null,null,"Marine air command and control system"]
["MACG",null,null,null,null,null,"Marine air control group"]
["MACOM",null,null,null,null,null,"major command (Army)"]
["MACP",null,null,null,null,null,"mortuary affairs collection point"]
["MACRMS",null,null,null,null,null,"mortuary affairs contaminated remains mitigation site"]
["MACS",null,null,null,null,null,"Marine air control squadron"]
["MACSAT",null,null,null,null,null,"multiple access commercial satellite"]
["MAD",null,null,null,null,null,"Militärischer Abschirmdienst (military protection service); military air distress"]
["MADAR",null,null,null,null,null,"Malfunction Detection, Analysis, and Recording System"]
["MADCP",null,null,null,null,null,"mortuary affairs decontamination collection point"]
["MADS",null,null,null,null,null,"military information support operations automated data system"]
["MAEB",null,null,null,null,null,"mean area of effectiveness for blast"]
["MAEF",null,null,null,null,null,"mean area of effectiveness for fragments"]
["MAF",null,null,null,null,null,"mobility air forces"]
["MAFC",null,null,null,null,null,"Marine air-ground task force (MAGTF) all-source fusion center"]
["MAG",null,null,null,null,null,"Marine aircraft group; maritime assessment group; military assignment group"]
["MAGTF",null,null,null,null,null,"Marine air-ground task force"]
["MAGTFACE",null,null,null,null,null,"Marine air-ground task force aviation combat element"]
["MAJCOM",null,null,null,null,null,"major command (USAF)"]
["MALD",null,null,null,null,null,"Miniature Air Launched Decoy"]
["MANFOR",null,null,null,null,null,"manpower force packaging system"]
["MANPADS",null,null,null,null,null,"man-portable air defense system"]
["MANPER",null,null,null,null,null,"manpower and personnel module"]
["MAOC-N",null,null,null,null,null,"Maritime Analysis and Operations Center-Narcotics"]
["MAP",null,null,null,null,null,"Military Assistance Program; missed approach point; missed approach procedure"]
["MAR",null,null,null,null,null,"METOC assistance request"]
["MARAD",null,null,null,null,null,"Maritime Administration"]
["MARAD RRF",null,null,null,null,null,"Maritime Administration Ready Reserve Force"]
["MARCORMATCOM",null,null,null,null,null,"Marine Corps Materiel Command"]
["MARCORSYSCOM",null,null,null,null,null,"Marine Corps Systems Command"]
["MARDIV",null,null,null,null,null,"Marine division"]
["MARFOR",null,null,null,null,null,"Marine Corps forces"]
["MARFOREUR",null,null,null,null,null,"Marine Corps Forces, Europe"]
["MARFORLANT",null,null,null,null,null,"Marine Forces, Atlantic"]
["MARFORNORTH",null,null,null,null,null,"Marine Corps Forces, North"]
["MARFORPAC",null,null,null,null,null,"Marine Forces, Pacific"]
["MARFORSOUTH",null,null,null,null,null,"Marine Corps Forces, South"]
["MARFORSTRAT",null,null,null,null,null,"United States Marine Corps Forces, United States Strategic Command"]
["MARINCEN",null,null,null,null,null,"Maritime Intelligence Center"]
["Marine TACC",null,null,null,null,null,"Marine Corps tactical air command center"]
["MARLE",null,null,null,null,null,"Marine liaison element"]
["MARLO",null,null,null,null,null,"Marine liaison officer"]
["MARO",null,null,null,null,null,"mass atrocity response operations"]
["MAROP",null,null,null,null,null,"marine operators"]
["MARPOL",null,null,null,null,null,"International Convention for the Prevention of Pollution from Ships"]
["MARS",null,null,null,null,null,"Military Auxiliary Radio System"]
["MARSA",null,null,null,null,null,"military assumes responsibility for separation of aircraft"]
["MARSOC",null,null,null,null,null,"Marine Corps special operations command"]
["MARSOF",null,null,null,null,null,"Marine Corps special operations forces"]
["MART",null,null,null,null,null,"mobile Automatic Digital Network (AUTODIN) remote terminal"]
["MARTS",null,null,null,null,null,"Mortuary Affairs Reporting and Tracking System"]
["MAS",null,null,null,null,null,"maritime air support; military information support operations automated system"]
["MASCAL",null,null,null,null,null,"mass casualty"]
["MASF",null,null,null,null,null,"mobile aeromedical staging facility"]
["MASH",null,null,null,null,null,"mobile Army surgical hospital"]
["MASINT",null,null,null,null,null,"measurement and signature intelligence"]
["MASLO",null,null,null,null,null,"measurement and signature intelligence liaison officer"]
["MASO",null,null,null,null,null,"Munitions Accountable System Officer"]
["MAST",null,null,null,null,null,"military assistance to safety and traffic; mobile ashore support terminal"]
["MAT",null,null,null,null,null,"medical analysis tool"]
["MATCALS",null,null,null,null,null,"Marine air traffic control and landing system"]
["MATCS",null,null,null,null,null,"Marine air traffic control squadron"]
["MAW",null,null,null,null,null,"Marine aircraft wing"]
["MAX",null,null,null,null,null,"maximum"]
["MAXORD",null,null,null,null,null,"maximum ordinate"]
["MB",null,null,null,null,null,"medium boat; megabyte; military information support operations battalion"]
["MBBLs",null,null,null,null,null,"thousands of barrels"]
["MBCDM",null,null,null,null,null,"medical biological chemical defense materiel"]
["MBI",null,null,null,null,null,"major budget issue"]
["Mbps",null,null,null,null,null,"megabytes per second"]
["Mbs",null,null,null,null,null,"megabits per second"]
["MC",null,null,null,null,null,"Military Committee (NATO); military community; mission-critical; Mission Capable"]
["MC-130",null,null,null,null,null,"Combat Talon (I and II)"]
["MC/FI",null,null,null,null,null,"mass casualty/fatality incident"]
["MCA",null,null,null,null,null,"mail control activity; maximum calling area; military civic action; mission concept approval; movement control agency"]
["MCAG",null,null,null,null,null,"maritime civil affairs group"]
["MCAP",null,null,null,null,null,"maximum calling area precedence"]
["MCAS",null,null,null,null,null,"Marine Corps air station"]
["MCAST",null,null,null,null,null,"maritime civil affairs and security training"]
["MCAT",null,null,null,null,null,"maritime civil affairs team"]
["MCB",null,null,null,null,null,"movement control battalion"]
["MCBAT",null,null,null,null,null,"medical chemical biological advisory team"]
["MCC",null,null,null,null,null,"Marine component commander; maritime component commander; master control center; military cooperation committee; military coordinating committee; military counterintelligence collections; mission control center; mobility control center; movement control center"]
["MCCC",null,null,null,null,null,"mobile consolidated command center"]
["MCCDC",null,null,null,null,null,"Marine Corps Combat Development Command"]
["MCCISWG",null,null,null,null,null,"military command, control, and information systems working group"]
["MCD",null,null,null,null,null,"medical crew director; Magnetic Chip Detectors"]
["MCDA",null,null,null,null,null,"military and civil defense assets (UN)"]
["MCDP",null,null,null,null,null,"Marine Corps doctrine publication"]
["MCDS",null,null,null,null,null,"modular cargo delivery system"]
["MCE",null,null,null,null,null,"Mission Control Element"]
["MCEB",null,null,null,null,null,"Military Communications-Electronics Board"]
["MCEWG",null,null,null,null,null,"Military Communications-Electronics Working Group"]
["MCI",null,null,null,null,null,"multinational communications integration"]
["MCIA",null,null,null,null,null,"Marine Corps Intelligence Activity"]
["MCIO",null,null,null,null,null,"military criminal investigative organization"]
["MCIOC",null,null,null,null,null,"Marine Corps Information Operations Center"]
["MCIP",null,null,null,null,null,"Marine Corps interim publication; military command inspection program; military customs inspection program"]
["MCJSB",null,null,null,null,null,"Military Committee Joint Standardization Board"]
["MCM",null,null,null,null,null,"Manual for Courts-Martial; military classification manual; mine countermeasures"]
["MCMC",null,null,null,null,null,"mine countermeasures commander"]
["MCMG",null,null,null,null,null,"Military Committee Meteorological Group (NATO)"]
["MCMO",null,null,null,null,null,"medical civil-military operations"]
["MCMOPS",null,null,null,null,null,"mine countermeasures operations"]
["MCMREP",null,null,null,null,null,"mine countermeasure report"]
["MCMRON",null,null,null,null,null,"mine countermeasures squadron"]
["MCO",null,null,null,null,null,"major combat operation; Mapping Customer Operations (Defense Logistics Agency); Marine Corps order"]
["MCOO",null,null,null,null,null,"modified combined obstacle overlay"]
["MCRP",null,null,null,null,null,"Marine Corps reference publication"]
["MCS",null,null,null,null,null,"maneuver control system; Military Capabilities Study; mine countermeasures ship; modular causeway system"]
["MCSB",null,null,null,null,null,"Marine Cryptologic Support Battalion"]
["MCSF",null,null,null,null,null,"mobile cryptologic support facility"]
["MCSFB",null,null,null,null,null,"Marine Corps security force battalion"]
["MCSFR",null,null,null,null,null,"Marine Corps security force regiment"]
["MCT",null,null,null,null,null,"movement control team"]
["MCTC",null,null,null,null,null,"Midwest Counterdrug Training Center"]
["MCTFT",null,null,null,null,null,"Multijurisdictional Counterdrug Task Force Training"]
["MCTOG",null,null,null,null,null,"Marine Corps Tactics and Operations Group"]
["MCU",null,null,null,null,null,"maintenance communications unit"]
["MCW",null,null,null,null,null,"modulated carrier wave"]
["MCWL",null,null,null,null,null,"Marine Corps Warfighting Lab"]
["MCWP",null,null,null,null,null,"Marine Corps warfighting publication"]
["MCX",null,null,null,null,null,"Marine Corps Exchange"]
["MDA",null,null,null,null,null,"Magen David Adom (Israeli equivalent of the Red Cross); maritime domain awareness; Missile Defense Agency"]
["MDBS",null,null,null,null,null,"blood support medical detachment"]
["MDCI",null,null,null,null,null,"multidiscipline counterintelligence"]
["MDCO",null,null,null,null,null,"Military Department counterintelligence organization"]
["MDDOC",null,null,null,null,null,"Marine air-ground task force deployment and distribution operations center"]
["MDF",null,null,null,null,null,"Main Defense Forces (NATO); main distribution frame; Mission Data File"]
["MDITDS",null,null,null,null,null,"migration defense intelligence threat data system; Modernized Defense Intelligence Threat Data System"]
["MDMA",null,null,null,null,null,"methylenedioxymethamphetamine"]
["MDR",null,null,null,null,null,"medium data rate"]
["MDRO",null,null,null,null,null,"mission disaster response officer"]
["MDS",null,null,null,null,null,"Message Dissemination Subsystem; mission design series"]
["MDSS II",null,null,null,null,null,"Marine air-ground task force Deployment Support System II"]
["MDSU",null,null,null,null,null,"mobile diving and salvage unit"]
["MDU",null,null,null,null,null,"military information support operations distribution unit"]
["MDW",null,null,null,null,null,"Military District of Washington"]
["MDZ",null,null,null,null,null,"maritime defense zone"]
["ME/C",null,null,null,null,null,"medical examiner and/or coroner"]
["MEA",null,null,null,null,null,"munitions effect assessment; munitions effectiveness assessment"]
["MEAS",null,null,null,null,null,"military information support operations effects analysis subsystem"]
["MEB",null,null,null,null,null,"Marine expeditionary brigade"]
["MEBU",null,null,null,null,null,"mission essential backup"]
["MEC",null,null,null,null,null,"medium endurance cutter"]
["MED",null,null,null,null,null,"manipulative electronic deception"]
["MEDAL",null,null,null,null,null,"Mine Warfare Environmental Decision Aids Library"]
["MEDCAP",null,null,null,null,null,"medical civic action program"]
["MEDCC",null,null,null,null,null,"medical coordination cell"]
["MEDCOM",null,null,null,null,null,"medical command; US Army Medical Command"]
["MEDCOM (DS)",null,null,null,null,null,"medical command (deployment support) (Army)"]
["MEDEVAC",null,null,null,null,null,"medical evacuation"]
["MEDINT",null,null,null,null,null,"medical intelligence"]
["MEDLOG",null,null,null,null,null,"medical logistics (USAF AIS)"]
["MEDLOG JR",null,null,null,null,null,"medical logistics, junior (USAF)"]
["MEDLOG support",null,null,null,null,null,"medical logistics support"]
["MEDLOGCO",null,null,null,null,null,"medical logistics company"]
["MEDMOB",null,null,null,null,null,"Medical Mobilization Planning and Execution System"]
["MEDNEO",null,null,null,null,null,"medical noncombatant evacuation operation"]
["MEDREG",null,null,null,null,null,"medical regulating"]
["MEDREGREP",null,null,null,null,null,"medical regulating report"]
["MEDRETE",null,null,null,null,null,"medical readiness training exercise"]
["MEDS",null,null,null,null,null,"meteorological data system"]
["MEDSOM",null,null,null,null,null,"medical supply, optical, and maintenance unit"]
["MEDSTAT",null,null,null,null,null,"medical status"]
["MEF",null,null,null,null,null,"Marine expeditionary force"]
["MEFPAKA",null,null,null,null,null,"manpower and equipment force packaging"]
["MEL",null,null,null,null,null,"maintenance expenditure limit; minimum equipment list; Minimum Equipment Level"]
["MEO",null,null,null,null,null,"medium Earth orbit; military equal opportunity; Most Efficient Organization"]
["MEP",null,null,null,null,null,"mobile electric power; Mission Essential Personnel"]
["MEPCOM",null,null,null,null,null,"military entrance processing command"]
["MEPES",null,null,null,null,null,"Medical Planning and Execution System"]
["MEPRS",null,null,null,null,null,"Military Entrance Processing and Reporting System"]
["MER",null,null,null,null,null,"Multiple Ejection Rack"]
["MERCO",null,null,null,null,null,"merchant ship reporting and control"]
["MERSHIPS",null,null,null,null,null,"merchant ships"]
["MES",null,null,null,null,null,"medical equipment set"]
["MESAR",null,null,null,null,null,"minimum-essential security assistance requirements"]
["MESF",null,null,null,null,null,"maritime expeditionary security force"]
["MESFC",null,null,null,null,null,"maritime expeditionary security force commander"]
["MESL",null,null,null,null,null,"Minimum Essential Subsystems List"]
["MESO",null,null,null,null,null,"maritime expeditionary security operations"]
["MET",null,null,null,null,null,"medium equipment transporter; mobile environmental team"]
["METAR",null,null,null,null,null,"meteorological airfield report; meteorological aviation report"]
["METARS",null,null,null,null,null,"routine aviation weather report (roughly translated from French; international standard code format for hourly surface weather observations)"]
["METCON",null,null,null,null,null,"control of meteorological information (roughly translated from French); meteorological control (Navy)"]
["METL",null,null,null,null,null,"mission-essential task list"]
["METMF",null,null,null,null,null,"meteorological mobile facility"]
["METMF(R)",null,null,null,null,null,"meteorological mobile facility (replacement)"]
["METOC",null,null,null,null,null,"meteorological and oceanographic"]
["METSAT",null,null,null,null,null,"meteorological satellite"]
["METT-T",null,null,null,null,null,"mission, enemy, terrain and weather, troops and support available--time available"]
["METT-TC",null,null,null,null,null,"mission, enemy, terrain and weather, troops and support available-time available and civil considerations (Army)"]
["METWATCH",null,null,null,null,null,"meteorological watch"]
["MEU",null,null,null,null,null,"Marine expeditionary unit"]
["MEVA",null,null,null,null,null,"mission essential vulnerable area"]
["MEWSG",null,null,null,null,null,"Multi-Service Electronic Warfare Support Group (NATO)"]
["MEZ",null,null,null,null,null,"missile engagement zone"]
["MF",null,null,null,null,null,"medium frequency; mobile facility; multi-frequency"]
["MFC",null,null,null,null,null,"multinational force commander"]
["MFDS",null,null,null,null,null,"Modular Fuel Delivery System"]
["MFE",null,null,null,null,null,"manpower force element; mobile field exchange"]
["MFFIMS",null,null,null,null,null,"mass fatality field information management system"]
["MFG",null,null,null,null,null,"Munitions Family Group"]
["MFM",null,null,null,null,null,"MAJCOM Functional Manager"]
["MFO",null,null,null,null,null,"multinational force and observers"]
["MFP",null,null,null,null,null,"major force program"]
["MFPC",null,null,null,null,null,"maritime future plans center"]
["MFPF",null,null,null,null,null,"minefield planning folder"]
["MFR",null,null,null,null,null,"Memorandum for Record"]
["MFS",null,null,null,null,null,"multifunction switch"]
["MFT",null,null,null,null,null,"Multi-Functional Team"]
["MG",null,null,null,null,null,"military information support operations group"]
["MGB",null,null,null,null,null,"medium girder bridge"]
["MGN",null,null,null,null,null,"Mission Generation Networks"]
["MGM",null,null,null,null,null,"master group multiplexer"]
["MGRS",null,null,null,null,null,"military grid reference system"]
["MGS",null,null,null,null,null,"mobile ground system"]
["MGT",null,null,null,null,null,"management"]
["MGW",null,null,null,null,null,"maximum gross weight"]
["MHC",null,null,null,null,null,"management headquarters ceiling"]
["MHD",null,null,null,null,null,"maritime homeland defense"]
["MHE",null,null,null,null,null,"materials handling equipment"]
["MHS",null,null,null,null,null,"maritime homeland security; Military Health System"]
["MHU",null,null,null,null,null,"modular heat unit"]
["MHW",null,null,null,null,null,"mean high water"]
["MHz",null,null,null,null,null,"megahertz"]
["MI",null,null,null,null,null,"military intelligence; movement instructions; Management Inspection"]
["MIA",null,null,null,null,null,"missing in action"]
["MIAC",null,null,null,null,null,"maritime intelligence and analysis center"]
["MIB",null,null,null,null,null,"Military Intelligence Board"]
["MIC",null,null,null,null,null,"Multinational Interoperability Council"]
["MICAP",null,null,null,null,null,"mission capable"]
["MICON",null,null,null,null,null,"mission concept"]
["MICRO-MICS",null,null,null,null,null,"micro-medical inventory control system"]
["MICRO-SNAP",null,null,null,null,null,"micro-shipboard non-tactical automated data processing system"]
["MIDAS",null,null,null,null,null,"model for intertheater deployment by air and sea"]
["MIDB",null,null,null,null,null,"modernized integrated database; modernized intelligence database"]
["MIDDS-T",null,null,null,null,null,"Meteorological and Oceanographic (METOC) Integrated Data Display System-Tactical"]
["MIF",null,null,null,null,null,"maritime interception force"]
["MIJI",null,null,null,null,null,"meaconing, interference, jamming, and intrusion"]
["MIL",null,null,null,null,null,"Master Inventory List"]
["MIL-STD",null,null,null,null,null,"military standard"]
["MILAIR",null,null,null,null,null,"military airlift"]
["MILALOC",null,null,null,null,null,"military air line of communications"]
["MILCON",null,null,null,null,null,"military construction"]
["MILDEC",null,null,null,null,null,"military deception"]
["MILDEP",null,null,null,null,null,"Military Department"]
["MILGP",null,null,null,null,null,"military group (assigned to American Embassy in host nation)"]
["MILOB",null,null,null,null,null,"military observer"]
["MILOC",null,null,null,null,null,"military oceanography group (NATO)"]
["MILPERS",null,null,null,null,null,"military personnel"]
["MILSATCOM",null,null,null,null,null,"military satellite communications"]
["MILSPEC",null,null,null,null,null,"military specification"]
["MILSTAMP",null,null,null,null,null,"military standard transportation and movement procedures"]
["MILSTAR",null,null,null,null,null,"military strategic and tactical relay system"]
["MILSTRAP",null,null,null,null,null,"military standard transaction reporting and accounting procedure"]
["MILSTRIP",null,null,null,null,null,"military standard requisitioning and issue procedure"]
["MILTECH",null,null,null,null,null,"military technician"]
["MILU",null,null,null,null,null,"multinational integrated logistic unit"]
["MILVAN",null,null,null,null,null,"military van (container)"]
["MIM",null,null,null,null,null,"maintenance instruction manual"]
["MIMP",null,null,null,null,null,"Mobilization Information Management Plan"]
["MINEOPS",null,null,null,null,null,"joint minelaying operations"]
["MIO",null,null,null,null,null,"maritime interception operations"]
["MIO-9",null,null,null,null,null,"information operations threat analysis division (DIA)"]
["MIOC",null,null,null,null,null,"maritime interception operations commander"]
["MIP",null,null,null,null,null,"military intelligence program"]
["MIPE",null,null,null,null,null,"mobile intelligence processing element"]
["MIPOE",null,null,null,null,null,"medical intelligence preparation of the operational environment"]
["MIPR",null,null,null,null,null,"military interdepartmental purchase request"]
["MIRCS",null,null,null,null,null,"mobile integrated remains collection system"]
["MIS",null,null,null,null,null,"maritime intelligence summary; military information support; Maintenance Information Systems"]
["MISAS",null,null,null,null,null,"military information support automated system"]
["MISCAP",null,null,null,null,null,"mission capability"]
["MISG",null,null,null,null,null,"military information support group"]
["MISO",null,null,null,null,null,"military information support operations"]
["MISREP",null,null,null,null,null,"mission report"]
["MIST",null,null,null,null,null,"military information support team"]
["MISTF",null,null,null,null,null,"military information support task force"]
["MITAM",null,null,null,null,null,"mission tasking matrix"]
["MITASK",null,null,null,null,null,"mission tasking"]
["MITO",null,null,null,null,null,"minimum interval takeoff"]
["MITT",null,null,null,null,null,"mobile integrated tactical terminal"]
["MIUW",null,null,null,null,null,"mobile inshore undersea warfare"]
["MIW",null,null,null,null,null,"mine warfare"]
["MIWC",null,null,null,null,null,"mine warfare commander"]
["MIWG",null,null,null,null,null,"multinational interoperability working group"]
["MJCS",null,null,null,null,null,"Joint Chiefs of Staff memorandum"]
["MJLC",null,null,null,null,null,"multinational joint logistic center"]
["MJSN",null,null,null,null,null,"Master Job Standard Numbers"]
["MLA",null,null,null,null,null,"mission load allowance"]
["MLAYREP",null,null,null,null,null,"mine laying report"]
["MLE",null,null,null,null,null,"maritime law enforcement"]
["MLEA",null,null,null,null,null,"Maritime Law Enforcement Academy"]
["MLEM",null,null,null,null,null,"Maritime Law Enforcement Manual"]
["MLG",null,null,null,null,null,"Marine logistics group"]
["MLI",null,null,null,null,null,"munitions list item"]
["MLMC",null,null,null,null,null,"medical logistics management center"]
["MLO",null,null,null,null,null,"military liaison office"]
["MLP",null,null,null,null,null,"message load plan"]
["MLPP",null,null,null,null,null,"multilevel precedence and preemption"]
["MLPS",null,null,null,null,null,"Medical Logistics Proponent Subcommittee"]
["MLRS",null,null,null,null,null,"multiple launch rocket system"]
["MLS",null,null,null,null,null,"microwave landing system; multilevel security"]
["MLSA",null,null,null,null,null,"mutual logistics support agreement"]
["MLW",null,null,null,null,null,"mean low water"]
["MMA",null,null,null,null,null,"military mission area; Maintenance Management Analysis"]
["MMAC",null,null,null,null,null,"military mine action center"]
["MMC",null,null,null,null,null,"materiel management center"]
["MMCL",null,null,null,null,null,"MAJCOM Mandatory Course List"]
["MMG",null,null,null,null,null,"Department of Defense Master Mobilization Guide"]
["MMHE",null,null,null,null,null,"Munitions Materiel Handling Equipment"]
["MMI",null,null,null,null,null,"man/machine interface"]
["MMIS",null,null,null,null,null,"military information support operations management information subsystem"]
["MMLS",null,null,null,null,null,"mobile microwave landing system"]
["MMS",null,null,null,null,null,"mast-mounted sight"]
["MMT",null,null,null,null,null,"military mail terminal"]
["MNC",null,null,null,null,null,"multinational corporation"]
["MNCC",null,null,null,null,null,"multinational coordination center"]
["MNF",null,null,null,null,null,"multinational force"]
["MNFACC",null,null,null,null,null,"multinational force air component commander"]
["MNFC",null,null,null,null,null,"multinational force commander"]
["MNFLCC",null,null,null,null,null,"multinational force land component commander"]
["MNFMCC",null,null,null,null,null,"multinational force maritime component commander"]
["MNFSOCC",null,null,null,null,null,"multinational force special operations component commander"]
["MNJLC",null,null,null,null,null,"multinational joint logistics component"]
["MNL",null,null,null,null,null,"master net list; multinational logistics"]
["MNLC",null,null,null,null,null,"multinational logistic center"]
["MNP",null,null,null,null,null,"master navigation plan"]
["MNS",null,null,null,null,null,"mine neutralization system (USN); mission needs statement"]
["MNTF",null,null,null,null,null,"multinational task force"]
["MO",null,null,null,null,null,"month; Maintenance Operations"]
["MOA",null,null,null,null,null,"memorandum of agreement; military operating area"]
["MOADS",null,null,null,null,null,"maneuver-oriented ammunition distribution system"]
["MOB",null,null,null,null,null,"main operations base; mobilization"]
["MOBCON",null,null,null,null,null,"mobilization control"]
["MOBREP",null,null,null,null,null,"military manpower mobilization and accession status report; mobilization report"]
["MOC",null,null,null,null,null,"maritime operations center; media operations center; Maintenance Operations Center"]
["MOCC",null,null,null,null,null,"measurement and signature intelligence (MASINT) operations coordination center; mobile operations control center"]
["MOD",null,null,null,null,null,"Minister of Defense; ministry of defense; modification"]
["MOD T-AGOS",null,null,null,null,null,"modified tactical auxiliary general ocean surveillance"]
["MODEM",null,null,null,null,null,"modulator/demodulator"]
["MODLOC",null,null,null,null,null,"miscellaneous operational details, local operations"]
["MOE",null,null,null,null,null,"measure of effectiveness"]
["MOEI",null,null,null,null,null,"measure of effectiveness indicator"]
["MOF",null,null,null,null,null,"Maintenance Operations Flight"]
["MOG",null,null,null,null,null,"maximum (aircraft) on ground; movement on ground (aircraft); multinational observer group"]
["MOGAS",null,null,null,null,null,"motor gasoline"]
["MOLE",null,null,null,null,null,"multichannel operational line evaluator"]
["MOMAT",null,null,null,null,null,"mobility matting"]
["MOMSS",null,null,null,null,null,"mode and message selection system"]
["MOP",null,null,null,null,null,"measure of performance; memorandum of policy"]
["MOPP",null,null,null,null,null,"mission-oriented protective posture"]
["MOR",null,null,null,null,null,"memorandum of record"]
["MOS",null,null,null,null,null,"military occupational specialty"]
["MOSC",null,null,null,null,null,"meteorological and oceanographic operations support community"]
["MOTR",null,null,null,null,null,"maritime operational threat response"]
["MOU",null,null,null,null,null,"memorandum of understanding"]
["MOUT",null,null,null,null,null,"military operations in urban terrain; military operations on urbanized terrain"]
["MOVREP",null,null,null,null,null,"movement report"]
["MOW",null,null,null,null,null,"maintenance orderwire"]
["MP",null,null,null,null,null,"military police (Army and Marine); multinational publication"]
["MPA",null,null,null,null,null,"maritime patrol aircraft; mission and payload assessment; mission planning agent"]
["MPAT",null,null,null,null,null,"military patient administration team; Multinational Planning Augmentation Team"]
["MPC",null,null,null,null,null,"mid-planning conference; military personnel center"]
["MPE/S",null,null,null,null,null,"maritime pre-positioning equipment and supplies"]
["MPF",null,null,null,null,null,"maritime pre-positioning force"]
["MPFUB",null,null,null,null,null,"maritime pre-positioning force utility boat"]
["MPG",null,null,null,null,null,"maritime planning group; mensurated point graphic"]
["mph",null,null,null,null,null,"miles per hour"]
["MPICE",null,null,null,null,null,"measuring progress in conflict environments"]
["MPLAN",null,null,null,null,null,"Marine Corps Mobilization Management Plan"]
["MPM",null,null,null,null,null,"medical planning module"]
["MPNTP",null,null,null,null,null,"Master Positioning Navigation and Timing Plan"]
["MPO",null,null,null,null,null,"military post office"]
["MPP",null,null,null,null,null,"maritime procedural publication"]
["MPPEH",null,null,null,null,null,"Management of Materiel Potentially Presenting an Explosive Hazard"]
["MPR",null,null,null,null,null,"maritime patrol and reconnaissance"]
["MPRL",null,null,null,null,null,"Minimum Required Proficiency Load"]
["MPRS",null,null,null,null,null,"multipoint refueling system"]
["MPS",null,null,null,null,null,"maritime pre-positioning ship; message processor shelter; Military Planning Service (UN); Military Postal Service; Military Personnel Section"]
["MPSA",null,null,null,null,null,"Military Postal Service Agency"]
["MPSRON",null,null,null,null,null,"maritime pre-positioning ships squadron"]
["MQC",null,null,null,null,null,"Maintenance Qualification Centers"]
["MR",null,null,null,null,null,"milliradian; mobile reserve"]
["MRAALS",null,null,null,null,null,"Marine remote area approach and landing system"]
["MRAT",null,null,null,null,null,"medical radiobiology advisory team"]
["MRBM",null,null,null,null,null,"medium-range ballistic missile"]
["MRCI",null,null,null,null,null,"maximum rescue coverage intercept"]
["MRE",null,null,null,null,null,"meal, ready to eat"]
["MRG",null,null,null,null,null,"movement requirements generator"]
["MRI",null,null,null,null,null,"magnetic resonance imaging"]
["MRMC",null,null,null,null,null,"US Army Medical Research and Materiel Command"]
["MRO",null,null,null,null,null,"mass rescue operation; materiel release order; medical regulating office; medical regulating officer"]
["MROC",null,null,null,null,null,"multicommand required operational capability"]
["MRR",null,null,null,null,null,"minimum-risk route"]
["MRRR",null,null,null,null,null,"mobility requirement resource roster"]
["MRS",null,null,null,null,null,"measurement and signature intelligence (MASINT) requirements system; meteorological radar subsystem; movement report system"]
["MRSA",null,null,null,null,null,"Materiel Readiness Support Agency"]
["MRSP",null,null,null,null,null,"Mobility Readiness Spares Package"]
["MRT",null,null,null,null,null,"maintenance recovery team"]
["MRRT",null,null,null,null,null,"Munitions Rapid Response Team"]
["MRU",null,null,null,null,null,"mountain rescue unit"]
["MRX",null,null,null,null,null,"mission readiness exercise"]
["MS",null,null,null,null,null,"message switch"]
["ms",null,null,null,null,null,"millisecond"]
["MS-DOS",null,null,null,null,null,"Microsoft disk operating system"]
["MSA",null,null,null,null,null,"Maritime Security Act; Munitions Storage Area"]
["MSAT",null,null,null,null,null,"Maintenance Scheduling Application Tool"]
["MSC",null,null,null,null,null,"major subordinate command; maritime support center; Military Sealift Command; military staff committee; mission support confirmation"]
["MSCA",null,null,null,null,null,"military support to civilian authorities"]
["MSCD",null,null,null,null,null,"military support to civil defense"]
["MSCO",null,null,null,null,null,"Military Sealift Command Office"]
["MSD",null,null,null,null,null,"marginal support date; mobile security division"]
["MSE",null,null,null,null,null,"mission support element; mobile subscriber equipment; Maintenance Scheduling Effectiveness; Munition Support Equipment"]
["MSECR",null,null,null,null,null,"HIS 6000 security module"]
["MSEL",null,null,null,null,null,"master scenario events list"]
["MSEP",null,null,null,null,null,"Maintenance Standardization & Evaluation Program"]
["MSF",null,null,null,null,null,"Medicins Sans Frontieres (\"Doctors Without Borders\"); mission support force; mobile security force; multiplex signal format"]
["MSG",null,null,null,null,null,"Marine security guard; message; Mission Support Group"]
["MSGID",null,null,null,null,null,"message identification"]
["MSHARPP",null,null,null,null,null,"mission, symbolism, history, accessibility, recognizability, population, and proximity"]
["MSI",null,null,null,null,null,"modified surface index; multispectral imagery"]
["MSIC",null,null,null,null,null,"Missile and Space Intelligence Center"]
["MSIM",null,null,null,null,null,"Mission Simulator"]
["MSIS",null,null,null,null,null,"Marine safety information system"]
["MSK",null,null,null,null,null,"mission support kit"]
["MSL",null,null,null,null,null,"master station log; military shipping label"]
["MSNAP",null,null,null,null,null,"merchant ship naval augmentation program"]
["MSO",null,null,null,null,null,"map support office; marine safety office(r); maritime security operations; military satellite communications (MILSATCOM) systems organization; military source operation; military strategic objective; military support operations"]
["MSOAG",null,null,null,null,null,"Marine special operations advisor group"]
["MSOC",null,null,null,null,null,"Marine special operations company"]
["MSP",null,null,null,null,null,"maritime security program; mission support plan; mobile sensor platform"]
["MSPE ",null,null,null,null,null,"Maintenance Safety and Protection Equipment"]
["MSPES",null,null,null,null,null,"mobilization stationing, planning, and execution system"]
["MSPS",null,null,null,null,null,"military information support operations studies program subsystem; mobilization stationing and planning system"]
["MSR",null,null,null,null,null,"main supply route; maritime support request; mission support request"]
["MSRON",null,null,null,null,null,"maritime expeditionary security squadron"]
["MSRP",null,null,null,null,null,"mission strategic resource plan"]
["MSRR",null,null,null,null,null,"modeling and simulation resource repository"]
["MSRT",null,null,null,null,null,"Maritime Security Response Team (USCG)"]
["MSRV",null,null,null,null,null,"message switch rekeying variable"]
["MSS",null,null,null,null,null,"medical surveillance system; meteorological satellite subsystem"]
["MSSG",null,null,null,null,null,"Marine expeditionary unit (MEU) service support group"]
["MST",null,null,null,null,null,"Marine expeditionary force (MEF) weather support team; meteorological and oceanographic support team; mission support team"]
["MT",null,null,null,null,null,"military technician; ministry team; Maintenance Training"]
["MT Bn",null,null,null,null,null,"motor transport battalion"]
["MT/D",null,null,null,null,null,"measurement tons per day"]
["MTA",null,null,null,null,null,"military training agreement"]
["MTAC",null,null,null,null,null,"Multiple Threat Alert Center (DON)"]
["MTBF",null,null,null,null,null,"mean time between failures"]
["MTCR",null,null,null,null,null,"missile technology control regime"]
["MTD ",null,null,null,null,null,"Maintenance Training Device"]
["mtDNA",null,null,null,null,null,"mitochondrial deoxyribonucleic acid"]
["MTF",null,null,null,null,null,"medical treatment facility; message text format; military information support operations task force"]
["MTG",null,null,null,null,null,"master timing generator; military information support operations task group"]
["MTI",null,null,null,null,null,"moving target indicator"]
["MTIC",null,null,null,null,null,"Military Targeting Intelligence Committee"]
["MTL",null,null,null,null,null,"mission tasking letter"]
["MTMS",null,null,null,null,null,"maritime tactical message system"]
["MTN",null,null,null,null,null,"multi-tactical data link network"]
["MTO",null,null,null,null,null,"message to observer; mission type order"]
["MTOE",null,null,null,null,null,"modified table of organization and equipment"]
["MTON",null,null,null,null,null,"measurement ton"]
["MTP",null,null,null,null,null,"Marine tactical publication; maritime task plan; mission tasking packet; Master Training Plan"]
["MTR",null,null,null,null,null,"Military Travel Request"]
["MTS",null,null,null,null,null,"Movement Tracking System"]
["MTS/SOF-IRIS",null,null,null,null,null,"multifunction system"]
["MTT",null,null,null,null,null,"magnetic tape transport; mobile training team"]
["MTTP",null,null,null,null,null,"multi-Service tactics, techniques, and procedures"]
["MTW",null,null,null,null,null,"major theater war"]
["MTX",null,null,null,null,null,"message text format"]
["MU",null,null,null,null,null,"marry up"]
["MUL",null,null,null,null,null,"master urgency list (DOD)"]
["MULE",null,null,null,null,null,"modular universal laser equipment"]
["MUNS",null,null,null,null,null,"Munitions Squadron"]
["MUOS",null,null,null,null,null,"Mobile Users Object System"]
["MUREP",null,null,null,null,null,"munitions report"]
["MUSARC",null,null,null,null,null,"major United States Army reserve commands"]
["MUSE",null,null,null,null,null,"mobile utilities support equipment"]
["MUST",null,null,null,null,null,"medical unit, self contained, transportable"]
["MUX",null,null,null,null,null,"multiplex"]
["MV",null,null,null,null,null,"merchant vessel; motor vessel"]
["mV",null,null,null,null,null,"millivolt"]
["MWBP",null,null,null,null,null,"missile warning bypass"]
["MWC",null,null,null,null,null,"Missile Warning Center (NORAD)"]
["MWD",null,null,null,null,null,"military working dog"]
["MWDT",null,null,null,null,null,"military working dog team"]
["MWF",null,null,null,null,null,"medical working file"]
["MWG",null,null,null,null,null,"mobilization working group"]
["MWOD",null,null,null,null,null,"multiple word-of-day"]
["MWR",null,null,null,null,null,"missile warning receiver; morale, welfare, and recreation"]
["MWSG",null,null,null,null,null,"Marine wing support group"]
["MWSS",null,null,null,null,null,"Marine wing support squadron"]
["MWT",null,null,null,null,null,"modular warping tug"]
["MX",null,null,null,null,null,"Maintenance"]
["MxCAP2",null,null,null,null,null,"Maintenance Capability and Capacity (model)"]
["MXG",null,null,null,null,null,"Maintenance Group"]
["MXG/CC",null,null,null,null,null,"Maintenance Group Commander"]
["MXG/CD",null,null,null,null,null,"Maintenance Group Deputy Commander"]
["MXS",null,null,null,null,null,"Maintenance Squadron"]
["MX SUPT",null,null,null,null,null,"Maintenance Superintendent"]
["N",null,null,null,null,null,"number of required track spacings; number of search and rescue units (SRUs)"]
["N-1",null,null,null,null,null,"Navy component manpower or personnel staff officer"]
["N-2",null,null,null,null,null,"Director of Naval Intelligence; Navy component intelligence staff officer"]
["N-3",null,null,null,null,null,"Navy component operations staff officer"]
["N-4",null,null,null,null,null,"Navy component logistics staff officer"]
["N-5",null,null,null,null,null,"Navy component plans staff officer"]
["N-6",null,null,null,null,null,"Navy component communications staff officer"]
["N-day",null,null,null,null,null,"day an active duty unit is notified for deployment or redeployment"]
["N-Sp/CC",null,null,null,null,null,"North American Aerospace Defense Command (NORAD)-US Space Command/Command Center"]
["N-TFS",null,null,null,null,null,"New Tactical Forecast System"]
["NA",null,null,null,null,null,"nation assistance"]
["NA5CRO",null,null,null,null,null,"non-Article 5 crisis response operation (NATO)"]
["NAAG",null,null,null,null,null,"North Atlantic Treaty Organization (NATO) Army Armaments Group"]
["NAC",null,null,null,null,null,"North American Aerospace Defense Command (NORAD) Air Center; North Atlantic Council (NATO)"]
["NACE",null,null,null,null,null,"National Military Command System (NMCS) Automated Control Executive"]
["NACISA",null,null,null,null,null,"North Atlantic Treaty Organization (NATO) Communications and Information Systems Agency"]
["NACISC",null,null,null,null,null,"North Atlantic Treaty Organization (NATO) Communications and Information Systems Committee"]
["NACSEM",null,null,null,null,null,"National Communications Security/Emanations Security (COMSEC/EMSEC) Information Memorandum"]
["NACSI",null,null,null,null,null,"national communications security (COMSEC) instruction"]
["NACSIM",null,null,null,null,null,"national communications security (COMSEC) information memorandum"]
["NAD 83",null,null,null,null,null,"North American Datum 1983"]
["NADEFCOL",null,null,null,null,null,"North Atlantic Treaty Organization (NATO) Defense College"]
["NADEP",null,null,null,null,null,"naval aircraft depot"]
["NAE",null,null,null,null,null,"Navy acquisition executive"]
["NAEC-ENG",null,null,null,null,null,"Naval Air Engineering Center - Engineering"]
["NAF",null,null,null,null,null,"naval air facility; nonappropriated funds; numbered air force"]
["NAFAG",null,null,null,null,null,"North Atlantic Treaty Organization (NATO) Air Force Armaments Group"]
["NAI",null,null,null,null,null,"named area of interest"]
["NAIC",null,null,null,null,null,"National Air Intelligence Center"]
["NAK",null,null,null,null,null,"negative acknowledgement"]
["NALC",null,null,null,null,null,"Navy ammunition logistics code"]
["NALE",null,null,null,null,null,"naval and amphibious liaison element"]
["NALSS",null,null,null,null,null,"naval advanced logistic support site"]
["NAMP",null,null,null,null,null,"North Atlantic Treaty Organization (NATO) Annual Manpower Plan"]
["NAMS",null,null,null,null,null,"National Air Mobility System"]
["NAMTO",null,null,null,null,null,"Navy material transportation office"]
["NAOC",null,null,null,null,null,"national airborne operations center (E-4B aircraft)"]
["NAPCAP",null,null,null,null,null,"North Atlantic Treaty Organization (NATO) Allied Pre-Committed Civil Aircraft Program"]
["NAPMA",null,null,null,null,null,"North Atlantic Treaty Organization (NATO) Airborne Early Warning and Control Program Management Agency"]
["NAPMIS",null,null,null,null,null,"Navy Preventive Medicine Information System"]
["NAR",null,null,null,null,null,"nonconventional assisted recovery; notice of ammunition reclassification"]
["NARAC",null,null,null,null,null,"national atmospheric release advisory capability; National Atmospheric Release Advisory Center (DOE)"]
["NARC",null,null,null,null,null,"non-automatic relay center"]
["NARP",null,null,null,null,null,"Nuclear Weapon Accident Response Procedures"]
["NAS",null,null,null,null,null,"naval air station; National Aerospace Standard"]
["NAS computer",null,null,null,null,null,"national airspace system computer"]
["NASA",null,null,null,null,null,"National Aeronautics and Space Administration"]
["NASAR",null,null,null,null,null,"National Association for Search and Rescue"]
["NASIC",null,null,null,null,null,"National Air and Space Intelligence Center"]
["NAT",null,null,null,null,null,"nonair-transportable (cargo)"]
["NATO",null,null,null,null,null,"North Atlantic Treaty Organization"]
["NATOPS",null,null,null,null,null,"Naval Air Training and Operating Procedures Standardization"]
["NAU",null,null,null,null,null,"Narcotics Assistance Unit"]
["NAVAID",null,null,null,null,null,"navigation aid"]
["NAVAIDS",null,null,null,null,null,"navigational aids"]
["NAVAIR",null,null,null,null,null,"naval air; Naval Air Systems Command"]
["NAVAIRSYSCOM",null,null,null,null,null,"Naval Air Systems Command (Also called NAVAIR)"]
["NAVATAC",null,null,null,null,null,"Navy Antiterrorism Analysis Center; Navy Antiterrorist Alert Center"]
["NAVCHAPDET",null,null,null,null,null,"naval cargo handling and port group detachment"]
["NAVCHAPGRU",null,null,null,null,null,"Navy cargo handling and port group"]
["NAVCOMSTA",null,null,null,null,null,"naval communications station"]
["NAVCYBERFOR",null,null,null,null,null,"Navy Cyber Forces"]
["NAVELSG",null,null,null,null,null,"Navy expeditionary logistic support group"]
["NAVEODTECHDIV",null,null,null,null,null,"Naval Explosives Ordnance Disposal Technology Division"]
["NAVEURMETOCCEN",null,null,null,null,null,"Naval Europe Meteorology and Oceanography Center"]
["NAVFAC",null,null,null,null,null,"Naval Facilities Engineering Command"]
["NAVFAC-X",null,null,null,null,null,"Naval Facilities Engineering Command-expeditionary"]
["NAVFACENGCOM",null,null,null,null,null,"Navy Facilities Engineering Command"]
["NAVFAX",null,null,null,null,null,"Navy facsimile"]
["NAVFOR",null,null,null,null,null,"Navy forces"]
["NAVICECEN",null,null,null,null,null,"Naval Ice Center"]
["NAVLANTMETOCCEN",null,null,null,null,null,"Naval Atlantic Meteorology and Oceanography Center"]
["NAVMAG",null,null,null,null,null,"naval magazine"]
["NAVMED",null,null,null,null,null,"Navy Medical; Navy medicine"]
["NAVMEDCOMINST",null,null,null,null,null,"Navy medical command instruction"]
["NAVMEDLOGCOM",null,null,null,null,null,"Navy Medical Logistics Command"]
["NAVMEDP",null,null,null,null,null,"Navy medical pamphlet"]
["NAVMETOCCOM",null,null,null,null,null,"Naval Meteorology and Oceanography Command"]
["NAVMTO",null,null,null,null,null,"naval military transportation office; Navy Material Transportation Office"]
["NAVOCEANO",null,null,null,null,null,"Naval Oceanographic Office"]
["NAVORD",null,null,null,null,null,"naval ordnance"]
["NAVORDSTA",null,null,null,null,null,"naval ordnance station"]
["NAVPACMETOCCEN",null,null,null,null,null,"Naval Pacific Meteorology and Oceanography Center"]
["NAVSAFECEN",null,null,null,null,null,"naval safety center"]
["NAVSAT",null,null,null,null,null,"navigation satellite"]
["NAVSEA",null,null,null,null,null,"Naval Sea Systems Command"]
["NAVSEAINST",null,null,null,null,null,"Naval Sea Systems Command instruction"]
["NAVSEALOGCEN",null,null,null,null,null,"naval sea logistics center"]
["NAVSEASYSCOM",null,null,null,null,null,"Naval Sea Systems Command"]
["NAVSO",null,null,null,null,null,"United States Navy Forces, Southern Command"]
["NAVSOC",null,null,null,null,null,"Naval Satellite Operations Center; naval special operations command; naval special operations component; Navy special operations component"]
["NAVSOF",null,null,null,null,null,"Navy special operations forces"]
["NAVSPACECOM",null,null,null,null,null,"Naval Space Command"]
["NAVSPECWARCOM",null,null,null,null,null,"Naval Special Warfare Command"]
["NAVSPOC",null,null,null,null,null,"Naval Space Operations Center"]
["NAVSUP",null,null,null,null,null,"Naval Supply Systems Command"]
["NAVSUPINST",null,null,null,null,null,"Navy Support Instruction"]
["NAVSUPSYSCOM",null,null,null,null,null,"Naval Supply Systems Command"]
["NAVWAR",null,null,null,null,null,"navigation warfare"]
["Navy TACC",null,null,null,null,null,"Navy tactical air control center"]
["NAWCAD",null,null,null,null,null,"Naval Air Warfare Center, Aircraft Division"]
["NB",null,null,null,null,null,"narrowband"]
["NBC",null,null,null,null,null,"nuclear, biological, and chemical"]
["NBCC ",null,null,null,null,null,"Nuclear, Biological, Chemical and Conventional"]
["NBCCS",null,null,null,null,null,"nuclear, biological, and chemical (NBC) contamination survivability"]
["NBDP",null,null,null,null,null,"narrow band direct printing"]
["NBG",null,null,null,null,null,"naval beach group"]
["NBI",null,null,null,null,null,"nonbattle injury"]
["NBS",null,null,null,null,null,"National Bureau of Standards"]
["NBST",null,null,null,null,null,"narrowband secure terminal"]
["NBVC",null,null,null,null,null,"Naval Base Ventura County"]
["NC3A",null,null,null,null,null,"nuclear command, control, and communications (C3) assessment"]
["NCAA",null,null,null,null,null,"North Atlantic Treaty Organization (NATO) Civil Airlift Agency"]
["NCAGS",null,null,null,null,null,"naval cooperation and guidance for shipping"]
["NCAPS",null,null,null,null,null,"naval coordination and protection of shipping"]
["NCB",null,null,null,null,null,"national central bureau; naval construction brigade; noncompliant boarding"]
["NCC",null,null,null,null,null,"National Coordinating Center; naval component commander; Navy component command; Navy component commander; network control center; North American Aerospace Defense Command (NORAD) Command Center"]
["NCCS",null,null,null,null,null,"Nuclear Command and Control System"]
["NCD",null,null,null,null,null,"net control device"]
["NCDC",null,null,null,null,null,"National Climatic Data Center"]
["NCE",null,null,null,null,null,"Nuclear Certified Equipment"]
["NCES",null,null,null,null,null,"Net-Centric Enterprise Services"]
["NCESGR",null,null,null,null,null,"National Committee of Employer Support for the Guard and Reserve"]
["NCF",null,null,null,null,null,"naval construction force"]
["NCFSU",null,null,null,null,null,"naval construction force support unit"]
["NCHB",null,null,null,null,null,"Navy cargo-handling battalion"]
["NCIC",null,null,null,null,null,"National Crime Information Center"]
["NCIJTF-AG",null,null,null,null,null,"National Cyber Investigative Joint Task Force-Analytical Group (DOD)"]
["NCIS",null,null,null,null,null,"Naval Criminal Investigative Service"]
["NCISRA",null,null,null,null,null,"Naval Criminal Investigative Service resident agent"]
["NCISRO",null,null,null,null,null,"Naval Criminal Investigative Service regional office"]
["NCISRU",null,null,null,null,null,"Naval Criminal Investigative Service resident unit"]
["NCIX",null,null,null,null,null,"National Counterintelligence Executive"]
["NCMI",null,null,null,null,null,"National Center for Medical Intelligence"]
["NCMP",null,null,null,null,null,"Navy Capabilities and Mobilization Plan"]
["NCO",null,null,null,null,null,"noncombat operations; noncommissioned officer"]
["NCOB",null,null,null,null,null,"National Counterintelligence Operations Board"]
["NCOIC",null,null,null,null,null,"noncommissioned officer in charge"]
["NCOS",null,null,null,null,null,"naval control of shipping"]
["NCP",null,null,null,null,null,"National Oil and Hazardous Substances Pollution Contingency Plan"]
["NCPC",null,null,null,null,null,"National Counterprolification Center"]
["NCR",null,null,null,null,null,"national cryptologic representative; National Capital Region (US); National Security Agency/Central Security Service representative; naval construction regiment"]
["NCR-IADS",null,null,null,null,null,"National Capital Region-Integrated Air Defense System"]
["NCRCC",null,null,null,null,null,"National Capital Region Coordination Center; United States Northern Command Rescue Coordination Center"]
["NCRCG",null,null,null,null,null,"National Cyber Response Coordination Group"]
["NCRDEF",null,null,null,null,null,"national cryptologic representative defense"]
["NCS",null,null,null,null,null,"National Clandestine Service; National Communications System; naval control of shipping"]
["NCSC",null,null,null,null,null,"National Computer Security Center"]
["NCSD",null,null,null,null,null,"National Cyber Security Division (DHS)"]
["NCSE",null,null,null,null,null,"national intelligence support team (NIST) communicatons support element"]
["NCT",null,null,null,null,null,"network control terminal"]
["NCTAMS",null,null,null,null,null,"naval computer and telecommunications area master station"]
["NCTC",null,null,null,null,null,"National Counterterrorism Center; North East Counterdrug Training Center"]
["NCTS",null,null,null,null,null,"naval computer and telecommunications station"]
["NCWS",null,null,null,null,null,"naval coastal warfare squadron"]
["NDAA",null,null,null,null,null,"national defense authorization act"]
["NDAF",null,null,null,null,null,"Navy, Defense Logistics Agency, Air Force"]
["NDB",null,null,null,null,null,"nondirectional beacon"]
["NDCS",null,null,null,null,null,"national drug control strategy"]
["NDDOC",null,null,null,null,null,"North American Aerospace Defense Command and United States Northern Command Deployment and Distribution Operations Cell"]
["NDHQ",null,null,null,null,null,"National Defence Headquarters, Canada"]
["NDI ",null,null,null,null,null,"Nondestructive Inspection"]
["NDIC",null,null,null,null,null,"National Defense Intelligence College; National Drug Intelligence Center"]
["NDL",null,null,null,null,null,"national desired ground zero list"]
["NDMC",null,null,null,null,null,"North Atlantic Treaty Organization (NATO) Defense Manpower Committee"]
["NDMS",null,null,null,null,null,"National Disaster Medical System (DHHS)"]
["NDOC",null,null,null,null,null,"National Defense Operations Center"]
["NDP",null,null,null,null,null,"national disclosure policy"]
["NDPB",null,null,null,null,null,"National Drug Policy Board"]
["NDPC",null,null,null,null,null,"National Disclosure Policy Committee"]
["NDRC",null,null,null,null,null,"National Detainee Reporting Center"]
["NDRF",null,null,null,null,null,"National Defense Reserve Fleet"]
["NDS",null,null,null,null,null,"national defense strategy"]
["NDSF",null,null,null,null,null,"National Defense Sealift Fund"]
["NDT",null,null,null,null,null,"nuclear disablement team"]
["NDU",null,null,null,null,null,"National Defense University"]
["NEA",null,null,null,null,null,"Northeast Asia"]
["NEAT",null,null,null,null,null,"naval embarked advisory team"]
["NEC",null,null,null,null,null,"National Economic Council"]
["NECC",null,null,null,null,null,"Navy Expeditionary Combat Command"]
["NEIC",null,null,null,null,null,"Navy Expeditionary Intelligence Command"]
["NELR",null,null,null,null,null,"Navy expeditionary logistics regiment"]
["NEMT",null,null,null,null,null,"National Emergency Management Team"]
["NEO",null,null,null,null,null,"noncombatant evacuation operation"]
["NEOCC",null,null,null,null,null,"noncombatant evacuation operation coordination center"]
["NEP",null,null,null,null,null,"National Exercise Program"]
["NEPA",null,null,null,null,null,"National Environmental Policy Act"]
["NEREP",null,null,null,null,null,"Nuclear Execution and Reporting Plan"]
["NES",null,null,null,null,null,"National Exploitation System"]
["NESDIS",null,null,null,null,null,"National Environmental Satellite, Data and Information Service (DOC)"]
["NEST",null,null,null,null,null,"nuclear emergency support team (DOE)"]
["NETOPS",null,null,null,null,null,"network operations"]
["NETS",null,null,null,null,null,"Nationwide Emergency Telecommunications System"]
["NETT",null,null,null,null,null,"new equipment training team"]
["NETWARCOM",null,null,null,null,null,"Naval Network Warfare Command"]
["NEW",null,null,null,null,null,"net explosive weight"]
["NEWAC",null,null,null,null,null,"North Atlantic Treaty Organization (NATO) Electronic Warfare Advisory Committee"]
["NEWCS",null,null,null,null,null,"NATO electronic warfare core staff"]
["NEXCOM",null,null,null,null,null,"Navy Exchange Command"]
["NFA",null,null,null,null,null,"no-fire area"]
["NFC",null,null,null,null,null,"numbered fleet commander"]
["NFD",null,null,null,null,null,"nodal fault diagnostics"]
["NFELC",null,null,null,null,null,"Naval Facilities Expeditionary Logistics Center"]
["NFESC",null,null,null,null,null,"Naval Facilities Engineering Service Center"]
["NFI",null,null,null,null,null,"national foreign intelligence"]
["NFIB",null,null,null,null,null,"National Foreign Intelligence Board"]
["NFIP",null,null,null,null,null,"National Flood Insurance Program (FEMA); National Foreign Intelligence Program"]
["NFLIR",null,null,null,null,null,"navigation forward-looking infrared"]
["NFLS",null,null,null,null,null,"naval forward logistic site"]
["NFN",null,null,null,null,null,"national file number"]
["NFO",null,null,null,null,null,"naval flight officer"]
["NFTBU",null,null,null,null,null,"Nestable Fuel Tank Build-Up"]
["NG",null,null,null,null,null,"National Guard"]
["NG JFHQ-State",null,null,null,null,null,"National Guard joint force headquarters-state"]
["NGA",null,null,null,null,null,"National Geospatial-Intelligence Agency"]
["NGB",null,null,null,null,null,"National Guard Bureau"]
["NGB-OC",null,null,null,null,null,"National Guard Bureau-Office of the Chaplain"]
["NGCC",null,null,null,null,null,"National Guard coordination center"]
["NGCDP",null,null,null,null,null,"National Guard Counterdrug Program"]
["NGCSP",null,null,null,null,null,"National Guard Counterdrug Support Program"]
["NGF",null,null,null,null,null,"naval gun fire"]
["NGFS",null,null,null,null,null,"naval gunfire support"]
["NGIC",null,null,null,null,null,"National Ground Intelligence Center"]
["NGLO",null,null,null,null,null,"naval gunfire liaison officer"]
["NGO",null,null,null,null,null,"nongovernmental organization"]
["NGP",null,null,null,null,null,"National Geospatial-Intelligence Agency Program"]
["NGRF",null,null,null,null,null,"National Guard reaction force"]
["NHS",null,null,null,null,null,"Next Higher Assembly"]
["NI",null,null,null,null,null,"national identification (number); noted item"]
["NIBRS",null,null,null,null,null,"National Incident-Based Reporting System"]
["NIC",null,null,null,null,null,"National Intelligence Council; naval intelligence center"]
["NICC",null,null,null,null,null,"National Intelligence Coordination Center"]
["NICCL",null,null,null,null,null,"National Incident Communications Conference Line"]
["NICCP",null,null,null,null,null,"National Interdiction Command and Control Plan"]
["NICI",null,null,null,null,null,"National Interagency Counternarcotics Institute"]
["NID",null,null,null,null,null,"naval intelligence database"]
["NIDMS",null,null,null,null,null,"National Military Command System (NMCS) Information for Decision Makers System"]
["NIDS",null,null,null,null,null,"National Military Command Center (NMCC) information display system"]
["NIE",null,null,null,null,null,"national intelligence estimate; Normally Installed Equipment"]
["NIEX",null,null,null,null,null,"no-notice interoperability exercise"]
["NIEXPG",null,null,null,null,null,"No-Notice Interoperability Exercise Planning Group"]
["NIIB",null,null,null,null,null,"National Geospatial Intelligence Agency imagery intelligence brief"]
["NIL",null,null,null,null,null,"National Information Library"]
["NIMCAMP",null,null,null,null,null,"National Information Management and Communications Master Plan"]
["NIMS",null,null,null,null,null,"National Incident Management System"]
["NIOC",null,null,null,null,null,"Navy Information Operations Command"]
["NIP",null,null,null,null,null,"National Intelligence Program"]
["NIPF",null,null,null,null,null,"National Intelligence Priority Framework"]
["NIPRNET",null,null,null,null,null,"Nonsecure Internet Protocol Router Network"]
["NIPS",null,null,null,null,null,"Naval Intelligence Processing System"]
["NIRT",null,null,null,null,null,"Nuclear Incident Response Team"]
["NISH",null,null,null,null,null,"noncombatant evacuation operation (NEO) intelligence support handbook"]
["NISP",null,null,null,null,null,"national intelligence support plan; Nuclear Weapons Intelligence Support Plan"]
["NIST",null,null,null,null,null,"National Institute of Standards and Technology"]
["NIT",null,null,null,null,null,"nuclear incident team"]
["NITES",null,null,null,null,null,"Navy Integrated Tactical Environmental System"]
["NITF",null,null,null,null,null,"national imagery transmission format"]
["NIU",null,null,null,null,null,"North Atlantic Treaty Organization (NATO) interface unit"]
["NIWA",null,null,null,null,null,"naval information warfare activity"]
["NJOIC",null,null,null,null,null,"National Joint Operations and Intelligence Center"]
["NJTTF",null,null,null,null,null,"National Joint Terrorism Task Force"]
["NL",null,null,null,null,null,"Navy lighterage"]
["NLO",null,null,null,null,null,"naval liaison officer"]
["NLT",null,null,null,null,null,"not later than"]
["NLW",null,null,null,null,null,"nonlethal weapon"]
["nm",null,null,null,null,null,"nautical mile"]
["NM",null,null,null,null,null,"network management"]
["NMAWC",null,null,null,null,null,"Naval Mine and Anti-Submarine Warfare Command"]
["NMB",null,null,null,null,null,"North Atlantic Treaty Organization (NATO) military body"]
["NMC",null,null,null,null,null,"Navy Munitions Command; Non Mission Capable"]
["NMCB",null,null,null,null,null,"naval mobile construction battalion"]
["NMCC",null,null,null,null,null,"National Military Command Center"]
["NMCS",null,null,null,null,null,"National Military Command System; not mission capable, supply"]
["NMCSO",null,null,null,null,null,"Navy and Marine Corps spectrum office"]
["NMD",null,null,null,null,null,"national missile defense"]
["NMEC",null,null,null,null,null,"National Media Exploitation Center"]
["NMIC",null,null,null,null,null,"National Maritime Intelligence Center"]
["NMIO",null,null,null,null,null,"National Maritime Intelligence-Integration Office"]
["NMIST",null,null,null,null,null,"National Military Intelligence Support Team (DIA)"]
["NMO",null,null,null,null,null,"National Measurement and Signature Intelligence Office"]
["NMOC",null,null,null,null,null,"network management operations center"]
["NMOSW",null,null,null,null,null,"Naval METOC Operational Support Web"]
["NMP",null,null,null,null,null,"national media pool"]
["NMPS",null,null,null,null,null,"Navy mobilization processing site"]
["NMR",null,null,null,null,null,"news media representative"]
["NMRC",null,null,null,null,null,"Naval Medical Research Center"]
["NMS",null,null,null,null,null,"national military strategy"]
["NMS-CO",null,null,null,null,null,"National Military Strategy for Cyberspace Operations"]
["NMS-CWMD",null,null,null,null,null,"National Military Strategy to Combat Weapons of Mass Destruction"]
["NMSA",null,null,null,null,null,"North Atlantic Treaty Organization (NATO) Mutual Support Act"]
["NMSC",null,null,null,null,null,"Navy and Marine Corps Spectrum Center"]
["NMSP-WOT",null,null,null,null,null,"National Military Strategic Plan for the War on Terrorism"]
["NNAG",null,null,null,null,null,"North Atlantic Treaty Organization (NATO) Naval Armaments Group"]
["NNSA",null,null,null,null,null,"National Nuclear Security Administration (DOE)"]
["NNWC",null,null,null,null,null,"Naval Network Warfare Command"]
["NOAA",null,null,null,null,null,"National Oceanic and Atmospheric Administration"]
["NOACT",null,null,null,null,null,"Navy overseas air cargo terminal"]
["NOC",null,null,null,null,null,"National Operations Center (DHS); network operations center"]
["NOCONTRACT",null,null,null,null,null,"not releasable to contractors or consultants"]
["NODDS",null,null,null,null,null,"Naval Oceanographic Data Distribution System"]
["NOE",null,null,null,null,null,"nap-of-the-earth"]
["NOEA",null,null,null,null,null,"nuclear operations emergency action"]
["NOFORN",null,null,null,null,null,"not releasable to foreign nationals"]
["NOG",null,null,null,null,null,"Nuclear Operations Group"]
["NOGAPS",null,null,null,null,null,"Navy Operational Global Atmospheric Prediction System"]
["NOHD",null,null,null,null,null,"nominal ocular hazard distance"]
["NOIC",null,null,null,null,null,"Naval Operational Intelligence Center"]
["NOK",null,null,null,null,null,"next of kin"]
["NOLSC",null,null,null,null,null,"Naval Operational Logistics Support Center"]
["NOMS",null,null,null,null,null,"Nuclear Operations Monitoring System"]
["NOMWC",null,null,null,null,null,"Navy Oceanographic Mine Warfare Center"]
["NOP",null,null,null,null,null,"nuclear operations"]
["NOPLAN",null,null,null,null,null,"no operation plan available or prepared"]
["NORAD",null,null,null,null,null,"North American Aerospace Defense Command"]
["NORM",null,null,null,null,null,"normal; not operationally ready, maintenance"]
["NORS",null,null,null,null,null,"not operationally ready, supply"]
["NOSC",null,null,null,null,null,"network operations and security center"]
["NOSSA",null,null,null,null,null,"Navy Ordnance Safety and Security Activity"]
["NOTMAR",null,null,null,null,null,"notice to mariners"]
["NP",null,null,null,null,null,"nonproliferation"]
["NPA",null,null,null,null,null,"Non-Powered AGE"]
["NPC",null,null,null,null,null,"Nonproliferation Center"]
["NPES",null,null,null,null,null,"Nuclear Planning and Execution System"]
["NPG",null,null,null,null,null,"nonunit personnel generator"]
["NPOESS",null,null,null,null,null,"National Polar-orbiting Operational Environmental Satellite System"]
["NPPD",null,null,null,null,null,"National Protection and Programs Directorate (DHS)"]
["NPS",null,null,null,null,null,"National Park Service; nonprior service; Nuclear Planning System"]
["NPT",null,null,null,null,null,"national pipe thread; Treaty on the Nonproliferation of Nuclear Weapons"]
["NPWIC",null,null,null,null,null,"National Prisoner of War Information Center"]
["NQ",null,null,null,null,null,"nonquota"]
["NR",null,null,null,null,null,"North Atlantic Treaty Organization (NATO) restricted; number"]
["NRAT",null,null,null,null,null,"nuclear/radiological advisory team"]
["NRC",null,null,null,null,null,"National Response Center (USCG); non-unit-related cargo"]
["NRCHB",null,null,null,null,null,"Naval Reserve cargo-handling battalion"]
["NRCHF",null,null,null,null,null,"Naval Reserve cargo handling force"]
["NRCHTB",null,null,null,null,null,"Naval Reserve cargo handling training battalion"]
["NRF",null,null,null,null,null,"National Response Framework"]
["NRFI",null,null,null,null,null,"not ready for issue"]
["NRG",null,null,null,null,null,"notional requirements generator"]
["NRL",null,null,null,null,null,"nuclear weapons (NUWEP) reconnaissance list"]
["NRO",null,null,null,null,null,"National Reconnaissance Office"]
["NROC",null,null,null,null,null,"Northern Regional Operations Center (CARIBROC-CBRN)"]
["NRP",null,null,null,null,null,"National Response Plan; non-unit-related personnel"]
["NRPC",null,null,null,null,null,"Naval Reserve Personnel Center"]
["NRT",null,null,null,null,null,"near real time"]
["NRTD",null,null,null,null,null,"near-real-time dissemination"]
["NRTS",null,null,null,null,null,"Not Repairable This Station"]
["NRZ",null,null,null,null,null,"non-return-to-zero"]
["NS",null,null,null,null,null,"nuclear survivability"]
["NS-CWMD",null,null,null,null,null,"National Strategy to Combat Weapons of Mass Destruction"]
["NSA",null,null,null,null,null,"national security act; National Security Agency; national security area; national shipping authority; North Atlantic Treaty Organization (NATO) Standardization Agency"]
["NSA/CSS",null,null,null,null,null,"National Security Agency/Central Security Service"]
["NSARC",null,null,null,null,null,"National Search and Rescue Committee"]
["NSAT",null,null,null,null,null,"United States Northern Command situational awareness team"]
["NSAWC",null,null,null,null,null,"Naval Strike and Air Warfare Center"]
["NSC",null,null,null,null,null,"National Security Council"]
["NSC/DC",null,null,null,null,null,"National Security Council/Deputies Committee"]
["NSC/IPC",null,null,null,null,null,"National Security Council/interagency policy committee"]
["NSC/IWG",null,null,null,null,null,"National Security Council/Interagency Working Group"]
["NSC/PC",null,null,null,null,null,"National Security Council/Principals Committee"]
["NSC/PCC",null,null,null,null,null,"National Security Council Policy Coordinating Committee"]
["NSCID",null,null,null,null,null,"National Security Council intelligence directive"]
["NSCS",null,null,null,null,null,"National Security Council System"]
["NSCT1",null,null,null,null,null,"Naval Special Clearance Team One"]
["NSD",null,null,null,null,null,"National Security Directive; National Security Division (FBI)"]
["NSDA",null,null,null,null,null,"non-self deployment aircraft"]
["NSDD",null,null,null,null,null,"national security decision directive"]
["NSDM",null,null,null,null,null,"national security decision memorandum"]
["NSDS-E",null,null,null,null,null,"Navy Satellite Display System-Enhanced"]
["NSE",null,null,null,null,null,"Navy support element"]
["NSEP",null,null,null,null,null,"national security emergency preparedness"]
["NSF",null,null,null,null,null,"National Science Foundation; national security forces; National Strike Force (USCG)"]
["NSFS",null,null,null,null,null,"naval surface fire support"]
["NSG",null,null,null,null,null,"National System for Geospatial Intelligence; north-seeking gyro"]
["NSGI",null,null,null,null,null,"National System for Geospatial Intelligence"]
["NSHS",null,null,null,null,null,"National Strategy for Homeland Security"]
["NSL",null,null,null,null,null,"no-strike list"]
["NSM",null,null,null,null,null,"national search and rescue (SAR) manual"]
["NSMS",null,null,null,null,null,"National Strategy for Maritime Security"]
["NSN",null,null,null,null,null,"national stock number"]
["NSO",null,null,null,null,null,"non-Single Integrated Operational Plan (SIOP) option"]
["NSOC",null,null,null,null,null,"National Security Operations Center; National Signals Intelligence (SIGINT) Operations Center; Navy Satellite Operations Center"]
["NSOOC",null,null,null,null,null,"North Atlantic Treaty Organization (NATO) Staff Officer Orientation Course"]
["NSP",null,null,null,null,null,"national search and rescue plan"]
["NSPD",null,null,null,null,null,"national security Presidential directive"]
["NSPI",null,null,null,null,null,"National Strategy for Pandemic Influenza"]
["NSRL",null,null,null,null,null,"national signals intelligence (SIGINT) requirements list"]
["NSS",null,null,null,null,null,"National Search and Rescue Supplement; national security strategy; national security system; non-self-sustaining; Noise Suppression System"]
["NSSA",null,null,null,null,null,"National Security Space Architect"]
["NSSE",null,null,null,null,null,"national special security event"]
["NSST",null,null,null,null,null,"naval space support team"]
["NST",null,null,null,null,null,"National Geospatial-Intelligence Agency support team"]
["NSTAC",null,null,null,null,null,"National Security Telecommunications Advisory Committee"]
["NSTISSC",null,null,null,null,null,"National Security Telecommunications and Information Systems Security Committee"]
["NSTL",null,null,null,null,null,"national strategic targets list"]
["NSTS",null,null,null,null,null,"National Secure Telephone System"]
["NSW",null,null,null,null,null,"naval special warfare"]
["NSWCDD",null,null,null,null,null,"Naval Surface Warfare Center Dahlgren Division"]
["NSWCOM",null,null,null,null,null,"Naval Special Warfare Command"]
["NSWG",null,null,null,null,null,"naval special warfare group"]
["NSWTE",null,null,null,null,null,"naval special warfare task element"]
["NSWTF",null,null,null,null,null,"naval special warfare task force"]
["NSWTG",null,null,null,null,null,"naval special warfare task group"]
["NSWTU",null,null,null,null,null,"naval special warfare task unit"]
["NSWU",null,null,null,null,null,"naval special warfare unit"]
["NT",null,null,null,null,null,"nodal terminal"]
["NTACS",null,null,null,null,null,"Navy tactical air control system"]
["NTAP",null,null,null,null,null,"National Track Analysis Program"]
["NTB",null,null,null,null,null,"national target base"]
["NTBC",null,null,null,null,null,"National Military Joint Intelligence Center Targeting and Battle Damage Assessment Cell"]
["NTC",null,null,null,null,null,"National Training Center"]
["NTCS-A",null,null,null,null,null,"Navy Tactical Command System-Afloat"]
["NTDS",null,null,null,null,null,"naval tactical data system"]
["NTF",null,null,null,null,null,"nuclear task force"]
["NTIA",null,null,null,null,null,"National Telecommunications and Information Administration"]
["NTIC",null,null,null,null,null,"Navy Tactical Intelligence Center"]
["NTISS",null,null,null,null,null,"National Telecommunications and Information Security System"]
["NTISSI",null,null,null,null,null,"National Telecommunications and Information Security System (NTISS) Instruction"]
["NTISSP",null,null,null,null,null,"National Telecommunications and Information Security System (NTISS) Policy"]
["NTM",null,null,null,null,null,"national or multinational technical means of verification; notice to mariners"]
["NTMPDE",null,null,null,null,null,"National Telecommunications Master Plan for Drug Enforcement"]
["NTMS",null,null,null,null,null,"national telecommunications management structure"]
["NTPS",null,null,null,null,null,"near-term pre-positioned ships"]
["NTRP",null,null,null,null,null,"Navy tactical reference publication"]
["NTS",null,null,null,null,null,"night targeting system; noncombatant evacuation operations tracking system"]
["NTSB",null,null,null,null,null,"National Transportation Safety Board"]
["NTSS",null,null,null,null,null,"National Time-Sensitive System"]
["NTTP",null,null,null,null,null,"Navy tactics, techniques, and procedures"]
["NTU",null,null,null,null,null,"new threat upgrade"]
["NUC",null,null,null,null,null,"non-unit-related cargo; nuclear"]
["NUDET",null,null,null,null,null,"nuclear detonation"]
["NUFEA",null,null,null,null,null,"Navy-unique fleet essential aircraft"]
["NUP",null,null,null,null,null,"non-unit-related personnel"]
["NURP",null,null,null,null,null,"non-unit-related personnel"]
["NUWEP",null,null,null,null,null,"policy guidance for the employment of nuclear weapons"]
["NVD",null,null,null,null,null,"night vision device"]
["NVDT",null,null,null,null,null,"National Geospatial-Intelligence Agency voluntary deployment team"]
["NVG",null,null,null,null,null,"night vision goggle(s)"]
["NVS",null,null,null,null,null,"night vision system"]
["NW",null,null,null,null,null,"network warfare; not waiverable"]
["NWARS",null,null,null,null,null,"National Wargaming System"]
["NWB",null,null,null,null,null,"normal wideband"]
["NWBLTU",null,null,null,null,null,"normal wideband line termination unit"]
["NWDC",null,null,null,null,null,"Navy Warfare Development Command"]
["NWFP",null,null,null,null,null,"Northwest Frontier Province (Pakistan)"]
["NWP",null,null,null,null,null,"Navy warfare publication; numerical weather prediction"]
["NWREP",null,null,null,null,null,"nuclear weapons report"]
["NWRM",null,null,null,null,null,"Nuclear Weapons-Related Materiel"]
["NWS",null,null,null,null,null,"National Weather Service"]
["NWT",null,null,null,null,null,"normal wideband terminal"]
["O",null,null,null,null,null,"contour pattern"]
["O&I",null,null,null,null,null,"operations and intelligence"]
["O&M",null,null,null,null,null,"operation and maintenance"]
["O-Day",null,null,null,null,null,"off-load day"]
["O/B",null,null,null,null,null,"outboard"]
["O/M",null,null,null,null,null,"Organizational Maintenance"]
["OA",null,null,null,null,null,"objective area; operating assembly; operational area; Operations Aerology shipboard METOC division"]
["OADR",null,null,null,null,null,"originating agency's determination required"]
["OAE",null,null,null,null,null,"operational area evaluation"]
["OAF",null,null,null,null,null,"Operation ALLIED FORCE"]
["OAFME",null,null,null,null,null,"Office of the Armed Forces Medical Examiner"]
["OAG",null,null,null,null,null,"operations advisory group"]
["OAI",null,null,null,null,null,"oceanographic area of interest"]
["OAJCG",null,null,null,null,null,"Operation Alliance joint control group"]
["OAM",null,null,null,null,null,"Office of Air and Marine (DHS)"]
["OAP",null,null,null,null,null,"offset aimpoint; Oil Analysis Program"]
["OAR",null,null,null,null,null,"Chairman of the Joint Chiefs of Staff operation plans assessment report"]
["OAS",null,null,null,null,null,"offensive air support; Organization of American States; Offensive Avionics System"]
["OASD",null,null,null,null,null,"Office of the Assistant Secretary of Defense"]
["OASD(NII/CIO)",null,null,null,null,null,"Office of the Assistant Secretary of Defense (Networks and Information Integration/Chief Information Officer)"]
["OASD(PA)",null,null,null,null,null,"Office of the Assistant Secretary of Defense (Public Affairs)"]
["OASD(RA)",null,null,null,null,null,"Office of the Assistant Secretary of Defense (Reserve Affairs)"]
["OAU",null,null,null,null,null,"Organization of African Unity"]
["OB",null,null,null,null,null,"operating base; order of battle"]
["OBA",null,null,null,null,null,"oxygen breathing apparatus"]
["OBFS",null,null,null,null,null,"offshore bulk fuel system"]
["OBOGS",null,null,null,null,null,"On-Board Oxygen Generating Systems"]
["OBST",null,null,null,null,null,"obstacle"]
["OBSTINT",null,null,null,null,null,"obstacle intelligence"]
["OC",null,null,null,null,null,"oleoresin capsicum; operations center"]
["OCA",null,null,null,null,null,"offensive counterair; operational control authority"]
["OCBD",null,null,null,null,null,"Office of Capacity Building and Development (USDA)"]
["OCC",null,null,null,null,null,"Operations Computer Center (USCG)"]
["OCD",null,null,null,null,null,"orderwire clock distributor"]
["OCDETF",null,null,null,null,null,"Organized Crime and Drug Enforcement Task Force"]
["OCE",null,null,null,null,null,"officer conducting the exercise"]
["OCEANCON",null,null,null,null,null,"control of oceanographic information"]
["OCF",null,null,null,null,null,"Operational Check Flight"]
["OCHA",null,null,null,null,null,"Office for the Coordination of Humanitarian Affairs"]
["OCJCS",null,null,null,null,null,"Office of the Chairman of the Joint Chiefs of Staff"]
["OCJCS-PA",null,null,null,null,null,"Office of the Chairman of the Joint Chiefs of Staff-Public Affairs"]
["OCMI",null,null,null,null,null,"officer in charge, Marine Inspection"]
["OCO",null,null,null,null,null,"offensive cyberspace operations; offload control officer"]
["OCONUS",null,null,null,null,null,"outside the continental United States"]
["OCOP",null,null,null,null,null,"outline contingency operation plan"]
["OCP",null,null,null,null,null,"operational capability package; operational configuration processing"]
["OCR",null,null,null,null,null,"Office of Collateral Responsibility"]
["OCS",null,null,null,null,null,"operational contract support"]
["OCU",null,null,null,null,null,"orderwire control unit (Types I, II, and III)"]
["OCU-1",null,null,null,null,null,"orderwire control unit-1"]
["OD",null,null,null,null,null,"operational detachment; other detainee"]
["ODA",null,null,null,null,null,"operational detachment-Alpha"]
["ODATE",null,null,null,null,null,"organization date"]
["ODB",null,null,null,null,null,"operational detachment-Bravo"]
["ODC",null,null,null,null,null,"Office of Defense Cooperation"]
["ODCSLOG",null,null,null,null,null,"Office of the Deputy Chief of Staff for Logistics (Army)"]
["ODCSOPS",null,null,null,null,null,"Office of the Deputy Chief of Staff for Operations and Plans (Army)"]
["ODCSPER",null,null,null,null,null,"Office of the Deputy Chief of Staff for Personnel (Army)"]
["ODIN",null,null,null,null,null,"Operational Digital Network"]
["ODJS",null,null,null,null,null,"Office of the Director, Joint Staff"]
["ODNI",null,null,null,null,null,"Office of the Director of National Intelligence"]
["ODR",null,null,null,null,null,"Office of Defense representative"]
["ODZ",null,null,null,null,null,"outer defense zone"]
["OE",null,null,null,null,null,"operational environment"]
["OE&AS",null,null,null,null,null,"organization for embarkation and assignment to shipping"]
["OEBGD",null,null,null,null,null,"Overseas Environmental Baseline Guidance Document"]
["OECD",null,null,null,null,null,"Organisation for Economic Co-operation and Development"]
["OEF",null,null,null,null,null,"Operation ENDURING FREEDOM"]
["OEG",null,null,null,null,null,"operational experts group; operational exposure guidance; operations security executive group"]
["OEH",null,null,null,null,null,"occupational and environmental health"]
["OEM",null,null,null,null,null,"original equipment manufacturer"]
["OER",null,null,null,null,null,"officer evaluation report; operational electronic intelligence (ELINT) requirements"]
["OES",null,null,null,null,null,"office of emergency services"]
["OET",null,null,null,null,null,"Office of Emergency Transportation (DOT)"]
["OF",null,null,null,null,null,"officer (NATO)"]
["OFAC",null,null,null,null,null,"Office of Foreign Assets Control (TREAS)"]
["OFCO",null,null,null,null,null,"offensive counterintelligence operation"]
["OFDA",null,null,null,null,null,"Office of United States Foreign Disaster Assistance (USAID)"]
["OFHIS",null,null,null,null,null,"operational fleet hospital information system"]
["OFOESA",null,null,null,null,null,"Office of Field Operational and External Support Activities"]
["OFP",null,null,null,null,null,"Operations Flight Program"]
["OFSC",null,null,null,null,null,"Organizational and Force Structure Construct"]
["OG",null,null,null,null,null,"Operations Group"]
["OG/CC",null,null,null,null,null,"Operations Group Commander"]
["OGS",null,null,null,null,null,"overseas ground station"]
["OH",null,null,null,null,null,"overhead"]
["OHDACA",null,null,null,null,null,"Overseas Humanitarian, Disaster, and Civic Aid (DSCA)"]
["OHDM",null,null,null,null,null,"Office of Humanitarian Assistance, Disaster Relief, and Mine Action"]
["OI",null,null,null,null,null,"Office of Intelligence (USCS); operating instruction; operational interest"]
["OI&A",null,null,null,null,null,"Office of Intelligence and Analysis (DHS)"]
["OIA",null,null,null,null,null,"Office of International Affairs (TREAS)"]
["OIC",null,null,null,null,null,"officer in charge"]
["OICC",null,null,null,null,null,"officer in charge of construction; operational intelligence coordination center"]
["OID",null,null,null,null,null,"operation order (OPORD) identification"]
["OIF",null,null,null,null,null,"Operation IRAQI FREEDOM"]
["OIIL",null,null,null,null,null,"Office of Intelligence and Investigative Liaison (CBP)"]
["OIR",null,null,null,null,null,"operational intelligence requirements; other intelligence requirements"]
["OJT",null,null,null,null,null,"on-the-job training"]
["OL",null,null,null,null,null,"operating location"]
["OLD",null,null,null,null,null,"on-line tests and diagnostics"]
["OLS",null,null,null,null,null,"operational linescan system; optical landing system"]
["OM",null,null,null,null,null,"contour multiunit"]
["OMA",null,null,null,null,null,"Office of Military Affairs (CIA and USAID)"]
["OMB",null,null,null,null,null,"Office of Management and Budget; operations management branch"]
["OMC",null,null,null,null,null,"Office of Military Cooperation; optical memory card"]
["OMF",null,null,null,null,null,"officer master file"]
["OMS",null,null,null,null,null,"Office of Mission Support"]
["OMSPH",null,null,null,null,null,"Office of Medicine, Science, and Public Health (DHHS)"]
["OMT",null,null,null,null,null,"operations management team; orthogonal mode transducer"]
["OMT/OMTP",null,null,null,null,null,"operational maintenance test(ing)/test plan"]
["ONDCP",null,null,null,null,null,"Office of National Drug Control Policy"]
["ONE",null,null,null,null,null,"Operation NOBLE EAGLE"]
["ONI",null,null,null,null,null,"Office of Naval Intelligence"]
["OO-ALC",null,null,null,null,null,"Ogden Air Logistics Complex"]
["OOB",null,null,null,null,null,"order of battle"]
["OOD",null,null,null,null,null,"officer of the deck"]
["OODA",null,null,null,null,null,"observe, orient, decide, act"]
["OOS",null,null,null,null,null,"out of service"]
["OP",null,null,null,null,null,"observation post; operational publication (USN); ordnance publication"]
["OPARS",null,null,null,null,null,"Optimum Path Aircraft Routing System"]
["OPBAT",null,null,null,null,null,"Operation Bahamas, Turks, and Caicos"]
["OPC",null,null,null,null,null,"Ocean Prediction Center (DOC)"]
["OPCEN",null,null,null,null,null,"operations center (USCG)"]
["OPCOM",null,null,null,null,null,"operational command (NATO)"]
["OPCON",null,null,null,null,null,"operational control"]
["OPDAT",null,null,null,null,null,"Office of Overseas Prosecutorial Development, Assistance, and Training (DOJ)"]
["OPDEC",null,null,null,null,null,"operational deception"]
["OPDS",null,null,null,null,null,"offshore petroleum discharge system (Navy)"]
["OPDS-Future",null,null,null,null,null,"offshore petroleum discharge system-future (Navy)"]
["OPDS-L",null,null,null,null,null,"offshore petroleum discharge system-legacy (Navy)"]
["OPE",null,null,null,null,null,"operational preparation of the environment"]
["OPELINT",null,null,null,null,null,"operational electronic intelligence"]
["OPEO",null,null,null,null,null,"Office of Preparedness and Emergency Operations (DHHS)"]
["OPFOR",null,null,null,null,null,"opposing force; opposition force"]
["OPG",null,null,null,null,null,"operations planning group"]
["OPGEN",null,null,null,null,null,"operation general matter"]
["OPIR",null,null,null,null,null,"overhead persistent infrared"]
["OPLAN",null,null,null,null,null,"operation plan"]
["OPLAW",null,null,null,null,null,"operational law"]
["OPM",null,null,null,null,null,"Office of Personnel Management; operations per minute"]
["OPMG",null,null,null,null,null,"Office of the Provost Marshal General"]
["OPNAVINST",null,null,null,null,null,"Chief of Naval Operations instruction"]
["OPORD",null,null,null,null,null,"operation order"]
["OPP",null,null,null,null,null,"orderwire patch panel"]
["OPR",null,null,null,null,null,"office of primary responsibility"]
["OPREP",null,null,null,null,null,"operational report"]
["OPROJ",null,null,null,null,null,"operational project"]
["OPS",null,null,null,null,null,"operational project stock; operations; operations center"]
["OPSCOM",null,null,null,null,null,"Operations Committee"]
["OPSDEPS",null,null,null,null,null,"Service Operations Deputies"]
["OPSEC",null,null,null,null,null,"operations security"]
["OPSTK",null,null,null,null,null,"operational stock"]
["OPSUM",null,null,null,null,null,"operation summary"]
["OPT",null,null,null,null,null,"operational planning team"]
["OPTAR",null,null,null,null,null,"operating target"]
["OPTASK",null,null,null,null,null,"operation task"]
["OPTASKLINK",null,null,null,null,null,"operations task link"]
["OPTEMPO",null,null,null,null,null,"operating tempo"]
["OPTINT",null,null,null,null,null,"optical intelligence"]
["OPZONE",null,null,null,null,null,"operation zone"]
["OR",null,null,null,null,null,"operational readiness; other rank(s) (NATO)"]
["ORBAT",null,null,null,null,null,"order of battle"]
["ORCON",null,null,null,null,null,"originator controlled"]
["ORDREF",null,null,null,null,null,"order reference"]
["ORDTYP",null,null,null,null,null,"order type"]
["ORE",null,null,null,null,null,"Operational Readiness Exercises"]
["ORG",null,null,null,null,null,"origin (GELOC)"]
["ORIG",null,null,null,null,null,"origin"]
["ORM",null,null,null,null,null,"operational risk management"]
["ORP",null,null,null,null,null,"ocean reception point"]
["ORS",null,null,null,null,null,"operationally responsive space"]
["ORSA",null,null,null,null,null,"operations research and systems analysis"]
["OS",null,null,null,null,null,"operating system; Operational Squadron"]
["OSA",null,null,null,null,null,"operational support airlift"]
["OSAT",null,null,null,null,null,"out-of-service analog test; Oil System Awareness Training"]
["OSC",null,null,null,null,null,"offensive space control; on-scene commander; on-site commander; Open Source Center (CIA); operational support command; operations support center"]
["OSCE",null,null,null,null,null,"Organization for Security and Cooperation in Europe"]
["OSD",null,null,null,null,null,"Office of the Secretary of Defense"]
["OSD/DMDPO",null,null,null,null,null,"Office of the Secretary of Defense, Defense Military Deception Program Office"]
["OSE",null,null,null,null,null,"on scene endurance; operations support element"]
["OSEI",null,null,null,null,null,"operational significant event imagery"]
["OSG",null,null,null,null,null,"operational support group"]
["OSHA",null,null,null,null,null,"Occupational Safety and Health Administration"]
["OSI",null,null,null,null,null,"open system interconnection; operational subsystem interface"]
["OSIA",null,null,null,null,null,"on-site inspection activity"]
["OSINT",null,null,null,null,null,"open-source information; open-source intelligence"]
["OSIS",null,null,null,null,null,"open-source information system"]
["OSM",null,null,null,null,null,"Office of Spectrum Management (NTIA)"]
["OSO",null,null,null,null,null,"operational support office"]
["OSOCC",null,null,null,null,null,"on-site operations coordination center"]
["OSP",null,null,null,null,null,"operations support package"]
["OSPG",null,null,null,null,null,"overseas security policy group"]
["OSRI",null,null,null,null,null,"originating station routing indicator"]
["OSS",null,null,null,null,null,"Operations Support Squadron"]
["OSS&E",null,null,null,null,null,"Operational Safety Suitability and Effectiveness"]
["OSV",null,null,null,null,null,"ocean station vessel"]
["OT",null,null,null,null,null,"operational test"]
["OT&E",null,null,null,null,null,"operational test and evaluation"]
["OTA",null,null,null,null,null,"Office of Technical Assistance (TREAS)"]
["OTC",null,null,null,null,null,"officer in tactical command; over the counter"]
["OTG",null,null,null,null,null,"operational target graphic"]
["OTH",null,null,null,null,null,"other; over the horizon"]
["OTH-B",null,null,null,null,null,"over-the-horizon backscatter (radar)"]
["OTHT",null,null,null,null,null,"over-the-horizon targeting"]
["OTI",null,null,null,null,null,"Office of Transition Initiatives (USAID); One Time Inspection"]
["OTS",null,null,null,null,null,"Officer Training School; one-time source; Over-The-Shoulder"]
["OUB",null,null,null,null,null,"offshore petroleum discharge system utility boat"]
["OUSD",null,null,null,null,null,"Office of the Under Secretary of Defense"]
["OUSD(AT&L)",null,null,null,null,null,"Office of the Under Secretary of Defense (Acquisition, Technology, and Logistics)"]
["OUSD(C)",null,null,null,null,null,"Office of the Under Secretary of Defense (Comptroller)"]
["OUSD(C/CFO)",null,null,null,null,null,"Office of the Under Secretary of Defense (Comptroller/Chief Financial Officer)"]
["OUSD(I)",null,null,null,null,null,"Office of the Under Secretary of Defense (Intelligence)"]
["OUSD(P)",null,null,null,null,null,"Office of the Under Secretary of Defense for Policy"]
["OUT",null,null,null,null,null,"outsize cargo"]
["OVE",null,null,null,null,null,"on-vehicle equipment"]
["OVER",null,null,null,null,null,"oversize cargo"]
["OVM",null,null,null,null,null,"Operation VIGILANT MARINER"]
["OW",null,null,null,null,null,"orderwire"]
["OWS",null,null,null,null,null,"operational weather squadron; Owning Work Center"]
["P",null,null,null,null,null,"parallel pattern; priority; publication"]
["P,C,&H",null,null,null,null,null,"packing, crating, and handling"]
["p-p",null,null,null,null,null,"peak-to-peak"]
["P-STATIC",null,null,null,null,null,"precipitation static"]
["P/M/C",null,null,null,null,null,"passengers/mail/cargo"]
["P/O",null,null,null,null,null,"part of"]
["P/P",null,null,null,null,null,"patch panel"]
["PA",null,null,null,null,null,"parent relay; physician assistant; primary agency; probability of arrival; public affairs"]
["PAA",null,null,null,null,null,"position area of artillery; Primary Aerospace Vehicle (Aircraft) Authorized"]
["PABX",null,null,null,null,null,"private automatic branch exchange (telephone)"]
["PACAF",null,null,null,null,null,"Pacific Air Forces"]
["PAD",null,null,null,null,null,"patient administration director; positional adjustment; precision aircraft direction"]
["PADD",null,null,null,null,null,"person authorized to direct disposition of human remains"]
["PADRU",null,null,null,null,null,"Pan American Disaster Response Unit"]
["PADS",null,null,null,null,null,"position azimuth determining system"]
["PAFSC",null,null,null,null,null,"Primary AFSC"]
["PAG",null,null,null,null,null,"public affairs guidance"]
["PAI",null,null,null,null,null,"Primary Aerospace Vehicle (Aircraft) Inventory"]
["PAL",null,null,null,null,null,"personnel allowance list; program assembler language"]
["PALCON",null,null,null,null,null,"pallet container"]
["PALS",null,null,null,null,null,"precision approach landing system"]
["PAM",null,null,null,null,null,"preventive and aerospace medicine; pulse amplitude modulation"]
["PAMS",null,null,null,null,null,"PMEL Automated Management System"]
["PaM",null,null,null,null,null,"passage material"]
["PANS",null,null,null,null,null,"procedures for air navigation services"]
["PAO",null,null,null,null,null,"public affairs office; public affairs officer"]
["PAR",null,null,null,null,null,"performance assessment report; population at risk; precision approach radar"]
["PARC",null,null,null,null,null,"principal assistant for contracting"]
["PARKHILL",null,null,null,null,null,"high frequency cryptological device"]
["PARPRO",null,null,null,null,null,"peacetime application of reconnaissance programs"]
["PARS",null,null,null,null,null,"Personnel and Accountability System"]
["PAS",null,null,null,null,null,"personnel accounting symbol; Protective Aircraft Shelter / Personnel Assignment System (Code)"]
["PAT",null,null,null,null,null,"public affairs team"]
["PATEC",null,null,null,null,null,"Portable Automatic Test Equipment Calibrator"]
["PAV",null,null,null,null,null,"policy assessment visit"]
["PAWS",null,null,null,null,null,"phased array warning system"]
["PAX",null,null,null,null,null,"passengers; public affairs plans"]
["PB",null,null,null,null,null,"particle beam; patrol boat; peace building; President's budget"]
["PB4T",null,null,null,null,null,"planning board for training"]
["PBA",null,null,null,null,null,"performance-based agreement; production base analysis"]
["PBCR",null,null,null,null,null,"portable bar code recorder"]
["PBD",null,null,null,null,null,"program budget decision"]
["PBIED",null,null,null,null,null,"person-borne improvised explosive device"]
["PBL",null,null,null,null,null,"Performance Based Logistics"]
["PBOS",null,null,null,null,null,"Planning Board for Ocean Shipping"]
["PBR",null,null,null,null,null,"Percent of Base Repair"]
["PBSA",null,null,null,null,null,"Performance-Based Service Acquisition"]
["Pc",null,null,null,null,null,"cumulative probability of detection"]
["PC",null,null,null,null,null,"patrol craft; personal computer; pilot in command; preliminary coordination; Principals Committee"]
["PC&S",null,null,null,null,null,"post, camp, and station"]
["PC-LITE",null,null,null,null,null,"processor, laptop imagery transmission equipment"]
["PCA",null,null,null,null,null,"Posse Comitatus Act"]
["PCC",null,null,null,null,null,"policy coordination committee; primary control center"]
["PCF",null,null,null,null,null,"personnel control facility"]
["PCL",null,null,null,null,null,"positive control launch"]
["PCM",null,null,null,null,null,"pulse code modulation"]
["PCO",null,null,null,null,null,"primary control officer; procuring contracting officer"]
["PCRTS",null,null,null,null,null,"primary casualty receiving and treatment ship"]
["PCS",null,null,null,null,null,"permanent change of station; personal communications system; primary control ship; processing subsystem; processor controlled strapping"]
["PCT",null,null,null,null,null,"personnel control team"]
["PCTC",null,null,null,null,null,"pure car and truck carrier"]
["PCZ",null,null,null,null,null,"physical control zone"]
["Pd",null,null,null,null,null,"drift compensated parallelogram pattern"]
["PD",null,null,null,null,null,"position description; Presidential directive; priority designator; probability of damage; probability of detection; procedures description; program definition; program directive; program director; public diplomacy"]
["PDA",null,null,null,null,null,"preliminary damage assessment"]
["PDAI",null,null,null,null,null,"primary development/test aircraft inventory"]
["PDC",null,null,null,null,null,"Pacific Disaster Center"]
["PDD",null,null,null,null,null,"Presidential decision directive"]
["PDDA",null,null,null,null,null,"power driven decontamination apparatus"]
["PDDG",null,null,null,null,null,"program directive development group"]
["PDG",null,null,null,null,null,"positional data graphic"]
["PDM",null,null,null,null,null,"program decision memorandum; Programmed Depot Maintenance"]
["PDOP",null,null,null,null,null,"position dilution of precision"]
["PDS",null,null,null,null,null,"position determining system; primary distribution site; protected distribution system"]
["PDSC",null,null,null,null,null,"public diplomacy and strategic communication"]
["PDSS",null,null,null,null,null,"predeployment site survey"]
["PDUSD(P&R)",null,null,null,null,null,"Principal Deputy Under Secretary of Defense (Personnel and Readiness)"]
["PE",null,null,null,null,null,"peace enforcement; peacetime establishment; personal effects; preparation of the environment; program element; Personnel Evaluation/Periodic Inspection"]
["PEAD",null,null,null,null,null,"Presidential emergency action document"]
["PEC",null,null,null,null,null,"program element code"]
["PECK",null,null,null,null,null,"patient evacuation contingency kit"]
["PECP",null,null,null,null,null,"precision engagement collaboration process"]
["PED",null,null,null,null,null,"processing, exploitation, and dissemination"]
["PEDB",null,null,null,null,null,"planning and execution database"]
["PEGEO",null,null,null,null,null,"personnel geographic location"]
["PEI",null,null,null,null,null,"principal end item"]
["PEIO",null,null,null,null,null,"personnel effects inventory officer"]
["PEM",null,null,null,null,null,"program element monitor"]
["PEO",null,null,null,null,null,"peace enforcement operations; program executive officer"]
["PEP",null,null,null,null,null,"personnel exchange program"]
["PER",null,null,null,null,null,"personnel"]
["PERE",null,null,null,null,null,"person eligible to receive effects"]
["PERID",null,null,null,null,null,"period"]
["PERMREP",null,null,null,null,null,"permanent representative (NATO)"]
["PERSCO",null,null,null,null,null,"personnel support for contingency operations"]
["PERSCOM",null,null,null,null,null,"personnel command (Army)"]
["PERSINS",null,null,null,null,null,"personnel information system"]
["PES",null,null,null,null,null,"preparedness evaluation system"]
["PFA",null,null,null,null,null,"primary federal agency"]
["PFD",null,null,null,null,null,"personal flotation device"]
["PFDB",null,null,null,null,null,"planning factors database"]
["PFIAB",null,null,null,null,null,"President's Foreign Intelligence Advisory Board"]
["PFID",null,null,null,null,null,"positive friendly identification"]
["PFO",null,null,null,null,null,"principal federal offical"]
["PfP",null,null,null,null,null,"Partnership for Peace (NATO)"]
["PGI",null,null,null,null,null,"procedures, guidance, and information"]
["PGM",null,null,null,null,null,"precision-guided munition; Product Group Manager"]
["PH",null,null,null,null,null,"Phase"]
["pH",null,null,null,null,null,"potential of hydrogen"]
["PHEO",null,null,null,null,null,"public health emergency officer"]
["PHIBCB",null,null,null,null,null,"amphibious construction battalion"]
["PHIBGRU",null,null,null,null,null,"amphibious group"]
["PHIBOP",null,null,null,null,null,"amphibious operation"]
["PHIBRON",null,null,null,null,null,"amphibious squadron"]
["PHIT",null,null,null,null,null,"port handling/in-land transportation"]
["PHO",null,null,null,null,null,"posthostilities operations"]
["PHS",null,null,null,null,null,"Public Health Service"]
["PI",null,null,null,null,null,"pandemic influenza; point of impact; probability of incapacitation; procedural item; purposeful interference"]
["PIAB",null,null,null,null,null,"President’s Intelligence Advisory Board"]
["PIC",null,null,null,null,null,"parent indicator code; payment in cash; person identification code; pilot in command; press information center (NATO)"]
["PID",null,null,null,null,null,"plan identification number; positive identification"]
["PIDD",null,null,null,null,null,"planned inactivation or discontinued date"]
["PIF",null,null,null,null,null,"problem identification flag"]
["PII",null,null,null,null,null,"pre-incident indicators"]
["PIM",null,null,null,null,null,"pretrained individual manpower; Product Improvement Manager"]
["PIN",null,null,null,null,null,"personnel increment number"]
["PINS",null,null,null,null,null,"precise integrated navigation system"]
["PIO",null,null,null,null,null,"press information officer; public information officer"]
["PIP ",null,null,null,null,null,"Product Improvement Program"]
["PIPS",null,null,null,null,null,"plans integration partitioning system"]
["PIR",null,null,null,null,null,"priority intelligence requirement"]
["PIREP",null,null,null,null,null,"pilot report"]
["PIRT",null,null,null,null,null,"purposeful interference response team"]
["PIW",null,null,null,null,null,"person in water"]
["PJ",null,null,null,null,null,"pararescue jumper"]
["PK",null,null,null,null,null,"peacekeeping; probability of kill"]
["PKG-POL",null,null,null,null,null,"packaged petroleum, oils, and lubricants"]
["PKI",null,null,null,null,null,"public key infrastructure"]
["PKO",null,null,null,null,null,"peacekeeping operations"]
["PKP",null,null,null,null,null,"purple k powder"]
["PKSOI",null,null,null,null,null,"Peacekeeping and Stability Operations Institute"]
["PL",null,null,null,null,null,"phase line; public law"]
["PLA",null,null,null,null,null,"plain language address"]
["PLAD",null,null,null,null,null,"plain language address directory"]
["PLANORD",null,null,null,null,null,"planning order"]
["PLAT",null,null,null,null,null,"pilot's landing aid television"]
["PLB",null,null,null,null,null,"personal locator beacon"]
["PLC",null,null,null,null,null,"power line conditioner"]
["PLGR",null,null,null,null,null,"precise lightweight global positioning system (GPS) receiver"]
["PLL",null,null,null,null,null,"phase locked loop"]
["PLL/ASL",null,null,null,null,null,"prescribed load list/authorized stock level"]
["PLRS",null,null,null,null,null,"position location reporting system"]
["PLS",null,null,null,null,null,"palletized load system; personal locator system; pillars of logistic support: precision locator system"]
["PLT",null,null,null,null,null,"platoon; program library tape"]
["PM",null,null,null,null,null,"Bureau of Political-Military Affairs (DOS); parallel track multiunit; passage material; patient movement; peacemaking; political-military affairs; preventive medicine; program management; program manager; provost marshal; Primary Munition"]
["PMA",null,null,null,null,null,"political/military assessment; Portable Maintenance Aids"]
["PMAA",null,null,null,null,null,"Production Management Alternative Architecture"]
["PMAI",null,null,null,null,null,"primary mission aircraft inventory"]
["PMAP",null,null,null,null,null,"Performance Management Assessment Program"]
["PMC",null,null,null,null,null,"parallel multiunit circle; private military company;Partially Mission Capable"]
["PMCB",null,null,null,null,null,"Partially Mission Capable - Both (maintenance & supply)"]
["PMCF",null,null,null,null,null,"post maintenance check flight"]
["PMCM",null,null,null,null,null,"Partially Mission Capable - Maintenance"]
["PMCS",null,null,null,null,null,"Partially Mission Capable - Supply"]
["PMCT",null,null,null,null,null,"port movement control team"]
["PMD",null,null,null,null,null,"program management directive"]
["PME",null,null,null,null,null,"professional military education; Precision Measurement Equipment"]
["PMEL",null,null,null,null,null,"precision measurement equipment laboratory"]
["PMESII",null,null,null,null,null,"political, military, economic, social, information, and infrastructure"]
["PMGM",null,null,null,null,null,"program manager's guidance memorandum"]
["PMI",null,null,null,null,null,"patient movement item; prevention of mutual interference; Preventive Maintenance Inspection/ Program Management Inspection"]
["PMITS",null,null,null,null,null,"Patient Movement Item Tracking System"]
["PMN",null,null,null,null,null,"parallel track multiunit non-return"]
["PMO",null,null,null,null,null,"production management office(r); program management office"]
["PMOS",null,null,null,null,null,"primary military occupational specialty"]
["PMP",null,null,null,null,null,"Program Maintenance Package"]
["PMR",null,null,null,null,null,"parallel track multiunit return; patient movement request; patient movement requirement"]
["PMRC",null,null,null,null,null,"patient movement requirements center"]
["PMS",null,null,null,null,null,"portable meteorological subsystem"]
["PN",null,null,null,null,null,"partner nation; pseudonoise"]
["PNA",null,null,null,null,null,"postal net alert"]
["PNID",null,null,null,null,null,"precedence network in dialing"]
["PNT",null,null,null,null,null,"positioning, navigation, and timing"]
["PNVS",null,null,null,null,null,"pilot night vision system"]
["PO",null,null,null,null,null,"peace operations; petty officer; Program Office"]
["POA",null,null,null,null,null,"plan of action"]
["POAI",null,null,null,null,null,"primary other aircraft inventory"]
["POB",null,null,null,null,null,"persons on board"]
["POC",null,null,null,null,null,"point of contact"]
["POCD",null,null,null,null,null,"port operations cargo detachment"]
["POD",null,null,null,null,null,"plan of the day; port of debarkation; probability of detection"]
["POE",null,null,null,null,null,"port of embarkation; port of entry"]
["POES",null,null,null,null,null,"polar operational environment satellite"]
["POF",null,null,null,null,null,"priority of fires"]
["POG",null,null,null,null,null,"port operations group"]
["POI",null,null,null,null,null,"program of instruction"]
["POL",null,null,null,null,null,"petroleum, oils, and lubricants"]
["POLAD",null,null,null,null,null,"policy advisor; political advisor"]
["POLCAP",null,null,null,null,null,"bulk petroleum capabilities report"]
["POLMIL",null,null,null,null,null,"political-military"]
["POM",null,null,null,null,null,"program objective memorandum"]
["POMCUS",null,null,null,null,null,"pre-positioning of materiel configured to unit sets"]
["POMSO",null,null,null,null,null,"Plans, Operations, and Military Support Office(r) (NG)"]
["POMX",null,null,null,null,null,"Point Of Maintenance"]
["POP",null,null,null,null,null,"performance oriented packaging"]
["POPS",null,null,null,null,null,"port operational performance simulator"]
["POR",null,null,null,null,null,"proposed operational requirement"]
["PORTS",null,null,null,null,null,"portable remote telecommunications system"]
["PORTSIM",null,null,null,null,null,"port simulation model"]
["POS",null,null,null,null,null,"peacetime operating stocks; point of sale; probability of success"]
["POSF",null,null,null,null,null,"port of support file"]
["POSSUB",null,null,null,null,null,"possible submarine"]
["POSTMOB",null,null,null,null,null,"post mobilization"]
["POTUS",null,null,null,null,null,"President of the United States"]
["POV",null,null,null,null,null,"privately owned vehicle"]
["POW",null,null,null,null,null,"prisoner of war"]
["PPA",null,null,null,null,null,"personnel information system (PERSINS) personnel activity"]
["PPAG",null,null,null,null,null,"proposed public affairs guidance"]
["PPBE",null,null,null,null,null,"Planning, Programming, Budgeting, and Execution"]
["PPC",null,null,null,null,null,"Possession Purpose Code"]
["PPD",null,null,null,null,null,"Presidential policy directive; program planning document"]
["PPDB",null,null,null,null,null,"point positioning database"]
["PPE",null,null,null,null,null,"personal protective equipment"]
["PPF",null,null,null,null,null,"personnel processing file"]
["Pplan",null,null,null,null,null,"programming plan"]
["PPLI",null,null,null,null,null,"precise participant location and identification"]
["ppm",null,null,null,null,null,"parts per million"]
["PPP",null,null,null,null,null,"power projection platform; primary patch panel; priority placement program"]
["PPR",null,null,null,null,null,"prior permission required"]
["PPS",null,null,null,null,null,"precise positioning service"]
["PPTO",null,null,null,null,null,"petroleum pipeline and terminal operating"]
["PR",null,null,null,null,null,"personnel recovery; Phoenix Raven; primary zone; production requirement; program review; Program and Resources"]
["PRA",null,null,null,null,null,"patient reception area; primary review authority"]
["PRANG",null,null,null,null,null,"Puerto Rican Air National Guard"]
["PRBS",null,null,null,null,null,"pseudorandom binary sequence"]
["PRC",null,null,null,null,null,"populace and resources control; Presidential Reserve Call-up"]
["PRCC",null,null,null,null,null,"personnel recovery coordination cell; personnel recovery coordination center"]
["PRCS",null,null,null,null,null,"personnel recovery coordination section"]
["PRD",null,null,null,null,null,"personnel readiness division; Presidential review directive; Pilot Reported Discrepancy"]
["PRDO",null,null,null,null,null,"personnel recovery duty officer"]
["PREMOB",null,null,null,null,null,"pre-mobilization"]
["PREPO",null,null,null,null,null,"pre-positioned force, equipment, or supplies; pre-positioning"]
["PREREP",null,null,null,null,null,"pre-arrival report"]
["PRF",null,null,null,null,null,"personnel resources file; pulse repetition frequency"]
["PRG",null,null,null,null,null,"personnel recovery guidance; program review group"]
["PRI",null,null,null,null,null,"movement priority for forces having the same latest arrival date (LAD); priority; progressive routing indicator"]
["PRIFLY",null,null,null,null,null,"primary flight control"]
["Prime BEEF",null,null,null,null,null,"Prime Base Engineer Emergency Force"]
["PRISM",null,null,null,null,null,"Planning Tool for Resource, Integration, Synchronization, and Management"]
["PRM",null,null,null,null,null,"Bureau of Population, Refugees, and Migration (DOS); Presidential review memorandum"]
["PRMFL",null,null,null,null,null,"perm file"]
["PRMS",null,null,null,null,null,"personnel recovery mission software"]
["PRN",null,null,null,null,null,"pseudorandom noise"]
["PRO",null,null,null,null,null,"personnel recovery officer"]
["PROBSUB",null,null,null,null,null,"probable submarine"]
["PROC",null,null,null,null,null,"processor; Puerto Rican Operations Center"]
["PROFIS",null,null,null,null,null,"professional officer filler information system"]
["PROM",null,null,null,null,null,"programmable read-only memory"]
["PROPIN",null,null,null,null,null,"caution - proprietary information involved"]
["PROVORG",null,null,null,null,null,"providing organization"]
["proword",null,null,null,null,null,"procedure word"]
["PRP",null,null,null,null,null,"personnel reliability program; Personnel Retrieval and Processing"]
["PRRIS",null,null,null,null,null,"Puerto Rican radar integration system"]
["PRSL",null,null,null,null,null,"Performance Requirements Statement"]
["PRSL",null,null,null,null,null,"primary zone/switch location"]
["PRT",null,null,null,null,null,"patient reception team; provincial reconstruction team"]
["PRTF",null,null,null,null,null,"personnel recovery task force"]
["PRU",null,null,null,null,null,"pararescue unit; primary reporting unit"]
["PS",null,null,null,null,null,"parallel track single-unit; port security; processing subsystem"]
["PS&D",null,null,null,null,null,"Plans, Scheduling, and Documentation"]
["PS/HD",null,null,null,null,null,"port security/harbor defense"]
["PSA",null,null,null,null,null,"port support activity; principal staff assistant"]
["PSB",null,null,null,null,null,"poststrike base"]
["PSC",null,null,null,null,null,"port security company; principal subordinate command; private security contractor;Production Support Center"]
["PSD",null,null,null,null,null,"planning systems division; port security detachment"]
["PSE",null,null,null,null,null,"peculiar support equipment"]
["PSHDGRU",null,null,null,null,null,"port security and harbor defense group"]
["PSI",null,null,null,null,null,"Proliferation Security Initiative"]
["psi",null,null,null,null,null,"pounds per square inch"]
["PSK",null,null,null,null,null,"phase-shift keying"]
["PSL",null,null,null,null,null,"parallel track single-unit long-range aid to navigation (LORAN)"]
["PSMS",null,null,null,null,null,"Personnel Status Monitoring System"]
["PSN",null,null,null,null,null,"packet switching node; public switch network"]
["PSO",null,null,null,null,null,"peace support operations (NATO); post security officer"]
["PSP",null,null,null,null,null,"perforated steel planking; portable sensor platform; power support platform"]
["PSS",null,null,null,null,null,"parallel single-unit spiral; personnel services support"]
["PSTN",null,null,null,null,null,"public switched telephone network"]
["PSU",null,null,null,null,null,"port security unit"]
["PSV",null,null,null,null,null,"psuedosynthetic video"]
["PTA",null,null,null,null,null,"position, time, altitude"]
["PTAI",null,null,null,null,null,"primary training aircraft inventory"]
["PTC",null,null,null,null,null,"peace through confrontation; primary traffic channel"]
["PTDO",null,null,null,null,null,"prepare to deploy order"]
["PTM",null,null,null,null,null,"personnel transport module"]
["PTT",null,null,null,null,null,"postal telephone and telegraph; public telephone and telegraph; push-to-talk"]
["PTTI",null,null,null,null,null,"precise time and time interval"]
["pub",null,null,null,null,null,"publication"]
["PUK",null,null,null,null,null,"packup kit"]
["PUL",null,null,null,null,null,"parent unit level"]
["PV",null,null,null,null,null,"prime vendor"]
["PVNTMED",null,null,null,null,null,"preventive medicine"]
["PVT",null,null,null,null,null,"positioning, velocity, and timing"]
["PW",null,null,null,null,null,"prisoner of war"]
["pW",null,null,null,null,null,"picowatt"]
["PWB",null,null,null,null,null,"printed wiring board (assembly)"]
["PWCS",null,null,null,null,null,"Personal Wireless Communications Systems"]
["PWD",null,null,null,null,null,"programmed warhead detonation"]
["PWF",null,null,null,null,null,"personnel working file"]
["PWG",null,null,null,null,null,"protection working group"]
["PWIS",null,null,null,null,null,"Prisoner of War Information System"]
["PWR",null,null,null,null,null,"pre-positioned wartime reserves"]
["PWRMR",null,null,null,null,null,"pre-positioned war materiel requirement"]
["PWRMS",null,null,null,null,null,"pre-positioned war reserve materiel stock"]
["PWRR",null,null,null,null,null,"petroleum war reserve requirements"]
["PWRS",null,null,null,null,null,"petroleum war reserve stocks; pre-positioned war reserve stock"]
["PWS",null,null,null,null,null,"performance work statement"]
["PZ",null,null,null,null,null,"pickup zone"]
["QA",null,null,null,null,null,"quality assurance"]
["QAM",null,null,null,null,null,"quadrature amplitude modulation"]
["QAPC",null,null,null,null,null,"Quality Assurance Program Coordinators"]
["QAR",null,null,null,null,null,"Quality Assurance Representative"]
["QASP",null,null,null,null,null,"Quality Assurance Surveillance Plan"]
["QAT",null,null,null,null,null,"quality assurance team"]
["QC",null,null,null,null,null,"quality control/Quality Check"]
["QD",null,null,null,null,null,"quality distance"]
["QDR",null,null,null,null,null,"quadrennial defense review; quality deficiency report"]
["QE",null,null,null,null,null,"Quarterly Evaluation"]
["QEC",null,null,null,null,null,"Quick Engine Change"]
["QEEM",null,null,null,null,null,"quick erect expandable mast"]
["QHDA",null,null,null,null,null,"qualified hazardous duty area"]
["QIMSS",null,null,null,null,null,"Quality Information Management Standard System"]
["QIP",null,null,null,null,null,"quick impact project"]
["QM",null,null,null,null,null,"quartermaster"]
["QP",null,null,null,null,null,"Quality Program"]
["QPA",null,null,null,null,null,"Quantity Per Assembly"]
["QPD",null,null,null,null,null,"Qualified Product Database"]
["QPL",null,null,null,null,null,"Quality Products List"]
["QPSK",null,null,null,null,null,"quadrature phase shift keying"]
["QRA",null,null,null,null,null,"quick reaction antenna"]
["QRC ",null,null,null,null,null,"Quick Reaction Checklists"]
["QRCT",null,null,null,null,null,"quick reaction communications terminal"]
["QRE",null,null,null,null,null,"quick reaction element"]
["QRF",null,null,null,null,null,"quick reaction force; quick response force"]
["QRG",null,null,null,null,null,"quick response graphic"]
["QRL",null,null,null,null,null,"Quick Reference List"]
["QRP",null,null,null,null,null,"quick response posture"]
["QRS",null,null,null,null,null,"quick reaction strike"]
["QRSA",null,null,null,null,null,"quick reaction satellite antenna"]
["QRT",null,null,null,null,null,"quick reaction team"]
["QS",null,null,null,null,null,"quality surveillance"]
["QSR",null,null,null,null,null,"quality surveillance representative"]
["QSTAG",null,null,null,null,null,"quadripartite standardization agreement"]
["QTY",null,null,null,null,null,"quantity"]
["QUADCON",null,null,null,null,null,"quadruple container"]
["QVI",null,null,null,null,null,"Quality Verification Inspections"]
["R",null,null,null,null,null,"routine"]
["R&D",null,null,null,null,null,"research and development"]
["R&M",null,null,null,null,null,"Reliability and Maintainability"]
["R&R",null,null,null,null,null,"rest and recuperation;Repair and Reclamation"]
["R&S",null,null,null,null,null,"reconnaissance and surveillance; reconstruction and stabilization"]
["R-AFF",null,null,null,null,null,"regimental affiliation"]
["R-day",null,null,null,null,null,"redeployment day"]
["R/O",null,null,null,null,null,"receive only"]
["R/T",null,null,null,null,null,"receiver/transmitter"]
["R2P2",null,null,null,null,null,"rapid response planning process"]
["RA",null,null,null,null,null,"response action; risk analysis; risk assessment"]
["RAA",null,null,null,null,null,"redeployment assembly area"]
["RABFAC",null,null,null,null,null,"radar beacon forward air controller"]
["RAC",null,null,null,null,null,"responsible analytic center"]
["RAC-OT",null,null,null,null,null,"readiness assessment system - output tool"]
["RAD",null,null,null,null,null,"routine aerial distribution"]
["RADAY",null,null,null,null,null,"radio day"]
["RADBN",null,null,null,null,null,"radio battalion"]
["RADC",null,null,null,null,null,"regional air defense commander"]
["RADCON",null,null,null,null,null,"radiological control team"]
["RADF",null,null,null,null,null,"radarfind"]
["RADHAZ",null,null,null,null,null,"electromagnetic radiation hazards"]
["RADS",null,null,null,null,null,"rapid area distribution support (USAF)"]
["RAE",null,null,null,null,null,"right of assistance entry"]
["RAF",null,null,null,null,null,"Royal Air Force (UK)"]
["RAM",null,null,null,null,null,"raised angle marker; random access memory; random antiterrorism measure;Radar Absorbent Material"]
["RAMCC",null,null,null,null,null,"regional air movement control center"]
["RAMPOD",null,null,null,null,null,"Reliability, Availability, Maintainability for Pods"]
["RAOB",null,null,null,null,null,"rawindsonde observation"]
["RAOC",null,null,null,null,null,"rear area operations center; regional air operations center"]
["RAP",null,null,null,null,null,"Radiological Assistance Program (DOE); rear area protection; Remedial Action Projects Program (JCS);Rack, Adapter, Pylons"]
["RAS",null,null,null,null,null,"replenishment at sea"]
["RAS-OT",null,null,null,null,null,"readiness assessment system-output tool"]
["RASCAL",null,null,null,null,null,"Rapid Assistance Support for Calibrations"]
["RAST",null,null,null,null,null,"recovery assistance, securing, and traversing systems"]
["RASU",null,null,null,null,null,"random access storage unit"]
["RATE",null,null,null,null,null,"refine, adapt, terminate, execute"]
["RATT",null,null,null,null,null,"radio teletype"]
["RB",null,null,null,null,null,"short-range coastal or river boat"]
["RB std",null,null,null,null,null,"rubidium standard"]
["RBA",null,null,null,null,null,"reimbursable budget authority"]
["RBC",null,null,null,null,null,"red blood cell"]
["RBE",null,null,null,null,null,"remain-behind equipment"]
["RBECS",null,null,null,null,null,"Revised Battlefield Electronic Communications, Electronics, Intelligence, and Operations (CEIO) System"]
["RBI",null,null,null,null,null,"RED/BLACK Isolator"]
["RC",null,null,null,null,null,"receive clock; regional coordinator; Reserve Component; resident coordinator (UN); river current"]
["RC NORTH",null,null,null,null,null,"Regional Command North (NATO)"]
["RC SOUTH",null,null,null,null,null,"Regional Command South (NATO)"]
["RCA",null,null,null,null,null,"riot control agent"]
["RCAT",null,null,null,null,null,"regional counterdrug analysis team"]
["RCC",null,null,null,null,null,"regional contracting center; relocation coordination center; rescue coordination center"]
["RCCPDS",null,null,null,null,null,"Reserve Component common personnel data system"]
["RCD",null,null,null,null,null,"regional collection detachment"]
["RCEM",null,null,null,null,null,"regional contingency engineering management"]
["RCHB",null,null,null,null,null,"reserve cargo handling battalion"]
["RCIED",null,null,null,null,null,"radio-controlled improvised explosive device"]
["RCM",null,null,null,null,null,"Rules for Courts-Martial; Reliability Centered Maintenance"]
["RCMP",null,null,null,null,null,"Royal Canadian Mounted Police"]
["RCO",null,null,null,null,null,"regional contracting office"]
["RCP",null,null,null,null,null,"resynchronization control panel"]
["RCS",null,null,null,null,null,"radar cross section"]
["RCSP",null,null,null,null,null,"remote call service position"]
["RCT",null,null,null,null,null,"regimental combat team; rescue coordination team (Navy); Repair Cycle Time"]
["RCTA",null,null,null,null,null,"Regional Counterdrug Training Academy"]
["RCU",null,null,null,null,null,"rate changes unit; remote control unit"]
["RCVR",null,null,null,null,null,"receiver"]
["RD",null,null,null,null,null,"receive data; ringdown"]
["RDA",null,null,null,null,null,"research, development, and acquisition"]
["RDCFP",null,null,null,null,null,"Regional Defense Counterterrorism Fellowship Program"]
["RDCTFP",null,null,null,null,null,"Regional Defense Combating Terrorism Fellowship Program"]
["RDD",null,null,null,null,null,"radiological dispersal device; required delivery date"]
["RDECOM",null,null,null,null,null,"US Army Research, Development, and Engineering Command"]
["RDF",null,null,null,null,null,"radio direction finder; rapid deployment force"]
["RDM",null,null,null,null,null,"Requirements Determination Module"]
["RDO",null,null,null,null,null,"request for deployment order"]
["RDT&E",null,null,null,null,null,"research, development, test and evaluation"]
["REA",null,null,null,null,null,"Request for an Equitable Adjustment"]
["REAC/TS",null,null,null,null,null,"radiation emergency assistance center/training site (DOE)"]
["REACT",null,null,null,null,null,"rapid execution and combat targeting"]
["READY",null,null,null,null,null,"resource augmentation duty program"]
["RECA",null,null,null,null,null,"Residual Capability Assessment"]
["RECAS",null,null,null,null,null,"residual capability assessment system"]
["RECAT",null,null,null,null,null,"residual capability assessment team"]
["RECCE",null,null,null,null,null,"reconnaissance"]
["RECMOB",null,null,null,null,null,"reconstitution-mobilization"]
["RECON",null,null,null,null,null,"reconnaissance"]
["RED",null,null,null,null,null,"radiological exposure device"]
["RED HORSE",null,null,null,null,null,"Rapid Engineer Deployable Heavy Operational Repair Squadron Engineer"]
["REF",null,null,null,null,null,"Rapid Equipping Force (Army); reference(s)"]
["RegAF",null,null,null,null,null,"Regular Air Force"]
["REGT",null,null,null,null,null,"regiment"]
["REL",null,null,null,null,null,"relative"]
["RELCAN",null,null,null,null,null,"releasable to Canada"]
["REMIS",null,null,null,null,null,"Reliability and Maintainability Information System"]
["REMT",null,null,null,null,null,"regional emergency management team"]
["REMUS",null,null,null,null,null,"remote environmental monitoring unit system"]
["REPOL",null,null,null,null,null,"bulk petroleum contingency report; petroleum damage and deficiency report; reporting emergency petroleum, oils, and lubricants"]
["REPSHIP",null,null,null,null,null,"report of shipment"]
["REPUNIT",null,null,null,null,null,"reporting unit"]
["REQCONF",null,null,null,null,null,"request confirmation"]
["REQSTATASK",null,null,null,null,null,"air mission request status tasking"]
["RES",null,null,null,null,null,"radiation exposure status"]
["RESA",null,null,null,null,null,"research, evaluation, and system analysis"]
["RESCAP",null,null,null,null,null,"rescue combat air patrol"]
["RESCORT",null,null,null,null,null,"rescue escort"]
["RESPROD",null,null,null,null,null,"responsible production"]
["RET",null,null,null,null,null,"retired"]
["RF",null,null,null,null,null,"radio frequency; reserve force; response force"]
["RF/EMPINT",null,null,null,null,null,"radio frequency/electromagnetic pulse intelligence"]
["RFA",null,null,null,null,null,"radio frequency authorization; request for assistance; restrictive fire area"]
["RFC",null,null,null,null,null,"request for capabilities; response force commander; revision final coordination"]
["RFD",null,null,null,null,null,"revision first draft"]
["RFF",null,null,null,null,null,"request for feedback; request for forces"]
["RFI",null,null,null,null,null,"radio frequency interference; ready for issue; request for information"]
["RFID",null,null,null,null,null,"radio frequency identification"]
["RFL",null,null,null,null,null,"restrictive fire line"]
["RFP",null,null,null,null,null,"request for proposal"]
["RFS",null,null,null,null,null,"request for service; request for support"]
["RFW",null,null,null,null,null,"request for waiver"]
["RG",null,null,null,null,null,"reconstitution group"]
["RGR",null,null,null,null,null,"Rangers"]
["RGS",null,null,null,null,null,"remote geospatial intelligence services"]
["RH",null,null,null,null,null,"reentry home"]
["Rh",null,null,null,null,null,"Rhesus"]
["RHIB",null,null,null,null,null,"rigid hull inflatable boat"]
["RI",null,null,null,null,null,"Refugees International; routing indicator"]
["RIB",null,null,null,null,null,"rubberized inflatable boat"]
["RIC",null,null,null,null,null,"routing indicator code"]
["RICO",null,null,null,null,null,"regional interface control officer"]
["RIG",null,null,null,null,null,"recognition identification group"]
["RIK",null,null,null,null,null,"replacement in kind"]
["RIL",null,null,null,null,null,"Routine Inspection List"]
["RN",null,null,null,null,null,"Repair Network"]
["RNI",null,null,null,null,null,"Repair Network Integration"]
["RNM",null,null,null,null,null,"Repair Network Manager"]
["RIMS",null,null,null,null,null,"registrant information management system"]
["RIP",null,null,null,null,null,"register of intelligence publications"]
["RIS",null,null,null,null,null,"reconnaissance information system"]
["RISOP",null,null,null,null,null,"red integrated strategic offensive plan"]
["RISTA",null,null,null,null,null,"reconnaissance, intelligence, surveillance, and target acquisition"]
["RIT",null,null,null,null,null,"remote imagery transceiver"]
["RIVRON",null,null,null,null,null,"riverine squadron"]
["RJTD",null,null,null,null,null,"reconstitution joint table of distribution"]
["RLD",null,null,null,null,null,"ready-to-load date"]
["RLE",null,null,null,null,null,"rail liaison element"]
["RLG",null,null,null,null,null,"regional liaison group; ring laser gyro"]
["RLGM",null,null,null,null,null,"remote loop group multiplexer"]
["RLGM/CD",null,null,null,null,null,"remote loop group multiplexer/cable driver"]
["RLP",null,null,null,null,null,"remote line printer"]
["RM",null,null,null,null,null,"ramp module; recovery mechanism; resource management; risk management"]
["RMC",null,null,null,null,null,"remote multiplexer combiner; rescue mission commander; Resource Management Committee (CSIF); returned to military control"]
["RMKS",null,null,null,null,null,"remarks"]
["RMO",null,null,null,null,null,"regional Marine officer"]
["RMP",null,null,null,null,null,"religious ministry professional"]
["RMS",null,null,null,null,null,"requirements management system; root-mean-square"]
["RMT",null,null,null,null,null,"response management team"]
["RMU",null,null,null,null,null,"receiver matrix unit"]
["RNAV",null,null,null,null,null,"area navigation"]
["RNP",null,null,null,null,null,"remote network processor"]
["Ro",null,null,null,null,null,"search radius rounded to next highest whole number"]
["RO/RO",null,null,null,null,null,"roll-on/roll-off"]
["ROA",null,null,null,null,null,"restricted operations area"]
["ROC",null,null,null,null,null,"regional operations center; rehearsal of concept; required operational capability"]
["ROCU",null,null,null,null,null,"remote orderwire control unit"]
["ROE",null,null,null,null,null,"rules of engagement"]
["ROEX",null,null,null,null,null,"rules of engagement exercise"]
["ROG",null,null,null,null,null,"railhead operations group"]
["ROICC",null,null,null,null,null,"resident officer in charge of construction"]
["ROK",null,null,null,null,null,"Republic of Korea"]
["ROM",null,null,null,null,null,"read-only memory; restriction of movement; rough order of magnitude"]
["ROMO",null,null,null,null,null,"range of military operations"]
["RON",null,null,null,null,null,"remain overnight"]
["ROS",null,null,null,null,null,"reduced operating status"]
["ROTC",null,null,null,null,null,"Reserve Officer Training Corps"]
["ROTHR",null,null,null,null,null,"relocatable over-the-horizon backscatter radar (USN)"]
["ROWPU",null,null,null,null,null,"reverse osmosis water purification unit"]
["ROZ",null,null,null,null,null,"restricted operations zone"]
["RP",null,null,null,null,null,"reconstitution priority; release point (road); religious program specialist; retained personnel"]
["RPA",null,null,null,null,null,"Remotely Piloted Aircraft"]
["RPG",null,null,null,null,null,"rocket propelled grenade"]
["RPM",null,null,null,null,null,"revolutions per minute"]
["RPO",null,null,null,null,null,"rendezvous and proximity operations"]
["RPOE",null,null,null,null,null,"rapid port opening element"]
["RPPO",null,null,null,null,null,"Requirements, Plans, and Policy Office"]
["RPT",null,null,null,null,null,"report"]
["RPTOR",null,null,null,null,null,"reporting organization"]
["RPV",null,null,null,null,null,"remotely piloted vehicle"]
["RQMT",null,null,null,null,null,"requirement"]
["RQT",null,null,null,null,null,"rapid query tool"]
["RR",null,null,null,null,null,"reattack recommendation"]
["RRC",null,null,null,null,null,"regional reporting center"]
["RRCC",null,null,null,null,null,"regional response coordination center"]
["RRDF",null,null,null,null,null,"roll-on/roll-off discharge facility"]
["RRF",null,null,null,null,null,"rapid reaction force; rapid response force; Ready Reserve Fleet; Ready Reserve Force"]
["RRPP",null,null,null,null,null,"rapid response planning process"]
["RS",null,null,null,null,null,"rate synthesizer; religious support; requirement submission"]
["RSA",null,null,null,null,null,"retrograde storage area"]
["RSC",null,null,null,null,null,"red station clock; regional service center; rescue sub-center"]
["RSD",null,null,null,null,null,"reporting of supply discrepancy"]
["RSE",null,null,null,null,null,"retrograde support element"]
["RSG",null,null,null,null,null,"reference signal generator"]
["RSI",null,null,null,null,null,"rationalization, standardization, and interoperability"]
["RSL",null,null,null,null,null,"received signal level"]
["RSN",null,null,null,null,null,"role specialist nation"]
["RSO",null,null,null,null,null,"reception, staging, and onward movement; regional security officer; remote split operations"]
["RSOC",null,null,null,null,null,"regional signals intelligence (SIGINT) operations center"]
["RSOI",null,null,null,null,null,"reception, staging, onward movement, and integration"]
["RSP",null,null,null,null,null,"recognized surface picture; Red Switch Project (DOD); religious support policy; Readiness Spares Package"]
["RSPA",null,null,null,null,null,"Research and Special Programs Administration"]
["RSS",null,null,null,null,null,"radio subsystem; really simple syndication; remote sensors subsystem; root-sum-squared"]
["RSSC",null,null,null,null,null,"regional satellite communications support center; regional satellite support cell; regional signals intelligence (SIGINT) support center (NSA); regional space support center"]
["RSSC-LO",null,null,null,null,null,"regional satellite communications support center liaison officer; regional space support center liaison officer"]
["RST",null,null,null,null,null,"religious support team"]
["RSTA",null,null,null,null,null,"reconnaissance, surveillance, and target acquisition"]
["RSTV",null,null,null,null,null,"real-time synthetic video"]
["RSU",null,null,null,null,null,"rapid support unit; rear support unit; remote switching unit"]
["RT",null,null,null,null,null,"recovery team; remote terminal; rough terrain"]
["RTA",null,null,null,null,null,"residual threat assessment"]
["RTB",null,null,null,null,null,"return to base"]
["RTC",null,null,null,null,null,"Regional Training Center"]
["RTCC",null,null,null,null,null,"rough terrain container crane"]
["RTCH",null,null,null,null,null,"rough terrain container handler"]
["RTD",null,null,null,null,null,"returned to duty"]
["RTF",null,null,null,null,null,"regional task force; return to force"]
["RTFL",null,null,null,null,null,"rough terrain forklift"]
["RTG",null,null,null,null,null,"radar target graphic"]
["RTHW",null,null,null,null,null,"Radar Threat Warning"]
["RTL",null,null,null,null,null,"restricted target list"]
["RTLP",null,null,null,null,null,"receiver test level point"]
["RTM",null,null,null,null,null,"real-time mode"]
["RTOC",null,null,null,null,null,"rear tactical operations center"]
["RTOK",null,null,null,null,null,"Re-Test O.K"]
["RTS",null,null,null,null,null,"remote transfer switch; Radar Test Set"]
["RTTY",null,null,null,null,null,"radio teletype"]
["RU",null,null,null,null,null,"release unit; rescue unit"]
["RUF",null,null,null,null,null,"rules for the use of force"]
["RUIC",null,null,null,null,null,"Reserve unit identification number"]
["RUSCOM",null,null,null,null,null,"rapid ultrahigh frequency (UHF) satellite communications"]
["RV",null,null,null,null,null,"long-range seagoing rescue vessel; rekeying variable; rendezvous"]
["RVR",null,null,null,null,null,"runway visibility recorder"]
["RVT",null,null,null,null,null,"remote video terminal"]
["RW",null,null,null,null,null,"rotary-wing"]
["RWCM",null,null,null,null,null,"regional wartime construction manager"]
["RWR",null,null,null,null,null,"radar warning receiver"]
["RWS",null,null,null,null,null,"rawinsonde subsystem"]
["RX",null,null,null,null,null,"receive; receiver"]
["RZ",null,null,null,null,null,"recovery zone; return-to-zero"]
["S&F",null,null,null,null,null,"store-and-forward"]
["S&R",null,null,null,null,null,"search and recovery"]
["S&T",null,null,null,null,null,"science and technology; scientific and technical"]
["S&TI",null,null,null,null,null,"scientific and technical intelligence"]
["S-1",null,null,null,null,null,"battalion or brigade manpower and personnel staff officer (Marine Corps battalion or regiment)"]
["S-2",null,null,null,null,null,"battalion or brigade intelligence staff officer (Army, Marine Corps battalion or regiment)"]
["S-3",null,null,null,null,null,"battalion or brigade operations staff officer (Army; Marine Corps battalion or regiment)"]
["S-4",null,null,null,null,null,"battalion or brigade logistics staff officer (Army; Marine Corps battalion or regiment)"]
["S-day",null,null,null,null,null,"day the President authorizes selective reserve call-up"]
["S-Team",null,null,null,null,null,"staff augmentation team"]
["S/CRS",null,null,null,null,null,"Office of the Coordinator for Reconstruction and Stabilization (DOS)"]
["S/CT",null,null,null,null,null,"Office of the Coordinator for Counterterrorism (DOS)"]
["S/EWCC",null,null,null,null,null,"signals intelligence/electronic warfare coordination center"]
["S/N",null,null,null,null,null,"signal to noise"]
["S/RM",null,null,null,null,null,"sustainment, restoration, and modernization"]
["S/RTF",null,null,null,null,null,"search and recovery task force"]
["S/S",null,null,null,null,null,"steamship"]
["S/T",null,null,null,null,null,"short ton"]
["S/V",null,null,null,null,null,"sailboat"]
["SA",null,null,null,null,null,"security assistance; selective availability (GPS); senior adviser; situational awareness; staging area; stand-alone switch;Support Agreement"]
["SAA",null,null,null,null,null,"senior airfield authority"]
["SAAFR",null,null,null,null,null,"standard use Army aircraft flight route"]
["SAAM",null,null,null,null,null,"special assignment airlift mission"]
["SAB",null,null,null,null,null,"scientific advisory board (USAF)"]
["SABER",null,null,null,null,null,"situational awareness beacon with reply"]
["SAC",null,null,null,null,null,"special actions cell; special agent in charge; supporting arms coordinator"]
["SACC",null,null,null,null,null,"supporting arms coordination center"]
["SACEUR",null,null,null,null,null,"Supreme Allied Commander, Europe (NATO)"]
["SACLANT",null,null,null,null,null,"Supreme Allied Command, Atlantic"]
["SACS",null,null,null,null,null,"secure telephone unit (STU) access control system"]
["SACT",null,null,null,null,null,"Supreme Allied Commander Transformation"]
["SADC",null,null,null,null,null,"sector air defense commander"]
["SADL",null,null,null,null,null,"situation awareness data link"]
["SADO",null,null,null,null,null,"senior air defense officer"]
["SAE",null,null,null,null,null,"Semi-Annual Evaluations"]
["SAF",null,null,null,null,null,"Secretary of the Air Force"]
["SAFE",null,null,null,null,null,"secure analyst file environment; selected area for evasion; sexual assault forensic examination"]
["SAFE-CP",null,null,null,null,null,"selected area for evasion-contact point"]
["SAFWIN",null,null,null,null,null,"secure Air Force weather information network"]
["SAG",null,null,null,null,null,"surface action group"]
["SAI",null,null,null,null,null,"sea-to-air interface; single agency item"]
["SAL",null,null,null,null,null,"small arms locker"]
["SAL-GP",null,null,null,null,null,"semiactive laser-guided projectile (USN)"]
["SALM",null,null,null,null,null,"single-anchor leg mooring"]
["SALT",null,null,null,null,null,"supporting arms liaison team"]
["SALTS",null,null,null,null,null,"streamlined automated logistics transfer system; streamlined automated logistics transmission system"]
["SALUTE",null,null,null,null,null,"size, activity, location, unit, time, and equipment"]
["SAM",null,null,null,null,null,"special airlift mission; surface-to-air missile"]
["SAMM",null,null,null,null,null,"security assistance management manual"]
["SAMS",null,null,null,null,null,"School of Advanced Military Studies"]
["SAO",null,null,null,null,null,"security assistance office; security assistance officer; selected attack option"]
["SAOC",null,null,null,null,null,"sector air operations center"]
["SAP",null,null,null,null,null,"special access program"]
["SAPI",null,null,null,null,null,"special access program for intelligence"]
["SAPO",null,null,null,null,null,"subarea petroleum office"]
["SAPR",null,null,null,null,null,"sexual assault prevention and response"]
["SAR",null,null,null,null,null,"satellite access request; search and rescue; site access request; special access requirement; suspicious activity report; synthetic aperture radar"]
["SARC",null,null,null,null,null,"sexual assault response coordinator; surveillance and reconnaissance center"]
["SARDOT",null,null,null,null,null,"search and rescue point"]
["SARIR",null,null,null,null,null,"search and rescue incident report"]
["SARMIS",null,null,null,null,null,"search and rescue management information system"]
["SARNEG",null,null,null,null,null,"search and rescue numerical encryption group"]
["SAROPS",null,null,null,null,null,"Search and Rescue Optimal Planning System"]
["SARREQ",null,null,null,null,null,"search and rescue request"]
["SARSAT",null,null,null,null,null,"search and rescue satellite-aided tracking"]
["SARSIT",null,null,null,null,null,"search and rescue situation summary report"]
["SARTEL",null,null,null,null,null,"search and rescue (SAR) telephone (private hotline)"]
["SARTF",null,null,null,null,null,"search and rescue task force"]
["SAS",null,null,null,null,null,"sealed authenticator system; special ammunition storage;Stability Augmentation Systems"]
["SASP",null,null,null,null,null,"special ammunition supply point"]
["SASS",null,null,null,null,null,"supporting arms special staff"]
["SASSY",null,null,null,null,null,"supported activities supply systems"]
["SAT",null,null,null,null,null,"satellite"]
["SATCOM",null,null,null,null,null,"satellite communications"]
["SAV",null,null,null,null,null,"Staff Assistance Visit"]
["SAW",null,null,null,null,null,"surface acoustic wave"]
["SB",null,null,null,null,null,"standby base; Service Bulletins"]
["SBCT",null,null,null,null,null,"Stryker brigade combat team"]
["SBL",null,null,null,null,null,"space-based laser"]
["SBPO",null,null,null,null,null,"Service blood program officer"]
["SBR",null,null,null,null,null,"special boat squadron"]
["SBRPT",null,null,null,null,null,"subordinate reporting organization"]
["SBS",null,null,null,null,null,"senior battle staff; support battle staff"]
["SBSO",null,null,null,null,null,"sustainment brigade special operations"]
["SBSS",null,null,null,null,null,"science-based stockpile stewardship; Standard Base Supply System"]
["SBT",null,null,null,null,null,"special boat team"]
["SBU",null,null,null,null,null,"sensitive but unclassified; special boat unit"]
["SC",null,null,null,null,null,"sea current; search and rescue coordinator; security cooperation; station clock; strategic communication"]
["SC ATLANTIC",null,null,null,null,null,"Strategic Command, Atlantic (NATO)"]
["SC EUROPE",null,null,null,null,null,"Strategic Command, Europe (NATO)"]
["SCA",null,null,null,null,null,"sociocultural analysis; space coordinating authority; support to civil administration"]
["SCAR",null,null,null,null,null,"strike coordination and reconnaissance"]
["SCAS",null,null,null,null,null,"stability control augment system"]
["SCATANA",null,null,null,null,null,"security control of air traffic and navigation aids"]
["SCATMINE",null,null,null,null,null,"scatterable mine"]
["SCATMINEWARN",null,null,null,null,null,"scatterable minefield warning"]
["SCC",null,null,null,null,null,"security classification code; service cryptologic component; shipping coordination center; Standards Coordinating Committee"]
["SCC-WMD",null,null,null,null,null,"United States Strategic Command Center for Combating Weapons of Mass Destruction"]
["SCDL",null,null,null,null,null,"surveillance control data link"]
["SCE",null,null,null,null,null,"Service cryptologic element"]
["SCF(UK)",null,null,null,null,null,"Save the Children Fund (United Kingdom)"]
["SCF(US)",null,null,null,null,null,"Save the Children Federation (United States)"]
["SCG",null,null,null,null,null,"Security Cooperation Guidance; switching controller group"]
["SCHBT",null,null,null,null,null,"shape, clear, hold, build, and transition"]
["SCI",null,null,null,null,null,"security and counterintelligence interviews; sensitive compartmented information"]
["SCIF",null,null,null,null,null,"sensitive compartmented information facility"]
["SCL",null,null,null,null,null,"standard conventional load"]
["SCM",null,null,null,null,null,"security countermeasure; Service container manager"]
["SCMP",null,null,null,null,null,"strategic command, control, and communications (C3) master plan"]
["SCNE",null,null,null,null,null,"self-contained navigation equipment"]
["SCO",null,null,null,null,null,"secondary control officer; security cooperation organization; senior contracting official; state coordinating officer"]
["SCOC",null,null,null,null,null,"systems control and operations concept"]
["SCONUM",null,null,null,null,null,"ship control number"]
["SCP",null,null,null,null,null,"secure conferencing project; security cooperation plan; service control point; system change proposal"]
["SCPT",null,null,null,null,null,"strategic connectivity performance test"]
["SCR ",null,null,null,null,null,"Special Certification Roster"]
["SCRB",null,null,null,null,null,"software configuration review board"]
["SCT",null,null,null,null,null,"shipping coordination team; single channel transponder"]
["SCT-UR",null,null,null,null,null,"single channel transponder ultrahigh frequency (UHF) receiver"]
["SCTIS",null,null,null,null,null,"single channel transponder injection system"]
["SCTS",null,null,null,null,null,"single channel transponder system"]
["SCUD",null,null,null,null,null,"surface-to-surface missile system"]
["SD",null,null,null,null,null,"strategy division"]
["SDA",null,null,null,null,null,"senior development advisor; Seventh-Day Adventist (ADRA)"]
["SDAP",null,null,null,null,null,"Special Duty Assignment Pay"]
["SDB",null,null,null,null,null,"Satellite Communications Database"]
["SDDC",null,null,null,null,null,"Surface Deployment and Distribution Command"]
["SDDCTEA",null,null,null,null,null,"Surface Deployment and Distribution Command Transportation Engineering Agency"]
["SDF",null,null,null,null,null,"self defense force"]
["SDIO",null,null,null,null,null,"Strategic Defense Initiative Organization"]
["SDLS",null,null,null,null,null,"satellite data link standards"]
["SDMX",null,null,null,null,null,"space division matrix"]
["SDN",null,null,null,null,null,"system development notification"]
["SDNRIU",null,null,null,null,null,"secure digital net radio interface unit"]
["SDO",null,null,null,null,null,"senior defense official; ship's debarkation officer"]
["SDO/DATT",null,null,null,null,null,"senior defense official/defense attaché"]
["SDP",null,null,null,null,null,"strategic distribution platform"]
["SDR",null,null,null,null,null,"system design review"]
["SDSG",null,null,null,null,null,"space division switching group"]
["SDSM",null,null,null,null,null,"space division switching matrix"]
["SDV",null,null,null,null,null,"SEAL team delivery vehicle; submerged delivery vehicle"]
["SDZ",null,null,null,null,null,"self-defense zone"]
["SE",null,null,null,null,null,"site exploitation; spherical error; Support Equipment"]
["SEA",null,null,null,null,null,"Southeast Asia"]
["SEABEE",null,null,null,null,null,"sea barge"]
["Seabee",null,null,null,null,null,"Navy construction engineer"]
["SEAD",null,null,null,null,null,"suppression of enemy air defenses"]
["SEC",null,null,null,null,null,"submarine element coordinator"]
["SECAF",null,null,null,null,null,"Secretary of the Air Force"]
["SECARMY",null,null,null,null,null,"Secretary of the Army"]
["SecDef",null,null,null,null,null,"Secretary of Defense"]
["SECDHS",null,null,null,null,null,"Secretary of the Department of Homeland Security"]
["SECHS",null,null,null,null,null,"Secretary of Homeland Security"]
["SECNAV",null,null,null,null,null,"Secretary of the Navy"]
["SECNAVINST",null,null,null,null,null,"Secretary of the Navy instruction"]
["SECOMP",null,null,null,null,null,"secure en route communications package"]
["SECORD",null,null,null,null,null,"secure cord switchboard"]
["SECRA",null,null,null,null,null,"secondary radar data only"]
["SECSTATE",null,null,null,null,null,"Secretary of State"]
["SECTRANS",null,null,null,null,null,"Secretary of Transportation"]
["SED",null,null,null,null,null,"signals external data"]
["SEDAS",null,null,null,null,null,"spurious emission detection acquisition system"]
["SEF",null,null,null,null,null,"sealift enhancement feature"]
["SEI",null,null,null,null,null,"specific emitter identification; Special Experience Identifier"]
["SEL",null,null,null,null,null,"senior enlisted leader"]
["SEL REL",null,null,null,null,null,"selective release"]
["SELRES",null,null,null,null,null,"Selected Reserve"]
["SEMA",null,null,null,null,null,"special electronic mission aircraft"]
["SEMS",null,null,null,null,null,"standard embarkation management system"]
["SEO/SEP",null,null,null,null,null,"special enforcement operation/special enforcement program"]
["SEP",null,null,null,null,null,"signal entrance panel; spherical error probable"]
["SEPLO",null,null,null,null,null,"state emergency preparedness liaison officer"]
["SERE",null,null,null,null,null,"survival, evasion, resistance, and escape"]
["SERER",null,null,null,null,null,"survival, evasion, resistance, escape, recovery"]
["SES",null,null,null,null,null,"senior executive service"]
["SETA",null,null,null,null,null,"system engineering and technical assistance"]
["SEW",null,null,null,null,null,"shared early warning"]
["SEWG",null,null,null,null,null,"Special Events Working Group"]
["SEWOC",null,null,null,null,null,"signals intelligence/electronic warfare operations centre (NATO)"]
["SEWS",null,null,null,null,null,"satellite early warning system"]
["SF",null,null,null,null,null,"security force; security forces (Air Force or Navy); single frequency; special forces; standard form"]
["SFA",null,null,null,null,null,"security force assistance"]
["SFAF",null,null,null,null,null,"standard frequency action format"]
["SFAT",null,null,null,null,null,"spectrum flyaway team"]
["SFC",null,null,null,null,null,"single-fuel concept"]
["SFCP",null,null,null,null,null,"shore fire control party"]
["SFG",null,null,null,null,null,"security forces group; special forces group"]
["SFI",null,null,null,null,null,"spectral composition"]
["SFLEO",null,null,null,null,null,"senior federal law enforcement official"]
["SFMS",null,null,null,null,null,"special forces medical sergeant"]
["SFOD-A/B/C",null,null,null,null,null,"special forces operational detachment-A/B/C"]
["SFOR",null,null,null,null,null,"Stabilization Force"]
["SFS",null,null,null,null,null,"security forces squadron"]
["SG",null,null,null,null,null,"steering group; strike group; supergroup; surgeon general"]
["SGEMP",null,null,null,null,null,"system-generated electromagnetic pulse"]
["SGNSC",null,null,null,null,null,"Self Generating Nitrogen Servicing Cart"]
["SGS",null,null,null,null,null,"strategic guidance statement"]
["SGSA",null,null,null,null,null,"squadron group systems advisor"]
["SGXM",null,null,null,null,null,"Headquarters, Air Mobility Command/Surgeon"]
["SHAPE",null,null,null,null,null,"Supreme Headquarters Allied Powers, Europe"]
["SHD",null,null,null,null,null,"special handling designator"]
["SHF",null,null,null,null,null,"super-high frequency"]
["SHORAD",null,null,null,null,null,"short-range air defense"]
["SHORADEZ",null,null,null,null,null,"short-range air defense engagement zone"]
["SI",null,null,null,null,null,"special intelligence; United States Strategic Command strategic instruction; Special Inspection"]
["SIA",null,null,null,null,null,"station of initial assignment"]
["SIAGL",null,null,null,null,null,"survey instrument azimuth gyroscope lightweight"]
["SIC",null,null,null,null,null,"subject identification code; supporting intelligence center"]
["SICO",null,null,null,null,null,"sector interface control officer"]
["SID",null,null,null,null,null,"standard instrument departure"]
["SIDAC",null,null,null,null,null,"single integrated damage analysis capability"]
["SIDL",null,null,null,null,null,"standard intelligence documents list"]
["SIDO",null,null,null,null,null,"senior intelligence duty officer"]
["SIDS",null,null,null,null,null,"secondary imagery dissemination system"]
["SIF",null,null,null,null,null,"selective identification feature; strategic internment facility"]
["SIG",null,null,null,null,null,"signal"]
["SIGINT",null,null,null,null,null,"signals intelligence"]
["SIGSEC",null,null,null,null,null,"signal security"]
["SII",null,null,null,null,null,"statement of intelligence interest"]
["SIM",null,null,null,null,null,"system impact message"]
["SIMLM",null,null,null,null,null,"single integrated medical logistics management; single integrated medical logistics manager"]
["SINCGARS",null,null,null,null,null,"single-channel ground and airborne radio system"]
["SINS",null,null,null,null,null,"ship's inertial navigation system"]
["SIO",null,null,null,null,null,"senior intelligence officer"]
["SIOC",null,null,null,null,null,"Strategic Information and Operations Center (FBI)"]
["SIOP",null,null,null,null,null,"Single Integrated Operational Plan"]
["SIOP-ESI",null,null,null,null,null,"Single Integrated Operational Plan-Extremely Sensitive Information"]
["SIPRNET",null,null,null,null,null,"Secret Internet Protocol Router Network"]
["SIR",null,null,null,null,null,"serious incident report; specific information requirement; Strategic Military Intelligence Review"]
["SIRADS",null,null,null,null,null,"stored imagery repository and dissemination system"]
["SIRMO",null,null,null,null,null,"senior information resources management official"]
["SIS",null,null,null,null,null,"special information systems"]
["SIT",null,null,null,null,null,"special interest target; System Interface Test"]
["SITREP",null,null,null,null,null,"situation report"]
["SIV",null,null,null,null,null,"special interest vessel"]
["SJA",null,null,null,null,null,"staff judge advocate"]
["SJFHQ",null,null,null,null,null,"standing joint force headquarters"]
["SJFHQ(CE)",null,null,null,null,null,"standing joint force headquarters (core element)"]
["SJFHQ-E",null,null,null,null,null,"standing joint force headquarters - elimination"]
["SJFHQ-N",null,null,null,null,null,"Standing Joint Force Headquarters - North"]
["SJS",null,null,null,null,null,"Secretary, Joint Staff"]
["SKE",null,null,null,null,null,"station-keeping equipment"]
["SL",null,null,null,null,null,"sea level; switch locator"]
["SLA",null,null,null,null,null,"service level agreement; special leave accrual"]
["SLAM",null,null,null,null,null,"stand-off land attack missile"]
["SLBM",null,null,null,null,null,"submarine-launched ballistic missile"]
["SLC",null,null,null,null,null,"satellite laser communications; single line concept"]
["SLCM",null,null,null,null,null,"sea-launched cruise missile"]
["SLCP",null,null,null,null,null,"ship lighterage control point; ship's loading characteristics pamphlet"]
["SLD",null,null,null,null,null,"system link designator"]
["SLEP",null,null,null,null,null,"service life extension program"]
["SLGR",null,null,null,null,null,"small, lightweight ground receiver (GPS)"]
["SLIT",null,null,null,null,null,"serial-lot item tracking"]
["SLO",null,null,null,null,null,"space liaison officer"]
["SLOC",null,null,null,null,null,"sea line of communications"]
["SLP",null,null,null,null,null,"seaward launch point"]
["SLRP",null,null,null,null,null,"survey, liaison, and reconnaissance party"]
["SLWT",null,null,null,null,null,"side loadable warping tug"]
["SM",null,null,null,null,null,"Secretary, Joint Staff, memorandum; Service manager; spectrum management; staff memorandum; system manager; Single Manager / Support Munitions"]
["SMA",null,null,null,null,null,"special military information support operations assessment"]
["SMART",null,null,null,null,null,"special medical augmentation response team"]
["SMART-AIT",null,null,null,null,null,"special medical augmentation response - aeromedical isolation team"]
["SMAW",null,null,null,null,null,"Shielded Metal Arc Welding"]
["SMB",null,null,null,null,null,"spectrum management branch"]
["SMC",null,null,null,null,null,"midpoint compromise track spacing; search and rescue mission coordinator; system master catalog"]
["SMCA",null,null,null,null,null,"single manager for conventional ammunition"]
["SMCC",null,null,null,null,null,"strategic mobile command center"]
["SMCM",null,null,null,null,null,"surface mine countermeasures"]
["SMCOO",null,null,null,null,null,"spectrum management concept of operations"]
["SMCR",null,null,null,null,null,"Selected Marine Corps Reserve"]
["SMD",null,null,null,null,null,"strategic missile defense"]
["SMDC",null,null,null,null,null,"Space & Missile Defense Command (Army)"]
["SMDC/ARSTRAT",null,null,null,null,null,"United States Army Space and Missile Defense Command/United States Army Forces Strategic Command"]
["SME",null,null,null,null,null,"subject matter expert"]
["SMEB",null,null,null,null,null,"significant military exercise brief"]
["SMEO",null,null,null,null,null,"small end office"]
["SMFT",null,null,null,null,null,"semi-trailer mounted fabric tank"]
["SMI",null,null,null,null,null,"security management infrastructure"]
["SMIO",null,null,null,null,null,"search and rescue (SAR) mission information officer"]
["SMO",null,null,null,null,null,"senior meteorological and oceanographic officer; strategic mobility office(r); support to military operations"]
["SMP",null,null,null,null,null,"sub-motor pool"]
["SMPT",null,null,null,null,null,"School of Military Packaging Technology"]
["SMR",null,null,null,null,null,"Source of Maintenance and Recoverability"]
["SMRC",null,null,null,null,null,"Specialized Medical Response Capabilities"]
["SMRI",null,null,null,null,null,"service message routing indicator"]
["SMS",null,null,null,null,null,"single mobility system; special military information support operations study"]
["SMTP",null,null,null,null,null,"simple message transfer protocol"]
["SMU",null,null,null,null,null,"special mission unit; supported activities supply system (SASSY) management unit"]
["SN",null,null,null,null,null,"serial number"]
["SNCO",null,null,null,null,null,"staff noncommissioned officer; Senior Non-Commissioned Officer"]
["SNF",null,null,null,null,null,"strategic nuclear forces"]
["SNIE",null,null,null,null,null,"special national intelligence estimates"]
["SNLC",null,null,null,null,null,"Senior North Atlantic Treaty Organization (NATO) Logisticians Conference"]
["SNM",null,null,null,null,null,"system notification message"]
["SNOI",null,null,null,null,null,"signal not of interest"]
["SO",null,null,null,null,null,"safety observer; special operations"]
["SO-peculiar",null,null,null,null,null,"special operations-peculiar"]
["SOA",null,null,null,null,null,"separate operating agency; special operations aviation (Army); status of action; sustained operations ashore"]
["SOAF",null,null,null,null,null,"status of action file"]
["SOAGS",null,null,null,null,null,"special operations air-ground system"]
["SOC",null,null,null,null,null,"security operations center; special operations commander; special operations component"]
["SOCA",null,null,null,null,null,"special operations communications assembly"]
["SOCC",null,null,null,null,null,"Sector Operations Control Center (NORAD)"]
["SOCCE",null,null,null,null,null,"special operations command and control element"]
["SOCCENT",null,null,null,null,null,"Special Operations Component, United States Central Command"]
["SOCCET",null,null,null,null,null,"special operations critical care evacuation team"]
["SOCCT",null,null,null,null,null,"special operations combat control team"]
["SOCEUR",null,null,null,null,null,"Special Operations Component, United States European Command"]
["SOCEX",null,null,null,null,null,"special operations capable exercise"]
["SOCJFCOM",null,null,null,null,null,"Special Operations Command, Joint Forces Command"]
["SOCM",null,null,null,null,null,"special operations combat medic"]
["SOCOORD",null,null,null,null,null,"special operations coordination element"]
["SOCP",null,null,null,null,null,"special operations communication package"]
["SOCPAC",null,null,null,null,null,"Special Operations Command, Pacific"]
["SOCRATES",null,null,null,null,null,"Special Operations Command, Research, Analysis, and Threat Evaluation System"]
["SOCSOUTH",null,null,null,null,null,"Special Operations Component, United States Southern Command"]
["SOD",null,null,null,null,null,"special operations division; strategy and options decision (Planning, Programming, and Budgeting System)"]
["SODARS",null,null,null,null,null,"special operations debrief and retrieval system"]
["SOE",null,null,null,null,null,"special operations executive"]
["SOF",null,null,null,null,null,"special operations forces; supervisor of flying"]
["SOFA",null,null,null,null,null,"status-of-forces agreement"]
["SOFAR",null,null,null,null,null,"sound fixing and ranging"]
["SOFLAM",null,null,null,null,null,"special operations laser marker"]
["SOFME",null,null,null,null,null,"special operations forces medical element"]
["SOFSA",null,null,null,null,null,"special operations forces support activity"]
["SOG",null,null,null,null,null,"special operations group"]
["SOI",null,null,null,null,null,"signal of interest; signal operating instructions; space object identification"]
["SOIC",null,null,null,null,null,"senior officer of the intelligence community"]
["SOJTF",null,null,null,null,null,"special operations joint task force"]
["SOLAS",null,null,null,null,null,"safety of life at sea"]
["SOLE",null,null,null,null,null,"special operations liaison element"]
["SOLIS",null,null,null,null,null,"signals intelligence (SIGINT) On-line Information System"]
["SOLL",null,null,null,null,null,"special operations low-level"]
["SOM",null,null,null,null,null,"satellite communications (SATCOM) operational manager; start of message; system operational manager"]
["SOMA",null,null,null,null,null,"status of mission agreement"]
["SOMARDS",null,null,null,null,null,"Standard Operation and Maintenance Army Research and Development System"]
["SOMARDS NT",null,null,null,null,null,"Standard Operation and Maintenance Army Research and Development System Non-Technical"]
["SOMPF",null,null,null,null,null,"special operations mission planning folder"]
["SONMET",null,null,null,null,null,"special operations naval mobile environment team"]
["SoO",null,null,null,null,null,"ship of opportunity"]
["SOOP",null,null,null,null,null,"Center for Operations, Plans, and Policy"]
["SOP",null,null,null,null,null,"standard operating procedure"]
["SOR",null,null,null,null,null,"statement of requirement"]
["SORTIEALOT",null,null,null,null,null,"sortie allotment message"]
["SORTS",null,null,null,null,null,"Status of Resources and Training System"]
["SOS",null,null,null,null,null,"special operations squadron"]
["SOSB",null,null,null,null,null,"special operations support battalion"]
["SOSC",null,null,null,null,null,"special operations support command (theater army)"]
["SOSCOM",null,null,null,null,null,"special operations support command"]
["SOSE",null,null,null,null,null,"special operations staff element"]
["SOSG",null,null,null,null,null,"station operations support group"]
["SOSR",null,null,null,null,null,"suppress, obscure, secure, and reduce"]
["SOST",null,null,null,null,null,"special operations support team"]
["SOT",null,null,null,null,null,"Status of Resources and Training System"]
["SOTA",null,null,null,null,null,"signals intelligence operational tasking authority"]
["SOTF",null,null,null,null,null,"special operations task force"]
["SOTSE",null,null,null,null,null,"special operations theater support element"]
["SOUTHAF",null,null,null,null,null,"Southern Command Air Forces"]
["SOUTHROC",null,null,null,null,null,"Southern Region Operational Center (USSOUTHCOM)"]
["SOW",null,null,null,null,null,"special operations wing; standoff weapon; statement of work"]
["SOWT",null,null,null,null,null,"special operations weather team"]
["SP",null,null,null,null,null,"security police"]
["SPACEAF",null,null,null,null,null,"Space Air Forces"]
["SPACECON",null,null,null,null,null,"control of space information"]
["SPCC",null,null,null,null,null,"ships parts control center (USN)"]
["SPD",null,null,null,null,null,"System Program Director"]
["SPEAR",null,null,null,null,null,"strike protection evaluation and antiair research"]
["SPEC",null,null,null,null,null,"specified"]
["SPECAT",null,null,null,null,null,"special category"]
["SPECWAR",null,null,null,null,null,"special warfare"]
["SPG",null,null,null,null,null,"Strategic Planning Guidance"]
["SPI",null,null,null,null,null,"special investigative (USAF)"]
["SPINS",null,null,null,null,null,"special instructions"]
["SPINTCOMM",null,null,null,null,null,"special intelligence communications handling system"]
["SPIREP",null,null,null,null,null,"spot intelligence report"]
["SPLX",null,null,null,null,null,"simplex"]
["SPM",null,null,null,null,null,"service postal manager; single point mooring; single port manager; System Program Manager"]
["SPMAGTF",null,null,null,null,null,"special purpose Marine air-ground task force"]
["SPO",null,null,null,null,null,"system program office"]
["SPOC",null,null,null,null,null,"search and rescue (SAR) points of contact; space command operations center"]
["SPOD",null,null,null,null,null,"seaport of debarkation"]
["SPOE",null,null,null,null,null,"seaport of embarkation"]
["SPOT",null,null,null,null,null,"Synchronized Predeployment and Operational Tracker"]
["SPOTREP",null,null,null,null,null,"spot report"]
["SPP",null,null,null,null,null,"Security and Prosperity Partnership of North America; shared production program; State Partnership Program (NG)"]
["SPR",null,null,null,null,null,"software problem report"]
["SPRAM",null,null,null,null,null,"Special Purpose Recoverables Authorized Maintenance"]
["SPRINT",null,null,null,null,null,"special psychiatric rapid intervention team"]
["SPS",null,null,null,null,null,"standard positioning service"]
["SPSC",null,null,null,null,null,"system planning and system control"]
["SPTCONF",null,null,null,null,null,"support confirmation"]
["SPTD CMD",null,null,null,null,null,"supported command"]
["SPTG CMD",null,null,null,null,null,"supporting command"]
["SPTREQ",null,null,null,null,null,"support request"]
["SQ ",null,null,null,null,null,"Squadron"]
["SQ/CC",null,null,null,null,null,"Squadron Commander"]
["sqft",null,null,null,null,null,"square feet"]
["SR",null,null,null,null,null,"special reconnaissance; Service Report / Strategic Radar"]
["SR-UAV",null,null,null,null,null,"short-range unmanned aerial vehicle"]
["SRA",null,null,null,null,null,"specialized-repair activity"]
["SRAM",null,null,null,null,null,"short-range air-to-surface attack missile; system replacement and modernization"]
["SRAN",null,null,null,null,null,"Stock Record Account Number"]
["SRB",null,null,null,null,null,"software release bulletin; system review board (JOPES)"]
["SRBM",null,null,null,null,null,"short-range ballistic missile"]
["SRC",null,null,null,null,null,"security risk category; service reception center; Single Integrated Operational Plan (SIOP) response cell; standard requirements code; survival recovery center"]
["SRCC",null,null,null,null,null,"service reserve coordination center"]
["SRD",null,null,null,null,null,"Standard Reporting Designator"]
["SRF",null,null,null,null,null,"secure Reserve force"]
["SRG",null,null,null,null,null,"Seabee readiness group; short-range aircraft"]
["SRI",null,null,null,null,null,"surveillance, reconnaissance, and intelligence (Marine Corps)"]
["SRIG",null,null,null,null,null,"surveillance, reconnaissance, and intelligence group (USMC)"]
["SROC",null,null,null,null,null,"Senior Readiness Oversight Council; Southern Region Operational Center, United States Southern Command"]
["SROE",null,null,null,null,null,"standing rules of engagement"]
["SRP",null,null,null,null,null,"sealift reserve program; seaward recovery point; Single Integrated Operational Plan (SIOP) reconnaissance plan"]
["SRP/PDS",null,null,null,null,null,"stabilization reference package/position determining system"]
["SRR",null,null,null,null,null,"search and rescue region"]
["SRS",null,null,null,null,null,"search and rescue sector"]
["SRSG",null,null,null,null,null,"special representative of the Secretary-General"]
["SRT",null,null,null,null,null,"scheduled return time; special reaction team; standard remote terminal; strategic relocatable target"]
["SRTD",null,null,null,null,null,"signals research and target development"]
["SRU",null,null,null,null,null,"search and rescue unit;Shop Replaceable Unit"]
["SRUF",null,null,null,null,null,"standing rules for the use of force"]
["SRWBR",null,null,null,null,null,"short range wide band radio"]
["SS",null,null,null,null,null,"submarine; non-Service Summary"]
["SS (number)",null,null,null,null,null,"sea state (number)"]
["SSA",null,null,null,null,null,"software support activity; space situational awareness; special support activity (NSA); strapdown sensor assembly; supply support activity; supply support area"]
["SSB",null,null,null,null,null,"single side band; support services branch; surveillance support branch"]
["SSB-SC",null,null,null,null,null,"single sideband-suppressed carrier"]
["SSC",null,null,null,null,null,"small scale contingency; special security center; surveillance support center"]
["SSCO",null,null,null,null,null,"shipper's service control office"]
["SSCRA",null,null,null,null,null,"Soldiers and Sailors Civil Relief Act"]
["SSD",null,null,null,null,null,"strategic studies detachment"]
["SSE",null,null,null,null,null,"satellite communications (SATCOM) systems expert; space support element"]
["SSEA",null,null,null,null,null,"System Safety Engineering Analysis"]
["SSF",null,null,null,null,null,"software support facility"]
["SSI",null,null,null,null,null,"standing signal instruction"]
["SSM",null,null,null,null,null,"surface-to-surface missile"]
["SSMI",null,null,null,null,null,"special sensor microwave imager"]
["SSMS",null,null,null,null,null,"single shelter message switch"]
["SSN",null,null,null,null,null,"attack submarine, nuclear; Social Security number; space surveillance network"]
["SSO",null,null,null,null,null,"special security office(r); spot security office"]
["SSP",null,null,null,null,null,"signals intelligence (SIGINT) support plan"]
["SSPM",null,null,null,null,null,"single-service postal manager"]
["SSPO",null,null,null,null,null,"strategic systems program office"]
["SSR",null,null,null,null,null,"security sector reform"]
["SSS",null,null,null,null,null,"Selective Service System; shelter subsystem"]
["SSSC",null,null,null,null,null,"surface, subsurface search surveillance coordination"]
["SST",null,null,null,null,null,"special support team (National Security Agency)"]
["SSTR",null,null,null,null,null,"stability, security, transition, and reconstruction"]
["SSWG",null,null,null,null,null,"space support working group"]
["ST",null,null,null,null,null,"short ton; small tug; strike team"]
["ST&E",null,null,null,null,null,"security test and evaluation"]
["STA",null,null,null,null,null,"system tape A"]
["STA clk",null,null,null,null,null,"station clock"]
["STAB",null,null,null,null,null,"space tactical awareness brief"]
["STAMMIS",null,null,null,null,null,"standard Army multi-command management information system"]
["STAMP",null,null,null,null,null,"standard air munitions package (USAF)"]
["STANAG",null,null,null,null,null,"standardization agreement (NATO)"]
["STANAVFORLANT",null,null,null,null,null,"Standing Naval Forces, Atlantic (NATO)"]
["STAR",null,null,null,null,null,"scheduled theater airlift route;  sensitive target approval and review; standard attribute reference; standard terminal arrival route; surface-to-air recovery; system threat assessment report"]
["STARC",null,null,null,null,null,"state area coordinators"]
["STARS",null,null,null,null,null,"Standard Accounting and Reporting System"]
["START",null,null,null,null,null,"Strategic Arms Reduction Treaty"]
["STARTEX",null,null,null,null,null,"start of exercise"]
["STB",null,null,null,null,null,"super tropical bleach"]
["STC",null,null,null,null,null,"secondary traffic channel;Supplemental Type Certificate"]
["STD",null,null,null,null,null,"sexually transmitted disease"]
["STDM",null,null,null,null,null,"synchronous time division multiplexer"]
["STE",null,null,null,null,null,"secure telephone equipment"]
["STEL STU III",null,null,null,null,null,"Stanford telecommunications (secure telephone)"]
["STEP",null,null,null,null,null,"software test and evaluation program; standardized tactical entry point; standard tool for employment planning"]
["STG",null,null,null,null,null,"seasonal target graphic"]
["STICS",null,null,null,null,null,"scalable transportable intelligence communications system"]
["STO",null,null,null,null,null,"special technical operations"]
["STOC",null,null,null,null,null,"special technical operations coordinator"]
["STOD",null,null,null,null,null,"special technical operations division"]
["STOL",null,null,null,null,null,"short takeoff and landing"]
["STOMPS",null,null,null,null,null,"stand-alone tactical operational message processing system"]
["STON",null,null,null,null,null,"short ton"]
["STP",null,null,null,null,null,"security technical procedure"]
["STR",null,null,null,null,null,"strength"]
["STRAPP",null,null,null,null,null,"standard tanks, racks and pylons packages (USAF)"]
["STRATOPS",null,null,null,null,null,"strategic operations division"]
["STREAM",null,null,null,null,null,"standard tensioned replenishment alongside method"]
["STS",null,null,null,null,null,"special tactics squadron"]
["STT",null,null,null,null,null,"small tactical terminal; special tactics team"]
["STU",null,null,null,null,null,"secure telephone unit"]
["STU-III",null,null,null,null,null,"secure telephone unit III"]
["STW",null,null,null,null,null,"strike warfare"]
["STWC",null,null,null,null,null,"strike warfare commander"]
["STX",null,null,null,null,null,"start of text"]
["SU",null,null,null,null,null,"search unit"]
["sub-JIB",null,null,null,null,null,"subordinate-joint information bureau"]
["sub-PIC",null,null,null,null,null,"subordinate-press information center"]
["SUBJ",null,null,null,null,null,"subject"]
["SUBOPAUTH",null,null,null,null,null,"submarine operating authority"]
["SUBROC",null,null,null,null,null,"submarine rocket"]
["SUC",null,null,null,null,null,"surf current"]
["SUIC",null,null,null,null,null,"service unit identification code"]
["SUMMITS",null,null,null,null,null,"scenario unrestricted mobility model of intratheater simulation"]
["SUPE",null,null,null,null,null,"supervisory commands program"]
["SUPP",null,null,null,null,null,"supplement"]
["SUPPO",null,null,null,null,null,"supply officer"]
["SUPT",null,null,null,null,null,"Superintendent (Enlisted Duties)"]
["SURG",null,null,null,null,null,"surgeon"]
["SUROBS",null,null,null,null,null,"surf observation"]
["SURPIC",null,null,null,null,null,"surface picture"]
["SUST BDE",null,null,null,null,null,"sustainment brigade"]
["SUW",null,null,null,null,null,"surface warfare"]
["SUWC",null,null,null,null,null,"surface warfare commander"]
["SVC",null,null,null,null,null,"Service; stored value card"]
["SVIP",null,null,null,null,null,"secure voice improvement program"]
["SVLTU",null,null,null,null,null,"service line termination unit"]
["SVR",null,null,null,null,null,"surface vessel radar"]
["SVS",null,null,null,null,null,"secure voice system"]
["Sw",null,null,null,null,null,"switch"]
["SWA",null,null,null,null,null,"Southwest Asia"]
["SWAT",null,null,null,null,null,"special weapons and tactics"]
["SWBD",null,null,null,null,null,"switchboard"]
["SWC",null,null,null,null,null,"strike warfare commander; swell/wave current"]
["SWI",null,null,null,null,null,"special weather intelligence"]
["SWO",null,null,null,null,null,"staff weather officer"]
["SWORD",null,null,null,null,null,"submarine warfare operations research division"]
["SWPC",null,null,null,null,null,"Space Weather Prediction Center"]
["SWSOCC",null,null,null,null,null,"Southwest Sector Operation Control Center North American Aerospace Defense Command (NORAD)"]
["SWXS",null,null,null,null,null,"Space Weather Squadron"]
["SXXI",null,null,null,null,null,"SPECTRUM XXI"]
["SXXI-O",null,null,null,null,null,"SPECTRUM XXI-Online"]
["SY",null,null,null,null,null,"Sympathy"]
["SYDP",null,null,null,null,null,"six year defense plan"]
["SYG",null,null,null,null,null,"Secretary-General (UN)"]
["SYNC",null,null,null,null,null,"synchronization"]
["SYS",null,null,null,null,null,"system"]
["SYSCOM",null,null,null,null,null,"systems command"]
["SYSCON",null,null,null,null,null,"systems control"]
["SZ",null,null,null,null,null,"surf zone"]
["T",null,null,null,null,null,"search time available; short ton; trackline pattern"]
["T&DE",null,null,null,null,null,"test and diagnostic equipment"]
["T&E",null,null,null,null,null,"test and evaluation"]
["T-ACS",null,null,null,null,null,"auxiliary crane ship"]
["T-AGOS",null,null,null,null,null,"tactical auxiliary general ocean surveillance"]
["T-AH",null,null,null,null,null,"hospital ship"]
["T-AKR",null,null,null,null,null,"fast logistics ship"]
["T-ASA",null,null,null,null,null,"Television Audio Support Agency"]
["T-AVB",null,null,null,null,null,"aviation logistics support ship"]
["T-day",null,null,null,null,null,"effective day coincident with Presidential declaration of a National Emergency and authorization of partial mobilization"]
["T-JMC",null,null,null,null,null,"theater-joint movement center"]
["T-JTB",null,null,null,null,null,"theater-joint transportation board"]
["T-net",null,null,null,null,null,"training net"]
["T/M/S",null,null,null,null,null,"type, model, and/or series"]
["T/O",null,null,null,null,null,"table of organization"]
["T2",null,null,null,null,null,"technology transfer"]
["TA",null,null,null,null,null,"target acquisition; target audience; technical arrangement; theater Army; threat assessment"]
["TA/CP",null,null,null,null,null,"technology assessment/control plan"]
["TAA",null,null,null,null,null,"tactical assembly area; target audience analysis; Training Aid Aircraft"]
["TAACOM",null,null,null,null,null,"theater Army area command"]
["TAADS",null,null,null,null,null,"The Army Authorization Document System"]
["TAAMDCOORD",null,null,null,null,null,"theater Army air and missile defense coordinator"]
["TAB",null,null,null,null,null,"tactical air base"]
["TAC",null,null,null,null,null,"tactical advanced computer; terminal access controller; terminal attack control; terminal attack controller; Total Accumulated Cycles"]
["TAC(A)",null,null,null,null,null,"tactical air coordinator (airborne)"]
["TAC-D",null,null,null,null,null,"tactical deception"]
["TACAIR",null,null,null,null,null,"tactical air"]
["TACAMO",null,null,null,null,null,"take charge and move out (E-6A/B aircraft)"]
["TACAN",null,null,null,null,null,"tactical air navigation"]
["TACC",null,null,null,null,null,"tanker airlift control center"]
["TACDAR",null,null,null,null,null,"tactical detection and reporting"]
["TACINTEL",null,null,null,null,null,"tactical intelligence"]
["TACLAN",null,null,null,null,null,"tactical local area network"]
["TACLOG",null,null,null,null,null,"tactical-logistical"]
["TACM",null,null,null,null,null,"tactical air command manual"]
["TACO",null,null,null,null,null,"theater allied contracting office"]
["TACON",null,null,null,null,null,"tactical control"]
["TACOPDAT",null,null,null,null,null,"tactical operational data"]
["TACP",null,null,null,null,null,"tactical air control party"]
["TACRON",null,null,null,null,null,"tactical air control squadron"]
["TACS",null,null,null,null,null,"tactical air control system; theater air control system"]
["TACSAT",null,null,null,null,null,"tactical satellite"]
["TACSIM",null,null,null,null,null,"tactical simulation"]
["TACSTANS",null,null,null,null,null,"tactical standards"]
["TACT",null,null,null,null,null,"tactical aviation control team"]
["TACTRAGRULANT",null,null,null,null,null,"Tactical Training Group, Atlantic"]
["TAD",null,null,null,null,null,"tactical air direction; temporary additional duty (non-unit-related personnel); theater air defense; time available for delivery"]
["TADC",null,null,null,null,null,"tactical air direction center"]
["TADCS",null,null,null,null,null,"tactical airborne digital camera system"]
["TADS",null,null,null,null,null,"Tactical Air Defense System; target acquisition system and designation sight"]
["TAES",null,null,null,null,null,"theater aeromedical evacuation system"]
["TAF",null,null,null,null,null,"tactical air force"]
["TAFDS",null,null,null,null,null,"tactical airfield fuel dispensing system"]
["TAFIM",null,null,null,null,null,"technical architecture framework for information management"]
["TAFS",null,null,null,null,null,"tactical aerodrome forecasts"]
["TAFT",null,null,null,null,null,"technical assistance field team"]
["TAG",null,null,null,null,null,"technical assessment group; technical assistance group; the adjutant general; Tomahawk land-attack missile aimpoint graphic"]
["TAGS",null,null,null,null,null,"theater air-ground system"]
["TAI",null,null,null,null,null,"target area of interest; total active inventory"]
["TAIS",null,null,null,null,null,"transportation automated information systems"]
["TAK",null,null,null,null,null,"cargo ship"]
["TAL",null,null,null,null,null,"Task Assignment List"]
["TALD",null,null,null,null,null,"tactical air-launched decoy"]
["TALON",null,null,null,null,null,"Threat and Local Observation Notice"]
["TAMCA",null,null,null,null,null,"theater Army movement control agency"]
["TAMCO",null,null,null,null,null,"theater Army movement control center"]
["TAMD",null,null,null,null,null,"theater air and missile defense"]
["TAMMC",null,null,null,null,null,"theater army material management command"]
["TAMMIS",null,null,null,null,null,"theater Army medical management information system"]
["TAMS",null,null,null,null,null,"transportation analysis, modeling, and simulation"]
["tanalt",null,null,null,null,null,"tangent altitude"]
["TAO",null,null,null,null,null,"tactical action officer"]
["TAOC",null,null,null,null,null,"tactical air operations center (USMC)"]
["TAP",null,null,null,null,null,"troopship"]
["TAR",null,null,null,null,null,"tactical air request; Training and Administration of the Reserve; Tactical / Theater Airborne Reconnaissance System"]
["TARBS",null,null,null,null,null,"transportable amplitude modulation and frequency modulation radio broadcast system"]
["TARBUL",null,null,null,null,null,"target bulletin"]
["TARE",null,null,null,null,null,"tactical record evaluation"]
["TAREX",null,null,null,null,null,"target exploitation; target plans and operations"]
["TARS",null,null,null,null,null,"tethered aerostat radar system"]
["TARWI",null,null,null,null,null,"target weather and intelligence"]
["TAS",null,null,null,null,null,"tactical atmospheric summary; true air speed; Tool Accountability System"]
["TASCID",null,null,null,null,null,"tactical Automatic Digital Network (AUTODIN) satellite compensation interface device"]
["TASCO",null,null,null,null,null,"tactical automatic switch control officer"]
["TASIP",null,null,null,null,null,"tailored analytic intelligence support to individual electronic warfare and command and control warfare projects"]
["TASKORD",null,null,null,null,null,"tasking order"]
["TASMO",null,null,null,null,null,"tactical air support for maritime operations"]
["TASOSC",null,null,null,null,null,"theater Army special operations support command"]
["TASS",null,null,null,null,null,"tactical automated security system; tactical automated switch system"]
["TASWC",null,null,null,null,null,"theater antisubmarine warfare commander"]
["TAT",null,null,null,null,null,"tactical analysis team; technical assistance team"]
["TATC",null,null,null,null,null,"tactical air traffic control"]
["TAW",null,null,null,null,null,"tactical airlift wing"]
["TBA",null,null,null,null,null,"Training Business Area"]
["TBD",null,null,null,null,null,"to be determined"]
["TBM",null,null,null,null,null,"tactical ballistic missile; theater ballistic missile"]
["TBMCS",null,null,null,null,null,"theater battle management core system"]
["TBMD",null,null,null,null,null,"theater ballistic missile defense"]
["TBP",null,null,null,null,null,"to be published"]
["TBSL",null,null,null,null,null,"to be supplied later"]
["TBTC",null,null,null,null,null,"transportable blood transshipment center"]
["TC",null,null,null,null,null,"tidal current; transmit clock and/or telemetry combiner; training circular; Transportation Corps (Army); Type Certified"]
["TC-ACCIS",null,null,null,null,null,"Transportation Coordinator's Automated Command and Control Information System"]
["TC-AIMS",null,null,null,null,null,"Transportation Coordinator's Automated Information for Movement System"]
["TC-AIMS II",null,null,null,null,null,"Transportation Coordinator's Automated Information for Movement System II"]
["TCA",null,null,null,null,null,"terminal control area; time of closest approach; traditional combatant commander activity"]
["TCAM",null,null,null,null,null,"theater Army medical management information system (TAMMIS) customer assistance module"]
["TCAS",null,null,null,null,null,"Traffic Collision Avoidance System"]
["TCC",null,null,null,null,null,"transmission control code; transportation component command; Transaction Condition Code"]
["TCCF",null,null,null,null,null,"tactical communications control facility"]
["TCEM",null,null,null,null,null,"theater contingency engineering management"]
["TCF",null,null,null,null,null,"tactical combat force; technical control facility"]
["TCI",null,null,null,null,null,"Time Change Item"]
["TCM",null,null,null,null,null,"theater construction manager; theater container manager"]
["TCMD",null,null,null,null,null,"transportation control and movement document"]
["TCN",null,null,null,null,null,"third country national; transportation control number; troop contributing nations"]
["TCO",null,null,null,null,null,"transnational criminal organization"]
["TCP",null,null,null,null,null,"theater campaign plan"]
["TCPED",null,null,null,null,null,"tasking, collection, processing, exploitation, and dissemination"]
["TCS",null,null,null,null,null,"theater communications system; TCTO Status Report"]
["TCSEC",null,null,null,null,null,"trusted computer system evaluation criteria"]
["TCSP",null,null,null,null,null,"theater consolidation and shipping point"]
["TCTO",null,null,null,null,null,"Time Compliance Technical Order"]
["TD",null,null,null,null,null,"theater distribution; tie down; timing distributor; total drift; transmit data; Training Detachment/Temporary Duty"]
["TDA",null,null,null,null,null,"Table of Distribution and Allowance"]
["TDAD",null,null,null,null,null,"Table of Distribution and Allowance (TDA) designation"]
["TDBM",null,null,null,null,null,"technical database management"]
["TDBSS",null,null,null,null,null,"Theater Defense Blood Standard System"]
["TDC",null,null,null,null,null,"target development cell"]
["TDD",null,null,null,null,null,"target desired ground zero (DGZ) designator; time-definite delivery"]
["TDF",null,null,null,null,null,"tactical digital facsimile"]
["TDI",null,null,null,null,null,"Tamper Detection Indicators/Time Distribution Index"]
["TDIC",null,null,null,null,null,"time division interface controller"]
["TDIG",null,null,null,null,null,"time division interface group"]
["TDIM",null,null,null,null,null,"time division interface module"]
["TDL",null,null,null,null,null,"tactical data link"]
["TDM",null,null,null,null,null,"time division multiplexed"]
["TDMA",null,null,null,null,null,"time division multiple access"]
["TDMC",null,null,null,null,null,"theater distribution management cell"]
["TDMF",null,null,null,null,null,"time division matrix function"]
["TDMM",null,null,null,null,null,"time division memory module"]
["TDMX",null,null,null,null,null,"time division matrix"]
["TDN",null,null,null,null,null,"tactical data network; target development nomination"]
["TDP",null,null,null,null,null,"theater distribution plan"]
["TDR",null,null,null,null,null,"transportation discrepancy report"]
["TDRC",null,null,null,null,null,"theater detainee reporting center"]
["TDSG",null,null,null,null,null,"time division switching group"]
["TDSGM",null,null,null,null,null,"time division switching group modified"]
["TDT",null,null,null,null,null,"theater display terminal"]
["TDV",null,null,null,null,null,"Technical Data Violation"]
["TDY",null,null,null,null,null,"temporary duty"]
["TE",null,null,null,null,null,"transaction editor"]
["TEA",null,null,null,null,null,"Transportation Engineering Agency"]
["TEC",null,null,null,null,null,"theater engineer command; Type Event Code"]
["tech",null,null,null,null,null,"technical"]
["TECHCON",null,null,null,null,null,"technical control"]
["TECHDOC",null,null,null,null,null,"technical documentation"]
["TECHELINT",null,null,null,null,null,"technical electronic intelligence"]
["TECHEVAL",null,null,null,null,null,"technical evaluation"]
["TECHINT",null,null,null,null,null,"technical intelligence"]
["TECHOPDAT",null,null,null,null,null,"technical operational data"]
["TECS II",null,null,null,null,null,"Treasury Enforcement Communications System"]
["TED",null,null,null,null,null,"trunk encryption device"]
["TEDAC",null,null,null,null,null,"Terrorist Explosive Device Analytical Center (FBI)"]
["TEK",null,null,null,null,null,"TeleEngineering Kit"]
["TEL",null,null,null,null,null,"transporter-erector-launcher"]
["TELEX",null,null,null,null,null,"teletype"]
["TELINT",null,null,null,null,null,"telemetry intelligence"]
["TELNET",null,null,null,null,null,"telecommunication network"]
["TEMPER",null,null,null,null,null,"tent extendible modular personnel"]
["TEMS",null,null,null,null,null,"Turbine Engine Monitoring System"]
["TENCAP",null,null,null,null,null,"tactical exploitation of national capabilities program"]
["TEO",null,null,null,null,null,"team embarkation officer"]
["TEOB",null,null,null,null,null,"tactical electronic order of battle"]
["TEP",null,null,null,null,null,"test and evaluation plan; theater engagement plan"]
["TER",null,null,null,null,null,"Triple Ejection Rack"]
["TERCOM",null,null,null,null,null,"terrain contour matching"]
["TERF",null,null,null,null,null,"terrain flight"]
["TERPES",null,null,null,null,null,"tactical electronic reconnaissance processing and evaluation system"]
["TERPROM",null,null,null,null,null,"terrain profile matching"]
["TERS",null,null,null,null,null,"tactical event reporting system"]
["TES",null,null,null,null,null,"theater event system"]
["TESS",null,null,null,null,null,"Tactical Environmental Support System"]
["TET",null,null,null,null,null,"targeting effects team"]
["TETK",null,null,null,null,null,"TeleEngineering Toolkit"]
["TEU",null,null,null,null,null,"technical escort unit; twenty-foot equivalent unit"]
["TEWLS",null,null,null,null,null,"Theater Enterprise Wide Logistics System"]
["TF",null,null,null,null,null,"task force; Training Funded"]
["TFA",null,null,null,null,null,"toxic free area"]
["TFADS",null,null,null,null,null,"Table Formatted Aeronautic Data Set"]
["TFC",null,null,null,null,null,"threat finance cell"]
["TFCICA",null,null,null,null,null,"task force counterintelligence coordinating authority"]
["TFCU",null,null,null,null,null,"Transportable Field Calibration Unit"]
["TFE",null,null,null,null,null,"tactical field exchange; threat finance exploitation; transportation feasibility estimator"]
["TFF",null,null,null,null,null,"total force fitness"]
["TFI",null,null,null,null,null,"Total Force Integration"]
["TFLIR",null,null,null,null,null,"targeting forward-looking infrared"]
["TFMS-M",null,null,null,null,null,"Transportation Financial Management System-Military"]
["TFR",null,null,null,null,null,"temporary flight restriction"]
["TFS",null,null,null,null,null,"tactical fighter squadron; Tactical Forecast System"]
["TG",null,null,null,null,null,"task group"]
["TGC",null,null,null,null,null,"trunk group cluster"]
["TGEN",null,null,null,null,null,"table generate"]
["TGM",null,null,null,null,null,"terminally guided munitions; trunk group multiplexer"]
["TGMOW",null,null,null,null,null,"transmission group module and/or orderwire"]
["TGO",null,null,null,null,null,"terminal guidance operations"]
["TGT",null,null,null,null,null,"target"]
["TGTINFOREP",null,null,null,null,null,"target information report"]
["TGU",null,null,null,null,null,"trunk compatibility unit"]
["THAAD",null,null,null,null,null,"Terminal High Altitude Area Defense"]
["THREATCON",null,null,null,null,null,"terrorist threat condition"]
["THT",null,null,null,null,null,"tactical human intelligence team"]
["THX",null,null,null,null,null,"theater express"]
["TI",null,null,null,null,null,"threat identification; training instructor; Technical inspections"]
["TIA",null,null,null,null,null,"theater intelligence assessment"]
["TIAP",null,null,null,null,null,"theater intelligence architecture program"]
["TIB",null,null,null,null,null,"theater intelligence brigade; toxic industrial biological"]
["TIBS",null,null,null,null,null,"tactical information broadcast service"]
["TIC",null,null,null,null,null,"target information center; toxic industrial chemical"]
["TIDE",null,null,null,null,null,"Terrorist Identities Datamart Environment"]
["TIDP",null,null,null,null,null,"technical interface design plan"]
["TIDS",null,null,null,null,null,"tactical imagery dissemination system"]
["TIF",null,null,null,null,null,"theater internment facility"]
["TIFF",null,null,null,null,null,"tagged image file format"]
["TII",null,null,null,null,null,"total inactive inventory"]
["TIM",null,null,null,null,null,"theater information management; toxic industrial material"]
["TIN",null,null,null,null,null,"Turn In"]
["TIO",null,null,null,null,null,"target intelligence officer"]
["TIP",null,null,null,null,null,"target intelligence package; trafficking in persons"]
["TIPG",null,null,null,null,null,"telephone interface planning guide"]
["TIPI",null,null,null,null,null,"tactical information processing interpretation"]
["TIPS",null,null,null,null,null,"tactical optical surveillance system (TOSS) imagery processing system"]
["TIR",null,null,null,null,null,"toxic industrial radiological"]
["TIROS",null,null,null,null,null,"television infrared observation satellite"]
["TIS",null,null,null,null,null,"technical interface specification; thermal imaging system"]
["TISG",null,null,null,null,null,"technical interoperability standards group"]
["TISL",null,null,null,null,null,"Target Identification Set Laser"]
["TISS",null,null,null,null,null,"thermal imaging sensor system"]
["TJAG",null,null,null,null,null,"the judge advocate general"]
["TJTN",null,null,null,null,null,"theater joint tactical network"]
["TK",null,null,null,null,null,"Tool Kit"]
["TL",null,null,null,null,null,"team leader"]
["TLA",null,null,null,null,null,"theater logistics analysis"]
["TLAM",null,null,null,null,null,"Tomahawk land-attack missile"]
["TLAM/N",null,null,null,null,null,"Tomahawk land attack missile/nuclear"]
["TLAMM",null,null,null,null,null,"theater lead agent for medical materiel"]
["TLC",null,null,null,null,null,"traffic load control"]
["TLE",null,null,null,null,null,"target location error"]
["TLM",null,null,null,null,null,"target list management; topographic line map"]
["TLO",null,null,null,null,null,"theater logistics overview"]
["TLP",null,null,null,null,null,"transmission level point"]
["TLR",null,null,null,null,null,"trailer"]
["TLX",null,null,null,null,null,"teletype"]
["TM",null,null,null,null,null,"tactical missile; target materials; team member; technical manual; TROPO modem"]
["TMAO",null,null,null,null,null,"theater mortuary affairs office; theater mortuary affairs officer"]
["TMATS",null,null,null,null,null,"Transmitter/Modulator Assembly Test Set"]
["TMB",null,null,null,null,null,"tactical military information support operations battalion"]
["TMD",null,null,null,null,null,"tactical munitions dispenser; theater missile defense"]
["TMDE",null,null,null,null,null,"Test Measurement and Diagnostic Equipment"]
["TMEP",null,null,null,null,null,"theater mortuary evacuation point"]
["TMF",null,null,null,null,null,"Traffic Management Flight"]
["TMG",null,null,null,null,null,"timing"]
["TMIP",null,null,null,null,null,"theater medical information program"]
["TMIS",null,null,null,null,null,"theater medical information system"]
["TML",null,null,null,null,null,"terminal"]
["TMLMC",null,null,null,null,null,"theater medical logistic management center"]
["TMMMC",null,null,null,null,null,"theater medical materiel management center"]
["TMN",null,null,null,null,null,"trackline multiunit non-return"]
["TMO",null,null,null,null,null,"traffic management office; transportation management office"]
["TMP",null,null,null,null,null,"target materials program; telecommunications management program; theater manpower forces"]
["TMR",null,null,null,null,null,"trackline multiunit return"]
["TMS",null,null,null,null,null,"Type Make Series"]
["TMT",null,null,null,null,null,"time-phased force and deployment data management tool"]
["TNAPS",null,null,null,null,null,"tactical network analysis and planning system"]
["TNAPS+",null,null,null,null,null,"tactical network analysis and planning system plus"]
["TNB",null,null,null,null,null,"Tail Number Bin"]
["TNC",null,null,null,null,null,"theater network operations center"]
["TNCC",null,null,null,null,null,"theater network operations control center"]
["TNCO",null,null,null,null,null,"transnational criminal organization"]
["TNF",null,null,null,null,null,"theater nuclear force"]
["TNL",null,null,null,null,null,"target nomination list"]
["TNO",null,null,null,null,null,"Theater Nuclear Option"]
["TO",null,null,null,null,null,"technical order; theater of operations"]
["TO&E",null,null,null,null,null,"table of organization and equipment"]
["TOA",null,null,null,null,null,"table of allowance"]
["TOC",null,null,null,null,null,"tactical operations center; tanker airlift control center (TALCE) operations center"]
["TOCU",null,null,null,null,null,"tropospheric scatter (TROPO) orderwire control unit"]
["TOD",null,null,null,null,null,"tactical ocean data; time of day"]
["TODA",null,null,null,null,null,"Technical Order Distribution Account"]
["TODO",null,null,null,null,null,"Technical Order Distribution Office"]
["TOE",null,null,null,null,null,"table of organization and equipment"]
["TOF",null,null,null,null,null,"time of flight"]
["TOFC",null,null,null,null,null,"trailer on flatcar"]
["TOH",null,null,null,null,null,"top of hill"]
["TOI",null,null,null,null,null,"track of interest"]
["TOPINT",null,null,null,null,null,"technical operational intelligence"]
["TOR",null,null,null,null,null,"term of reference; time of receipt"]
["TOS",null,null,null,null,null,"time on station"]
["TOSS",null,null,null,null,null,"tactical optical surveillance system"]
["TOT",null,null,null,null,null,"time on target"]
["TOW",null,null,null,null,null,"tube launched, optically tracked, wire guided"]
["TP",null,null,null,null,null,"technical publication; transportation priority; turn point"]
["TPC",null,null,null,null,null,"tactical pilotage chart"]
["TPC/PC",null,null,null,null,null,"tactical pilotage chart and/or pilotage chart"]
["TPE",null,null,null,null,null,"theater provided equipment"]
["TPED",null,null,null,null,null,"tasking, processing, exploitation, and dissemination; theater personal effects depot"]
["TPERS",null,null,null,null,null,"type personnel element"]
["TPFDD",null,null,null,null,null,"time-phased force and deployment data"]
["TPFDL",null,null,null,null,null,"time-phased force and deployment list"]
["TPL",null,null,null,null,null,"technical publications list; telephone private line"]
["TPME",null,null,null,null,null,"task, purpose, method, and effects"]
["TPMRC",null,null,null,null,null,"theater patient movement requirements center"]
["TPO",null,null,null,null,null,"task performance observation"]
["TPRC",null,null,null,null,null,"theater planning response cell"]
["TPT",null,null,null,null,null,"tactical petroleum terminal"]
["TPTRL",null,null,null,null,null,"time-phased transportation requirements list"]
["TPU",null,null,null,null,null,"tank pump unit"]
["TQ",null,null,null,null,null,"tactical questioning"]
["TRA",null,null,null,null,null,"technical review authority"]
["TRAC2ES",null,null,null,null,null,"United States Transportation Command Regulating and Command and Control Evacuation System"]
["TRACON",null,null,null,null,null,"terminal radar approach control facility"]
["TRADOC",null,null,null,null,null,"United States Army Training and Doctrine Command"]
["TRAM",null,null,null,null,null,"target recognition attack multisensor"]
["Trans BDE",null,null,null,null,null,"transportation brigade"]
["Trans Det RPO",null,null,null,null,null,"transportation detachment rapid port opening"]
["TRANSEC",null,null,null,null,null,"transmission security"]
["TRAP",null,null,null,null,null,"tactical recovery of aircraft and personnel (Marine Corps); tactical related applications; tanks, racks, adapters, and pylons; terrorism research and analysis program"]
["TRC",null,null,null,null,null,"tactical radio communication; threat reduction cooperation; transmission release code"]
["TRCC",null,null,null,null,null,"tactical record communications center"]
["TRE",null,null,null,null,null,"tactical receive equipment; Transfer of Equipment"]
["TREAS",null,null,null,null,null,"Department of the Treasury"]
["TREE",null,null,null,null,null,"transient radiation effects on electronics"]
["TRI-TAC",null,null,null,null,null,"Tri-Service Tactical Communications Program"]
["TRIADS",null,null,null,null,null,"Tri-Wall Aerial Distribution System"]
["TRIC ",null,null,null,null,null,"Transaction Identification Code"]
["TRICON",null,null,null,null,null,"triple container"]
["TRK",null,null,null,null,null,"truck; trunk"]
["TRN ",null,null,null,null,null,"Turnaround Transaction"]
["TRNG",null,null,null,null,null,"training"]
["TRO",null,null,null,null,null,"training and readiness oversight"]
["TROPO",null,null,null,null,null,"troposphere; tropospheric scatter"]
["TRP",null,null,null,null,null,"target reference point"]
["TRS",null,null,null,null,null,"tactical reconnaissance squadron"]
["TRSS",null,null,null,null,null,"Training Support Squadron"]
["TS",null,null,null,null,null,"terminal service; time-sensitive; top secret"]
["TSA",null,null,null,null,null,"target system analysis; theater storage area; Transportation Security Administration (DHS); travel security advisory"]
["TSB",null,null,null,null,null,"technical support branch; trunk signaling buffer"]
["TSBn",null,null,null,null,null,"transportation support battalion (USMC)"]
["TSC",null,null,null,null,null,"theater security cooperation; theater support command; theater sustainment command (Army); Technical Support Center"]
["TSCIF",null,null,null,null,null,"tactical sensitive compartmented information facility"]
["TSCM",null,null,null,null,null,"technical surveillance countermeasures"]
["TSCO",null,null,null,null,null,"target selection confusion of the operator; top secret control officer"]
["TSCP",null,null,null,null,null,"theater security cooperation plan"]
["TSCR",null,null,null,null,null,"time sensitive collection requirement"]
["TSE",null,null,null,null,null,"tactical support element"]
["TSEC",null,null,null,null,null,"transmission security"]
["TSG",null,null,null,null,null,"targeting support group; test signal generator"]
["TSGCE",null,null,null,null,null,"tri-Service group on communications and electronics"]
["TSGCEE",null,null,null,null,null,"tri-Service group on communications and electronic equipment (NATO)"]
["TSM",null,null,null,null,null,"trunk signaling message"]
["TSN",null,null,null,null,null,"trackline single-unit non-return; track supervision net"]
["TSO",null,null,null,null,null,"technical standard order; telecommunications service order"]
["TSOC",null,null,null,null,null,"tactical special operations command; theater special operations command"]
["TSP",null,null,null,null,null,"telecommunications service priority"]
["TSR",null,null,null,null,null,"telecommunications service request; theater source registry; theater support representative; trackline single-unit return"]
["TSS",null,null,null,null,null,"tactical shelter system; target sensing system; timesharing system; time signal set; traffic service station"]
["TSSP",null,null,null,null,null,"tactical satellite signal processor"]
["TSSR",null,null,null,null,null,"tropospheric scatter (TROPO)-satellite support radio"]
["TST",null,null,null,null,null,"tactical support team; terminal support team; theater support team; time-sensitive target"]
["TSWA",null,null,null,null,null,"temporary secure working area"]
["TT",null,null,null,null,null,"terminal transfer"]
["TT&C",null,null,null,null,null,"telemetry, tracking, and commanding"]
["TTAN",null,null,null,null,null,"transportation tracking account number"]
["TTB",null,null,null,null,null,"transportation terminal battalion"]
["TTD",null,null,null,null,null,"tactical terrain data; technical task directive"]
["TTFACOR",null,null,null,null,null,"targets, threats, friendlies, artillery, clearance, ordnance, restrictions"]
["TTG",null,null,null,null,null,"thermally tempered glass"]
["TTL",null,null,null,null,null,"transistor-transistor logic"]
["TTM",null,null,null,null,null,"threat training manual; training target material"]
["TTML",null,null,null,null,null,"Test/Training Munitions List"]
["TTN",null,null,null,null,null,"transportation tracking number"]
["TTP",null,null,null,null,null,"tactics, techniques, and procedures; trailer transfer point"]
["TTR",null,null,null,null,null,"tactical training range"]
["TTT",null,null,null,null,null,"time to target"]
["TTU",null,null,null,null,null,"transportation terminal unit"]
["TTY",null,null,null,null,null,"teletype"]
["TUBA",null,null,null,null,null,"transition unit box assembly"]
["TUCHA",null,null,null,null,null,"type unit characteristics file"]
["TUCHAREP",null,null,null,null,null,"type unit characteristics report"]
["TUDET",null,null,null,null,null,"type unit equipment detail file"]
["TV",null,null,null,null,null,"television"]
["TVA",null,null,null,null,null,"Tennessee Valley Authority"]
["TW&A",null,null,null,null,null,"threat warning and assessment"]
["TWC",null,null,null,null,null,"Office for Counterterrorism Analysis (DIA); total water current"]
["TWCF",null,null,null,null,null,"Transportation Working Capital Fund"]
["TWCM",null,null,null,null,null,"theater wartime construction manager"]
["TWD",null,null,null,null,null,"transnational warfare counterdrug analysis"]
["TWDS",null,null,null,null,null,"tactical water distribution system"]
["TWI",null,null,null,null,null,"Office for Information Warfare Support (DIA)"]
["TWPL",null,null,null,null,null,"teletypewriter private line"]
["TWX",null,null,null,null,null,"teletypewriter exchange"]
["TX",null,null,null,null,null,"transmitter; transmit"]
["TYCOM",null,null,null,null,null,"type commander"]
["U",null,null,null,null,null,"wind speed"]
["U/C",null,null,null,null,null,"unit cost; upconverter"]
["UA",null,null,null,null,null,"unmanned aircraft"]
["UAOBS",null,null,null,null,null,"upper air observation"]
["UAR",null,null,null,null,null,"unconventional assisted recovery"]
["UARCC",null,null,null,null,null,"unconventional assisted recovery coordination cell"]
["UAS",null,null,null,null,null,"unmanned aircraft system"]
["UAV",null,null,null,null,null,"unmanned aerial vehicle"]
["UCAV",null,null,null,null,null,"Unmanned Combat Aerial Vehicle"]
["UCFF",null,null,null,null,null,"Unit Type Code Consumption Factors File"]
["UCI",null,null,null,null,null,"Unit Compliance Inspection"]
["UCMJ",null,null,null,null,null,"Uniform Code of Military Justice"]
["UCML",null,null,null,null,null,"Unit Committed Munitions List"]
["UCP",null,null,null,null,null,"Unified Command Plan"]
["UCR",null,null,null,null,null,"Unsatisfactory Condition Report"]
["UCT",null,null,null,null,null,"underwater construction team"]
["UDAC",null,null,null,null,null,"unauthorized disclosure analysis center"]
["UDC",null,null,null,null,null,"unit descriptor code"]
["UDESC",null,null,null,null,null,"unit description"]
["UDL",null,null,null,null,null,"unit deployment list; unit designation list"]
["UDM",null,null,null,null,null,"Unit Deployment Manager"]
["UDP",null,null,null,null,null,"unit deployment program"]
["UDT",null,null,null,null,null,"underwater demolition team"]
["UE",null,null,null,null,null,"unit equipment"]
["UEC",null,null,null,null,null,"Unit Environmental Coordinator"]
["UEM",null,null,null,null,null,"Unit Engine Manager"]
["UEWR",null,null,null,null,null,"upgraded early warning radar"]
["UFAC",null,null,null,null,null,"Underground Facilities Analysis Center"]
["UFC",null,null,null,null,null,"Unified Facilities Criteria"]
["UFO",null,null,null,null,null,"ultrahigh frequency follow-on"]
["UFR",null,null,null,null,null,"unfunded requirement"]
["UGA",null,null,null,null,null,"ungoverned area"]
["UGIRH",null,null,null,null,null,"Urban Generic Information Requirements Handbook"]
["UGM-84A",null,null,null,null,null,"Harpoon"]
["UGM-96A",null,null,null,null,null,"Trident I"]
["UGO",null,null,null,null,null,"unified geospatial-intelligence operations"]
["UHF",null,null,null,null,null,"Ultra High Frequency"]
["UHV",null,null,null,null,null,"Upper Huallaga Valley"]
["UIC",null,null,null,null,null,"unit identification code"]
["UICIO",null,null,null,null,null,"unit identification code information officer"]
["UIRV",null,null,null,null,null,"unique interswitch rekeying variable"]
["UIS",null,null,null,null,null,"unit identification system"]
["UJC",null,null,null,null,null,"Urgency Justification Code"]
["UJTL",null,null,null,null,null,"Universal Joint Task List"]
["UK",null,null,null,null,null,"United Kingdom"]
["UK(I)",null,null,null,null,null,"United Kingdom and Ireland"]
["ULC",null,null,null,null,null,"unit level code"]
["ULF",null,null,null,null,null,"ultra low frequency"]
["ULLS",null,null,null,null,null,"unit level logistics system"]
["ULN",null,null,null,null,null,"unit line number"]
["ULSD",null,null,null,null,null,"ultra-low sulfur diesel"]
["UMCC",null,null,null,null,null,"unit movement control center"]
["UMCM",null,null,null,null,null,"underwater mine countermeasures"]
["UMD",null,null,null,null,null,"unit manning document; unit movement data"]
["UMIB",null,null,null,null,null,"urgent marine information broadcast"]
["UMMIPS",null,null,null,null,null,"uniform material movement and issue priority system"]
["UMO",null,null,null,null,null,"unit movement officer"]
["UMPR",null,null,null,null,null,"unit manpower personnel record"]
["UMT",null,null,null,null,null,"unit ministry team"]
["UN",null,null,null,null,null,"United Nations"]
["UN CMCoord",null,null,null,null,null,"United Nations humanitarian civil-military coordination"]
["UN-DMT",null,null,null,null,null,"United Nations disaster management team"]
["UNAMIR",null,null,null,null,null,"United Nations Assistance Mission in Rwanda"]
["UNC",null,null,null,null,null,"United Nations Command"]
["UNCLOS",null,null,null,null,null,"United Nations Convention on the Law of the Sea"]
["UNCTAD",null,null,null,null,null,"United Nations Conference on Trade and Development"]
["UND",null,null,null,null,null,"urgency of need designator"]
["UNDAC",null,null,null,null,null,"United Nations disaster assessment and coordination"]
["UNDFS",null,null,null,null,null,"United Nations Department of Field Support"]
["UNDHA",null,null,null,null,null,"United Nations Department of Humanitarian Affairs"]
["UNDP",null,null,null,null,null,"United Nations development programme"]
["UNDPKO",null,null,null,null,null,"United Nations Department for Peacekeeping Operations"]
["UNEF",null,null,null,null,null,"United Nations emergency force"]
["UNEP",null,null,null,null,null,"United Nations environment programme"]
["UNESCO",null,null,null,null,null,"United Nations Educational, Scientific, and Cultural Organization"]
["UNHAS",null,null,null,null,null,"United Nations Humanitarian Air Service"]
["UNHCHR",null,null,null,null,null,"United Nations High Commissioner for Human Rights"]
["UNHCR",null,null,null,null,null,"United Nations Office of the High Commissioner for Refugees"]
["UNHQ",null,null,null,null,null,"United Nations Headquarters"]
["UNICEF",null,null,null,null,null,"United Nations Children's Fund"]
["UNIFIL",null,null,null,null,null,"United Nations Interim Force in Lebanon"]
["UNIL",null,null,null,null,null,"unclassified national information library"]
["UNITAF",null,null,null,null,null,"unified task force"]
["UNITAR",null,null,null,null,null,"United Nations Institute for Training and Research"]
["UNITREP",null,null,null,null,null,"unit status and identity report"]
["UNJLC",null,null,null,null,null,"United Nations Joint Logistic Centre"]
["UNLOC",null,null,null,null,null,"United Nations logistic course"]
["UNMEM",null,null,null,null,null,"United Nations military expert on mission"]
["UNMIH",null,null,null,null,null,"United Nations Mission in Haiti"]
["UNMILPOC",null,null,null,null,null,"United Nations military police course"]
["UNMOC",null,null,null,null,null,"United Naitons military observers course"]
["UNMOVCC",null,null,null,null,null,"United Nations movement control course"]
["UNO",null,null,null,null,null,"unit number"]
["UNOCHA",null,null,null,null,null,"United Nations Office for the Coordination of Humanitarian Affairs"]
["UNODC",null,null,null,null,null,"United Nations Office on Drugs and Crime"]
["UNODIR",null,null,null,null,null,"unless otherwise directed"]
["UNOSOM",null,null,null,null,null,"United Nations Operations in Somalia"]
["UNPA",null,null,null,null,null,"United Nations Participation Act"]
["UNPROFOR",null,null,null,null,null,"United Nations protection force"]
["UNREP",null,null,null,null,null,"underway replenishment"]
["UNREP CONSOL",null,null,null,null,null,"underway replenishment consolidation"]
["UNRWA",null,null,null,null,null,"United Nations Relief and Works Agency for Palestine Refugees in the Near East"]
["UNSC",null,null,null,null,null,"United Nations Security Council"]
["UNSCR",null,null,null,null,null,"United Nations Security Council resolution"]
["UNSG",null,null,null,null,null,"United Nations Secretary-General"]
["UNSOC",null,null,null,null,null,"United Nations staff officers course"]
["UNTAC",null,null,null,null,null,"United Nations Transition Authority in Cambodia"]
["UNTSO",null,null,null,null,null,"United Nations Truce and Supervision Organization"]
["UNV",null,null,null,null,null,"United Nations volunteer"]
["UOF",null,null,null,null,null,"use of force"]
["UP&TT",null,null,null,null,null,"unit personnel and tonnage table"]
["UPMR",null,null,null,null,null,"Unit Personnel Management Roster"]
["URDB",null,null,null,null,null,"user requirements database"]
["URL",null,null,null,null,null,"uniform resource locater"]
["USA",null,null,null,null,null,"United States Army"]
["USAB",null,null,null,null,null,"United States Army barracks"]
["USACCSA",null,null,null,null,null,"United States Army Command and Control Support Agency"]
["USACE",null,null,null,null,null,"United States Army Corps of Engineers"]
["USACFSC",null,null,null,null,null,"United States Army Community and Family Support Center"]
["USACHPPM",null,null,null,null,null,"United States Army Center for Health Promotion and Preventive Medicine"]
["USACIDC",null,null,null,null,null,"United States Army Criminal Investigation Command"]
["USAEDS",null,null,null,null,null,"United States Atomic Energy Detection System"]
["USAF",null,null,null,null,null,"United States Air Force"]
["USAFE",null,null,null,null,null,"United States Air Forces in Europe"]
["USAFEP",null,null,null,null,null,"United States Air Force, Europe pamphlet"]
["USAFLANT",null,null,null,null,null,"United States Air Force, Atlantic Command"]
["USAFR",null,null,null,null,null,"United States Air Force Reserve"]
["USAFRICOM",null,null,null,null,null,"United States Africa Command"]
["USAFSOC",null,null,null,null,null,"United States Air Force, Special Operations Command"]
["USAFSOF",null,null,null,null,null,"United States Air Force, Special Operations Forces"]
["USAFSOS",null,null,null,null,null,"United States Air Force Special Operations School"]
["USAID",null,null,null,null,null,"United States Agency for International Development"]
["USAITAC",null,null,null,null,null,"United States Army Intelligence Threat Analysis Center"]
["USAJFKSWC",null,null,null,null,null,"United States Army John F. Kennedy Special Warfare Center"]
["USAMC",null,null,null,null,null,"United States Army Materiel Command"]
["USAMMA",null,null,null,null,null,"United States Army Medical Materiel Agency"]
["USAMPS",null,null,null,null,null,"United States Army Military Police School"]
["USAMRICD",null,null,null,null,null,"United States Army Medical Research Institute of Chemical Defense"]
["USAMRIID",null,null,null,null,null,"United States Army Medical Research Institute of Infectious Diseases"]
["USAMRMC",null,null,null,null,null,"United States Army Medical Research and Materiel Command"]
["USANCA",null,null,null,null,null,"United States Army Nuclear and Combating Weapons of Mass Destruction Agency"]
["USAO",null,null,null,null,null,"United States Attorney Office"]
["USAR",null,null,null,null,null,"United States Army Reserve"]
["USARCENT",null,null,null,null,null,"United States Army, Central Command"]
["USARDECOM",null,null,null,null,null,"United States Army Research, Development, and Engineering Command"]
["USAREUR",null,null,null,null,null,"United States Army, European Command"]
["USARIEM",null,null,null,null,null,"United States Army Research Institute of Environmental Medicine"]
["USARJ",null,null,null,null,null,"United States Army, Japan"]
["USARNORTH",null,null,null,null,null,"United States Army, North"]
["USARPAC",null,null,null,null,null,"United States Army, Pacific Command"]
["USARSO",null,null,null,null,null,"United States Army, Southern Command"]
["USASMDC/ARSTRAT",null,null,null,null,null,"United States Army Space and Missile Defense Command/Army Forces Strategic Command"]
["USASOC",null,null,null,null,null,"United States Army Special Operations Command"]
["USB",null,null,null,null,null,"upper side band"]
["USBP",null,null,null,null,null,"United States Border Patrol"]
["USC",null,null,null,null,null,"United States Code; universal service contract"]
["USCENTAF",null,null,null,null,null,"United States Central Command Air Forces"]
["USCENTCOM",null,null,null,null,null,"United States Central Command"]
["USCG",null,null,null,null,null,"United States Coast Guard"]
["USCGR",null,null,null,null,null,"United States Coast Guard Reserve"]
["USCIS",null,null,null,null,null,"United States Citizenship and Immigration Services"]
["USCS",null,null,null,null,null,"United States Cryptologic System; United States Customs Service"]
["USCYBERCOM",null,null,null,null,null,"United States Cyber Command"]
["USD(A&T)",null,null,null,null,null,"Under Secretary of Defense for Acquisition and Technology"]
["USD(AT&L)",null,null,null,null,null,"Under Secretary of Defense for Acquisition, Technology, and Logistics"]
["USD(C/CFO)",null,null,null,null,null,"Under Secretary of Defense (Comptroller)"]
["USD(I)",null,null,null,null,null,"Under Secretary of Defense for Intelligence"]
["USD(P&R)",null,null,null,null,null,"Under Secretary of Defense for Personnel and Readiness"]
["USD(P)",null,null,null,null,null,"Under Secretary of Defense for Policy"]
["USD(R&E)",null,null,null,null,null,"Under Secretary of Defense for Research and Engineering"]
["USDA",null,null,null,null,null,"United States Department of Agriculture"]
["USDAO",null,null,null,null,null,"United States defense attache office"]
["USDELMC",null,null,null,null,null,"United States Delegation to the NATO Military Committee"]
["USELEMCMOC",null,null,null,null,null,"United States Element Cheyenne Mountain Operations Center"]
["USELEMNORAD",null,null,null,null,null,"United States Element, North American Aerospace Defense Command"]
["USERID",null,null,null,null,null,"user identification"]
["USERRA",null,null,null,null,null,"Uniformed Services Employment and Reemployment Rights Act"]
["USEUCOM",null,null,null,null,null,"United States European Command"]
["USFF",null,null,null,null,null,"United States Fleet Forces Command"]
["USFJ",null,null,null,null,null,"United States Forces, Japan"]
["USFK",null,null,null,null,null,"United States Forces, Korea"]
["USFORAZORES",null,null,null,null,null,"United States Forces, Azores"]
["USFS",null,null,null,null,null,"United States Forest Service"]
["USFWS",null,null,null,null,null,"United States Fish and Wildlife Service"]
["USG",null,null,null,null,null,"United States Government"]
["USGS",null,null,null,null,null,"United States Geological Survey"]
["USIA",null,null,null,null,null,"United States Information Agency"]
["USIC",null,null,null,null,null,"United States interdiction coordinator"]
["USIS",null,null,null,null,null,"United States Information Service"]
["USJFCOM",null,null,null,null,null,"United States Joint Forces Command"]
["USLANTFLT",null,null,null,null,null,"United States Atlantic Fleet"]
["USLO",null,null,null,null,null,"United States liaison office; United States liaison officer"]
["USMARFORCENT",null,null,null,null,null,"United States Marine Component, Central Command"]
["USMARFORLANT",null,null,null,null,null,"United States Marine Component, Atlantic Command"]
["USMARFORNORTH",null,null,null,null,null,"United States Marine Corps Forces North"]
["USMARFORPAC",null,null,null,null,null,"United States Marine Component, Pacific Command"]
["USMARFORSOUTH",null,null,null,null,null,"United States Marine Component, Southern Command"]
["USMC",null,null,null,null,null,"United States Marine Corps"]
["USMCEB",null,null,null,null,null,"United States Military Communications-Electronics Board"]
["USMCR",null,null,null,null,null,"United States Marine Corps Reserve"]
["USMER",null,null,null,null,null,"United States merchant ship vessel locator reporting system"]
["USMILGP",null,null,null,null,null,"United States military group"]
["USMILREP",null,null,null,null,null,"United States military representative"]
["USML",null,null,null,null,null,"United States Munitions List"]
["USMOG-W",null,null,null,null,null,"United States Military Observer Group - Washington"]
["USMS",null,null,null,null,null,"United States Marshals Service"]
["USMTF",null,null,null,null,null,"United States message text format"]
["USMTM",null,null,null,null,null,"United States military training mission"]
["USN",null,null,null,null,null,"United States Navy"]
["USNAVCENT",null,null,null,null,null,"United States Naval Forces, Central Command"]
["USNAVEUR",null,null,null,null,null,"United States Naval Forces, Europe"]
["USNAVSO",null,null,null,null,null,"US Naval Forces Southern Command"]
["USNCB",null,null,null,null,null,"United States National Central Bureau (INTERPOL)"]
["USNMR",null,null,null,null,null,"United States National Military representative"]
["USNMTG",null,null,null,null,null,"United States North Atlantic Treaty Organization (NATO) Military Terminology Group"]
["USNO",null,null,null,null,null,"United States Naval Observatory"]
["USNORTHCOM",null,null,null,null,null,"United States Northern Command"]
["USNR",null,null,null,null,null,"United States Navy Reserve"]
["USNS",null,null,null,null,null,"United States naval ship"]
["USPACAF",null,null,null,null,null,"United States Air Forces, Pacific Command"]
["USPACFLT",null,null,null,null,null,"United States Pacific Fleet"]
["USPACOM",null,null,null,null,null,"United States Pacific Command"]
["USPFO(P&C)",null,null,null,null,null,"United States Property and Fiscal Office (Purchasing and \t\t\t\t\tContracting)"]
["USPHS",null,null,null,null,null,"United States Public Health Service"]
["USPS",null,null,null,null,null,"United States Postal Service"]
["USREPMC",null,null,null,null,null,"United States representative to the military committee (NATO)"]
["USSOCOM",null,null,null,null,null,"United States Special Operations Command"]
["USSOUTHAF",null,null,null,null,null,"United States Air Force, Southern Command"]
["USSOUTHCOM",null,null,null,null,null,"United States Southern Command"]
["USSS",null,null,null,null,null,"United States Secret Service (TREAS); United States Signals Intelligence (SIGINT) System"]
["USSTRATCOM",null,null,null,null,null,"United States Strategic Command"]
["USTRANSCOM",null,null,null,null,null,"United States Transportation Command"]
["USUN",null,null,null,null,null,"United States Mission to the United Nations"]
["USW",null,null,null,null,null,"undersea warfare"]
["USW/USWC",null,null,null,null,null,"undersea warfare and/or undersea warfare commander"]
["USYG",null,null,null,null,null,"under secretary general"]
["UT1",null,null,null,null,null,"unit trainer; Universal Time"]
["UTA",null,null,null,null,null,"Unit Training Assembly"]
["UTC",null,null,null,null,null,"Coordinated Universal Time; unit type code"]
["UTE",null,null,null,null,null,"Utilization (rate)"]
["UTM",null,null,null,null,null,"universal transverse mercator; Unit Training Manager"]
["UTO",null,null,null,null,null,"unit table of organization"]
["UTR",null,null,null,null,null,"underwater tracking range"]
["UUV",null,null,null,null,null,"unmanned underwater vehicle; unmanned underwater vessel"]
["UVEPROM",null,null,null,null,null,"ultraviolet erasable programmable read-only memory"]
["UW",null,null,null,null,null,"unconventional warfare"]
["UWOA",null,null,null,null,null,"unconventional warfare operating area"]
["UXO",null,null,null,null,null,"unexploded explosive ordnance; unexploded ordnance"]
["V",null,null,null,null,null,"search and rescue unit ground speed; sector pattern; volt"]
["v",null,null,null,null,null,"velocity of target drift"]
["V&A",null,null,null,null,null,"valuation and availability"]
["V/STOL",null,null,null,null,null,"vertical and/or short takeoff and landing aircraft"]
["VA",null,null,null,null,null,"Veterans Administration; victim advocate; vulnerability assessment"]
["VAAP",null,null,null,null,null,"vulnerability assessment and assistance program"]
["VAC",null,null,null,null,null,"volts, alternating current"]
["VARVAL",null,null,null,null,null,"vessel arrival data, list of vessels available to marine safety offices and captains of the port"]
["VAT B",null,null,null,null,null,"visibility (in miles), amount (of clouds, in eighths), (height of cloud) top (in thousands of feet), (height of cloud) base (in thousands of feet)"]
["VBIED",null,null,null,null,null,"vehicle-borne improvised explosive device"]
["VBS",null,null,null,null,null,"visit, board, search"]
["VBSS",null,null,null,null,null,"visit, board, search, and seizure"]
["VCC",null,null,null,null,null,"voice communications circuit"]
["VCG",null,null,null,null,null,"virtual coordination group"]
["VCJCS",null,null,null,null,null,"Vice Chairman of the Joint Chiefs of Staff"]
["VCNOG",null,null,null,null,null,"Vice Chairman, Nuclear Operations Group"]
["VCO",null,null,null,null,null,"voltage controlled oscillator"]
["VCOPG",null,null,null,null,null,"Vice Chairman, Operations Planners Group"]
["VCR",null,null,null,null,null,"violent crime report"]
["VCXO",null,null,null,null,null,"voltage controlled crystal oscillator; voltage controlled oscillator"]
["VDC",null,null,null,null,null,"volts, direct current"]
["VDJS",null,null,null,null,null,"Vice Director, Joint Staff"]
["VDL",null,null,null,null,null,"video downlink"]
["VDR",null,null,null,null,null,"voice digitization rate"]
["VDS",null,null,null,null,null,"video subsystem"]
["VDSD",null,null,null,null,null,"visual distress signaling device"]
["VDU",null,null,null,null,null,"visual display unit"]
["VDUC",null,null,null,null,null,"visual display unit controller"]
["VE",null,null,null,null,null,"vertical error"]
["VEE",null,null,null,null,null,"Venezuelan equine encephalitis"]
["VEH",null,null,null,null,null,"vehicle; vehicular cargo"]
["VEO",null,null,null,null,null,"violent extremist organization"]
["VERTREP",null,null,null,null,null,"vertical replenishment"]
["VF",null,null,null,null,null,"voice frequency"]
["VFR",null,null,null,null,null,"visual flight rules"]
["VFS",null,null,null,null,null,"validating flight surgeon"]
["VFTG",null,null,null,null,null,"voice frequency telegraph"]
["VHF",null,null,null,null,null,"very high frequency"]
["VI",null,null,null,null,null,"visual information"]
["VICE",null,null,null,null,null,"advice"]
["VID",null,null,null,null,null,"visual identification; visual identification information display"]
["VINSON",null,null,null,null,null,"encrypted ultrahigh frequency communications system"]
["VIP",null,null,null,null,null,"very important person; visual information processor"]
["VIRS",null,null,null,null,null,"verbally initiated release system"]
["VIS",null,null,null,null,null,"visual imaging system"]
["VISA",null,null,null,null,null,"Voluntary Intermodal Sealift Agreement"]
["VISOBS",null,null,null,null,null,"visual observer"]
["VIXS",null,null,null,null,null,"video information exchange system"]
["VLA",null,null,null,null,null,"vertical line array; visual landing aid"]
["VLF",null,null,null,null,null,"very low frequency"]
["VLR",null,null,null,null,null,"very-long-range aircraft"]
["VLZ",null,null,null,null,null,"vertical landing zone"]
["VMap",null,null,null,null,null,"vector map"]
["VMAQ",null,null,null,null,null,"Marine tactical electronic warfare squadron"]
["VMC",null,null,null,null,null,"visual meteorological conditions"]
["VMF",null,null,null,null,null,"variable message format"]
["VMGR",null,null,null,null,null,"Marine aerial refueler and transport squadron"]
["VMI",null,null,null,null,null,"vendor managed inventory"]
["VNTK",null,null,null,null,null,"target vulnerability indicator designating degree of hardness; susceptibility of blast; and K-factor"]
["VO",null,null,null,null,null,"validation office"]
["VOCODER",null,null,null,null,null,"voice encoder"]
["VOCU",null,null,null,null,null,"voice orderwire control unit"]
["VOD",null,null,null,null,null,"vertical onboard delivery"]
["vol",null,null,null,null,null,"volume"]
["VOL",null,null,null,null,null,"volunteer"]
["VOLS",null,null,null,null,null,"vertical optical landing system"]
["VOR",null,null,null,null,null,"very high frequency omnidirectional range station"]
["VORTAC",null,null,null,null,null,"very high frequency omnidirectional range station and/or tactical air navigation"]
["VOX",null,null,null,null,null,"voice actuation (keying)"]
["VP",null,null,null,null,null,"video processor"]
["VPB",null,null,null,null,null,"version planning board"]
["VPD",null,null,null,null,null,"version planning document"]
["VPV",null,null,null,null,null,"virtual prime vendor"]
["VS",null,null,null,null,null,"sector single-unit"]
["VS&PT",null,null,null,null,null,"vehicle summary and priority table"]
["VSG",null,null,null,null,null,"virtual support group"]
["VSP",null,null,null,null,null,"voice selection panel"]
["VSR",null,null,null,null,null,"sector single-unit radar"]
["VSW",null,null,null,null,null,"very shallow water"]
["VTA",null,null,null,null,null,"voluntary tanker agreement"]
["VTC",null,null,null,null,null,"video teleconferencing"]
["VTOL",null,null,null,null,null,"vertical takeoff and landing"]
["VTOL-UAS",null,null,null,null,null,"vertical takeoff and landing unmanned aircraft system"]
["VTOL-UAV",null,null,null,null,null,"vertical takeoff and landing unmanned aerial vehicle"]
["VTR",null,null,null,null,null,"Video Tape Recorder"]
["VTS",null,null,null,null,null,"vessel traffic service"]
["VTT",null,null,null,null,null,"video teletraining"]
["VU",null,null,null,null,null,"volume unit"]
["VV&A",null,null,null,null,null,"verification, validation, and accreditation"]
["VV&C",null,null,null,null,null,"verification, validation, and certification"]
["VX",null,null,null,null,null,"nerve agent (O-Ethyl S-Diisopropylaminomethyl Methylphosphonothiolate)"]
["W&B",null,null,null,null,null,"Weight and Balance"]
["W&T",null,null,null,null,null,"Wheel and Tire"]
["W",null,null,null,null,null,"sweep width"]
["w",null,null,null,null,null,"search subarea width"]
["W-day",null,null,null,null,null,"declared by the President, W-day is associated with an adversary decision to prepare for war"]
["WAAR",null,null,null,null,null,"Wartime Aircraft Activity Report"]
["WACBE",null,null,null,null,null,"World Area Code Basic Encyclopedia"]
["WADS",null,null,null,null,null,"Western Air Defense Sector"]
["WAGB",null,null,null,null,null,"icebreaker (USCG)"]
["WAI",null,null,null,null,null,"weather area of interest"]
["WAN",null,null,null,null,null,"wide-area network"]
["WANGO",null,null,null,null,null,"World Association of Non-Governmental Organizations"]
["WARM",null,null,null,null,null,"wartime reserve mode"]
["WARNORD",null,null,null,null,null,"warning order"]
["WARP",null,null,null,null,null,"web-based access and retrieval portal"]
["WAS",null,null,null,null,null,"wide area surveillance"]
["WASP",null,null,null,null,null,"war air service program"]
["WATCHCON",null,null,null,null,null,"watch condition"]
["WAWF",null,null,null,null,null,"Wide Area Work Flow System"]
["WB",null,null,null,null,null,"wideband"]
["WBGTI",null,null,null,null,null,"wet bulb globe temperature index"]
["WBIED",null,null,null,null,null,"waterborne improvised explosive device"]
["WBT",null,null,null,null,null,"Weapons Bay Tank"]
["WC",null,null,null,null,null,"wind current"]
["WCA",null,null,null,null,null,"water clearance authority"]
["WCCS",null,null,null,null,null,"Wing Command and Control System"]
["WCDO",null,null,null,null,null,"War Consumables Distribution Objective"]
["WCE",null,null,null,null,null,"weapons of mass destruction coordination element; Work Center Event"]
["WCO",null,null,null,null,null,"World Customs Organization"]
["WCS",null,null,null,null,null,"weapons control status"]
["WDCO",null,null,null,null,null,"well deck control officer"]
["WDT",null,null,null,null,null,"warning and display terminal"]
["WEAX",null,null,null,null,null,"weather facsimile"]
["Web SM",null,null,null,null,null,"Web scheduling and movement"]
["WES",null,null,null,null,null,"weapon engagement status; Work Event Separator"]
["WETM",null,null,null,null,null,"weather team"]
["WEU",null,null,null,null,null,"Western European Union"]
["WEZ",null,null,null,null,null,"weapon engagement zone"]
["WFE",null,null,null,null,null,"warfighting environment"]
["WFP",null,null,null,null,null,"World Food Programme (UN)"]
["WG",null,null,null,null,null,"working group; Wing / Wage Grade"]
["WG/CC",null,null,null,null,null,"Wing Commander"]
["WG/CV",null,null,null,null,null,"Vice Wing Commander"]
["WGS",null,null,null,null,null,"Wideband Global Satellite Communications; World Geodetic System"]
["WGS 84",null,null,null,null,null,"World Geodetic System 1984"]
["WH",null,null,null,null,null,"wounded due to hostilities"]
["WHEC",null,null,null,null,null,"high-endurance cutter (USCG)"]
["WHNRS",null,null,null,null,null,"wartime host-nation religious support"]
["WHNS",null,null,null,null,null,"wartime host-nation support"]
["WHNSIMS",null,null,null,null,null,"Wartime Host Nation Support Information Management System"]
["WHO",null,null,null,null,null,"World Health Organization (UN)"]
["WIA",null,null,null,null,null,"wounded in action"]
["WISDIM",null,null,null,null,null,"Warfighting and Intelligence Systems Dictionary for Information Management"]
["WISP",null,null,null,null,null,"Wartime Information Security Program"]
["WIT",null,null,null,null,null,"weapons intelligence team"]
["WJQS",null,null,null,null,null,"Work Center Job Qualification Standard"]
["WLCMT",null,null,null,null,null,"Weapons Load Crew Management Tool"]
["WLCTP",null,null,null,null,null,"Weapons Load Crew Training Program"]
["WLG",null,null,null,null,null,"Washington Liaison Group"]
["WLT",null,null,null,null,null,"Weapons Load Training"]
["WMD",null,null,null,null,null,"weapons of mass destruction"]
["WMD CM",null,null,null,null,null,"weapons of mass destruction consequence management"]
["WMD-CST",null,null,null,null,null,"weapons of mass destruction-civil support team"]
["WMD-E",null,null,null,null,null,"weapons of mass destruction-elimination"]
["WMEC",null,null,null,null,null,"Coast Guard medium-endurance cutter"]
["WMO",null,null,null,null,null,"World Meteorological Organization"]
["WMP",null,null,null,null,null,"Air Force War and Mobilization Plan; War Mobilization Plan"]
["WOC",null,null,null,null,null,"wing operations center (USAF)"]
["WOD",null,null,null,null,null,"wind-over deck; word-of-day"]
["WORM",null,null,null,null,null,"write once read many"]
["WOT",null,null,null,null,null,"war on terrorism"]
["WP",null,null,null,null,null,"white phosphorous; working party; Working Party (NATO)"]
["WPA",null,null,null,null,null,"water jet propulsion assembly"]
["WPAL",null,null,null,null,null,"wartime personnel allowance list"]
["WPARR",null,null,null,null,null,"War Plans Additive Requirements Roster"]
["WPB",null,null,null,null,null,"Coast Guard patrol boat"]
["WPC",null,null,null,null,null,"Washington Planning Center"]
["WPM",null,null,null,null,null,"words per minute"]
["WPN",null,null,null,null,null,"weapon"]
["WPR",null,null,null,null,null,"War Powers Resolution"]
["WR",null,null,null,null,null,"war reserve; weapon radius"]
["WRA",null,null,null,null,null,"Office of Weapons Removal and Abatement (DOS); weapons release authority"]
["WRAIR",null,null,null,null,null,"Walter Reed Army Institute of Research"]
["WRC",null,null,null,null,null,"World Radiocommunication Conference"]
["WRCS",null,null,null,null,null,"Weapons Release Computer System"]
["WRE",null,null,null,null,null,"War Reserve Equipment / War Readiness Engine"]
["WRL",null,null,null,null,null,"weapons release line"]
["WRM",null,null,null,null,null,"war reserve materiel"]
["WRMO",null,null,null,null,null,"War Reserve Materiel Officer"]
["WRMS",null,null,null,null,null,"war reserve materiel stock"]
["WRR",null,null,null,null,null,"weapons response range (as well as wpns release rg)"]
["WRS",null,null,null,null,null,"war reserve stock"]
["WRSA",null,null,null,null,null,"war reserve stocks for allies"]
["WRSK",null,null,null,null,null,"war readiness spares kit; war reserve spares kit"]
["WS3",null,null,null,null,null,"Weapons Storage and Security System"]
["WS",null,null,null,null,null,"weather squadron; Weapons Standardization"]
["WSE",null,null,null,null,null,"weapon support equipment"]
["WSES",null,null,null,null,null,"surface effect ship (USCG)"]
["WSESRB",null,null,null,null,null,"Weapon System Explosive Safety Review Board"]
["WSM",null,null,null,null,null,"waterspace management; Weapon System Manager"]
["WSR",null,null,null,null,null,"weapon system reliability"]
["WST",null,null,null,null,null,"Weapons Systems Team"]
["WSV",null,null,null,null,null,"weapons system video"]
["WT",null,null,null,null,null,"warping tug; weight"]
["WTCA",null,null,null,null,null,"water terminal clearance authority"]
["WTCT",null,null,null,null,null,"weapons of mass destruction technical collection team"]
["WTI",null,null,null,null,null,"weapons technical intelligence"]
["WTLO",null,null,null,null,null,"water terminal logistic office"]
["WTQC",null,null,null,null,null,"Weapons Task Qualification Crew"]
["WTQM",null,null,null,null,null,"Weapons Task Qualification Training Manager"]
["WUC",null,null,null,null,null,"Work Unit Code"]
["Wu",null,null,null,null,null,"uncorrected sweep width"]
["WVRD",null,null,null,null,null,"World Vision Relief and Development, Inc."]
["WWABNCP",null,null,null,null,null,"worldwide airborne command post"]
["WWID",null,null,null,null,null,"Worldwide Identification (code for TAS)"]
["WWII",null,null,null,null,null,"World War II"]
["WWM",null,null,null,null,null,"Wing Weapons Manager"]
["WWSVCS",null,null,null,null,null,"Worldwide Secure Voice Conferencing System"]
["WWX",null,null,null,null,null,"worldwide express"]
["WX",null,null,null,null,null,"weather"]
["X",null,null,null,null,null,"initial position error"]
["XCDS",null,null,null,null,null,"Extracted Container Delivery System"]
["XCVR",null,null,null,null,null,"transceiver"]
["XMPP",null,null,null,null,null,"extensible messaging and presence protocol"]
["XO",null,null,null,null,null,"executive officer"]
["XOCL",null,null,null,null,null,"Logistics Readiness Division"]
["XSB",null,null,null,null,null,"barrier single unit"]
["Y",null,null,null,null,null,"search and rescue unit (SRU) error"]
["YR",null,null,null,null,null,"year"]
["Z",null,null,null,null,null,"zulu"]
["z",null,null,null,null,null,"effort"]
["ZF",null,null,null,null,null,"zone of fire"]
["Zt",null,null,null,null,null,"total available effort"]
["ZULU",null,null,null,null,null,"time zone indicator for Universal Time"]